{"text_format":"1","workbook":"xlsx","n_sheets":8,"sheets":["Cover","Notes","Summary of judgements","Pivot FE&S","Inspection data","Pivot SSA","Sector subject area data","PTT Data"],"not_rendered":{"charts":4,"images":1,"macros":1,"external_links":1,"defined_names":12,"comments":0,"pivot_tables":10},"unopened":[],"bounds":{"document_bytes":16777216,"sheet_cells":100000,"rows_first":2000,"rows_last":500,"rows_between":2000,"halvings":0,"cell_chars":16384,"cell_head_chars":4096},"cells_cut":0,"cells_raw":0,"read":"whole","date_system":"1900"}

{"sheet":"Cover","index":0,"n_rows":28,"n_cols":3,"rows_kept":28,"cut":false,"hidden":false,"merged":[[5,1,5,2]]}
[]
[]
[]
[]
[]
[null,"Management information"]
[null,"Policy area:","Further education and skills inspections and outcomes"]
[null,"Theme:","Education, children's services and skills"]
[null,"Published on:","16 June 2015"]
[null,"Coverage:","England"]
[null,"Period covered:","Latest inspections up to 30 April 2015 (published by 5 May 2015)"]
[null,"Status:","Provisional: Management Information"]
[null,"Statistician:","Sarah Pearce"]
[null,"Public enquiries:","enquiries@ofsted.gov.uk"]
[null,"Press enquiries:","pressenquiries@ofsted.gov.uk"]
[null,"Link to FE and Skills management information web page including publication schedule:","https://www.gov.uk/government/statistical-data-sets/monthly-management-information-ofsteds-further-education-and-skills-inspections-outcomes"]
[null,"Link to official statistics release web page:","https://www.gov.uk/government/collections/further-education-and-skills-inspection-outcomes"]
[]
[]
[null,"© Crown copyright 2015"]
[]
[null,"You may use and re-use this information (not including logos) free of charge in any format or medium, "]
[null,"under the terms of the Open Government Licence. "]
[null,"To view this licence, visit:"]
[null,"http://www.nationalarchives.gov.uk/doc/open-government-licence/"]
[null,"Or write to the Information Policy Team, The National Archives, Kew, London, TW9 4DU"]
[null,"Or email:"]
[null,"psi@nationalarchives.gsi.gov.uk"]

{"sheet":"Notes","index":1,"n_rows":16,"n_cols":4,"rows_kept":16,"cut":false,"hidden":false,"merged":[[6,1,6,3],[7,1,7,3],[5,1,5,3],[0,1,0,3],[1,1,1,3],[2,1,2,3],[3,1,3,3],[4,1,4,3]]}
[null,"MANAGEMENT INFORMATION - INSPECTION OUTCOMES"]
[null,"Data show inspection judgements for further education and skills providers for the academic year 2014/15."]
[null,"The data cover outcomes for inspections which have taken place between 1 September 2014 and 30 April 2015, and where the inspection report has been published by 5 May 2015."]
[null,"The completeness of the data will improve incrementally over the coming months.  For example, the position shown here for inspections taking place between September 2014 and August 2015 is not yet complete."]
[null,"Adult and community learning providers are now known as community learning and skills providers. "]
[]
[null,"INDEX OF TABLES"]
[null,"To access the tables you can either click on the links below or on the tabs at the bottom of the spreadsheet:"]
[]
[null,"Summary of  judgements",null,"Summary of latest inspection judgements for providers"]
[null,"Inspection data",null,"Inspection data at provider level"]
[null,"Sector subject area data",null,"Sector subject area data at provider level"]
[]
[]
[null,"Key to judgements: grade 1 is outstanding, grade 2 good, grade 3 requires improvement and grade 4 inadequate."]
[null,"The 2014/15 academic year refers to the dates between 01/09/2014 - 31/08/2015 inclusive."]

{"sheet":"Summary of judgements","index":2,"n_rows":173,"n_cols":20,"rows_kept":173,"cut":false,"hidden":false,"merged":[[28,1,29,1],[28,2,29,2],[28,3,28,6],[4,1,5,1],[4,2,5,2],[4,3,4,6],[101,3,101,6],[53,1,54,1],[53,2,54,2],[53,3,53,6],[77,1,78,1],[77,2,78,2],[77,3,77,6],[101,1,102,1],[101,2,102,2]]}
["Summary of latest judgements"]
[]
[null,"Overall effectiveness of providers inspected since 1 September 2014"]
[null,null,null,1,2,3,4]
[null,"Provider type","Total number of providers inspected","Overall effectiveness"]
[null,null,null,"Outstanding","Good","Requires improvement","Inadequate",null,null,"Outstanding","Good","Requires improvement","Inadequate"]
[null,"Academy Converter",0,0,0,0,0,null,{"$f":"B7&\" \"&\"(\"&C7&\")\"","v":"Academy Converter (0)"},{"$f":"D7/$C7*100","v":{"$error":"#DIV/0!"}},{"$f":"E7/$C7*100","v":{"$error":"#DIV/0!"}},{"$error":"#DIV/0!"},{"$error":"#DIV/0!"}]
[null,"Community Learning and Skills",{"$f":"SUM(D8:G8)","v":40},{"$f":"IFERROR(GETPIVOTDATA(\"Provider Name\",'Pivot FE&S'!$A$5,\"Provider type\",\"Community Learning and Skills\",\"Overall Effectiveness\",1),0)","v":2},{"$f":"IFERROR(GETPIVOTDATA(\"Provider Name\",'Pivot FE&S'!$A$5,\"Provider type\",\"Community Learning and Skills\",\"Overall Effectiveness\",2),0)","v":19},{"$f":"IFERROR(GETPIVOTDATA(\"Provider Name\",'Pivot FE&S'!$A$5,\"Provider type\",\"Community Learning and Skills\",\"Overall Effectiveness\",3),0)","v":12},{"$f":"IFERROR(GETPIVOTDATA(\"Provider Name\",'Pivot FE&S'!$A$5,\"Provider type\",\"Community Learning and Skills\",\"Overall Effectiveness\",4),0)","v":7},null,{"$f":"B8&\" \"&\"(\"&C8&\")\"","v":"Community Learning and Skills (40)"},{"$f":"D8/$C8*100","v":5},47.5,30,17.5]
[null,"Employer",{"$f":"SUM(D9:G9)","v":7},{"$f":"IFERROR(GETPIVOTDATA(\"Provider Name\",'Pivot FE&S'!$A$5,\"Provider type\",\"Employer\",\"Overall Effectiveness\",1),0)","v":2},{"$f":"IFERROR(GETPIVOTDATA(\"Provider Name\",'Pivot FE&S'!$A$5,\"Provider type\",\"Employer\",\"Overall Effectiveness\",2),0)","v":2},{"$f":"IFERROR(GETPIVOTDATA(\"Provider Name\",'Pivot FE&S'!$A$5,\"Provider type\",\"Employer\",\"Overall Effectiveness\",3),0)","v":2},{"$f":"IFERROR(GETPIVOTDATA(\"Provider Name\",'Pivot FE&S'!$A$5,\"Provider type\",\"Employer\",\"Overall Effectiveness\",4),0)","v":1},null,{"$f":"B9&\" \"&\"(\"&C9&\")\"","v":"Employer (7)"},28.571428571428569,28.571428571428569,28.571428571428569,14.285714285714285]
[null,"Free School - 16-19",{"$f":"SUM(D10:G10)","v":5},{"$f":"IFERROR(GETPIVOTDATA(\"Provider Name\",'Pivot FE&S'!$A$5,\"Provider_type\",$B10,\"Overall Effectiveness\",D$4),0)","v":0},{"$f":"IFERROR(GETPIVOTDATA(\"Provider Name\",'Pivot FE&S'!$A$5,\"Provider type\",\"Free School - 16-19\",\"Overall Effectiveness\",2),0)","v":1},{"$f":"IFERROR(GETPIVOTDATA(\"Provider Name\",'Pivot FE&S'!$A$5,\"Provider type\",\"Free School - 16-19\",\"Overall Effectiveness\",3),0)","v":2},{"$f":"IFERROR(GETPIVOTDATA(\"Provider Name\",'Pivot FE&S'!$A$5,\"Provider type\",\"Free School - 16-19\",\"Overall Effectiveness\",4),0)","v":2},null,{"$f":"B10&\" \"&\"(\"&C10&\")\"","v":"Free School - 16-19 (5)"},0,20,40,40]
[null,"General Further Education/Tertiary College",{"$f":"SUM(D11:G11)","v":37},{"$f":"IFERROR(GETPIVOTDATA(\"Provider Name\",'Pivot FE&S'!$A$5,\"Provider type\",\"General Further Education/Tertiary College\",\"Overall Effectiveness\",1),0)","v":1},{"$f":"IFERROR(GETPIVOTDATA(\"Provider Name\",'Pivot FE&S'!$A$5,\"Provider type\",\"General Further Education/Tertiary College\",\"Overall Effectiveness\",2),0)","v":13},{"$f":"IFERROR(GETPIVOTDATA(\"Provider Name\",'Pivot FE&S'!$A$5,\"Provider type\",\"General Further Education/Tertiary College\",\"Overall Effectiveness\",3),0)","v":18},{"$f":"IFERROR(GETPIVOTDATA(\"Provider Name\",'Pivot FE&S'!$A$5,\"Provider type\",\"General Further Education/Tertiary College\",\"Overall Effectiveness\",4),0)","v":5},null,"General Further Education/Tertiary College (37)",{"$f":"D11/$C11*100","v":2.7027027027027026},{"$f":"E11/$C11*100","v":35.135135135135137},{"$f":"F11/$C11*100","v":48.648648648648653},{"$f":"G11/$C11*100","v":13.513513513513514}]
[null,"Specialist Further Education",{"$f":"SUM(D12:G12)","v":2},{"$f":"IFERROR(GETPIVOTDATA(\"Provider Name\",'Pivot FE&S'!$A$5,\"Provider_type\",$B12,\"Overall Effectiveness\",D$4),0)","v":0},{"$f":"IFERROR(GETPIVOTDATA(\"Provider Name\",'Pivot FE&S'!$A$5,\"Provider type\",\"Specialist Further Education\",\"Overall Effectiveness\",2),0)","v":2},{"$f":"IFERROR(GETPIVOTDATA(\"Provider Name\",'Pivot FE&S'!$A$5,\"Provider_type\",$B12,\"Overall Effectiveness\",F$6),0)","v":0},{"$f":"IFERROR(GETPIVOTDATA(\"Provider Name\",'Pivot FE&S'!$A$5,\"Provider_type\",$B12,\"Overall Effectiveness\",G$4),0)","v":0},null,{"$f":"B12&\" \"&\"(\"&C12&\")\"","v":"Specialist Further Education (2)"},{"$f":"D12/$C12*100","v":0},{"$f":"E12/$C12*100","v":100},{"$f":"F12/$C12*100","v":0},{"$f":"G12/$C12*100","v":0}]
[null,"Higher Education Institution",2,{"$f":"IFERROR(GETPIVOTDATA(\"Provider Name\",'Pivot FE&S'!$A$5,\"Provider type\",\"Higher Education Institution\",\"Overall Effectiveness\",1),0)","v":2},{"$f":"IFERROR(GETPIVOTDATA(\"Provider Name\",'Pivot FE&S'!$A$5,\"Provider_type\",$B13,\"Overall Effectiveness\",E$6),0)","v":0},{"$f":"IFERROR(GETPIVOTDATA(\"Provider Name\",'Pivot FE&S'!$A$5,\"Provider_type\",$B13,\"Overall Effectiveness\",F$6),0)","v":0},{"$f":"IFERROR(GETPIVOTDATA(\"Provider Name\",'Pivot FE&S'!$A$5,\"Provider_type\",$B13,\"Overall Effectiveness\",G$4),0)","v":0},null,{"$f":"B13&\" \"&\"(\"&C13&\")\"","v":"Higher Education Institution (2)"},{"$f":"D13/$C13*100","v":100},{"$f":"E13/$C13*100","v":0},{"$f":"F13/$C13*100","v":0},{"$f":"G13/$C13*100","v":0}]
[null,"Independent Learning Provider",73,{"$f":"IFERROR(GETPIVOTDATA(\"Provider Name\",'Pivot FE&S'!$A$5,\"Provider type\",\"Independent Learning Provider\",\"Overall Effectiveness\",1),0)","v":3},{"$f":"IFERROR(GETPIVOTDATA(\"Provider Name\",'Pivot FE&S'!$A$5,\"Provider type\",\"Independent Learning Provider\",\"Overall Effectiveness\",2),0)","v":31},{"$f":"IFERROR(GETPIVOTDATA(\"Provider Name\",'Pivot FE&S'!$A$5,\"Provider type\",\"Independent Learning Provider\",\"Overall Effectiveness\",3),0)","v":31},{"$f":"IFERROR(GETPIVOTDATA(\"Provider Name\",'Pivot FE&S'!$A$5,\"Provider type\",\"Independent Learning Provider\",\"Overall Effectiveness\",4),0)","v":8},null,"Independent Learning Provider (73)",4.10958904109589,42.465753424657535,42.465753424657535,10.95890410958904]
[null,"National Careers Service",0,{"$f":"IFERROR(GETPIVOTDATA(\"Provider Name\",'Pivot FE&S'!$A$5,\"Provider_type\",$B15,\"Overall Effectiveness\",D$4),0)","v":0},{"$f":"IFERROR(GETPIVOTDATA(\"Provider Name\",'Pivot FE&S'!$A$5,\"Provider_type\",$B15,\"Overall Effectiveness\",E$6),0)","v":0},{"$f":"IFERROR(GETPIVOTDATA(\"Provider Name\",'Pivot FE&S'!$A$5,\"Provider_type\",$B15,\"Overall Effectiveness\",F$6),0)","v":0},{"$f":"IFERROR(GETPIVOTDATA(\"Provider Name\",'Pivot FE&S'!$A$5,\"Provider_type\",$B15,\"Overall Effectiveness\",G$4),0)","v":0},null,{"$f":"B15&\" \"&\"(\"&C15&\")\"","v":"National Careers Service (0)"},{"$f":"D15/$C15*100","v":{"$error":"#DIV/0!"}},{"$f":"E15/$C15*100","v":{"$error":"#DIV/0!"}},{"$f":"F15/$C15*100","v":{"$error":"#DIV/0!"}},{"$f":"G15/$C15*100","v":{"$error":"#DIV/0!"}}]
[null,"Independent Specialist College",6,{"$f":"IFERROR(GETPIVOTDATA(\"Provider Name\",'Pivot FE&S'!$A$5,\"Provider_type\",$B16,\"Overall Effectiveness\",D$4),0)","v":0},{"$f":"IFERROR(GETPIVOTDATA(\"Provider Name\",'Pivot FE&S'!$A$5,\"Provider type\",\"Independent Specialist College\",\"Overall Effectiveness\",2),0)","v":3},{"$f":"IFERROR(GETPIVOTDATA(\"Provider Name\",'Pivot FE&S'!$A$5,\"Provider type\",\"Independent Specialist College\",\"Overall Effectiveness\",3),0)","v":2},{"$f":"IFERROR(GETPIVOTDATA(\"Provider Name\",'Pivot FE&S'!$A$5,\"Provider type\",\"Independent Specialist College\",\"Overall Effectiveness\",4),0)","v":1},null,"Independent Specialist College (6)",0,50,33.333333333333329,16.666666666666664]
[null,"Sixth Form College",9,{"$f":"IFERROR(GETPIVOTDATA(\"Provider Name\",'Pivot FE&S'!$A$5,\"Provider_type\",$B17,\"Overall Effectiveness\",D$4),0)","v":0},{"$f":"IFERROR(GETPIVOTDATA(\"Provider Name\",'Pivot FE&S'!$A$5,\"Provider type\",\"Sixth Form College\",\"Overall Effectiveness\",2),0)","v":2},{"$f":"IFERROR(GETPIVOTDATA(\"Provider Name\",'Pivot FE&S'!$A$5,\"Provider type\",\"Sixth Form College\",\"Overall Effectiveness\",3),0)","v":5},{"$f":"IFERROR(GETPIVOTDATA(\"Provider Name\",'Pivot FE&S'!$A$5,\"Provider type\",\"Sixth Form College\",\"Overall Effectiveness\",4),0)","v":2},null,"Sixth Form College (9)",0,22.222222222222221,55.555555555555557,22.222222222222221]
[null,"Total",{"$f":"SUM(C7:C17)","v":181},{"$f":"SUM(D7:D17)","v":10},{"$f":"SUM(E7:E17)","v":73},{"$f":"SUM(F7:F17)","v":72},{"$f":"SUM(G7:G17)","v":26},null,{"$f":"B18&\" \"&\"(\"&C18&\")\"","v":"Total (181)"},{"$f":"D18/$C18*100","v":5.5248618784530388},{"$f":"E18/$C18*100","v":40.331491712707184},{"$f":"F18/$C18*100","v":39.77900552486188},{"$f":"G18/$C18*100","v":14.3646408839779}]
[]
[]
[]
[null,null,null,null,null,null,null,null,null,null,null,null,null,"Where the number of inspections is small, percentages should be viewed with caution. "]
[null,null,null,null,null,null,null,null,null,null,null,null,null,"Percentages are rounded and may not add to 100."]
[null,null,null,null,null,null,null,null,null,null,null,null,null,null,null,null,null,null,null,"Source: Ofsted inspection data"]
[]
[]
[null,"Outcomes for learners for providers inspected since 1 September 2014"]
[]
[null,"Provider type","Total number of providers inspected","Outcomes for learners"]
[null,null,null,"Outstanding","Good","Requires improvement","Inadequate",null,null,"Outstanding","Good","Requires improvement","Inadequate"]
[null,"Academy Converter",{"$f":"SUM(D31:G31)","v":0},{"$f":"IFERROR(GETPIVOTDATA(\"Provider Name\",'Pivot FE&S'!$A$23,\"Provider_type\",$B31,\"Outcome for learners\",D$4),0)","v":0},{"$f":"IFERROR(GETPIVOTDATA(\"Provider Name\",'Pivot FE&S'!$A$23,\"Provider_type\",$B31,\"Outcome for learners\",E$4),0)","v":0},{"$f":"IFERROR(GETPIVOTDATA(\"Provider Name\",'Pivot FE&S'!$A$23,\"Provider_type\",$B31,\"Outcome for learners\",F$4),0)","v":0},{"$f":"IFERROR(GETPIVOTDATA(\"Provider Name\",'Pivot FE&S'!$A$23,\"Provider_type\",$B31,\"Outcome for learners\",G$4),0)","v":0},null,{"$f":"B31&\" \"&\"(\"&C31&\")\"","v":"Academy Converter (0)"},{"$f":"D31/$C31*100","v":{"$error":"#DIV/0!"}},{"$f":"E31/$C31*100","v":{"$error":"#DIV/0!"}},{"$error":"#DIV/0!"},{"$error":"#DIV/0!"}]
[null,"Community Learning and Skills",{"$f":"SUM(D32:G32)","v":40},{"$f":"IFERROR(GETPIVOTDATA(\"Provider Name\",'Pivot FE&S'!$A$21,\"Provider type\",\"Community Learning and Skills\",\"Outcome for Learners\",1),0)","v":2},{"$f":"IFERROR(GETPIVOTDATA(\"Provider Name\",'Pivot FE&S'!$A$21,\"Provider type\",\"Community Learning and Skills\",\"Outcome for Learners\",2),0)","v":19},{"$f":"IFERROR(GETPIVOTDATA(\"Provider Name\",'Pivot FE&S'!$A$21,\"Provider type\",\"Community Learning and Skills\",\"Outcome for Learners\",3),0)","v":15},{"$f":"IFERROR(GETPIVOTDATA(\"Provider Name\",'Pivot FE&S'!$A$21,\"Provider type\",\"Community Learning and Skills\",\"Outcome for Learners\",4),0)","v":4},null,{"$f":"B32&\" \"&\"(\"&C32&\")\"","v":"Community Learning and Skills (40)"},{"$f":"D32/$C32*100","v":5},47.5,37.5,10]
[null,"Employer",{"$f":"SUM(D33:G33)","v":7},{"$f":"IFERROR(GETPIVOTDATA(\"Provider Name\",'Pivot FE&S'!$A$21,\"Provider type\",\"Employer\",\"Outcome for Learners\",1),0)","v":2},{"$f":"IFERROR(GETPIVOTDATA(\"Provider Name\",'Pivot FE&S'!$A$21,\"Provider type\",\"Employer\",\"Outcome for Learners\",2),0)","v":1},{"$f":"IFERROR(GETPIVOTDATA(\"Provider Name\",'Pivot FE&S'!$A$21,\"Provider type\",\"Employer\",\"Outcome for Learners\",3),0)","v":3},{"$f":"IFERROR(GETPIVOTDATA(\"Provider Name\",'Pivot FE&S'!$A$21,\"Provider type\",\"Employer\",\"Outcome for Learners\",4),0)","v":1},null,{"$f":"B33&\" \"&\"(\"&C33&\")\"","v":"Employer (7)"},28.571428571428569,14.285714285714285,42.857142857142854,14.285714285714285]
[null,"Free School - 16-19",{"$f":"SUM(D34:G34)","v":5},{"$f":"IFERROR(GETPIVOTDATA(\"Provider Name\",'Pivot FE&S'!$A$21,\"Provider type\",B$32,\"Outcome for Learners\",D$6),0)","v":0},{"$f":"IFERROR(GETPIVOTDATA(\"Provider Name\",'Pivot FE&S'!$A$21,\"Provider type\",\"Free School - 16-19\",\"Outcome for Learners\",2),0)","v":1},{"$f":"IFERROR(GETPIVOTDATA(\"Provider Name\",'Pivot FE&S'!$A$21,\"Provider type\",\"Free School - 16-19\",\"Outcome for Learners\",3),0)","v":2},{"$f":"IFERROR(GETPIVOTDATA(\"Provider Name\",'Pivot FE&S'!$A$21,\"Provider type\",\"Free School - 16-19\",\"Outcome for Learners\",4),0)","v":2},null,{"$f":"B34&\" \"&\"(\"&C34&\")\"","v":"Free School - 16-19 (5)"},0,20,40,40]
[null,"General Further Education/Tertiary College",37,{"$f":"IFERROR(GETPIVOTDATA(\"Provider Name\",'Pivot FE&S'!$A$21,\"Provider type\",\"General Further Education/Tertiary College\",\"Outcome for Learners\",1),0)","v":1},{"$f":"IFERROR(GETPIVOTDATA(\"Provider Name\",'Pivot FE&S'!$A$21,\"Provider type\",\"General Further Education/Tertiary College\",\"Outcome for Learners\",2),0)","v":10},{"$f":"IFERROR(GETPIVOTDATA(\"Provider Name\",'Pivot FE&S'!$A$21,\"Provider type\",\"General Further Education/Tertiary College\",\"Outcome for Learners\",3),0)","v":21},{"$f":"IFERROR(GETPIVOTDATA(\"Provider Name\",'Pivot FE&S'!$A$21,\"Provider type\",\"General Further Education/Tertiary College\",\"Outcome for Learners\",4),0)","v":5},null,"General Further Education/Tertiary College (37)",{"$f":"D35/$C35*100","v":2.7027027027027026},{"$f":"E35/$C35*100","v":27.027027027027028},{"$f":"F35/$C35*100","v":56.756756756756758},{"$f":"G35/$C35*100","v":13.513513513513514}]
[null,"Specialist Further Education",2,{"$f":"IFERROR(GETPIVOTDATA(\"Provider Name\",'Pivot FE&S'!$A$23,\"Provider_type\",$B36,\"Outcome for learners\",D$4),0)","v":0},{"$f":"IFERROR(GETPIVOTDATA(\"Provider Name\",'Pivot FE&S'!$A$21,\"Provider type\",\"Specialist Further Education\",\"Outcome for Learners\",2),0)","v":2},{"$f":"IFERROR(GETPIVOTDATA(\"Provider Name\",'Pivot FE&S'!$A$23,\"Provider_type\",$B36,\"Outcome for learners\",F$4),0)","v":0},{"$f":"IFERROR(GETPIVOTDATA(\"Provider Name\",'Pivot FE&S'!$A$23,\"Provider_type\",$B36,\"Outcome for learners\",G$4),0)","v":0},null,{"$f":"B36&\" \"&\"(\"&C36&\")\"","v":"Specialist Further Education (2)"},{"$f":"D36/$C36*100","v":0},{"$f":"E36/$C36*100","v":100},{"$f":"F36/$C36*100","v":0},{"$f":"G36/$C36*100","v":0}]
[null,"Higher Education Institution",2,{"$f":"IFERROR(GETPIVOTDATA(\"Provider Name\",'Pivot FE&S'!$A$21,\"Provider type\",\"Higher Education Institution\",\"Outcome for Learners\",1),0)","v":2},{"$f":"IFERROR(GETPIVOTDATA(\"Provider Name\",'Pivot FE&S'!$A$23,\"Provider_type\",$B37,\"Outcome for learners\",E$4),0)","v":0},{"$f":"IFERROR(GETPIVOTDATA(\"Provider Name\",'Pivot FE&S'!$A$23,\"Provider_type\",$B37,\"Outcome for learners\",F$4),0)","v":0},{"$f":"IFERROR(GETPIVOTDATA(\"Provider Name\",'Pivot FE&S'!$A$23,\"Provider_type\",$B37,\"Outcome for learners\",G$4),0)","v":0},null,{"$f":"B37&\" \"&\"(\"&C37&\")\"","v":"Higher Education Institution (2)"},{"$f":"D37/$C37*100","v":100},{"$f":"E37/$C37*100","v":0},{"$f":"F37/$C37*100","v":0},{"$f":"G37/$C37*100","v":0}]
[null,"Independent Learning Provider",73,{"$f":"IFERROR(GETPIVOTDATA(\"Provider Name\",'Pivot FE&S'!$A$21,\"Provider type\",\"Independent Learning Provider\",\"Outcome for Learners\",1),0)","v":3},{"$f":"IFERROR(GETPIVOTDATA(\"Provider Name\",'Pivot FE&S'!$A$21,\"Provider type\",\"Independent Learning Provider\",\"Outcome for Learners\",2),0)","v":34},{"$f":"IFERROR(GETPIVOTDATA(\"Provider Name\",'Pivot FE&S'!$A$21,\"Provider type\",\"Independent Learning Provider\",\"Outcome for Learners\",3),0)","v":29},{"$f":"IFERROR(GETPIVOTDATA(\"Provider Name\",'Pivot FE&S'!$A$21,\"Provider type\",\"Independent Learning Provider\",\"Outcome for Learners\",4),0)","v":7},null,"Independent Learning Provider (73)",4.10958904109589,46.575342465753423,39.726027397260275,9.5890410958904102]
[null,"National Careers Service",0,{"$f":"IFERROR(GETPIVOTDATA(\"Provider Name\",'Pivot FE&S'!$A$23,\"Provider_type\",$B39,\"Outcome for learners\",D$4),0)","v":0},{"$f":"IFERROR(GETPIVOTDATA(\"Provider Name\",'Pivot FE&S'!$A$23,\"Provider_type\",$B39,\"Outcome for learners\",E$4),0)","v":0},{"$f":"IFERROR(GETPIVOTDATA(\"Provider Name\",'Pivot FE&S'!$A$23,\"Provider_type\",$B39,\"Outcome for learners\",F$4),0)","v":0},{"$f":"IFERROR(GETPIVOTDATA(\"Provider Name\",'Pivot FE&S'!$A$23,\"Provider_type\",$B39,\"Outcome for learners\",G$4),0)","v":0},null,{"$f":"B39&\" \"&\"(\"&C39&\")\"","v":"National Careers Service (0)"},{"$f":"D39/$C39*100","v":{"$error":"#DIV/0!"}},{"$f":"E39/$C39*100","v":{"$error":"#DIV/0!"}},{"$f":"F39/$C39*100","v":{"$error":"#DIV/0!"}},{"$f":"G39/$C39*100","v":{"$error":"#DIV/0!"}}]
[null,"Independent Specialist College",6,{"$f":"IFERROR(GETPIVOTDATA(\"Provider Name\",'Pivot FE&S'!$A$23,\"Provider_type\",$B40,\"Outcome for learners\",D$4),0)","v":0},{"$f":"IFERROR(GETPIVOTDATA(\"Provider Name\",'Pivot FE&S'!$A$21,\"Provider type\",\"Independent Specialist College\",\"Outcome for Learners\",2),0)","v":3},{"$f":"IFERROR(GETPIVOTDATA(\"Provider Name\",'Pivot FE&S'!$A$21,\"Provider type\",\"Independent Specialist College\",\"Outcome for Learners\",3),0)","v":3},{"$f":"IFERROR(GETPIVOTDATA(\"Provider Name\",'Pivot FE&S'!$A$23,\"Provider_type\",$B40,\"Outcome for learners\",G$4),0)","v":0},null,"Independent Specialist College (6)",0,50,50,0]
[null,"Sixth Form College",{"$f":"SUM(D41:G41)","v":9},{"$f":"IFERROR(GETPIVOTDATA(\"Provider Name\",'Pivot FE&S'!$A$23,\"Provider_type\",$B41,\"Outcome for learners\",D$4),0)","v":0},{"$f":"IFERROR(GETPIVOTDATA(\"Provider Name\",'Pivot FE&S'!$A$21,\"Provider type\",\"Sixth Form College\",\"Outcome for Learners\",2),0)","v":2},{"$f":"IFERROR(GETPIVOTDATA(\"Provider Name\",'Pivot FE&S'!$A$21,\"Provider type\",\"Sixth Form College\",\"Outcome for Learners\",3),0)","v":5},{"$f":"IFERROR(GETPIVOTDATA(\"Provider Name\",'Pivot FE&S'!$A$21,\"Provider type\",\"Sixth Form College\",\"Outcome for Learners\",4),0)","v":2},null,"Sixth Form College (9)",{"$f":"D41/$C41*100","v":0},{"$f":"E41/$C41*100","v":22.222222222222221},55.555555555555557,22.222222222222221]
[null,"Total",{"$f":"SUM(C31:C41)","v":181},{"$f":"SUM(D31:D41)","v":10},{"$f":"SUM(E31:E41)","v":72},78,21,null,{"$f":"B42&\" \"&\"(\"&C42&\")\"","v":"Total (181)"},{"$f":"D42/$C42*100","v":5.5248618784530388},{"$f":"E42/$C42*100","v":39.77900552486188},{"$f":"F42/$C42*100","v":43.093922651933703},{"$f":"G42/$C42*100","v":11.602209944751381}]
[]
[]
[]
[null,null,null,null,null,null,null,null,null,null,null,null,null,"Where the number of inspections is small, percentages should be viewed with caution. "]
[null,null,null,null,null,null,null,null,null,null,null,null,null,"Percentages are rounded and may not add to 100."]
[null,null,null,null,null,null,null,null,null,null,null,null,null,null,null,null,null,null,null,"Source: Ofsted inspection data"]
[]
[]
[]
[null,"Teaching, learning and assessment for providers inspected since 1 September 2014"]
[]
[null,"Provider type","Total number of providers inspected","Teaching, learning and assessment"]
[null,null,null,"Outstanding","Good","Requires improvement","Inadequate",null,null,"Outstanding","Good","Requires improvement","Inadequate"]
[null,"Academy Converter",{"$f":"SUM(D56:G56)","v":0},{"$f":"IFERROR(GETPIVOTDATA(\"Provider Name\",'Pivot FE&S'!$A$45,\"Provider_type\",$B56,\"Teaching\",D$4),0)","v":0},{"$f":"IFERROR(GETPIVOTDATA(\"Provider Name\",'Pivot FE&S'!$A$45,\"Provider_type\",$B56,\"Teaching\",E$4),0)","v":0},{"$f":"IFERROR(GETPIVOTDATA(\"Provider Name\",'Pivot FE&S'!$A$45,\"Provider_type\",$B56,\"Teaching\",F$4),0)","v":0},{"$f":"IFERROR(GETPIVOTDATA(\"Provider Name\",'Pivot FE&S'!$A$45,\"Provider_type\",$B56,\"Teaching\",G$4),0)","v":0},null,{"$f":"B56&\" \"&\"(\"&C56&\")\"","v":"Academy Converter (0)"},{"$f":"D56/$C56*100","v":{"$error":"#DIV/0!"}},{"$f":"E56/$C56*100","v":{"$error":"#DIV/0!"}},{"$error":"#DIV/0!"},{"$error":"#DIV/0!"}]
[null,"Community Learning and Skills",{"$f":"SUM(D57:G57)","v":40},{"$f":"IFERROR(GETPIVOTDATA(\"Provider Name\",'Pivot FE&S'!$A$42,\"Provider type\",\"Community Learning and Skills\",\"Teaching\",1),0)","v":2},{"$f":"IFERROR(GETPIVOTDATA(\"Provider Name\",'Pivot FE&S'!$A$42,\"Provider type\",\"Community Learning and Skills\",\"Teaching\",2),0)","v":21},{"$f":"IFERROR(GETPIVOTDATA(\"Provider Name\",'Pivot FE&S'!$A$42,\"Provider type\",\"Community Learning and Skills\",\"Teaching\",3),0)","v":14},{"$f":"IFERROR(GETPIVOTDATA(\"Provider Name\",'Pivot FE&S'!$A$42,\"Provider type\",\"Community Learning and Skills\",\"Teaching\",4),0)","v":3},null,"Community Learning and Skills (40)",{"$f":"D57/$C57*100","v":5},52.5,35,7.5]
[null,"Employer",{"$f":"SUM(D58:G58)","v":7},{"$f":"IFERROR(GETPIVOTDATA(\"Provider Name\",'Pivot FE&S'!$A$42,\"Provider type\",\"Employer\",\"Teaching\",1),0)","v":2},{"$f":"IFERROR(GETPIVOTDATA(\"Provider Name\",'Pivot FE&S'!$A$42,\"Provider type\",\"Employer\",\"Teaching\",2),0)","v":2},{"$f":"IFERROR(GETPIVOTDATA(\"Provider Name\",'Pivot FE&S'!$A$42,\"Provider type\",\"Employer\",\"Teaching\",3),0)","v":2},{"$f":"IFERROR(GETPIVOTDATA(\"Provider Name\",'Pivot FE&S'!$A$42,\"Provider type\",\"Employer\",\"Teaching\",4),0)","v":1},null,"Employer (7)",28.571428571428569,28.571428571428569,28.571428571428569,14.285714285714285]
[null,"Free School - 16-19",{"$f":"SUM(D59:G59)","v":5},{"$f":"IFERROR(GETPIVOTDATA(\"Provider Name\",'Pivot FE&S'!$A$45,\"Provider_type\",$B59,\"Teaching\",D$4),0)","v":0},{"$f":"IFERROR(GETPIVOTDATA(\"Provider Name\",'Pivot FE&S'!$A$42,\"Provider type\",\"Free School - 16-19\",\"Teaching\",2),0)","v":1},{"$f":"IFERROR(GETPIVOTDATA(\"Provider Name\",'Pivot FE&S'!$A$42,\"Provider type\",\"Free School - 16-19\",\"Teaching\",3),0)","v":2},{"$f":"IFERROR(GETPIVOTDATA(\"Provider Name\",'Pivot FE&S'!$A$42,\"Provider type\",\"Free School - 16-19\",\"Teaching\",4),0)","v":2},null,"Free School - 16-19 (5)",0,20,40,40]
[null,"General Further Education/Tertiary College",37,{"$f":"IFERROR(GETPIVOTDATA(\"Provider Name\",'Pivot FE&S'!$A$42,\"Provider type\",\"General Further Education/Tertiary College\",\"Teaching\",1),0)","v":1},{"$f":"IFERROR(GETPIVOTDATA(\"Provider Name\",'Pivot FE&S'!$A$42,\"Provider type\",\"General Further Education/Tertiary College\",\"Teaching\",2),0)","v":14},{"$f":"IFERROR(GETPIVOTDATA(\"Provider Name\",'Pivot FE&S'!$A$42,\"Provider type\",\"General Further Education/Tertiary College\",\"Teaching\",3),0)","v":18},{"$f":"IFERROR(GETPIVOTDATA(\"Provider Name\",'Pivot FE&S'!$A$42,\"Provider type\",\"General Further Education/Tertiary College\",\"Teaching\",4),0)","v":4},null,"General Further Education/Tertiary College (37)",{"$f":"D60/$C60*100","v":2.7027027027027026},37.837837837837839,{"$f":"F60/$C60*100","v":48.648648648648653},10.810810810810811]
[null,"Specialist Further Education",2,{"$f":"IFERROR(GETPIVOTDATA(\"Provider Name\",'Pivot FE&S'!$A$45,\"Provider_type\",$B61,\"Teaching\",D$4),0)","v":0},{"$f":"IFERROR(GETPIVOTDATA(\"Provider Name\",'Pivot FE&S'!$A$42,\"Provider type\",\"Specialist Further Education\",\"Teaching\",2),0)","v":2},{"$f":"IFERROR(GETPIVOTDATA(\"Provider Name\",'Pivot FE&S'!$A$45,\"Provider_type\",$B61,\"Teaching\",F$4),0)","v":0},{"$f":"IFERROR(GETPIVOTDATA(\"Provider Name\",'Pivot FE&S'!$A$45,\"Provider_type\",$B61,\"Teaching\",G$4),0)","v":0},null,{"$f":"B61&\" \"&\"(\"&C61&\")\"","v":"Specialist Further Education (2)"},{"$f":"D61/$C61*100","v":0},{"$f":"E61/$C61*100","v":100},{"$f":"F61/$C61*100","v":0},{"$f":"G61/$C61*100","v":0}]
[null,"Higher Education Institution",2,{"$f":"IFERROR(GETPIVOTDATA(\"Provider Name\",'Pivot FE&S'!$A$42,\"Provider type\",\"Higher Education Institution\",\"Teaching\",1),0)","v":2},{"$f":"IFERROR(GETPIVOTDATA(\"Provider Name\",'Pivot FE&S'!$A$45,\"Provider_type\",$B62,\"Teaching\",E$4),0)","v":0},{"$f":"IFERROR(GETPIVOTDATA(\"Provider Name\",'Pivot FE&S'!$A$45,\"Provider_type\",$B62,\"Teaching\",F$4),0)","v":0},{"$f":"IFERROR(GETPIVOTDATA(\"Provider Name\",'Pivot FE&S'!$A$45,\"Provider_type\",$B62,\"Teaching\",G$4),0)","v":0},null,{"$f":"B62&\" \"&\"(\"&C62&\")\"","v":"Higher Education Institution (2)"},{"$f":"D62/$C62*100","v":100},{"$f":"E62/$C62*100","v":0},{"$f":"F62/$C62*100","v":0},{"$f":"G62/$C62*100","v":0}]
[null,"Independent Learning Provider",73,{"$f":"IFERROR(GETPIVOTDATA(\"Provider Name\",'Pivot FE&S'!$A$42,\"Provider type\",\"Independent Learning Provider\",\"Teaching\",1),0)","v":3},{"$f":"IFERROR(GETPIVOTDATA(\"Provider Name\",'Pivot FE&S'!$A$42,\"Provider type\",\"Independent Learning Provider\",\"Teaching\",2),0)","v":36},{"$f":"IFERROR(GETPIVOTDATA(\"Provider Name\",'Pivot FE&S'!$A$42,\"Provider type\",\"Independent Learning Provider\",\"Teaching\",3),0)","v":27},{"$f":"IFERROR(GETPIVOTDATA(\"Provider Name\",'Pivot FE&S'!$A$42,\"Provider type\",\"Independent Learning Provider\",\"Teaching\",4),0)","v":7},null,"Independent Learning Provider (73)",4.10958904109589,49.315068493150683,36.986301369863014,9.5890410958904102]
[null,"National Careers Service",0,{"$f":"IFERROR(GETPIVOTDATA(\"Provider Name\",'Pivot FE&S'!$A$45,\"Provider_type\",$B64,\"Teaching\",D$4),0)","v":0},{"$f":"IFERROR(GETPIVOTDATA(\"Provider Name\",'Pivot FE&S'!$A$45,\"Provider_type\",$B64,\"Teaching\",E$4),0)","v":0},{"$f":"IFERROR(GETPIVOTDATA(\"Provider Name\",'Pivot FE&S'!$A$45,\"Provider_type\",$B64,\"Teaching\",F$4),0)","v":0},{"$f":"IFERROR(GETPIVOTDATA(\"Provider Name\",'Pivot FE&S'!$A$45,\"Provider_type\",$B64,\"Teaching\",G$4),0)","v":0},null,{"$f":"B64&\" \"&\"(\"&C64&\")\"","v":"National Careers Service (0)"},{"$f":"D64/$C64*100","v":{"$error":"#DIV/0!"}},{"$f":"E64/$C64*100","v":{"$error":"#DIV/0!"}},{"$f":"F64/$C64*100","v":{"$error":"#DIV/0!"}},{"$f":"G64/$C64*100","v":{"$error":"#DIV/0!"}}]
[null,"Independent Specialist College",6,{"$f":"IFERROR(GETPIVOTDATA(\"Provider Name\",'Pivot FE&S'!$A$45,\"Provider_type\",$B65,\"Teaching\",D$4),0)","v":0},{"$f":"IFERROR(GETPIVOTDATA(\"Provider Name\",'Pivot FE&S'!$A$42,\"Provider type\",\"Independent Specialist College\",\"Teaching\",2),0)","v":3},{"$f":"IFERROR(GETPIVOTDATA(\"Provider Name\",'Pivot FE&S'!$A$42,\"Provider type\",\"Independent Specialist College\",\"Teaching\",3),0)","v":2},{"$f":"IFERROR(GETPIVOTDATA(\"Provider Name\",'Pivot FE&S'!$A$42,\"Provider type\",\"Independent Specialist College\",\"Teaching\",4),0)","v":1},null,"Independent Specialist College (6)",0,50,33.333333333333329,16.666666666666664]
[null,"Sixth Form College",9,{"$f":"IFERROR(GETPIVOTDATA(\"Provider Name\",'Pivot FE&S'!$A$45,\"Provider_type\",$B66,\"Teaching\",D$4),0)","v":0},{"$f":"IFERROR(GETPIVOTDATA(\"Provider Name\",'Pivot FE&S'!$A$42,\"Provider type\",\"Sixth Form College\",\"Teaching\",2),0)","v":2},{"$f":"IFERROR(GETPIVOTDATA(\"Provider Name\",'Pivot FE&S'!$A$42,\"Provider type\",\"Sixth Form College\",\"Teaching\",3),0)","v":6},{"$f":"IFERROR(GETPIVOTDATA(\"Provider Name\",'Pivot FE&S'!$A$42,\"Provider type\",\"Sixth Form College\",\"Teaching\",4),0)","v":1},null,"Sixth Form College (9)",0,22.222222222222221,66.666666666666657,11.111111111111111]
[null,"Total",{"$f":"SUM(C56:C66)","v":181},{"$f":"SUM(D56:D66)","v":10},81,71,19,null,"Total (181)",{"$f":"D67/$C67*100","v":5.5248618784530388},44.751381215469614,39.226519337016576,10.497237569060774]
[]
[]
[]
[null,null,null,null,null,null,null,null,null,null,null,null,null,"Where the number of inspections is small, percentages should be viewed with caution. "]
[null,null,null,null,null,null,null,null,null,null,null,null,null,"Percentages are rounded and may not add to 100."]
[null,null,null,null,null,null,null,null,null,null,null,null,null,null,null,null,null,null,null,"Source: Ofsted inspection data"]
[]
[]
[null,"Leadership and management for providers inspected since 1 September 2014"]
[]
[null,"Provider type","Total number of providers inspected","Leadership and management"]
[null,null,null,"Outstanding","Good","Requires improvement","Inadequate",null,null,"Outstanding","Good","Requires improvement","Inadequate"]
[null,"Academy Converter",{"$f":"SUM(D80:G80)","v":0},{"$f":"IFERROR(GETPIVOTDATA(\"Provider Name\",'Pivot FE&S'!$A$63,\"Provider_type\",$B80,\"Leadership and management\",D$4),0)","v":0},{"$f":"IFERROR(GETPIVOTDATA(\"Provider Name\",'Pivot FE&S'!$A$63,\"Provider_type\",$B80,\"Leadership and management\",E$4),0)","v":0},{"$f":"IFERROR(GETPIVOTDATA(\"Provider Name\",'Pivot FE&S'!$A$63,\"Provider_type\",$B80,\"Leadership and management\",F$4),0)","v":0},{"$f":"IFERROR(GETPIVOTDATA(\"Provider Name\",'Pivot FE&S'!$A$63,\"Provider_type\",$B80,\"Leadership and management\",G$4),0)","v":0},null,{"$f":"B80&\" \"&\"(\"&C80&\")\"","v":"Academy Converter (0)"},{"$f":"D80/$C80*100","v":{"$error":"#DIV/0!"}},{"$f":"E80/$C80*100","v":{"$error":"#DIV/0!"}},{"$f":"F80/$C80*100","v":{"$error":"#DIV/0!"}},{"$f":"G80/$C80*100","v":{"$error":"#DIV/0!"}}]
[null,"Community Learning and Skills",{"$f":"SUM(D81:G81)","v":40},{"$f":"IFERROR(GETPIVOTDATA(\"Provider Name\",'Pivot FE&S'!$A$63,\"Provider type\",\"Community Learning and Skills\",\"Leadership and Management\",1),0)","v":4},{"$f":"IFERROR(GETPIVOTDATA(\"Provider Name\",'Pivot FE&S'!$A$63,\"Provider type\",\"Community Learning and Skills\",\"Leadership and Management\",2),0)","v":17},{"$f":"IFERROR(GETPIVOTDATA(\"Provider Name\",'Pivot FE&S'!$A$63,\"Provider type\",\"Community Learning and Skills\",\"Leadership and Management\",3),0)","v":12},{"$f":"IFERROR(GETPIVOTDATA(\"Provider Name\",'Pivot FE&S'!$A$63,\"Provider type\",\"Community Learning and Skills\",\"Leadership and Management\",4),0)","v":7},null,"Community Learning and Skills (40)",10,42.5,30,17.5]
[null,"Employer",{"$f":"SUM(D82:G82)","v":7},{"$f":"IFERROR(GETPIVOTDATA(\"Provider Name\",'Pivot FE&S'!$A$63,\"Provider type\",\"Employer\",\"Leadership and Management\",1),0)","v":2},{"$f":"IFERROR(GETPIVOTDATA(\"Provider Name\",'Pivot FE&S'!$A$63,\"Provider type\",\"Employer\",\"Leadership and Management\",2),0)","v":2},{"$f":"IFERROR(GETPIVOTDATA(\"Provider Name\",'Pivot FE&S'!$A$63,\"Provider type\",\"Employer\",\"Leadership and Management\",3),0)","v":2},{"$f":"IFERROR(GETPIVOTDATA(\"Provider Name\",'Pivot FE&S'!$A$63,\"Provider type\",\"Employer\",\"Leadership and Management\",4),0)","v":1},null,"Employer (7)",28.571428571428569,28.571428571428569,28.571428571428569,14.285714285714285]
[null,"Free School - 16-19",{"$f":"SUM(D83:G83)","v":5},{"$f":"IFERROR(GETPIVOTDATA(\"Provider Name\",'Pivot FE&S'!$A$63,\"Provider_type\",$B83,\"Leadership and management\",D$4),0)","v":0},{"$f":"IFERROR(GETPIVOTDATA(\"Provider Name\",'Pivot FE&S'!$A$63,\"Provider type\",\"Free School - 16-19\",\"Leadership and Management\",2),0)","v":1},{"$f":"IFERROR(GETPIVOTDATA(\"Provider Name\",'Pivot FE&S'!$A$63,\"Provider type\",\"Free School - 16-19\",\"Leadership and Management\",3),0)","v":2},{"$f":"IFERROR(GETPIVOTDATA(\"Provider Name\",'Pivot FE&S'!$A$63,\"Provider type\",\"Free School - 16-19\",\"Leadership and Management\",4),0)","v":2},null,"Free School - 16-19 (5)",0,20,40,40]
[null,"General Further Education/Tertiary College",37,{"$f":"IFERROR(GETPIVOTDATA(\"Provider Name\",'Pivot FE&S'!$A$63,\"Provider type\",\"General Further Education/Tertiary College\",\"Leadership and Management\",1),0)","v":2},{"$f":"IFERROR(GETPIVOTDATA(\"Provider Name\",'Pivot FE&S'!$A$63,\"Provider type\",\"General Further Education/Tertiary College\",\"Leadership and Management\",2),0)","v":15},{"$f":"IFERROR(GETPIVOTDATA(\"Provider Name\",'Pivot FE&S'!$A$63,\"Provider type\",\"General Further Education/Tertiary College\",\"Leadership and Management\",3),0)","v":15},{"$f":"IFERROR(GETPIVOTDATA(\"Provider Name\",'Pivot FE&S'!$A$63,\"Provider type\",\"General Further Education/Tertiary College\",\"Leadership and Management\",4),0)","v":5},null,"General Further Education/Tertiary College (37)",5.4054054054054053,40.54054054054054,40.54054054054054,13.513513513513514]
[null,"Specialist Further Education",2,{"$f":"IFERROR(GETPIVOTDATA(\"Provider Name\",'Pivot FE&S'!$A$63,\"Provider_type\",$B85,\"Leadership and management\",D$4),0)","v":0},{"$f":"IFERROR(GETPIVOTDATA(\"Provider Name\",'Pivot FE&S'!$A$63,\"Provider type\",\"Specialist Further Education\",\"Leadership and Management\",2),0)","v":1},{"$f":"IFERROR(GETPIVOTDATA(\"Provider Name\",'Pivot FE&S'!$A$63,\"Provider type\",\"Specialist Further Education\",\"Leadership and Management\",3),0)","v":1},{"$f":"IFERROR(GETPIVOTDATA(\"Provider Name\",'Pivot FE&S'!$A$63,\"Provider type\",\"Specialist Further Education\",\"Leadership and Management\",4),0)","v":0},null,"Specialist Further Education (2)",0,50,50,0]
[null,"Higher Education Institution",2,{"$f":"IFERROR(GETPIVOTDATA(\"Provider Name\",'Pivot FE&S'!$A$63,\"Provider type\",\"Higher Education Institution\",\"Leadership and Management\",1),0)","v":2},{"$f":"IFERROR(GETPIVOTDATA(\"Provider Name\",'Pivot FE&S'!$A$63,\"Provider_type\",$B86,\"Leadership and management\",E$4),0)","v":0},{"$f":"IFERROR(GETPIVOTDATA(\"Provider Name\",'Pivot FE&S'!$A$63,\"Provider_type\",$B86,\"Leadership and management\",F$4),0)","v":0},{"$f":"IFERROR(GETPIVOTDATA(\"Provider Name\",'Pivot FE&S'!$A$63,\"Provider_type\",$B86,\"Leadership and management\",G$4),0)","v":0},null,"Higher Education Institution (2)",100,0,0,0]
[null,"Independent Learning Provider",73,{"$f":"IFERROR(GETPIVOTDATA(\"Provider Name\",'Pivot FE&S'!$A$63,\"Provider type\",\"Independent Learning Provider\",\"Leadership and Management\",1),0)","v":4},{"$f":"IFERROR(GETPIVOTDATA(\"Provider Name\",'Pivot FE&S'!$A$63,\"Provider type\",\"Independent Learning Provider\",\"Leadership and Management\",2),0)","v":30},{"$f":"IFERROR(GETPIVOTDATA(\"Provider Name\",'Pivot FE&S'!$A$63,\"Provider type\",\"Independent Learning Provider\",\"Leadership and Management\",3),0)","v":31},{"$f":"IFERROR(GETPIVOTDATA(\"Provider Name\",'Pivot FE&S'!$A$63,\"Provider type\",\"Independent Learning Provider\",\"Leadership and Management\",4),0)","v":8},null,"Independent Learning Provider (73)",5.4794520547945202,41.095890410958901,42.465753424657535,10.95890410958904]
[null,"National Careers Service",0,{"$f":"IFERROR(GETPIVOTDATA(\"Provider Name\",'Pivot FE&S'!$A$63,\"Provider_type\",$B88,\"Leadership and management\",D$4),0)","v":0},{"$f":"IFERROR(GETPIVOTDATA(\"Provider Name\",'Pivot FE&S'!$A$63,\"Provider_type\",$B88,\"Leadership and management\",E$4),0)","v":0},{"$f":"IFERROR(GETPIVOTDATA(\"Provider Name\",'Pivot FE&S'!$A$63,\"Provider_type\",$B88,\"Leadership and management\",F$4),0)","v":0},{"$f":"IFERROR(GETPIVOTDATA(\"Provider Name\",'Pivot FE&S'!$A$63,\"Provider_type\",$B88,\"Leadership and management\",G$4),0)","v":0},null,"National Careers Service (0)",{"$error":"#DIV/0!"},{"$error":"#DIV/0!"},{"$error":"#DIV/0!"},{"$error":"#DIV/0!"}]
[null,"Independent Specialist College",6,{"$f":"IFERROR(GETPIVOTDATA(\"Provider Name\",'Pivot FE&S'!$A$63,\"Provider_type\",$B89,\"Leadership and management\",D$4),0)","v":0},{"$f":"IFERROR(GETPIVOTDATA(\"Provider Name\",'Pivot FE&S'!$A$63,\"Provider type\",\"Independent Specialist College\",\"Leadership and Management\",2),0)","v":3},{"$f":"IFERROR(GETPIVOTDATA(\"Provider Name\",'Pivot FE&S'!$A$63,\"Provider type\",\"Independent Specialist College\",\"Leadership and Management\",3),0)","v":2},{"$f":"IFERROR(GETPIVOTDATA(\"Provider Name\",'Pivot FE&S'!$A$63,\"Provider type\",\"Independent Specialist College\",\"Leadership and Management\",4),0)","v":1},null,"Independent Specialist College (6)",0,50,33.333333333333329,16.666666666666664]
[null,"Sixth Form College",9,{"$f":"IFERROR(GETPIVOTDATA(\"Provider Name\",'Pivot FE&S'!$A$63,\"Provider type\",\"Sixth Form College\",\"Leadership and Management\",1),0)","v":1},{"$f":"IFERROR(GETPIVOTDATA(\"Provider Name\",'Pivot FE&S'!$A$63,\"Provider type\",\"Sixth Form College\",\"Leadership and Management\",2),0)","v":1},{"$f":"IFERROR(GETPIVOTDATA(\"Provider Name\",'Pivot FE&S'!$A$63,\"Provider type\",\"Sixth Form College\",\"Leadership and Management\",3),0)","v":5},{"$f":"IFERROR(GETPIVOTDATA(\"Provider Name\",'Pivot FE&S'!$A$63,\"Provider type\",\"Sixth Form College\",\"Leadership and Management\",4),0)","v":2},null,"Sixth Form College (9)",11.111111111111111,11.111111111111111,55.555555555555557,22.222222222222221]
[null,"Total",{"$f":"SUM(C80:C90)","v":181},{"$f":"SUM(D80:D90)","v":15},70,70,26,null,"Total (181)",8.2872928176795568,38.674033149171272,38.674033149171272,14.3646408839779]
[]
[]
[]
[]
[]
[null,null,null,null,null,null,null,null,null,null,null,null,null,"Where the number of inspections is small, percentages should be viewed with caution. "]
[null,null,null,null,null,null,null,null,null,null,null,null,null,"Percentages are rounded and may not add to 100."]
[null,null,null,null,null,null,null,null,null,null,null,null,null,null,null,null,null,null,null,"Source: Ofsted inspection data"]
[null,"Sector subject area judgements for providers inspected since 1 September 2014"]
[]
[null,"Sector subject area","Total number of judgements made","Overall sector subject area judgements"]
[null,null,null,"Outstanding","Good","Requires improvement","Inadequate"]
[null,"Accounting and Finance",{"$f":"SUM(D104:G104)","v":16},{"$f":"IFERROR(GETPIVOTDATA(\"URN\",'Pivot FE&S'!$A$107,\"SSA 2 descriptor\",$B104,\"Outcome\",1),0)","v":2},{"$f":"IFERROR(GETPIVOTDATA(\"URN\",'Pivot FE&S'!$A$107,\"SSA 2 descriptor\",$B104,\"Outcome\",2),0)","v":7},{"$f":"IFERROR(GETPIVOTDATA(\"URN\",'Pivot FE&S'!$A$107,\"SSA 2 descriptor\",$B104,\"Outcome\",3),0)","v":6},{"$f":"IFERROR(GETPIVOTDATA(\"URN\",'Pivot FE&S'!$A$107,\"SSA 2 descriptor\",$B104,\"Outcome\",4),0)","v":1}]
[null,"Administration",{"$f":"SUM(D105:G105)","v":53},{"$f":"IFERROR(GETPIVOTDATA(\"URN\",'Pivot FE&S'!$A$107,\"SSA 2 descriptor\",$B105,\"Outcome\",1),0)","v":1},{"$f":"IFERROR(GETPIVOTDATA(\"URN\",'Pivot FE&S'!$A$107,\"SSA 2 descriptor\",$B105,\"Outcome\",2),0)","v":31},{"$f":"IFERROR(GETPIVOTDATA(\"URN\",'Pivot FE&S'!$A$107,\"SSA 2 descriptor\",$B105,\"Outcome\",3),0)","v":20},{"$f":"IFERROR(GETPIVOTDATA(\"URN\",'Pivot FE&S'!$A$107,\"SSA 2 descriptor\",$B105,\"Outcome\",4),0)","v":1}]
[null,"Agriculture",3,{"$f":"IFERROR(GETPIVOTDATA(\"URN\",'Pivot FE&S'!$A$107,\"SSA 2 descriptor\",$B106,\"Outcome\",1),0)","v":0},{"$f":"IFERROR(GETPIVOTDATA(\"URN\",'Pivot FE&S'!$A$107,\"SSA 2 descriptor\",$B106,\"Outcome\",2),0)","v":1},{"$f":"IFERROR(GETPIVOTDATA(\"URN\",'Pivot FE&S'!$A$107,\"SSA 2 descriptor\",$B106,\"Outcome\",3),0)","v":2},{"$f":"IFERROR(GETPIVOTDATA(\"URN\",'Pivot FE&S'!$A$107,\"SSA 2 descriptor\",$B106,\"Outcome\",4),0)","v":0}]
[null,"Animal Care and Veterinary Science",3,{"$f":"IFERROR(GETPIVOTDATA(\"URN\",'Pivot FE&S'!$A$107,\"SSA 2 descriptor\",$B107,\"Outcome\",1),0)","v":0},{"$f":"IFERROR(GETPIVOTDATA(\"URN\",'Pivot FE&S'!$A$107,\"SSA 2 descriptor\",$B107,\"Outcome\",2),0)","v":3},{"$f":"IFERROR(GETPIVOTDATA(\"URN\",'Pivot FE&S'!$A$107,\"SSA 2 descriptor\",$B107,\"Outcome\",3),0)","v":0},{"$f":"IFERROR(GETPIVOTDATA(\"URN\",'Pivot FE&S'!$A$107,\"SSA 2 descriptor\",$B107,\"Outcome\",4),0)","v":0}]
[null,"Archaeology and Archaeological Sciences",0,{"$f":"IFERROR(GETPIVOTDATA(\"URN\",'Pivot FE&S'!$A$107,\"SSA 2 descriptor\",$B108,\"Outcome\",1),0)","v":0},{"$f":"IFERROR(GETPIVOTDATA(\"URN\",'Pivot FE&S'!$A$107,\"SSA 2 descriptor\",$B108,\"Outcome\",2),0)","v":0},{"$f":"IFERROR(GETPIVOTDATA(\"URN\",'Pivot FE&S'!$A$107,\"SSA 2 descriptor\",$B108,\"Outcome\",3),0)","v":0},{"$f":"IFERROR(GETPIVOTDATA(\"URN\",'Pivot FE&S'!$A$107,\"SSA 2 descriptor\",$B108,\"Outcome\",4),0)","v":0}]
[null,"Beauty Therapy",2,{"$f":"IFERROR(GETPIVOTDATA(\"URN\",'Pivot FE&S'!$A$107,\"SSA 2 descriptor\",$B109,\"Outcome\",1),0)","v":0},{"$f":"IFERROR(GETPIVOTDATA(\"URN\",'Pivot FE&S'!$A$107,\"SSA 2 descriptor\",$B109,\"Outcome\",2),0)","v":2},{"$f":"IFERROR(GETPIVOTDATA(\"URN\",'Pivot FE&S'!$A$107,\"SSA 2 descriptor\",$B109,\"Outcome\",3),0)","v":0},{"$f":"IFERROR(GETPIVOTDATA(\"URN\",'Pivot FE&S'!$A$107,\"SSA 2 descriptor\",$B109,\"Outcome\",4),0)","v":0}]
[null,"Building and Construction",15,{"$f":"IFERROR(GETPIVOTDATA(\"URN\",'Pivot FE&S'!$A$107,\"SSA 2 descriptor\",$B110,\"Outcome\",1),0)","v":0},{"$f":"IFERROR(GETPIVOTDATA(\"URN\",'Pivot FE&S'!$A$107,\"SSA 2 descriptor\",$B110,\"Outcome\",2),0)","v":5},{"$f":"IFERROR(GETPIVOTDATA(\"URN\",'Pivot FE&S'!$A$107,\"SSA 2 descriptor\",$B110,\"Outcome\",3),0)","v":7},{"$f":"IFERROR(GETPIVOTDATA(\"URN\",'Pivot FE&S'!$A$107,\"SSA 2 descriptor\",$B110,\"Outcome\",4),0)","v":3}]
[null,"Building Services",2,{"$f":"IFERROR(GETPIVOTDATA(\"URN\",'Pivot FE&S'!$A$107,\"SSA 2 descriptor\",$B111,\"Outcome\",1),0)","v":0},{"$f":"IFERROR(GETPIVOTDATA(\"URN\",'Pivot FE&S'!$A$107,\"SSA 2 descriptor\",$B111,\"Outcome\",2),0)","v":2},{"$f":"IFERROR(GETPIVOTDATA(\"URN\",'Pivot FE&S'!$A$107,\"SSA 2 descriptor\",$B111,\"Outcome\",3),0)","v":0},{"$f":"IFERROR(GETPIVOTDATA(\"URN\",'Pivot FE&S'!$A$107,\"SSA 2 descriptor\",$B111,\"Outcome\",4),0)","v":0}]
[null,"Business",8,{"$f":"IFERROR(GETPIVOTDATA(\"URN\",'Pivot FE&S'!$A$107,\"SSA 2 descriptor\",$B112,\"Outcome\",1),0)","v":1},{"$f":"IFERROR(GETPIVOTDATA(\"URN\",'Pivot FE&S'!$A$107,\"SSA 2 descriptor\",$B112,\"Outcome\",2),0)","v":3},{"$f":"IFERROR(GETPIVOTDATA(\"URN\",'Pivot FE&S'!$A$107,\"SSA 2 descriptor\",$B112,\"Outcome\",3),0)","v":4},{"$f":"IFERROR(GETPIVOTDATA(\"URN\",'Pivot FE&S'!$A$107,\"SSA 2 descriptor\",$B112,\"Outcome\",4),0)","v":0}]
[null,"Business Management",40,{"$f":"IFERROR(GETPIVOTDATA(\"URN\",'Pivot FE&S'!$A$107,\"SSA 2 descriptor\",$B113,\"Outcome\",1),0)","v":0},{"$f":"IFERROR(GETPIVOTDATA(\"URN\",'Pivot FE&S'!$A$107,\"SSA 2 descriptor\",$B113,\"Outcome\",2),0)","v":19},{"$f":"IFERROR(GETPIVOTDATA(\"URN\",'Pivot FE&S'!$A$107,\"SSA 2 descriptor\",$B113,\"Outcome\",3),0)","v":19},{"$f":"IFERROR(GETPIVOTDATA(\"URN\",'Pivot FE&S'!$A$107,\"SSA 2 descriptor\",$B113,\"Outcome\",4),0)","v":2}]
[null,"Communications Technology",1,{"$f":"IFERROR(GETPIVOTDATA(\"URN\",'Pivot FE&S'!$A$107,\"SSA 2 descriptor\",$B114,\"Outcome\",1),0)","v":0},{"$f":"IFERROR(GETPIVOTDATA(\"URN\",'Pivot FE&S'!$A$107,\"SSA 2 descriptor\",$B114,\"Outcome\",2),0)","v":1},{"$f":"IFERROR(GETPIVOTDATA(\"URN\",'Pivot FE&S'!$A$107,\"SSA 2 descriptor\",$B114,\"Outcome\",3),0)","v":0},{"$f":"IFERROR(GETPIVOTDATA(\"URN\",'Pivot FE&S'!$A$107,\"SSA 2 descriptor\",$B114,\"Outcome\",4),0)","v":0}]
[null,"Community Learning",4,{"$f":"IFERROR(GETPIVOTDATA(\"URN\",'Pivot FE&S'!$A$107,\"SSA 2 descriptor\",$B115,\"Outcome\",1),0)","v":0},{"$f":"IFERROR(GETPIVOTDATA(\"URN\",'Pivot FE&S'!$A$107,\"SSA 2 descriptor\",$B115,\"Outcome\",2),0)","v":2},{"$f":"IFERROR(GETPIVOTDATA(\"URN\",'Pivot FE&S'!$A$107,\"SSA 2 descriptor\",$B115,\"Outcome\",3),0)","v":1},{"$f":"IFERROR(GETPIVOTDATA(\"URN\",'Pivot FE&S'!$A$107,\"SSA 2 descriptor\",$B115,\"Outcome\",4),0)","v":1}]
[null,"Community development",1,{"$f":"IFERROR(GETPIVOTDATA(\"URN\",'Pivot FE&S'!$A$107,\"SSA 2 descriptor\",$B116,\"Outcome\",1),0)","v":0},{"$f":"IFERROR(GETPIVOTDATA(\"URN\",'Pivot FE&S'!$A$107,\"SSA 2 descriptor\",$B116,\"Outcome\",2),0)","v":0},{"$f":"IFERROR(GETPIVOTDATA(\"URN\",'Pivot FE&S'!$A$107,\"SSA 2 descriptor\",$B116,\"Outcome\",3),0)","v":1},{"$f":"IFERROR(GETPIVOTDATA(\"URN\",'Pivot FE&S'!$A$107,\"SSA 2 descriptor\",$B116,\"Outcome\",4),0)","v":0}]
[null,"Construction Crafts",5,{"$f":"IFERROR(GETPIVOTDATA(\"URN\",'Pivot FE&S'!$A$107,\"SSA 2 descriptor\",$B117,\"Outcome\",1),0)","v":0},{"$f":"IFERROR(GETPIVOTDATA(\"URN\",'Pivot FE&S'!$A$107,\"SSA 2 descriptor\",$B117,\"Outcome\",2),0)","v":3},{"$f":"IFERROR(GETPIVOTDATA(\"URN\",'Pivot FE&S'!$A$107,\"SSA 2 descriptor\",$B117,\"Outcome\",3),0)","v":2},{"$f":"IFERROR(GETPIVOTDATA(\"URN\",'Pivot FE&S'!$A$107,\"SSA 2 descriptor\",$B117,\"Outcome\",4),0)","v":0}]
[null,"Customer service",7,{"$f":"IFERROR(GETPIVOTDATA(\"URN\",'Pivot FE&S'!$A$107,\"SSA 2 descriptor\",$B118,\"Outcome\",1),0)","v":0},{"$f":"IFERROR(GETPIVOTDATA(\"URN\",'Pivot FE&S'!$A$107,\"SSA 2 descriptor\",$B118,\"Outcome\",2),0)","v":4},{"$f":"IFERROR(GETPIVOTDATA(\"URN\",'Pivot FE&S'!$A$107,\"SSA 2 descriptor\",$B118,\"Outcome\",3),0)","v":0},{"$f":"IFERROR(GETPIVOTDATA(\"URN\",'Pivot FE&S'!$A$107,\"SSA 2 descriptor\",$B118,\"Outcome\",4),0)","v":3}]
[null,"Early Years and Playwork",30,{"$f":"IFERROR(GETPIVOTDATA(\"URN\",'Pivot FE&S'!$A$107,\"SSA 2 descriptor\",$B119,\"Outcome\",1),0)","v":4},{"$f":"IFERROR(GETPIVOTDATA(\"URN\",'Pivot FE&S'!$A$107,\"SSA 2 descriptor\",$B119,\"Outcome\",2),0)","v":14},{"$f":"IFERROR(GETPIVOTDATA(\"URN\",'Pivot FE&S'!$A$107,\"SSA 2 descriptor\",$B119,\"Outcome\",3),0)","v":12},{"$f":"IFERROR(GETPIVOTDATA(\"URN\",'Pivot FE&S'!$A$107,\"SSA 2 descriptor\",$B119,\"Outcome\",4),0)","v":0}]
[null,"Employability Training",28,{"$f":"IFERROR(GETPIVOTDATA(\"URN\",'Pivot FE&S'!$A$107,\"SSA 2 descriptor\",$B120,\"Outcome\",1),0)","v":1},{"$f":"IFERROR(GETPIVOTDATA(\"URN\",'Pivot FE&S'!$A$107,\"SSA 2 descriptor\",$B120,\"Outcome\",2),0)","v":14},{"$f":"IFERROR(GETPIVOTDATA(\"URN\",'Pivot FE&S'!$A$107,\"SSA 2 descriptor\",$B120,\"Outcome\",3),0)","v":10},{"$f":"IFERROR(GETPIVOTDATA(\"URN\",'Pivot FE&S'!$A$107,\"SSA 2 descriptor\",$B120,\"Outcome\",4),0)","v":3}]
[null,"Engineering",22,{"$f":"IFERROR(GETPIVOTDATA(\"URN\",'Pivot FE&S'!$A$107,\"SSA 2 descriptor\",$B121,\"Outcome\",1),0)","v":4},{"$f":"IFERROR(GETPIVOTDATA(\"URN\",'Pivot FE&S'!$A$107,\"SSA 2 descriptor\",$B121,\"Outcome\",2),0)","v":9},{"$f":"IFERROR(GETPIVOTDATA(\"URN\",'Pivot FE&S'!$A$107,\"SSA 2 descriptor\",$B121,\"Outcome\",3),0)","v":9},{"$f":"IFERROR(GETPIVOTDATA(\"URN\",'Pivot FE&S'!$A$107,\"SSA 2 descriptor\",$B121,\"Outcome\",4),0)","v":0}]
[null,"English",10,{"$f":"IFERROR(GETPIVOTDATA(\"URN\",'Pivot FE&S'!$A$107,\"SSA 2 descriptor\",$B122,\"Outcome\",1),0)","v":1},{"$f":"IFERROR(GETPIVOTDATA(\"URN\",'Pivot FE&S'!$A$107,\"SSA 2 descriptor\",$B122,\"Outcome\",2),0)","v":1},{"$f":"IFERROR(GETPIVOTDATA(\"URN\",'Pivot FE&S'!$A$107,\"SSA 2 descriptor\",$B122,\"Outcome\",3),0)","v":7},{"$f":"IFERROR(GETPIVOTDATA(\"URN\",'Pivot FE&S'!$A$107,\"SSA 2 descriptor\",$B122,\"Outcome\",4),0)","v":1}]
[null,"Environmental Conservation",1,{"$f":"IFERROR(GETPIVOTDATA(\"URN\",'Pivot FE&S'!$A$107,\"SSA 2 descriptor\",$B123,\"Outcome\",1),0)","v":0},{"$f":"IFERROR(GETPIVOTDATA(\"URN\",'Pivot FE&S'!$A$107,\"SSA 2 descriptor\",$B123,\"Outcome\",2),0)","v":0},{"$f":"IFERROR(GETPIVOTDATA(\"URN\",'Pivot FE&S'!$A$107,\"SSA 2 descriptor\",$B123,\"Outcome\",3),0)","v":1},{"$f":"IFERROR(GETPIVOTDATA(\"URN\",'Pivot FE&S'!$A$107,\"SSA 2 descriptor\",$B123,\"Outcome\",4),0)","v":0}]
[null,"Equine Studies",1,{"$f":"IFERROR(GETPIVOTDATA(\"URN\",'Pivot FE&S'!$A$107,\"SSA 2 descriptor\",$B124,\"Outcome\",1),0)","v":0},{"$f":"IFERROR(GETPIVOTDATA(\"URN\",'Pivot FE&S'!$A$107,\"SSA 2 descriptor\",$B124,\"Outcome\",2),0)","v":1},{"$f":"IFERROR(GETPIVOTDATA(\"URN\",'Pivot FE&S'!$A$107,\"SSA 2 descriptor\",$B124,\"Outcome\",3),0)","v":0},{"$f":"IFERROR(GETPIVOTDATA(\"URN\",'Pivot FE&S'!$A$107,\"SSA 2 descriptor\",$B124,\"Outcome\",4),0)","v":0}]
[null,"ESOL",9,{"$f":"IFERROR(GETPIVOTDATA(\"URN\",'Pivot FE&S'!$A$107,\"SSA 2 descriptor\",$B125,\"Outcome\",1),0)","v":1},{"$f":"IFERROR(GETPIVOTDATA(\"URN\",'Pivot FE&S'!$A$107,\"SSA 2 descriptor\",$B125,\"Outcome\",2),0)","v":5},{"$f":"IFERROR(GETPIVOTDATA(\"URN\",'Pivot FE&S'!$A$107,\"SSA 2 descriptor\",$B125,\"Outcome\",3),0)","v":2},{"$f":"IFERROR(GETPIVOTDATA(\"URN\",'Pivot FE&S'!$A$107,\"SSA 2 descriptor\",$B125,\"Outcome\",4),0)","v":1}]
[null,"Family Learning",3,{"$f":"IFERROR(GETPIVOTDATA(\"URN\",'Pivot FE&S'!$A$107,\"SSA 2 descriptor\",$B126,\"Outcome\",1),0)","v":0},{"$f":"IFERROR(GETPIVOTDATA(\"URN\",'Pivot FE&S'!$A$107,\"SSA 2 descriptor\",$B126,\"Outcome\",2),0)","v":2},{"$f":"IFERROR(GETPIVOTDATA(\"URN\",'Pivot FE&S'!$A$107,\"SSA 2 descriptor\",$B126,\"Outcome\",3),0)","v":1},{"$f":"IFERROR(GETPIVOTDATA(\"URN\",'Pivot FE&S'!$A$107,\"SSA 2 descriptor\",$B126,\"Outcome\",4),0)","v":0}]
[null,"Forestry",1,{"$f":"IFERROR(GETPIVOTDATA(\"URN\",'Pivot FE&S'!$A$107,\"SSA 2 descriptor\",$B127,\"Outcome\",1),0)","v":0},{"$f":"IFERROR(GETPIVOTDATA(\"URN\",'Pivot FE&S'!$A$107,\"SSA 2 descriptor\",$B127,\"Outcome\",2),0)","v":1},{"$f":"IFERROR(GETPIVOTDATA(\"URN\",'Pivot FE&S'!$A$107,\"SSA 2 descriptor\",$B127,\"Outcome\",3),0)","v":0},{"$f":"IFERROR(GETPIVOTDATA(\"URN\",'Pivot FE&S'!$A$107,\"SSA 2 descriptor\",$B127,\"Outcome\",4),0)","v":0}]
[null,"Foundation English",29,{"$f":"IFERROR(GETPIVOTDATA(\"URN\",'Pivot FE&S'!$A$107,\"SSA 2 descriptor\",$B128,\"Outcome\",1),0)","v":0},{"$f":"IFERROR(GETPIVOTDATA(\"URN\",'Pivot FE&S'!$A$107,\"SSA 2 descriptor\",$B128,\"Outcome\",2),0)","v":9},{"$f":"IFERROR(GETPIVOTDATA(\"URN\",'Pivot FE&S'!$A$107,\"SSA 2 descriptor\",$B128,\"Outcome\",3),0)","v":16},{"$f":"IFERROR(GETPIVOTDATA(\"URN\",'Pivot FE&S'!$A$107,\"SSA 2 descriptor\",$B128,\"Outcome\",4),0)","v":4}]
[null,"Foundation English and Mathematics",12,{"$f":"IFERROR(GETPIVOTDATA(\"URN\",'Pivot FE&S'!$A$107,\"SSA 2 descriptor\",$B129,\"Outcome\",1),0)","v":0},{"$f":"IFERROR(GETPIVOTDATA(\"URN\",'Pivot FE&S'!$A$107,\"SSA 2 descriptor\",$B129,\"Outcome\",2),0)","v":9},{"$f":"IFERROR(GETPIVOTDATA(\"URN\",'Pivot FE&S'!$A$107,\"SSA 2 descriptor\",$B129,\"Outcome\",3),0)","v":3},{"$f":"IFERROR(GETPIVOTDATA(\"URN\",'Pivot FE&S'!$A$107,\"SSA 2 descriptor\",$B129,\"Outcome\",4),0)","v":0}]
[null,"Foundation mathematics",26,{"$f":"IFERROR(GETPIVOTDATA(\"URN\",'Pivot FE&S'!$A$107,\"SSA 2 descriptor\",$B130,\"Outcome\",1),0)","v":0},{"$f":"IFERROR(GETPIVOTDATA(\"URN\",'Pivot FE&S'!$A$107,\"SSA 2 descriptor\",$B130,\"Outcome\",2),0)","v":9},{"$f":"IFERROR(GETPIVOTDATA(\"URN\",'Pivot FE&S'!$A$107,\"SSA 2 descriptor\",$B130,\"Outcome\",3),0)","v":12},{"$f":"IFERROR(GETPIVOTDATA(\"URN\",'Pivot FE&S'!$A$107,\"SSA 2 descriptor\",$B130,\"Outcome\",4),0)","v":5}]
[null,"Hairdressing",8,{"$f":"IFERROR(GETPIVOTDATA(\"URN\",'Pivot FE&S'!$A$107,\"SSA 2 descriptor\",$B131,\"Outcome\",1),0)","v":0},{"$f":"IFERROR(GETPIVOTDATA(\"URN\",'Pivot FE&S'!$A$107,\"SSA 2 descriptor\",$B131,\"Outcome\",2),0)","v":4},{"$f":"IFERROR(GETPIVOTDATA(\"URN\",'Pivot FE&S'!$A$107,\"SSA 2 descriptor\",$B131,\"Outcome\",3),0)","v":1},{"$f":"IFERROR(GETPIVOTDATA(\"URN\",'Pivot FE&S'!$A$107,\"SSA 2 descriptor\",$B131,\"Outcome\",4),0)","v":3}]
[null,"Hairdressing and beauty therapy",15,{"$f":"IFERROR(GETPIVOTDATA(\"URN\",'Pivot FE&S'!$A$107,\"SSA 2 descriptor\",$B132,\"Outcome\",1),0)","v":1},{"$f":"IFERROR(GETPIVOTDATA(\"URN\",'Pivot FE&S'!$A$107,\"SSA 2 descriptor\",$B132,\"Outcome\",2),0)","v":5},{"$f":"IFERROR(GETPIVOTDATA(\"URN\",'Pivot FE&S'!$A$107,\"SSA 2 descriptor\",$B132,\"Outcome\",3),0)","v":8},{"$f":"IFERROR(GETPIVOTDATA(\"URN\",'Pivot FE&S'!$A$107,\"SSA 2 descriptor\",$B132,\"Outcome\",4),0)","v":1}]
[null,"Health and Social Care",60,{"$f":"IFERROR(GETPIVOTDATA(\"URN\",'Pivot FE&S'!$A$107,\"SSA 2 descriptor\",$B133,\"Outcome\",1),0)","v":4},{"$f":"IFERROR(GETPIVOTDATA(\"URN\",'Pivot FE&S'!$A$107,\"SSA 2 descriptor\",$B133,\"Outcome\",2),0)","v":33},{"$f":"IFERROR(GETPIVOTDATA(\"URN\",'Pivot FE&S'!$A$107,\"SSA 2 descriptor\",$B133,\"Outcome\",3),0)","v":22},{"$f":"IFERROR(GETPIVOTDATA(\"URN\",'Pivot FE&S'!$A$107,\"SSA 2 descriptor\",$B133,\"Outcome\",4),0)","v":1}]
[null,"Health, Public Services and Care",1,{"$f":"IFERROR(GETPIVOTDATA(\"URN\",'Pivot FE&S'!$A$107,\"SSA 2 descriptor\",$B134,\"Outcome\",1),0)","v":0},{"$f":"IFERROR(GETPIVOTDATA(\"URN\",'Pivot FE&S'!$A$107,\"SSA 2 descriptor\",$B134,\"Outcome\",2),0)","v":1},{"$f":"IFERROR(GETPIVOTDATA(\"URN\",'Pivot FE&S'!$A$107,\"SSA 2 descriptor\",$B134,\"Outcome\",3),0)","v":0},{"$f":"IFERROR(GETPIVOTDATA(\"URN\",'Pivot FE&S'!$A$107,\"SSA 2 descriptor\",$B134,\"Outcome\",4),0)","v":0}]
[null,"History",1,{"$f":"IFERROR(GETPIVOTDATA(\"URN\",'Pivot FE&S'!$A$107,\"SSA 2 descriptor\",$B135,\"Outcome\",1),0)","v":1},{"$f":"IFERROR(GETPIVOTDATA(\"URN\",'Pivot FE&S'!$A$107,\"SSA 2 descriptor\",$B135,\"Outcome\",2),0)","v":0},{"$f":"IFERROR(GETPIVOTDATA(\"URN\",'Pivot FE&S'!$A$107,\"SSA 2 descriptor\",$B135,\"Outcome\",3),0)","v":0},{"$f":"IFERROR(GETPIVOTDATA(\"URN\",'Pivot FE&S'!$A$107,\"SSA 2 descriptor\",$B135,\"Outcome\",4),0)","v":0}]
[null,"Horticulture and Forestry",1,{"$f":"IFERROR(GETPIVOTDATA(\"URN\",'Pivot FE&S'!$A$107,\"SSA 2 descriptor\",\"Horticulture\",\"Outcome\",1),0)+IFERROR(GETPIVOTDATA(\"URN\",'Pivot FE&S'!$A$107,\"SSA 2 descriptor\",\"Forestry\",\"Outcome\",1),0)","v":0},1,{"$f":"IFERROR(GETPIVOTDATA(\"URN\",'Pivot FE&S'!$A$107,\"SSA 2 descriptor\",\"Horticulture\",\"Outcome\",3),0)+IFERROR(GETPIVOTDATA(\"URN\",'Pivot FE&S'!$A$107,\"SSA 2 descriptor\",\"Forestry\",\"Outcome\",3),0)","v":0},{"$f":"IFERROR(GETPIVOTDATA(\"URN\",'Pivot FE&S'!$A$107,\"SSA 2 descriptor\",\"Horticulture\",\"Outcome\",4),0)+IFERROR(GETPIVOTDATA(\"URN\",'Pivot FE&S'!$A$107,\"SSA 2 descriptor\",\"Forestry\",\"Outcome\",4),0)","v":0}]
[null,"Horticulture",1,{"$f":"IFERROR(GETPIVOTDATA(\"URN\",'Pivot FE&S'!$A$107,\"SSA 2 descriptor\",\"Horticulture\",\"Outcome\",1),0)+IFERROR(GETPIVOTDATA(\"URN\",'Pivot FE&S'!$A$107,\"SSA 2 descriptor\",\"Forestry\",\"Outcome\",1),0)","v":0},1,{"$f":"IFERROR(GETPIVOTDATA(\"URN\",'Pivot FE&S'!$A$107,\"SSA 2 descriptor\",\"Horticulture\",\"Outcome\",3),0)+IFERROR(GETPIVOTDATA(\"URN\",'Pivot FE&S'!$A$107,\"SSA 2 descriptor\",\"Forestry\",\"Outcome\",3),0)","v":0},{"$f":"IFERROR(GETPIVOTDATA(\"URN\",'Pivot FE&S'!$A$107,\"SSA 2 descriptor\",\"Horticulture\",\"Outcome\",4),0)+IFERROR(GETPIVOTDATA(\"URN\",'Pivot FE&S'!$A$107,\"SSA 2 descriptor\",\"Forestry\",\"Outcome\",4),0)","v":0}]
[null,"Hospitality and Catering",11,{"$f":"IFERROR(GETPIVOTDATA(\"URN\",'Pivot FE&S'!$A$107,\"SSA 2 descriptor\",$B138,\"Outcome\",1),0)","v":0},{"$f":"IFERROR(GETPIVOTDATA(\"URN\",'Pivot FE&S'!$A$107,\"SSA 2 descriptor\",$B138,\"Outcome\",2),0)","v":9},{"$f":"IFERROR(GETPIVOTDATA(\"URN\",'Pivot FE&S'!$A$107,\"SSA 2 descriptor\",$B138,\"Outcome\",3),0)","v":2},{"$f":"IFERROR(GETPIVOTDATA(\"URN\",'Pivot FE&S'!$A$107,\"SSA 2 descriptor\",$B138,\"Outcome\",4),0)","v":0}]
[null,"ICT for practitioners",13,{"$f":"IFERROR(GETPIVOTDATA(\"URN\",'Pivot FE&S'!$A$107,\"SSA 2 descriptor\",$B139,\"Outcome\",1),0)","v":3},{"$f":"IFERROR(GETPIVOTDATA(\"URN\",'Pivot FE&S'!$A$107,\"SSA 2 descriptor\",$B139,\"Outcome\",2),0)","v":7},{"$f":"IFERROR(GETPIVOTDATA(\"URN\",'Pivot FE&S'!$A$107,\"SSA 2 descriptor\",$B139,\"Outcome\",3),0)","v":2},{"$f":"IFERROR(GETPIVOTDATA(\"URN\",'Pivot FE&S'!$A$107,\"SSA 2 descriptor\",$B139,\"Outcome\",4),0)","v":1}]
[null,"ICT for Users",15,{"$f":"IFERROR(GETPIVOTDATA(\"URN\",'Pivot FE&S'!$A$107,\"SSA 2 descriptor\",$B140,\"Outcome\",1),0)","v":1},{"$f":"IFERROR(GETPIVOTDATA(\"URN\",'Pivot FE&S'!$A$107,\"SSA 2 descriptor\",$B140,\"Outcome\",2),0)","v":10},{"$f":"IFERROR(GETPIVOTDATA(\"URN\",'Pivot FE&S'!$A$107,\"SSA 2 descriptor\",$B140,\"Outcome\",3),0)","v":4},{"$f":"IFERROR(GETPIVOTDATA(\"URN\",'Pivot FE&S'!$A$107,\"SSA 2 descriptor\",$B140,\"Outcome\",4),0)","v":0}]
[null,"Independent living and leisure skills",15,{"$f":"IFERROR(GETPIVOTDATA(\"URN\",'Pivot FE&S'!$A$107,\"SSA 2 descriptor\",$B141,\"Outcome\",1),0)","v":3},{"$f":"IFERROR(GETPIVOTDATA(\"URN\",'Pivot FE&S'!$A$107,\"SSA 2 descriptor\",$B141,\"Outcome\",2),0)","v":7},{"$f":"IFERROR(GETPIVOTDATA(\"URN\",'Pivot FE&S'!$A$107,\"SSA 2 descriptor\",$B141,\"Outcome\",3),0)","v":4},{"$f":"IFERROR(GETPIVOTDATA(\"URN\",'Pivot FE&S'!$A$107,\"SSA 2 descriptor\",$B141,\"Outcome\",4),0)","v":1}]
[null,"Information and Communication Technology",0,{"$f":"IFERROR(GETPIVOTDATA(\"URN\",'Pivot FE&S'!$A$107,\"SSA 2 descriptor\",$B142,\"Outcome\",1),0)","v":0},{"$f":"IFERROR(GETPIVOTDATA(\"URN\",'Pivot FE&S'!$A$107,\"SSA 2 descriptor\",$B142,\"Outcome\",2),0)","v":0},{"$f":"IFERROR(GETPIVOTDATA(\"URN\",'Pivot FE&S'!$A$107,\"SSA 2 descriptor\",$B142,\"Outcome\",3),0)","v":0},{"$f":"IFERROR(GETPIVOTDATA(\"URN\",'Pivot FE&S'!$A$107,\"SSA 2 descriptor\",$B142,\"Outcome\",4),0)","v":0}]
[null,"Languages, Literature and Culture",0,{"$f":"IFERROR(GETPIVOTDATA(\"URN\",'Pivot FE&S'!$A$107,\"SSA 2 descriptor\",$B143,\"Outcome\",1),0)","v":0},{"$f":"IFERROR(GETPIVOTDATA(\"URN\",'Pivot FE&S'!$A$107,\"SSA 2 descriptor\",$B143,\"Outcome\",2),0)","v":0},{"$f":"IFERROR(GETPIVOTDATA(\"URN\",'Pivot FE&S'!$A$107,\"SSA 2 descriptor\",$B143,\"Outcome\",3),0)","v":0},{"$f":"IFERROR(GETPIVOTDATA(\"URN\",'Pivot FE&S'!$A$107,\"SSA 2 descriptor\",$B143,\"Outcome\",4),0)","v":0}]
[null,"Law and Legal Services",6,{"$f":"IFERROR(GETPIVOTDATA(\"URN\",'Pivot FE&S'!$A$107,\"SSA 2 descriptor\",$B144,\"Outcome\",1),0)","v":0},{"$f":"IFERROR(GETPIVOTDATA(\"URN\",'Pivot FE&S'!$A$107,\"SSA 2 descriptor\",$B144,\"Outcome\",2),0)","v":3},{"$f":"IFERROR(GETPIVOTDATA(\"URN\",'Pivot FE&S'!$A$107,\"SSA 2 descriptor\",$B144,\"Outcome\",3),0)","v":2},{"$f":"IFERROR(GETPIVOTDATA(\"URN\",'Pivot FE&S'!$A$107,\"SSA 2 descriptor\",$B144,\"Outcome\",4),0)","v":1}]
[null,"Manufacturing Technologies",{"$f":"SUM(D145:G145)","v":20},{"$f":"IFERROR(GETPIVOTDATA(\"URN\",'Pivot FE&S'!$A$107,\"SSA 2 descriptor\",$B145,\"Outcome\",1),0)","v":1},{"$f":"IFERROR(GETPIVOTDATA(\"URN\",'Pivot FE&S'!$A$107,\"SSA 2 descriptor\",$B145,\"Outcome\",2),0)","v":12},{"$f":"IFERROR(GETPIVOTDATA(\"URN\",'Pivot FE&S'!$A$107,\"SSA 2 descriptor\",$B145,\"Outcome\",3),0)","v":7},{"$f":"IFERROR(GETPIVOTDATA(\"URN\",'Pivot FE&S'!$A$107,\"SSA 2 descriptor\",$B145,\"Outcome\",4),0)","v":0}]
[null,"Marketing and Sales",2,{"$f":"IFERROR(GETPIVOTDATA(\"URN\",'Pivot FE&S'!$A$107,\"SSA 2 descriptor\",$B146,\"Outcome\",1),0)","v":0},{"$f":"IFERROR(GETPIVOTDATA(\"URN\",'Pivot FE&S'!$A$107,\"SSA 2 descriptor\",$B146,\"Outcome\",2),0)","v":1},{"$f":"IFERROR(GETPIVOTDATA(\"URN\",'Pivot FE&S'!$A$107,\"SSA 2 descriptor\",$B146,\"Outcome\",3),0)","v":1},{"$f":"IFERROR(GETPIVOTDATA(\"URN\",'Pivot FE&S'!$A$107,\"SSA 2 descriptor\",$B146,\"Outcome\",4),0)","v":0}]
[null,"Mathematics and Statistics",18,{"$f":"IFERROR(GETPIVOTDATA(\"URN\",'Pivot FE&S'!$A$107,\"SSA 2 descriptor\",$B147,\"Outcome\",1),0)","v":1},{"$f":"IFERROR(GETPIVOTDATA(\"URN\",'Pivot FE&S'!$A$107,\"SSA 2 descriptor\",$B147,\"Outcome\",2),0)","v":4},{"$f":"IFERROR(GETPIVOTDATA(\"URN\",'Pivot FE&S'!$A$107,\"SSA 2 descriptor\",$B147,\"Outcome\",3),0)","v":12},{"$f":"IFERROR(GETPIVOTDATA(\"URN\",'Pivot FE&S'!$A$107,\"SSA 2 descriptor\",$B147,\"Outcome\",4),0)","v":1}]
[null,"Media and Communication",7,{"$f":"IFERROR(GETPIVOTDATA(\"URN\",'Pivot FE&S'!$A$107,\"SSA 2 descriptor\",$B148,\"Outcome\",1),0)","v":1},{"$f":"IFERROR(GETPIVOTDATA(\"URN\",'Pivot FE&S'!$A$107,\"SSA 2 descriptor\",$B148,\"Outcome\",2),0)","v":3},{"$f":"IFERROR(GETPIVOTDATA(\"URN\",'Pivot FE&S'!$A$107,\"SSA 2 descriptor\",$B148,\"Outcome\",3),0)","v":3},{"$f":"IFERROR(GETPIVOTDATA(\"URN\",'Pivot FE&S'!$A$107,\"SSA 2 descriptor\",$B148,\"Outcome\",4),0)","v":0}]
[null,"Modern foreign languages",3,{"$f":"IFERROR(GETPIVOTDATA(\"URN\",'Pivot FE&S'!$A$107,\"SSA 2 descriptor\",$B149,\"Outcome\",1),0)","v":0},{"$f":"IFERROR(GETPIVOTDATA(\"URN\",'Pivot FE&S'!$A$107,\"SSA 2 descriptor\",$B149,\"Outcome\",2),0)","v":1},{"$f":"IFERROR(GETPIVOTDATA(\"URN\",'Pivot FE&S'!$A$107,\"SSA 2 descriptor\",$B149,\"Outcome\",3),0)","v":1},{"$f":"IFERROR(GETPIVOTDATA(\"URN\",'Pivot FE&S'!$A$107,\"SSA 2 descriptor\",$B149,\"Outcome\",4),0)","v":1}]
[null,"Motor vehicle",10,{"$f":"IFERROR(GETPIVOTDATA(\"URN\",'Pivot FE&S'!$A$107,\"SSA 2 descriptor\",$B150,\"Outcome\",1),0)","v":1},{"$f":"IFERROR(GETPIVOTDATA(\"URN\",'Pivot FE&S'!$A$107,\"SSA 2 descriptor\",$B150,\"Outcome\",2),0)","v":4},{"$f":"IFERROR(GETPIVOTDATA(\"URN\",'Pivot FE&S'!$A$107,\"SSA 2 descriptor\",$B150,\"Outcome\",3),0)","v":5},{"$f":"IFERROR(GETPIVOTDATA(\"URN\",'Pivot FE&S'!$A$107,\"SSA 2 descriptor\",$B150,\"Outcome\",4),0)","v":0}]
[null,"National Careers Service",0,{"$f":"IFERROR(GETPIVOTDATA(\"URN\",'Pivot FE&S'!$A$107,\"SSA 2 descriptor\",$B151,\"Outcome\",1),0)","v":0},{"$f":"IFERROR(GETPIVOTDATA(\"URN\",'Pivot FE&S'!$A$107,\"SSA 2 descriptor\",$B151,\"Outcome\",2),0)","v":0},{"$f":"IFERROR(GETPIVOTDATA(\"URN\",'Pivot FE&S'!$A$107,\"SSA 2 descriptor\",$B151,\"Outcome\",3),0)","v":0},{"$f":"IFERROR(GETPIVOTDATA(\"URN\",'Pivot FE&S'!$A$107,\"SSA 2 descriptor\",$B151,\"Outcome\",4),0)","v":0}]
[null,"Nursing and Dental Health",3,{"$f":"IFERROR(GETPIVOTDATA(\"URN\",'Pivot FE&S'!$A$107,\"SSA 2 descriptor\",$B152,\"Outcome\",1),0)","v":1},{"$f":"IFERROR(GETPIVOTDATA(\"URN\",'Pivot FE&S'!$A$107,\"SSA 2 descriptor\",$B152,\"Outcome\",2),0)","v":0},{"$f":"IFERROR(GETPIVOTDATA(\"URN\",'Pivot FE&S'!$A$107,\"SSA 2 descriptor\",$B152,\"Outcome\",3),0)","v":2},{"$f":"IFERROR(GETPIVOTDATA(\"URN\",'Pivot FE&S'!$A$107,\"SSA 2 descriptor\",$B152,\"Outcome\",4),0)","v":0}]
[null,"Performing Arts",14,{"$f":"IFERROR(GETPIVOTDATA(\"URN\",'Pivot FE&S'!$A$107,\"SSA 2 descriptor\",$B153,\"Outcome\",1),0)","v":3},{"$f":"IFERROR(GETPIVOTDATA(\"URN\",'Pivot FE&S'!$A$107,\"SSA 2 descriptor\",$B153,\"Outcome\",2),0)","v":10},{"$f":"IFERROR(GETPIVOTDATA(\"URN\",'Pivot FE&S'!$A$107,\"SSA 2 descriptor\",$B153,\"Outcome\",3),0)","v":1},{"$f":"IFERROR(GETPIVOTDATA(\"URN\",'Pivot FE&S'!$A$107,\"SSA 2 descriptor\",$B153,\"Outcome\",4),0)","v":0}]
[null,"Philosophy",0,{"$f":"IFERROR(GETPIVOTDATA(\"URN\",'Pivot FE&S'!$A$107,\"SSA 2 descriptor\",$B154,\"Outcome\",1),0)","v":0},{"$f":"IFERROR(GETPIVOTDATA(\"URN\",'Pivot FE&S'!$A$107,\"SSA 2 descriptor\",$B154,\"Outcome\",2),0)","v":0},{"$f":"IFERROR(GETPIVOTDATA(\"URN\",'Pivot FE&S'!$A$107,\"SSA 2 descriptor\",$B154,\"Outcome\",3),0)","v":0},{"$f":"IFERROR(GETPIVOTDATA(\"URN\",'Pivot FE&S'!$A$107,\"SSA 2 descriptor\",$B154,\"Outcome\",4),0)","v":0}]
[null,"Politics",0,{"$f":"IFERROR(GETPIVOTDATA(\"URN\",'Pivot FE&S'!$A$107,\"SSA 2 descriptor\",$B155,\"Outcome\",1),0)","v":0},{"$f":"IFERROR(GETPIVOTDATA(\"URN\",'Pivot FE&S'!$A$107,\"SSA 2 descriptor\",$B155,\"Outcome\",2),0)","v":0},{"$f":"IFERROR(GETPIVOTDATA(\"URN\",'Pivot FE&S'!$A$107,\"SSA 2 descriptor\",$B155,\"Outcome\",3),0)","v":0},{"$f":"IFERROR(GETPIVOTDATA(\"URN\",'Pivot FE&S'!$A$107,\"SSA 2 descriptor\",$B155,\"Outcome\",4),0)","v":0}]
[null,"Psychology",2,{"$f":"IFERROR(GETPIVOTDATA(\"URN\",'Pivot FE&S'!$A$107,\"SSA 2 descriptor\",$B156,\"Outcome\",1),0)","v":0},{"$f":"IFERROR(GETPIVOTDATA(\"URN\",'Pivot FE&S'!$A$107,\"SSA 2 descriptor\",$B156,\"Outcome\",2),0)","v":2},{"$f":"IFERROR(GETPIVOTDATA(\"URN\",'Pivot FE&S'!$A$107,\"SSA 2 descriptor\",$B156,\"Outcome\",3),0)","v":0},{"$f":"IFERROR(GETPIVOTDATA(\"URN\",'Pivot FE&S'!$A$107,\"SSA 2 descriptor\",$B156,\"Outcome\",4),0)","v":0}]
[null,"Public Services",10,{"$f":"IFERROR(GETPIVOTDATA(\"URN\",'Pivot FE&S'!$A$107,\"SSA 2 descriptor\",$B157,\"Outcome\",1),0)","v":2},{"$f":"IFERROR(GETPIVOTDATA(\"URN\",'Pivot FE&S'!$A$107,\"SSA 2 descriptor\",$B157,\"Outcome\",2),0)","v":6},{"$f":"IFERROR(GETPIVOTDATA(\"URN\",'Pivot FE&S'!$A$107,\"SSA 2 descriptor\",$B157,\"Outcome\",3),0)","v":2},{"$f":"IFERROR(GETPIVOTDATA(\"URN\",'Pivot FE&S'!$A$107,\"SSA 2 descriptor\",$B157,\"Outcome\",4),0)","v":0}]
[null,"Retailing and Wholesaling",5,{"$f":"IFERROR(GETPIVOTDATA(\"URN\",'Pivot FE&S'!$A$107,\"SSA 2 descriptor\",$B158,\"Outcome\",1),0)","v":0},{"$f":"IFERROR(GETPIVOTDATA(\"URN\",'Pivot FE&S'!$A$107,\"SSA 2 descriptor\",$B158,\"Outcome\",2),0)","v":4},{"$f":"IFERROR(GETPIVOTDATA(\"URN\",'Pivot FE&S'!$A$107,\"SSA 2 descriptor\",$B158,\"Outcome\",3),0)","v":1},{"$f":"IFERROR(GETPIVOTDATA(\"URN\",'Pivot FE&S'!$A$107,\"SSA 2 descriptor\",$B158,\"Outcome\",4),0)","v":0}]
[null,"Service Enterprises",1,{"$f":"IFERROR(GETPIVOTDATA(\"URN\",'Pivot FE&S'!$A$107,\"SSA 2 descriptor\",$B159,\"Outcome\",1),0)","v":0},{"$f":"IFERROR(GETPIVOTDATA(\"URN\",'Pivot FE&S'!$A$107,\"SSA 2 descriptor\",$B159,\"Outcome\",2),0)","v":1},{"$f":"IFERROR(GETPIVOTDATA(\"URN\",'Pivot FE&S'!$A$107,\"SSA 2 descriptor\",$B159,\"Outcome\",3),0)","v":0},{"$f":"IFERROR(GETPIVOTDATA(\"URN\",'Pivot FE&S'!$A$107,\"SSA 2 descriptor\",$B159,\"Outcome\",4),0)","v":0}]
[null,"Science",21,{"$f":"IFERROR(GETPIVOTDATA(\"URN\",'Pivot FE&S'!$A$107,\"SSA 2 descriptor\",$B160,\"Outcome\",1),0)","v":0},{"$f":"IFERROR(GETPIVOTDATA(\"URN\",'Pivot FE&S'!$A$107,\"SSA 2 descriptor\",$B160,\"Outcome\",2),0)","v":7},{"$f":"IFERROR(GETPIVOTDATA(\"URN\",'Pivot FE&S'!$A$107,\"SSA 2 descriptor\",$B160,\"Outcome\",3),0)","v":12},{"$f":"IFERROR(GETPIVOTDATA(\"URN\",'Pivot FE&S'!$A$107,\"SSA 2 descriptor\",$B160,\"Outcome\",4),0)","v":2}]
[null,"Science and Mathematics",1,{"$f":"IFERROR(GETPIVOTDATA(\"URN\",'Pivot FE&S'!$A$107,\"SSA 2 descriptor\",$B161,\"Outcome\",1),0)","v":0},{"$f":"IFERROR(GETPIVOTDATA(\"URN\",'Pivot FE&S'!$A$107,\"SSA 2 descriptor\",$B161,\"Outcome\",2),0)","v":0},{"$f":"IFERROR(GETPIVOTDATA(\"URN\",'Pivot FE&S'!$A$107,\"SSA 2 descriptor\",$B161,\"Outcome\",3),0)","v":0},{"$f":"IFERROR(GETPIVOTDATA(\"URN\",'Pivot FE&S'!$A$107,\"SSA 2 descriptor\",$B161,\"Outcome\",4),0)","v":1}]
[null,"Social Sciences",4,{"$f":"IFERROR(GETPIVOTDATA(\"URN\",'Pivot FE&S'!$A$107,\"SSA 2 descriptor\",$B162,\"Outcome\",1),0)","v":0},{"$f":"IFERROR(GETPIVOTDATA(\"URN\",'Pivot FE&S'!$A$107,\"SSA 2 descriptor\",$B162,\"Outcome\",2),0)","v":1},{"$f":"IFERROR(GETPIVOTDATA(\"URN\",'Pivot FE&S'!$A$107,\"SSA 2 descriptor\",$B162,\"Outcome\",3),0)","v":3},{"$f":"IFERROR(GETPIVOTDATA(\"URN\",'Pivot FE&S'!$A$107,\"SSA 2 descriptor\",$B162,\"Outcome\",4),0)","v":0}]
[null,"Sociology and Social Policy",1,{"$f":"IFERROR(GETPIVOTDATA(\"URN\",'Pivot FE&S'!$A$107,\"SSA 2 descriptor\",$B163,\"Outcome\",1),0)","v":0},{"$f":"IFERROR(GETPIVOTDATA(\"URN\",'Pivot FE&S'!$A$107,\"SSA 2 descriptor\",$B163,\"Outcome\",2),0)","v":1},{"$f":"IFERROR(GETPIVOTDATA(\"URN\",'Pivot FE&S'!$A$107,\"SSA 2 descriptor\",$B163,\"Outcome\",3),0)","v":0},{"$f":"IFERROR(GETPIVOTDATA(\"URN\",'Pivot FE&S'!$A$107,\"SSA 2 descriptor\",$B163,\"Outcome\",4),0)","v":0}]
[null,"Sport",13,{"$f":"IFERROR(GETPIVOTDATA(\"URN\",'Pivot FE&S'!$A$107,\"SSA 2 descriptor\",$B164,\"Outcome\",1),0)","v":3},{"$f":"IFERROR(GETPIVOTDATA(\"URN\",'Pivot FE&S'!$A$107,\"SSA 2 descriptor\",$B164,\"Outcome\",2),0)","v":8},{"$f":"IFERROR(GETPIVOTDATA(\"URN\",'Pivot FE&S'!$A$107,\"SSA 2 descriptor\",$B164,\"Outcome\",3),0)","v":2},{"$f":"IFERROR(GETPIVOTDATA(\"URN\",'Pivot FE&S'!$A$107,\"SSA 2 descriptor\",$B164,\"Outcome\",4),0)","v":0}]
[null,"Sport, Leisure and Recreation",4,{"$f":"IFERROR(GETPIVOTDATA(\"URN\",'Pivot FE&S'!$A$107,\"SSA 2 descriptor\",$B165,\"Outcome\",1),0)","v":1},{"$f":"IFERROR(GETPIVOTDATA(\"URN\",'Pivot FE&S'!$A$107,\"SSA 2 descriptor\",$B165,\"Outcome\",2),0)","v":3},{"$f":"IFERROR(GETPIVOTDATA(\"URN\",'Pivot FE&S'!$A$107,\"SSA 2 descriptor\",$B165,\"Outcome\",3),0)","v":0},{"$f":"IFERROR(GETPIVOTDATA(\"URN\",'Pivot FE&S'!$A$107,\"SSA 2 descriptor\",$B165,\"Outcome\",4),0)","v":0}]
[null,"Teaching and Lecturing",2,{"$f":"IFERROR(GETPIVOTDATA(\"URN\",'Pivot FE&S'!$A$107,\"SSA 2 descriptor\",$B166,\"Outcome\",1),0)","v":0},{"$f":"IFERROR(GETPIVOTDATA(\"URN\",'Pivot FE&S'!$A$107,\"SSA 2 descriptor\",$B166,\"Outcome\",2),0)","v":0},{"$f":"IFERROR(GETPIVOTDATA(\"URN\",'Pivot FE&S'!$A$107,\"SSA 2 descriptor\",$B166,\"Outcome\",3),0)","v":2},{"$f":"IFERROR(GETPIVOTDATA(\"URN\",'Pivot FE&S'!$A$107,\"SSA 2 descriptor\",$B166,\"Outcome\",4),0)","v":0}]
[null,"Theology and Religious Studies",1,{"$f":"IFERROR(GETPIVOTDATA(\"URN\",'Pivot FE&S'!$A$107,\"SSA 2 descriptor\",$B167,\"Outcome\",1),0)","v":1},{"$f":"IFERROR(GETPIVOTDATA(\"URN\",'Pivot FE&S'!$A$107,\"SSA 2 descriptor\",$B167,\"Outcome\",2),0)","v":0},{"$f":"IFERROR(GETPIVOTDATA(\"URN\",'Pivot FE&S'!$A$107,\"SSA 2 descriptor\",$B167,\"Outcome\",3),0)","v":0},{"$f":"IFERROR(GETPIVOTDATA(\"URN\",'Pivot FE&S'!$A$107,\"SSA 2 descriptor\",$B167,\"Outcome\",4),0)","v":0}]
[null,"Training to Provide Learning Support",1,{"$f":"IFERROR(GETPIVOTDATA(\"URN\",'Pivot FE&S'!$A$107,\"SSA 2 descriptor\",$B168,\"Outcome\",1),0)","v":0},{"$f":"IFERROR(GETPIVOTDATA(\"URN\",'Pivot FE&S'!$A$107,\"SSA 2 descriptor\",$B168,\"Outcome\",2),0)","v":0},{"$f":"IFERROR(GETPIVOTDATA(\"URN\",'Pivot FE&S'!$A$107,\"SSA 2 descriptor\",$B168,\"Outcome\",3),0)","v":1},{"$f":"IFERROR(GETPIVOTDATA(\"URN\",'Pivot FE&S'!$A$107,\"SSA 2 descriptor\",$B168,\"Outcome\",4),0)","v":0}]
[null,"Transportation operations and maintenance",6,{"$f":"IFERROR(GETPIVOTDATA(\"URN\",'Pivot FE&S'!$A$107,\"SSA 2 descriptor\",$B169,\"Outcome\",1),0)","v":1},{"$f":"IFERROR(GETPIVOTDATA(\"URN\",'Pivot FE&S'!$A$107,\"SSA 2 descriptor\",$B169,\"Outcome\",2),0)","v":0},{"$f":"IFERROR(GETPIVOTDATA(\"URN\",'Pivot FE&S'!$A$107,\"SSA 2 descriptor\",$B169,\"Outcome\",3),0)","v":3},{"$f":"IFERROR(GETPIVOTDATA(\"URN\",'Pivot FE&S'!$A$107,\"SSA 2 descriptor\",$B169,\"Outcome\",4),0)","v":2}]
[null,"Travel and Tourism",2,{"$f":"IFERROR(GETPIVOTDATA(\"URN\",'Pivot FE&S'!$A$107,\"SSA 2 descriptor\",$B170,\"Outcome\",1),0)","v":1},{"$f":"IFERROR(GETPIVOTDATA(\"URN\",'Pivot FE&S'!$A$107,\"SSA 2 descriptor\",$B170,\"Outcome\",2),0)","v":0},{"$f":"IFERROR(GETPIVOTDATA(\"URN\",'Pivot FE&S'!$A$107,\"SSA 2 descriptor\",$B170,\"Outcome\",3),0)","v":1},{"$f":"IFERROR(GETPIVOTDATA(\"URN\",'Pivot FE&S'!$A$107,\"SSA 2 descriptor\",$B170,\"Outcome\",4),0)","v":0}]
[null,"Visual Arts",26,{"$f":"IFERROR(GETPIVOTDATA(\"URN\",'Pivot FE&S'!$A$107,\"SSA 2 descriptor\",$B171,\"Outcome\",1),0)","v":6},{"$f":"IFERROR(GETPIVOTDATA(\"URN\",'Pivot FE&S'!$A$107,\"SSA 2 descriptor\",$B171,\"Outcome\",2),0)","v":14},{"$f":"IFERROR(GETPIVOTDATA(\"URN\",'Pivot FE&S'!$A$107,\"SSA 2 descriptor\",$B171,\"Outcome\",3),0)","v":6},{"$f":"IFERROR(GETPIVOTDATA(\"URN\",'Pivot FE&S'!$A$107,\"SSA 2 descriptor\",$B171,\"Outcome\",4),0)","v":0}]
[null,"Warehousing and Distribution",7,{"$f":"IFERROR(GETPIVOTDATA(\"URN\",'Pivot FE&S'!$A$107,\"SSA 2 descriptor\",$B172,\"Outcome\",1),0)","v":1},{"$f":"IFERROR(GETPIVOTDATA(\"URN\",'Pivot FE&S'!$A$107,\"SSA 2 descriptor\",$B172,\"Outcome\",2),0)","v":4},{"$f":"IFERROR(GETPIVOTDATA(\"URN\",'Pivot FE&S'!$A$107,\"SSA 2 descriptor\",$B172,\"Outcome\",3),0)","v":2},{"$f":"IFERROR(GETPIVOTDATA(\"URN\",'Pivot FE&S'!$A$107,\"SSA 2 descriptor\",$B172,\"Outcome\",4),0)","v":0}]
[null,"Total",{"$f":"SUM(C104:C172)","v":663},{"$f":"SUM(D104:D172)","v":52},{"$f":"SUM(E104:E172)","v":324},247,40]

{"sheet":"Pivot FE&S","index":3,"n_rows":209,"n_cols":6,"rows_kept":209,"cut":false,"hidden":true,"merged":[]}
[]
[]
["Overall effectiveness of providers inspected between 1 September 2014 and 30 April 2015"]
[]
["Count of Provider Name","Column Labels"]
["Row Labels",1,2,3,4,"Grand Total"]
["Community Learning and Skills",2,19,12,7,40]
["Employer",2,2,2,1,7]
["Free School - 16-19",null,1,2,2,5]
["General Further Education/Tertiary College",1,13,18,5,37]
["Higher Education Institution",2,null,null,null,2]
["Independent Learning Provider",3,31,31,8,73]
["Independent Specialist College",null,3,2,1,6]
["Sixth Form College",null,2,5,2,9]
["Specialist Further Education",null,2,null,null,2]
["Grand Total",10,73,72,26,181]
[]
[]
["Outcomes for learners"]
[]
["Count of Provider Name","Column Labels"]
["Row Labels",1,2,3,4,"Grand Total"]
["Community Learning and Skills",2,19,15,4,40]
["Employer",2,1,3,1,7]
["Free School - 16-19",null,1,2,2,5]
["General Further Education/Tertiary College",1,10,21,5,37]
["Higher Education Institution",2,null,null,null,2]
["Independent Learning Provider",3,34,29,7,73]
["Independent Specialist College",null,3,3,null,6]
["Sixth Form College",null,2,5,2,9]
["Specialist Further Education",null,2,null,null,2]
["Grand Total",10,72,78,21,181]
[]
[]
[]
[]
[]
[]
[]
["Teaching and learning"]
[]
["Count of Provider Name","Column Labels"]
["Row Labels",1,2,3,4,"Grand Total"]
["Community Learning and Skills",2,21,14,3,40]
["Employer",2,2,2,1,7]
["Free School - 16-19",null,1,2,2,5]
["General Further Education/Tertiary College",1,14,18,4,37]
["Higher Education Institution",2,null,null,null,2]
["Independent Learning Provider",3,36,27,7,73]
["Independent Specialist College",null,3,2,1,6]
["Sixth Form College",null,2,6,1,9]
["Specialist Further Education",null,2,null,null,2]
["Grand Total",10,81,71,19,181]
[]
[]
[]
[]
[]
[]
[]
["Leadership and management"]
[]
["Count of Provider Name","Column Labels"]
["Row Labels",1,2,3,4,"Grand Total"]
["Community Learning and Skills",4,17,12,7,40]
["Employer",2,2,2,1,7]
["Free School - 16-19",null,1,2,2,5]
["General Further Education/Tertiary College",2,15,15,5,37]
["Higher Education Institution",2,null,null,null,2]
["Independent Learning Provider",4,30,31,8,73]
["Independent Specialist College",null,3,2,1,6]
["Sixth Form College",1,1,5,2,9]
["Specialist Further Education",null,1,1,null,2]
["Grand Total",15,70,70,26,181]
[]
[]
[]
[]
[]
[]
[]
["SSA Descriptor 1"]
[]
["Count of URN","Column Labels"]
["Row Labels",1,2,3,4,"Grand Total"]
["Arts, Media and Publishing",10,27,10,null,47]
["Business, Administration and Law",4,68,52,8,132]
["Construction, Planning and the Built Environment",null,10,9,3,22]
["Education and Training",null,null,3,null,3]
["Engineering and Manufacturing Technologies",7,25,24,2,58]
["Health, Public Services and Care",10,50,38,1,99]
["Information and Communication Technology",4,18,6,1,29]
["Languages, Literature and Culture",1,2,8,2,13]
["Preparation for Life and Work",5,55,48,15,123]
["Retail and Commercial Enterprise",2,29,14,4,49]
["Science and Mathematics",1,12,24,4,41]
["Social Sciences",null,3,3,null,6]
["Leisure, Travel and Tourism",6,15,3,null,24]
["Family Learning",null,2,1,null,3]
["Agriculture, Horticulture and Animal Care",null,8,3,null,11]
["Humanities",2,null,null,null,2]
["Community Development",null,null,1,null,1]
["Grand Total",52,324,247,40,663]
[]
["SSA Descriptor 2"]
[]
["Count of URN","Column Labels"]
["Row Labels",1,2,3,4,"Grand Total"]
["Accounting and Finance",2,7,6,1,16]
["Administration",1,31,20,1,53]
["Agriculture",null,1,2,null,3]
["Animal Care and Veterinary Science",null,3,null,null,3]
["Beauty Therapy",null,2,null,null,2]
["Building and Construction",null,5,7,3,15]
["Building Services",null,2,null,null,2]
["Business",1,3,4,null,8]
["Business Management",null,19,19,2,40]
["Communications Technology",null,1,null,null,1]
["Community Development",null,null,1,null,1]
["Community Learning",null,2,1,1,4]
["Construction Crafts",null,3,2,null,5]
["Customer service",null,4,null,3,7]
["Early Years and Playwork",4,14,12,null,30]
["Employability Training",1,14,10,3,28]
["Engineering",4,9,9,null,22]
["English",1,1,7,1,10]
["Environmental Conservation",null,null,1,null,1]
["Equine Studies",null,1,null,null,1]
["ESOL",1,5,2,1,9]
["Family Learning",null,2,1,null,3]
["Forestry",null,1,null,null,1]
["Foundation English",null,9,16,4,29]
["Foundation English and Mathematics",null,9,3,null,12]
["Foundation mathematics",null,9,12,5,26]
["Hairdressing",null,4,1,3,8]
["Hairdressing and beauty therapy",1,5,8,1,15]
["Health and Social Care",4,33,22,1,60]
["Health, Public Services and Care",null,1,null,null,1]
["History",1,null,null,null,1]
["Horticulture",null,1,null,null,1]
["Horticulture and Forestry",null,1,null,null,1]
["Hospitality and Catering",null,9,2,null,11]
["ICT for practitioners",3,7,2,1,13]
["ICT for Users",1,10,4,null,15]
["Independent living and leisure skills",3,7,4,1,15]
["Law and Legal Services",null,3,2,1,6]
["Manufacturing Technologies",1,12,7,null,20]
["Marketing and Sales",null,1,1,null,2]
["Mathematics and Statistics",1,4,12,1,18]
["Media and Communication",1,3,3,null,7]
["Modern foreign languages",null,1,1,1,3]
["Motor vehicle",1,4,5,null,10]
["Nursing and Dental Health",1,null,2,null,3]
["Performing Arts",3,10,1,null,14]
["Psychology",null,2,null,null,2]
["Public Services",2,6,2,null,10]
["Retailing and Wholesaling",null,4,1,null,5]
["Science",null,7,12,2,21]
["Science and Mathematics",null,null,null,1,1]
["Service Enterprises",null,1,null,null,1]
["Social Sciences",null,1,3,null,4]
["Sociology and Social Policy",null,1,null,null,1]
["Sport",3,8,2,null,13]
["Sport, Leisure and Recreation",1,3,null,null,4]
["Teaching and Lecturing",null,null,2,null,2]
["Theology and Religious Studies",1,null,null,null,1]
["Training to Provide Learning Support",null,null,1,null,1]
["Transportation operations and maintenance",1,null,3,2,6]
["Travel and Tourism",1,null,1,null,2]
["Visual Arts",6,14,6,null,26]
["Warehousing and Distribution",1,4,2,null,7]
["Grand Total",52,324,247,40,663]
[]
[]
["Count of URN","Column Labels"]
["Row Labels","Improved","Same","Declined","No previous inspection","Grand Total"]
["Community Learning and Skills",11,11,17,1,40]
["Grand Total",11,11,17,1,40]
[]
[]
[]
[]
[]
[]
[]
[]
[]
[]
[]
["Provider type","(All)"]
[]
["Count of URN","Column Labels"]
["Row Labels",1,2,3,4,"Grand Total"]
["Improved",6,28,2,null,36]
[2,6,null,null,null,6]
[3,null,27,null,null,27]
[4,null,1,2,null,3]
["Same",1,27,25,1,54]
[1,1,null,null,null,1]
[2,null,27,null,null,27]
[3,null,null,25,null,25]
[4,null,null,null,1,1]
["Declined",null,7,31,21,59]
[1,null,7,2,3,12]
[2,null,null,29,10,39]
[3,null,null,null,8,8]
["No previous inspection",3,11,14,4,32]
["NULL",3,11,14,4,32]
["Grand Total",10,73,72,26,181]

{"sheet":"Inspection data","index":4,"n_rows":186,"n_cols":67,"rows_kept":186,"cut":false,"hidden":false,"merged":[]}
["Inspection outcomes for further education and skills providers inspected from 1 September 2014"]
[]
[]
[]
["Report","Provider Name","URN","Provider type","Ofsted Region","Local Authority","REE Type of School","Inspection type","Inspection number","Inspection start date","Inspection end date","Inspection status","Inspection report published","Previous inspection number","Previous inspection date","Previous overall effectiveness","Overall Effectiveness","14-16 Overall Effectiveness Part Time","14-16 Overall Effectiveness Full Time","Traineeships Overall Effectiveness","16-19 study programmes Overall Effectiveness","19+ Overall Effectiveness","Apprenticeships Overall Effectiveness","Community Learning Overall Effectiveness","National Careers Services Overall Effectiveness","Employability Overall Effectiveness","Outcome for Learners","14-16 Outcome for Learners Part Time","14-16 Outcome for Learners Full Time","Traineeships Outcome for Learners","16-19 study programmes Outcome for Learners","19+ Outcome for Learners","Apprenticeships Outcome for Learners","Community Learning Outcome for Learners","National Careers Services Outcome for Learners","Employability Outcome for Learners","Teaching, learning and assessment","14-16 Teaching Part Time","14-16 Teaching Full Time","Traineeships Teaching","16-19 study programmes Teaching","19+ Teaching","Apprenticeships Teaching","Community Learning Teaching","National Careers Services Teaching","Employability Teaching","Leadership and Management","14-16 Leadership and Management Part Time","14-16 Leadership and Management Full Time","Traineeships Leadership and Management","16-19 study programmes Leadership and Management","19+ Leadership and Management","Apprenticeships Leadership and Management","Community Learning Leadership and Management","National Careers Services Leadership and Management","Employability Leadership and Management","How well all learners are safeguarded","14-16 How well all learners are safeguarded Part Time","14-16 How well all learners are safeguarded Full Time","Traineeships How well all learners are safeguarded","16-19 study programmes How well all learners are safeguarded","19+ How well all learners are safeguarded","Apprenticeships How well all learners are safeguarded","Community Learning How well all learners are safeguarded","National Careers Services How well all learners are safeguarded","Employability How well all learners are safeguarded","Current overall effectiveness outcome against Previous overall effectiveness outcome"]
[{"$f":"IF(C6 <> \"\", HYPERLINK(CONCATENATE(\"http://reports.ofsted.gov.uk/inspection-reports/find-inspection-report/provider/ELS/\",C6),\"Report\"),\"\")","v":"Report"},"Redcar & Cleveland Adult Learning Service",54087,"Community Learning and Skills","North East, Yorkshire & Humber","Redcar and Cleveland","ACL Local Authority","Adult and Community - full (regional)",446665,"2014-09-23","2014-09-26","Published","2014-10-29",329358,"2008-11-28",2,2,"-","-","-",2,2,2,2,"-","-",2,"-","-","-",2,2,2,2,"-","-",2,"-","-","-",2,2,2,2,"-","-",2,"-","-","-",2,2,2,2,"-","-",2,"-","-","-",2,2,2,2,"-","-",{"$f":"IF(P6=\"Null\",\"No previous inspection\",IF(Q6>P6,\"Declined\", IF(Q6=P6,\"Same\",IF(Q6<P6,\"Improved\"))))","v":"Same"}]
["Report","Beacon Employment",59072,"Community Learning and Skills","West Midlands","Worcestershire","ACL Voluntary organisation","WBL - full (regional)",434036,"2014-09-23","2014-09-26","Published","2014-10-29",385726,"2012-02-17",3,4,"-","-","-",4,"-","-","-","-",4,4,"-","-","-",4,"-","-","-","-",4,4,"-","-","-",4,"-","-","-","-",4,4,"-","-","-",4,"-","-","-","-",4,4,"-","-","-",4,"-","-","-","-",4,"Declined"]
["Report","Luton Borough Council",53201,"Community Learning and Skills","East of England","Luton","ACL Local Authority","Adult and community - full (national)",434069,"2014-09-29","2014-10-03","Published","2014-11-07",387972,"2012-06-15",3,2,"-","-","-","-","-",2,2,"-","-",2,"-","-","-","-","-",2,2,"-","-",2,"-","-","-","-","-",2,2,"-","-",2,"-","-","-","-","-",2,2,"-","-",2,"-","-","-","-","-",2,2,"-","-","Improved"]
["Report","The Marine Society College of the Sea",130414,"Community Learning and Skills","London","Lambeth","ACL Specialist Designated Institute","Adult and Community - full (regional)",446670,"2014-10-08","2014-10-10","Published","2014-11-24",330817,"2009-02-06",2,4,"-","-","-","-","-","-",4,"-","-",4,"-","-","-","-","-","-",4,"-","-",4,"-","-","-","-","-","-",4,"-","-",4,"-","-","-","-","-","-",4,"-","-",3,"-","-","-","-","-","-",3,"-","-","Declined"]
["Report","Southend-on-Sea Borough Council",54519,"Community Learning and Skills","East of England","Southend-On-Sea","ACL Local Authority","Adult and Community - full (regional)",446666,"2014-10-06","2014-10-10","Published","2014-11-12",329818,"2008-11-07",2,2,"-","-","-",2,2,2,2,"-",2,2,"-","-","-",2,2,2,2,"-",2,2,"-","-","-",2,2,2,2,"-",2,2,"-","-","-",2,2,2,2,"-",2,3,"-","-","-",3,3,3,3,"-",3,"Same"]
["Report","Waverley Training Services",55287,"Community Learning and Skills","South East","Surrey","ACL Local Authority","WBL - requires improvement",430262,"2014-10-06","2014-10-10","Published","2014-11-18",410697,"2013-04-26",3,3,"-","-","-",3,"-",3,"-","-",3,3,"-","-","-",2,"-",3,"-","-",3,3,"-","-","-",3,"-",3,"-","-",3,3,"-","-","-",3,"-",3,"-","-",3,3,"-","-","-",3,"-",3,"-","-",3,"Same"]
["Report","Safe in Tees Valley Limited",54245,"Community Learning and Skills","North East, Yorkshire & Humber","Stockton-on-Tees","ACL Voluntary organisation","WBL - full (regional)",451617,"2014-10-15","2014-10-17","Published","2014-11-19",409409,"2012-11-28",2,4,"-","-","-",4,"-","-","-","-","-",4,"-","-","-",4,"-","-","-","-","-",4,"-","-","-",4,"-","-","-","-","-",4,"-","-","-",4,"-","-","-","-","-",4,"-","-","-",4,"-","-","-","-","-","Declined"]
["Report","Havering London Borough Council",53127,"Community Learning and Skills","London","Havering","ACL Local Authority","Adult and community - full (national)",434068,"2014-10-13","2014-10-17","Published","2014-12-04",387987,"2012-05-04",3,2,"-","-","-","-",2,3,2,"-",2,2,"-","-","-","-",2,3,2,"-",2,2,"-","-","-","-",2,3,2,"-",2,2,"-","-","-","-",2,2,2,"-",2,2,"-","-","-","-",2,2,2,"-",2,"Improved"]
["Report","Warrington Borough Council",55268,"Community Learning and Skills","North West","Warrington","ACL Local Authority","Adult and Community - full (regional)",446668,"2014-10-14","2014-10-17","Published","2014-12-16",354472,"2010-10-15",2,4,"-","-","-","-","-",4,3,"-","-",4,"-","-","-","-","-",4,3,"-","-",3,"-","-","-","-","-",4,3,"-","-",4,"-","-","-","-","-",4,3,"-","-",3,"-","-","-","-","-",3,3,"-","-","Declined"]
["Report","Morthyng Group Limited",53422,"Community Learning and Skills","North East, Yorkshire & Humber","Rotherham","ACL Voluntary organisation","WBL - full (regional)",452205,"2014-10-13","2014-10-17","Published","2014-11-19",363209,"2011-11-25",2,2,"-","-","-",2,"-","-","-","-","-",2,"-","-","-",2,"-","-","-","-","-",2,"-","-","-",2,"-","-","-","-","-",2,"-","-","-",2,"-","-","-","-","-",1,"-","-","-",1,"-","-","-","-","-","Same"]
["Report","Skills for Health Limited",58437,"Community Learning and Skills","South West","Bristol City of","ACL Voluntary organisation","WBL - requires improvement",430257,"2014-10-20","2014-10-24","Published","2014-11-28",410651,"2013-04-26",3,2,"-","-","-","-",2,2,"-","-","-",2,"-","-","-","-",2,2,"-","-","-",2,"-","-","-","-",2,2,"-","-","-",2,"-","-","-","-",2,2,"-","-","-",2,"-","-","-","-",2,2,"-","-","-","Improved"]
["Report","Manor Training and Resource Centre Limited",53239,"Community Learning and Skills","North East, Yorkshire & Humber","Sheffield","ACL Voluntary organisation","Adult and Community - full (regional)",446664,"2014-10-22","2014-10-24","Published","2014-11-28",363486,"2010-11-12",2,3,"-","-","-",3,"-","-","-","-","-",3,"-","-","-",3,"-","-","-","-","-",3,"-","-","-",3,"-","-","-","-","-",3,"-","-","-",3,"-","-","-","-","-",3,"-","-","-",3,"-","-","-","-","-","Declined"]
["Report","Lancashire Adult Learning",52911,"Community Learning and Skills","North West","Lancashire","ACL Local Authority","Adult and community - full (national)",446661,"2014-11-03","2014-11-07","Published","2014-12-10",330961,"2009-02-06",2,4,"-","-",4,"-",4,4,4,"-",4,3,"-","-",3,"-",3,3,3,"-",3,3,"-","-",3,"-",3,3,3,"-",3,4,"-","-",4,"-",4,4,4,"-",4,3,"-","-",3,"-",3,3,3,"-",3,"Declined"]
["Report","North Yorkshire County Council",50229,"Community Learning and Skills","North East, Yorkshire & Humber","North Yorkshire","ACL Local Authority","ACL - requires improvement",446660,"2014-11-03","2014-11-07","Published","2014-12-10",408465,"2013-05-24",3,2,"-","-","-",2,2,3,2,"-",2,2,"-","-","-",2,2,3,2,"-",2,2,"-","-","-",2,2,3,2,"-",2,2,"-","-","-",2,2,3,2,"-",2,3,"-","-","-",3,3,3,3,"-",3,"Improved"]
["Report","Wokingham Council",50246,"Community Learning and Skills","South East","Wokingham","ACL Local Authority","Adult and Community - full (regional)",452599,"2014-11-11","2014-11-13","Published","2014-12-23",354479,"2010-11-26",2,3,"-","-","-","-","-","-",3,"-","-",3,"-","-","-","-","-","-",3,"-","-",2,"-","-","-","-","-","-",2,"-","-",3,"-","-","-","-","-","-",3,"-","-",3,"-","-","-","-","-","-",3,"-","-","Declined"]
["Report","Adult Community Learning Essex",51766,"Community Learning and Skills","East of England","Essex","ACL Local Authority","Adult and Community - full (regional)",423415,"2014-11-10","2014-11-14","Published","2014-12-19",331440,"2009-06-05",1,3,"-","-","-","-",3,3,3,"-","-",3,"-","-","-","-",3,3,3,"-","-",3,"-","-","-","-",3,2,2,"-","-",3,"-","-","-","-",3,3,3,"-","-",2,"-","-","-","-",2,2,2,"-","-","Declined"]
["Report","Haringey London Borough Council",53124,"Community Learning and Skills","London","Haringey","ACL Local Authority","ACL - requires improvement",430294,"2014-11-10","2014-11-14","Published","2014-12-19",410633,"2013-05-17",3,3,"-","-","-","-","-","-",3,"-","-",3,"-","-","-","-","-","-",3,"-","-",3,"-","-","-","-","-","-",3,"-","-",3,"-","-","-","-","-","-",3,"-","-",3,"-","-","-","-","-","-",3,"-","-","Same"]
["Report","The Cornwall Council",51349,"Community Learning and Skills","South West","Cornwall","ACL Local Authority","ACL - requires improvement",430293,"2014-11-17","2014-11-21","Published","2015-01-14",410630,"2013-06-07",3,2,"-","-","-","-",2,"-",2,"-","-",2,"-","-","-","-",2,"-",2,"-","-",2,"-","-","-","-",2,"-",2,"-","-",2,"-","-","-","-",2,"-",2,"-","-",3,"-","-","-","-",3,"-",3,"-","-","Improved"]
["Report","Roots and Shoots",54175,"Community Learning and Skills","London","Lambeth","ACL Voluntary organisation","WBL - full (regional)",434051,"2014-11-24","2014-11-27","Published","2015-01-15",376248,"2011-12-01",1,2,"-","-","-",2,"-","-","-","-","-",2,"-","-","-",2,"-","-","-","-","-",2,"-","-","-",2,"-","-","-","-","-",2,"-","-","-",2,"-","-","-","-","-",2,"-","-","-",2,"-","-","-","-","-","Declined"]
["Report","Sunderland City Metropolitan Borough Council",54666,"Community Learning and Skills","North East, Yorkshire & Humber","Sunderland","ACL Local Authority","Adult and Community - full (regional)",446667,"2014-11-24","2014-11-28","Published","2014-12-24",320960,"2008-11-28",2,2,"-","-","-","-",2,2,2,"-",2,2,"-","-","-","-",2,2,2,"-",2,2,"-","-","-","-",2,2,2,"-",2,2,"-","-","-","-",2,2,2,"-",2,2,"-","-","-","-",2,2,2,"-",2,"Same"]
["Report","London Learning Consortium Community Interest Company",58611,"Community Learning and Skills","London","Croydon","ACL Voluntary organisation","WBL - requires improvement",430254,"2014-11-24","2014-11-28","Published","2015-01-13",399131,"2013-06-28",3,2,"-","-","-","-",2,2,"-","-","-",2,"-","-","-","-",2,2,"-","-","-",2,"-","-","-","-",2,2,"-","-","-",2,"-","-","-","-",2,2,"-","-","-",2,"-","-","-","-",2,2,"-","-","-","Improved"]
["Report","Hounslow Adult and Community Education",53132,"Community Learning and Skills","London","Hounslow","ACL Local Authority","Adult and Community - full (regional)",446662,"2014-12-01","2014-12-05","Published","2015-01-14",329193,"2008-12-05",2,2,"-","-","-","-",2,"-",2,"-","-",2,"-","-","-","-",2,"-",2,"-","-",2,"-","-","-","-",2,"-",2,"-","-",2,"-","-","-","-",2,"-",2,"-","-",2,"-","-","-","-",2,"-",2,"-","-","Same"]
["Report","Worcestershire County Council",55422,"Community Learning and Skills","West Midlands","Worcestershire","ACL Local Authority","Adult and Community - full (regional)",451949,"2014-12-02","2014-12-05","Published","2015-01-07",375496,"2011-11-18",2,3,"-","-",3,4,2,"-",2,"-","-",3,"-","-",3,4,3,"-",2,"-","-",3,"-","-",3,3,2,"-",2,"-","-",3,"-","-",3,4,2,"-",2,"-","-",2,"-","-",2,2,2,"-",2,"-","-","Declined"]
["Report","Wandsworth London Borough Council",53152,"Community Learning and Skills","London","Wandsworth","ACL Local Authority","Adult and Community - full (regional)",446663,"2014-12-08","2014-12-12","Published","2015-01-21",345790,"2010-04-30",2,4,"-","-","-","-","-",4,4,"-","-",3,"-","-","-","-","-",3,2,"-","-",3,"-","-","-","-","-",3,2,"-","-",4,"-","-","-","-","-",4,4,"-","-",4,"-","-","-","-","-",4,4,"-","-","Declined"]
["Report","Wolverhampton Adult Education Service",55413,"Community Learning and Skills","West Midlands","Wolverhampton","ACL Local Authority","Adult and Community - full (regional)",446669,"2014-12-08","2014-12-12","Published","2015-01-15",331468,"2009-01-23",2,1,"-","-","-",1,1,"-",1,"-",1,1,"-","-","-",1,1,"-",1,"-",1,1,"-","-","-",1,1,"-",1,"-",1,1,"-","-","-",1,1,"-",1,"-",1,2,"-","-","-",2,2,"-",2,"-",2,"Improved"]
["Report","East London Advanced Technology Training",51646,"Community Learning and Skills","London","Hackney","ACL Voluntary organisation","Adult and Community - full (regional)",452602,"2015-01-14","2015-01-16","Published","2015-02-20",334063,"2009-04-24",2,1,"-","-","-","-",1,"-","-","-","-",1,"-","-","-","-",1,"-","-","-","-",1,"-","-","-","-",1,"-","-","-","-",1,"-","-","-","-",1,"-","-","-","-",2,"-","-","-","-",2,"-","-","-","-","Improved"]
["Report","County Training",54373,"Community Learning and Skills","West Midlands","Shropshire","ACL Voluntary organisation","ACL - requires improvement",440287,"2015-01-19","2015-01-23","Published","2015-03-03",423424,"2013-11-01",3,2,"-","-","-",2,2,2,2,"-",2,2,"-","-","-",2,2,2,2,"-",2,2,"-","-","-",2,2,2,2,"-",2,1,"-","-","-",1,1,1,1,"-",1,1,"-","-","-",1,1,1,1,"-",1,"Improved"]
["Report","Durham County Council",50219,"Community Learning and Skills","North East, Yorkshire & Humber","Durham","ACL Local Authority","ACL - requires improvement",434393,"2015-01-19","2015-01-23","Published","2015-03-06",423431,"2013-10-11",3,2,"-","-","-","-",2,1,2,"-","-",2,"-","-","-","-",2,1,2,"-","-",2,"-","-","-","-",2,1,2,"-","-",2,"-","-","-","-",2,2,2,"-","-",2,"-","-","-","-",2,2,2,"-","-","Improved"]
["Report","The Mary Ward Centre (AE Centre)",130404,"Community Learning and Skills","London","Camden","ACL Specialist Designated Institute","Adult and Community - full (regional)",452634,"2015-01-19","2015-01-23","Published","2015-02-27",330812,"2009-02-27",2,2,"-","-","-","-","-","-",2,"-","-",2,"-","-","-","-","-","-",2,"-","-",2,"-","-","-","-","-","-",2,"-","-",2,"-","-","-","-","-","-",2,"-","-",2,"-","-","-","-","-","-",2,"-","-","Same"]
[{"$f":"IF(C35 <> \"\", HYPERLINK(CONCATENATE(\"http://reports.ofsted.gov.uk/inspection-reports/find-inspection-report/provider/ELS/\",C35),\"Report\"),\"\")","v":"Report"},"NCC Adult Education Services",53545,"Community Learning and Skills","East of England","Norfolk","ACL Local Authority","Adult and Community - full (regional)",452610,"2015-01-19","2015-01-23","Published","2015-03-09",375495,"2011-11-25",2,4,"-","-","-","-",4,"-",4,"-","-",3,"-","-","-","-",3,"-",3,"-","-",3,"-","-","-","-",3,"-",3,"-","-",4,"-","-","-","-",4,"-",4,"-","-",2,"-","-","-","-",2,"-",2,"-","-",{"$f":"IF(P35=\"Null\",\"No previous inspection\",IF(Q35>P35,\"Declined\", IF(Q35=P35,\"Same\",IF(Q35<P35,\"Improved\"))))","v":"Declined"}]
["Report","Nottingham City Council",53664,"Community Learning and Skills","East Midlands","Nottingham","ACL Local Authority","Adult and Community - full (regional)",423419,"2015-02-04","2015-02-06","Published","2015-03-13",329892,"2008-11-28",2,2,"-","-","-","-","-","-",2,"-","-",2,"-","-","-","-","-","-",2,"-","-",2,"-","-","-","-","-","-",2,"-","-",2,"-","-","-","-","-","-",2,"-","-",2,"-","-","-","-","-","-",2,"-","-","Same"]
["Report","Training 2000 Limited",55045,"Community Learning and Skills","North West","Blackburn with Darwen","ACL Voluntary organisation","WBL - full (regional)",452982,"2015-02-02","2015-02-06","Published","2015-03-12",363206,"2011-03-25",2,2,"-","-","-",2,"-",1,"-","-","-",2,"-","-","-",2,"-",2,"-","-","-",2,"-","-","-",2,"-",1,"-","-","-",1,"-","-","-",2,"-",1,"-","-","-",1,"-","-","-",1,"-",1,"-","-","-","Same"]
["Report","METSKILL Limited",53330,"Community Learning and Skills","North East, Yorkshire & Humber","Sheffield","ACL Voluntary organisation","Work Based Learning - full (national)",452609,"2015-02-09","2015-02-13","Published","2015-03-24",385747,"2012-02-10",2,3,"-","-","-","-","-",3,"-","-","-",3,"-","-","-","-","-",3,"-","-","-",3,"-","-","-","-","-",3,"-","-","-",3,"-","-","-","-","-",3,"-","-","-",2,"-","-","-","-","-",2,"-","-","-","Declined"]
["Report","Sandwell Training Association Limited",54271,"Community Learning and Skills","West Midlands","Sandwell","ACL Voluntary organisation","WBL - full (regional)",452616,"2015-02-16","2015-02-20","Published","2015-03-20",376201,"2011-10-14",2,3,"-","-","-","-","-",3,"-","-","-",3,"-","-","-","-","-",3,"-","-","-",3,"-","-","-","-","-",3,"-","-","-",3,"-","-","-","-","-",3,"-","-","-",3,"-","-","-","-","-",3,"-","-","-","Declined"]
["Report","Romney Resource 2000 Ltd",58383,"Community Learning and Skills","South East","Kent","ACL Voluntary organisation","WBL - requires improvement",434392,"2015-03-03","2015-03-06","Published","2015-04-22",423836,"2013-10-11",3,3,"-","-","-",3,"-","-","-","-","-",3,"-","-","-",3,"-","-","-","-","-",3,"-","-","-",3,"-","-","-","-","-",3,"-","-","-",3,"-","-","-","-","-",3,"-","-","-",3,"-","-","-","-","-","Same"]
["Report","The Communiversity",58913,"Community Learning and Skills","North West","Liverpool","ACL Voluntary organisation","Adult and Community - full (regional)",455664,"2015-03-10","2015-03-12","Published","2015-04-16","NULL","NULL","NULL",3,"-","-","-","-","-",3,"-","-","-",3,"-","-","-","-","-",3,"-","-","-",3,"-","-","-","-","-",3,"-","-","-",3,"-","-","-","-","-",3,"-","-","-",3,"-","-","-","-","-",3,"-","-","-","No previous inspection"]
["Report","Derby Skillbuild",51525,"Community Learning and Skills","East Midlands","Derby","ACL Voluntary organisation","WBL - requires improvement",434401,"2015-03-17","2015-03-19","Published","2015-04-24",423742,"2013-10-25",3,2,"-","-","-",2,"-","-","-","-","-",2,"-","-","-",2,"-","-","-","-","-",2,"-","-","-",2,"-","-","-","-","-",2,"-","-","-",2,"-","-","-","-","-",2,"-","-","-",2,"-","-","-","-","-","Improved"]
["Report","City Gateway",58841,"Community Learning and Skills","London","Tower Hamlets","ACL Voluntary organisation","WBL - full (regional)",452623,"2015-03-16","2015-03-19","Published","2015-04-22",364060,"2010-12-03",1,2,"-","-","-","-",2,2,"-","-","-",2,"-","-","-","-",2,2,"-","-","-",2,"-","-","-","-",1,2,"-","-","-",2,"-","-","-","-",1,2,"-","-","-",1,"-","-","-","-",1,1,"-","-","-","Declined"]
["Report","Open Door Adult Learning Centre",53746,"Community Learning and Skills","North East, Yorkshire & Humber","Sheffield","ACL Voluntary organisation","Adult and Community - full (regional)",452615,"2015-03-24","2015-03-27","Published","2015-05-01",320075,"2008-01-25",1,3,"-","-","-","-",3,"-","-","-","-",3,"-","-","-","-",3,"-","-","-","-",2,"-","-","-","-",2,"-","-","-","-",3,"-","-","-","-",3,"-","-","-","-",3,"-","-","-","-",3,"-","-","-","-","Declined"]
["Report","YMCA Training",57598,"Community Learning and Skills","North West","Stockport","ACL Voluntary organisation","Work Based Learning - full (national)",452735,"2015-03-23","2015-03-27","Published","2015-04-29",345914,"2010-05-28",2,3,"-","-",2,3,2,2,"-","-","-",3,"-","-",2,3,2,2,"-","-","-",3,"-","-",2,3,2,2,"-","-","-",3,"-","-",3,3,3,3,"-","-","-",2,"-","-",2,3,2,2,"-","-","-","Declined"]
["Report","Compass Group UK & Ireland",58805,"Employer","South East","Surrey","Employer","WBL - requires improvement",430252,"2014-11-10","2014-11-14","Published","2014-12-19",408528,"2013-06-07",3,2,"-","-","-","-","-",2,"-","-","-",3,"-","-","-","-","-",3,"-","-","-",2,"-","-","-","-","-",2,"-","-","-",2,"-","-","-","-","-",2,"-","-","-",2,"-","-","-","-","-",2,"-","-","-","Improved"]
["Report","Ministry of Defence (RAF)",54191,"Employer","South West","Gloucestershire","Employer","Work Based Learning - full (national)",446605,"2014-12-08","2014-12-12","Published","2015-01-21",330030,"2009-01-16",2,1,"-","-","-","-","-",1,"-","-","-",1,"-","-","-","-","-",1,"-","-","-",1,"-","-","-","-","-",1,"-","-","-",1,"-","-","-","-","-",1,"-","-","-",2,"-","-","-","-","-",2,"-","-","-","Improved"]
["Report","GI Group",59190,"Employer","East Midlands","Derbyshire","Employer","WBL - full (regional)",452631,"2015-01-13","2015-01-16","Published","2015-02-26","NULL","NULL","NULL",3,"-","-","-","-","-",3,"-","-","-",3,"-","-","-","-","-",3,"-","-","-",3,"-","-","-","-","-",3,"-","-","-",3,"-","-","-","-","-",3,"-","-","-",2,"-","-","-","-","-",2,"-","-","-","No previous inspection"]
["Report","E.ON UK Plc",58731,"Employer","East Midlands","Nottinghamshire","Employer","WBL - full (regional)",452990,"2015-01-20","2015-01-23","Published","2015-03-12",376207,"2011-12-09",2,3,"-","-","-","-","-",3,"-","-","-",3,"-","-","-","-","-",3,"-","-","-",3,"-","-","-","-","-",3,"-","-","-",3,"-","-","-","-","-",3,"-","-","-",2,"-","-","-","-","-",2,"-","-","-","Declined"]
["Report","Priory Central Services Limited",59108,"Employer","East Midlands","Leicestershire","Employer","WBL - requires improvement",434394,"2015-03-02","2015-03-06","Published","2015-04-17",423727,"2013-10-18",3,4,"-","-","-","-","-",4,"-","-","-",4,"-","-","-","-","-",4,"-","-","-",4,"-","-","-","-","-",4,"-","-","-",4,"-","-","-","-","-",4,"-","-","-",3,"-","-","-","-","-",3,"-","-","-","Declined"]
["Report","Ministry of Defence (Navy)",58403,"Employer","South East","Portsmouth","Employer","WBL - full (regional)",452622,"2015-03-09","2015-03-13","Published","2015-04-21",330255,"2009-02-06",2,2,"-","-","-","-","-",2,"-","-","-",2,"-","-","-","-","-",2,"-","-","-",2,"-","-","-","-","-",2,"-","-","-",2,"-","-","-","-","-",2,"-","-","-",2,"-","-","-","-","-",2,"-","-","-","Same"]
["Report","Thomas Cook Group UK Limited",58184,"Employer","East of England","Peterborough","Employer","Work Based Learning - full (national)",452987,"2015-03-23","2015-03-27","Published","2015-04-30",332129,"2009-06-19",2,1,"-","-","-","-","-",1,"-","-","-",1,"-","-","-","-","-",1,"-","-","-",1,"-","-","-","-","-",1,"-","-","-",1,"-","-","-","-","-",1,"-","-","-",2,"-","-","-","-","-",2,"-","-","-","Improved"]
["Report","The Maltings College",139433,"Free School - 16-19","North East, Yorkshire & Humber","Calderdale","Free School - 16-19","16-19 academy - full inspection",452498,"2015-01-13","2015-01-16","Published","2015-02-27","NULL","NULL","NULL",4,2,"-","-",4,"-","-","-","-","-",4,2,"-","-",4,"-","-","-","-","-",4,2,"-","-",4,"-","-","-","-","-",4,2,"-","-",4,"-","-","-","-","-",3,3,"-","-",3,"-","-","-","-","-","No previous inspection"]
["Report","Connell Sixth Form College",139730,"Free School - 16-19","North West","Manchester","Free School - 16-19","16-19 academy - full inspection",452499,"2015-01-27","2015-01-30","Published","2015-03-17","NULL","NULL","NULL",3,"-","-","-",3,"-","-","-","-","-",3,"-","-","-",3,"-","-","-","-","-",3,"-","-","-",3,"-","-","-","-","-",3,"-","-","-",3,"-","-","-","-","-",3,"-","-","-",3,"-","-","-","-","-","No previous inspection"]
[{"$f":"IF(C55 <> \"\", HYPERLINK(CONCATENATE(\"http://reports.ofsted.gov.uk/inspection-reports/find-inspection-report/provider/ELS/\",C55),\"Report\"),\"\")","v":"Report"},"Stem Academy",139793,"Free School - 16-19","London","Islington","Free School - 16-19","16-19 academy - full inspection",452500,"2015-01-27","2015-01-30","Published","2015-03-26","NULL","NULL","NULL",4,"-","-","-",4,"-","-","-","-","-",4,"-","-","-",4,"-","-","-","-","-",4,"-","-","-",4,"-","-","-","-","-",4,"-","-","-",4,"-","-","-","-","-",3,"-","-","-",3,"-","-","-","-","-",{"$f":"IF(P55=\"Null\",\"No previous inspection\",IF(Q55>P55,\"Declined\", IF(Q55=P55,\"Same\",IF(Q55<P55,\"Improved\"))))","v":"No previous inspection"}]
["Report","Sir Isaac Newton Sixth Form Free School",139896,"Free School - 16-19","East of England","Norfolk","Free School - 16-19","16-19 academy - full inspection",452502,"2015-03-03","2015-03-06","Published","2015-03-31","NULL","NULL","NULL",2,"-","-","-",2,"-","-","-","-","-",2,"-","-","-",2,"-","-","-","-","-",2,"-","-","-",2,"-","-","-","-","-",2,"-","-","-",2,"-","-","-","-","-",2,"-","-","-",2,"-","-","-","-","-","No previous inspection"]
["Report","Kimberley 16 - 19 Stem College",139798,"Free School - 16-19","East of England","Bedford","Free School - 16-19","16-19 academy - full inspection",452501,"2015-03-10","2015-03-13","Published","2015-04-21","NULL","NULL","NULL",3,"-","-","-",3,"-","-","-","-","-",3,"-","-","-",3,"-","-","-","-","-",3,"-","-","-",3,"-","-","-","-","-",3,"-","-","-",3,"-","-","-","-","-",2,"-","-","-",2,"-","-","-","-","-","No previous inspection"]
["Report","Strode College",130806,"General Further Education/Tertiary College","South West","Somerset","Further Education","FE College - full inspection",446539,"2014-09-23","2014-09-26","Published","2014-10-31",330974,"2008-10-02",2,1,"-","-",1,1,1,2,"-","-","-",1,"-","-",1,1,2,2,"-","-","-",1,"-","-",1,1,1,1,"-","-","-",1,"-","-",1,1,1,1,"-","-","-",2,"-","-",2,2,2,2,"-","-","-","Improved"]
["Report","Bradford College",130532,"General Further Education/Tertiary College","North East, Yorkshire & Humber","Bradford","Further Education","FE College - full inspection",446537,"2014-09-22","2014-09-26","Published","2014-10-29",329315,"2008-10-10",2,2,"-","-","-",2,2,2,2,"-","-",2,"-","-","-",2,2,2,2,"-","-",2,"-","-","-",2,2,2,2,"-","-",2,"-","-","-",2,2,2,2,"-","-",1,"-","-","-",1,1,1,1,"-","-","Same"]
["Report","Worthing College",130845,"General Further Education/Tertiary College","South East","West Sussex","Further Education","FE College - requires improvement",430283,"2014-10-07","2014-10-10","Published","2014-11-14",409328,"2013-04-26",3,3,"-","-","-",3,3,"-","-","-","-",3,"-","-","-",3,3,"-","-","-","-",3,"-","-","-",3,3,"-","-","-","-",3,"-","-","-",3,3,"-","-","-","-",2,"-","-","-",2,2,"-","-","-","-","Same"]
["Report","Stafford College",130813,"General Further Education/Tertiary College","West Midlands","Staffordshire","Further Education","FE College - requires improvement",430279,"2014-10-06","2014-10-10","Published","2014-11-18",410716,"2013-04-19",3,3,"-","-","-",3,3,3,"-","-","-",3,"-","-","-",3,3,2,"-","-","-",3,"-","-","-",3,3,3,"-","-","-",3,"-","-","-",3,3,3,"-","-","-",3,"-","-","-",3,3,3,"-","-","-","Same"]
["Report","Waltham Forest College",130456,"General Further Education/Tertiary College","London","Waltham Forest","Further Education","FE College - requires improvement",430281,"2014-10-13","2014-10-17","Published","2014-11-21",410622,"2013-05-17",3,3,"-","-","-",3,3,"-","-","-","-",3,"-","-","-",3,2,"-","-","-","-",3,"-","-","-",3,3,"-","-","-","-",3,"-","-","-",3,3,"-","-","-","-",2,"-","-","-",2,2,"-","-","-","-","Same"]
["Report","North Shropshire College",130797,"General Further Education/Tertiary College","West Midlands","Shropshire","Further Education","FE College - requires improvement",430280,"2014-10-14","2014-10-17","Published","2014-11-21",410621,"2013-05-03",3,3,"-","-","-",3,3,3,"-","-","-",3,"-","-","-",3,3,3,"-","-","-",3,"-","-","-",3,3,3,"-","-","-",3,"-","-","-",3,3,3,"-","-","-",3,"-","-","-",3,3,3,"-","-","-","Same"]
["Report","Central Sussex College",129383,"General Further Education/Tertiary College","South East","West Sussex","Further Education","FE College - requires improvement",430269,"2014-10-20","2014-10-24","Published","2014-11-28",409298,"2013-04-26",3,3,"-","-","-",3,3,3,"-","-","-",3,"-","-","-",3,3,4,"-","-","-",3,"-","-","-",3,3,3,"-","-","-",3,"-","-","-",3,3,3,"-","-","-",2,"-","-","-",2,2,2,"-","-","-","Same"]
["Report","Epping Forest College",130677,"General Further Education/Tertiary College","East of England","Essex","Further Education","FE College - requires improvement",430271,"2014-10-20","2014-10-24","Published","2014-11-28",410611,"2013-05-17",3,3,"-","-","-",3,3,"-","-","-","-",3,"-","-","-",3,3,"-","-","-","-",3,"-","-","-",3,3,"-","-","-","-",2,"-","-","-",2,2,"-","-","-","-",2,"-","-","-",2,2,"-","-","-","-","Same"]
["Report","Warrington Collegiate",130617,"General Further Education/Tertiary College","North West","Warrington","Further Education","FE College - full inspection",447146,"2014-10-20","2014-10-24","Published","2014-11-28",354448,"2010-10-22",2,3,"-","-","-",3,3,3,"-","-","-",3,"-","-","-",3,3,3,"-","-","-",3,"-","-","-",3,3,3,"-","-","-",3,"-","-","-",3,3,3,"-","-","-",2,"-","-","-",2,2,2,"-","-","-","Declined"]
["Report","City of Wolverhampton College",130484,"General Further Education/Tertiary College","West Midlands","Wolverhampton","Further Education","FE College - requires improvement",430270,"2014-10-20","2014-10-24","Published","2014-11-28",397446,"2013-05-03",3,2,"-","-","-",2,2,2,"-","-","-",3,"-","-","-",3,3,2,"-","-","-",2,"-","-","-",2,2,2,"-","-","-",2,"-","-","-",2,2,2,"-","-","-",2,"-","-","-",2,2,2,"-","-","-","Improved"]
["Report","Amersham and Wycombe College",130608,"General Further Education/Tertiary College","South East","Buckinghamshire","Further Education","FE College - requires improvement",430268,"2014-11-03","2014-11-07","Published","2014-12-12",409443,"2013-06-07",3,3,2,"-","-",3,3,3,"-","-","-",3,1,"-","-",3,3,3,"-","-","-",3,2,"-","-",3,3,3,"-","-","-",2,2,"-","-",2,2,2,"-","-","-",2,2,"-","-",2,2,2,"-","-","-","Same"]
["Report","Central College Nottingham",130783,"General Further Education/Tertiary College","East Midlands","Nottinghamshire","Further Education","FE College - requires improvement",430278,"2014-11-10","2014-11-14","Published","2014-12-18",410618,"2013-05-24",3,3,3,"-","-",3,3,3,3,"-","-",3,3,"-","-",3,3,3,3,"-","-",3,3,"-","-",3,3,3,3,"-","-",2,2,"-","-",2,2,2,2,"-","-",2,2,"-","-",2,2,2,2,"-","-","Same"]
["Report","Greenwich Community College at Plumstead Centre",130405,"General Further Education/Tertiary College","London","Greenwich","Further Education","FE College - requires improvement",430272,"2014-11-10","2014-11-14","Published","2014-12-19",410612,"2013-05-24",3,4,"-","-","-",4,4,"-","-","-","-",4,"-","-","-",4,4,"-","-","-","-",4,"-","-","-",4,4,"-","-","-","-",4,"-","-","-",4,4,"-","-","-","-",2,"-","-","-",2,2,"-","-","-","-","Declined"]
["Report","Barnfield College",130599,"General Further Education/Tertiary College","East of England","Luton","Further Education","FE College - full inspection",447145,"2014-11-17","2014-11-21","Published","2015-01-08",388000,"2012-04-27",3,4,"-","-","-",4,4,"-","-","-","-",4,"-","-","-",4,4,"-","-","-","-",4,"-","-","-",4,4,"-","-","-","-",4,"-","-","-",4,4,"-","-","-","-",3,"-","-","-",3,3,"-","-","-","-","Declined"]
["Report","Huntingdonshire Regional College",130612,"General Further Education/Tertiary College","East of England","Cambridgeshire","Further Education","FE College - requires improvement",430273,"2014-11-17","2014-11-21","Published","2014-12-17",409318,"2013-06-07",3,3,"-","-","-",3,3,3,"-","-","-",3,"-","-","-",3,2,3,"-","-","-",3,"-","-","-",3,3,3,"-","-","-",3,"-","-","-",3,3,3,"-","-","-",2,"-","-","-",2,2,2,"-","-","-","Same"]
["Report","South Gloucestershire and Stroud College",139238,"General Further Education/Tertiary College","South West","South Gloucestershire","Further Education","FE College - full inspection",452493,"2014-11-17","2014-11-21","Published","2014-12-23","NULL","NULL","NULL",2,2,"-","-",2,2,2,2,"-",1,2,2,"-","-",2,2,2,2,"-",1,2,2,"-","-",2,2,2,2,"-",1,1,1,"-","-",1,1,1,1,"-",1,2,2,"-","-",2,2,2,2,"-",2,"No previous inspection"]
["Report","South Leicestershire College",130750,"General Further Education/Tertiary College","East Midlands","Leicestershire","Further Education","FE College - requires improvement",430277,"2014-11-24","2014-11-28","Published","2015-01-07",410617,"2013-06-14",3,2,"-","-","-",2,2,2,"-","-","-",2,"-","-","-",2,2,2,"-","-","-",2,"-","-","-",2,2,2,"-","-","-",2,"-","-","-",2,2,2,"-","-","-",2,"-","-","-",2,2,2,"-","-","-","Improved"]
["Report","Lowestoft College",130819,"General Further Education/Tertiary College","East of England","Suffolk","Further Education","FE College - requires improvement",430274,"2014-12-02","2014-12-05","Published","2015-01-14",409321,"2013-06-14",3,3,"-","-","-",3,3,2,"-","-","-",3,"-","-","-",3,3,2,"-","-","-",3,"-","-","-",3,3,2,"-","-","-",3,"-","-","-",3,3,2,"-","-","-",2,"-","-","-",2,2,2,"-","-","-","Same"]
["Report","New College Swindon",130851,"General Further Education/Tertiary College","South West","Swindon","Further Education","FE College - full inspection",446541,"2014-12-01","2014-12-05","Published","2015-01-14",332873,"2009-01-23",2,2,"-","-","-",2,2,1,"-","-","-",2,"-","-","-",2,2,1,"-","-","-",2,"-","-","-",2,2,1,"-","-","-",2,"-","-","-",2,2,1,"-","-","-",2,"-","-","-",2,2,2,"-","-","-","Same"]
["Report","Lambeth College",130413,"General Further Education/Tertiary College","London","Lambeth","Further Education","FE College - requires improvement",429287,"2014-12-08","2014-12-12","Published","2015-01-23",397442,"2013-03-22",3,3,"-","-","-",3,3,"-","-","-","-",4,"-","-","-",4,4,"-","-","-","-",3,"-","-","-",3,3,"-","-","-","-",3,"-","-","-",3,3,"-","-","-","-",2,"-","-","-",2,2,"-","-","-","-","Same"]
["Report","Stockport College",130512,"General Further Education/Tertiary College","North West","Stockport","Further Education","FE College - reinspection",433764,"2014-12-08","2014-12-12","Published","2015-01-15",427743,"2013-10-04",4,3,3,"-","-",3,3,3,"-","-",3,3,3,"-","-",3,3,3,"-","-",3,3,3,"-","-",3,3,3,"-","-",3,3,3,"-","-",3,3,3,"-","-",3,2,2,"-","-",2,2,2,"-","-",2,"Improved"]
["Report","East Surrey College",130824,"General Further Education/Tertiary College","South East","Surrey","Further Education","FE College - full inspection",446540,"2014-12-09","2014-12-12","Published","2015-01-21",329158,"2009-01-16",2,2,1,"-",2,2,2,3,"-","-","-",2,1,"-",2,2,2,3,"-","-","-",2,2,"-",2,2,2,3,"-","-","-",2,1,"-",2,2,2,2,"-","-","-",2,2,"-",2,2,2,2,"-","-","-","Same"]
["Report","Weymouth College",130653,"General Further Education/Tertiary College","South West","Dorset","Further Education","FE College - requires improvement",430282,"2015-01-13","2015-01-16","Published","2015-02-20",409327,"2013-06-07",3,4,4,"-","-",4,4,4,"-","-",4,2,2,"-","-",2,2,2,"-","-",2,2,2,"-","-",2,2,2,"-","-",2,4,4,"-","-",4,4,4,"-","-",4,2,2,"-","-",2,2,2,"-","-",2,"Declined"]
["Report","Trafford College",130519,"General Further Education/Tertiary College","North West","Trafford","Further Education","FE College - full inspection",452485,"2015-01-19","2015-01-23","Published","2015-03-02",332998,"2009-05-01",1,2,"-","-","-",2,2,2,"-","-","-",2,"-","-","-",2,2,2,"-","-","-",2,"-","-","-",2,2,2,"-","-","-",2,"-","-","-",2,2,2,"-","-","-",2,"-","-","-",2,2,2,"-","-","-","Declined"]
["Report","Newbury College",130602,"General Further Education/Tertiary College","South East","West Berkshire","Further Education","FE College - full inspection",452486,"2015-01-27","2015-01-30","Published","2015-03-10",342293,"2009-11-13",2,2,"-","-","-",2,2,"-","-","-","-",2,"-","-","-",2,2,"-","-","-","-",2,"-","-","-",2,2,"-","-","-","-",2,"-","-","-",2,2,"-","-","-","-",2,"-","-","-",2,2,"-","-","-","-","Same"]
["Report","Hereward College of Further Education",130474,"General Further Education/Tertiary College","West Midlands","Coventry","Further Education","FE College - requires improvement",452778,"2015-01-27","2015-01-30","Published","2015-03-06",423397,"2013-09-19",3,2,"-","-","-",2,2,3,"-","-","-",3,"-","-","-",3,3,3,"-","-","-",2,"-","-","-",2,2,3,"-","-","-",2,"-","-","-",2,2,3,"-","-","-",2,"-","-","-",2,2,2,"-","-","-","Improved"]
["Report","Hugh Baird College",130490,"General Further Education/Tertiary College","North West","Sefton","Further Education","FE College - full inspection",452484,"2015-02-02","2015-02-06","Published","2015-03-09",343958,"2010-02-12",2,2,"-",2,"-",2,2,2,"-","-","-",2,"-",2,"-",2,2,2,"-","-","-",2,"-",2,"-",2,2,2,"-","-","-",2,"-",2,"-",2,2,2,"-","-","-",1,"-",1,"-",1,1,1,"-","-","-","Same"]
[{"$f":"IF(C85 <> \"\", HYPERLINK(CONCATENATE(\"http://reports.ofsted.gov.uk/inspection-reports/find-inspection-report/provider/ELS/\",C85),\"Report\"),\"\")","v":"Report"},"LeSoCo",130415,"General Further Education/Tertiary College","London","Lewisham","Further Education","FE College - reinspection",440233,"2015-02-02","2015-02-06","Published","2015-04-01",420390,"2013-11-29",4,4,"-","-","-",4,4,3,"-","-","-",4,"-","-","-",4,3,4,"-","-","-",4,"-","-","-",4,4,3,"-","-","-",4,"-","-","-",4,4,3,"-","-","-",2,"-","-","-",2,2,2,"-","-","-",{"$f":"IF(P85=\"Null\",\"No previous inspection\",IF(Q85>P85,\"Declined\", IF(Q85=P85,\"Same\",IF(Q85<P85,\"Improved\"))))","v":"Same"}]
["Report","Darlington College",130656,"General Further Education/Tertiary College","North East, Yorkshire & Humber","Darlington","Further Education","FE College - full inspection",452549,"2015-02-09","2015-02-13","Published","2015-03-20",331026,"2009-03-06",1,4,"-","-","-",4,3,4,"-","-","-",4,"-","-","-",4,3,4,"-","-","-",4,"-","-","-",4,3,4,"-","-","-",4,"-","-","-",4,3,4,"-","-","-",2,"-","-","-",2,2,2,"-","-","-","Declined"]
["Report","MidKent College",130726,"General Further Education/Tertiary College","South East","Medway","Further Education","FE College - full inspection",452489,"2015-03-02","2015-03-06","Published","2015-04-22",330821,"2009-03-06",2,3,"-","-","-",3,3,"-","-","-","-",3,"-","-","-",3,3,"-","-","-","-",3,"-","-","-",3,3,"-","-","-","-",3,"-","-","-",3,3,"-","-","-","-",2,"-","-","-",2,2,"-","-","-","-","Declined"]
["Report","Tameside College",130516,"General Further Education/Tertiary College","North West","Tameside","Further Education","FE College - full inspection",452546,"2015-03-02","2015-03-06","Published","2015-04-10",332997,"2009-06-11",2,3,3,"-","-",3,3,1,"-","-","-",3,3,"-","-",3,3,1,"-","-","-",3,2,"-","-",3,3,1,"-","-","-",3,3,"-","-",3,3,1,"-","-","-",2,2,"-","-",2,2,2,"-","-","-","Declined"]
["Report","Wigan and Leigh College",130521,"General Further Education/Tertiary College","North West","Wigan","Further Education","FE College - full inspection",446536,"2015-03-09","2015-03-13","Published","2015-04-17",343829,"2010-03-05",2,3,"-","-","-",3,3,3,"-","-","-",3,"-","-","-",3,3,3,"-","-","-",3,"-","-","-",3,3,3,"-","-","-",3,"-","-","-",3,3,3,"-","-","-",2,"-","-","-",2,2,2,"-","-","-","Declined"]
["Report","Warwickshire College Group",130835,"General Further Education/Tertiary College","West Midlands","Warwickshire","Further Education","FE College - full inspection",461394,"2015-03-09","2015-03-13","Published","2015-04-02",318900,"2008-01-25",1,2,"-","-","-",2,2,2,"-","-","-",3,"-","-","-",3,3,2,"-","-","-",2,"-","-","-",2,2,2,"-","-","-",2,"-","-","-",2,2,2,"-","-","-",2,"-","-","-",2,2,2,"-","-","-","Declined"]
["Report","Solihull College",130481,"General Further Education/Tertiary College","West Midlands","Solihull","Further Education","FE College - full inspection",452547,"2015-03-09","2015-03-13","Published","2015-04-21",346614,"2010-05-14",2,3,"-","-","-",3,3,2,"-","-","-",3,"-","-","-",3,3,3,"-","-","-",3,"-","-","-",3,3,2,"-","-","-",3,"-","-","-",3,3,2,"-","-","-",2,"-","-","-",2,2,2,"-","-","-","Declined"]
["Report","Stratford-upon-Avon College",130837,"General Further Education/Tertiary College","West Midlands","Warwickshire","Further Education","FE College - requires improvement",433769,"2015-03-17","2015-03-20","Published","2015-04-09",423367,"2013-10-04",3,2,"-","-","-",2,2,"-","-","-","-",3,"-","-","-",3,2,"-","-","-","-",2,"-","-","-",2,2,"-","-","-","-",2,"-","-","-",2,2,"-","-","-","-",2,"-","-","-",2,2,"-","-","-","-","Improved"]
[{"$f":"IF(C93 <> \"\", HYPERLINK(CONCATENATE(\"http://reports.ofsted.gov.uk/inspection-reports/find-inspection-report/provider/ELS/\",C93),\"Report\"),\"\")","v":"Report"},"Furness College",130633,"General Further Education/Tertiary College","North West","Cumbria","Further Education","FE College - full inspection",452487,"2015-03-24","2015-03-27","Published","2015-05-01",362659,"2010-12-10",2,2,"-","-","-",2,2,2,"-","-","-",2,"-","-","-",2,2,2,"-","-","-",2,"-","-","-",2,2,2,"-","-","-",2,"-","-","-",2,2,2,"-","-","-",2,"-","-","-",2,2,2,"-","-","-",{"$f":"IF(P93=\"Null\",\"No previous inspection\",IF(Q93>P93,\"Declined\", IF(Q93=P93,\"Same\",IF(Q93<P93,\"Improved\"))))","v":"Same"}]
["Report","New College Stamford ",130760,"General Further Education/Tertiary College","East Midlands","Lincolnshire","Further Education","FE College - full inspection",452490,"2015-03-24","2015-03-27","Published","2015-04-29",365901,"2011-05-20",2,3,"-","-","-",3,3,3,"-","-","-",3,"-","-","-",3,3,3,"-","-","-",3,"-","-","-",3,3,3,"-","-","-",3,"-","-","-",3,3,3,"-","-","-",2,"-","-","-",2,2,2,"-","-","-","Declined"]
["Report","Northern School of Contemporary Dance",133840,"Higher Education Institution","North East, Yorkshire & Humber","Leeds","Higher Education Institutions","FE in HE - full inspection",444690,"2014-11-11","2014-11-14","Published","2014-12-17","NULL","NULL","NULL",1,"-","-","-",1,1,"-","-","-","-",1,"-","-","-",1,1,"-","-","-","-",1,"-","-","-",1,1,"-","-","-","-",1,"-","-","-",1,1,"-","-","-","-",2,"-","-","-",2,2,"-","-","-","-","No previous inspection"]
["Report","Kingston University",133825,"Higher Education Institution","London","Kingston Upon Thames","Higher Education Institutions","FE in HE - full inspection",446542,"2015-01-20","2015-01-23","Published","2015-03-02","NULL","NULL","NULL",1,"-","-","-",1,1,"-","-","-","-",1,"-","-","-",1,1,"-","-","-","-",1,"-","-","-",1,1,"-","-","-","-",1,"-","-","-",1,1,"-","-","-","-",2,"-","-","-",2,2,"-","-","-","-","No previous inspection"]
["Report","Unique Training North East Limited",56817,"Independent Learning Provider","North East, Yorkshire & Humber","Durham","Independent Learning Provider","WBL - requires improvement",429793,"2014-09-09","2014-09-12","Published","2014-10-23",410696,"2013-07-12",3,3,"-","-","-","-","-",3,"-","-","-",2,"-","-","-","-","-",2,"-","-","-",2,"-","-","-","-","-",2,"-","-","-",3,"-","-","-","-","-",3,"-","-","-",3,"-","-","-","-","-",3,"-","-","-","Same"]
["Report","JBC Computer Training Limited",59153,"Independent Learning Provider","West Midlands","Coventry","Independent Learning Provider","WBL - full (regional)",446618,"2014-09-17","2014-09-19","Published","2014-10-23","NULL","NULL","NULL",2,"-","-","-","-","-",2,"-","-","-",2,"-","-","-","-","-",2,"-","-","-",2,"-","-","-","-","-",2,"-","-","-",2,"-","-","-","-","-",2,"-","-","-",2,"-","-","-","-","-",2,"-","-","-","No previous inspection"]
["Report","The Learning Partnership for Cornwall and The Isles of Scilly Limited",59113,"Independent Learning Provider","South West","Cornwall","Independent Learning Provider","WBL - full (regional)",434062,"2014-09-16","2014-09-19","Published","2014-10-30","NULL","NULL","NULL",3,"-","-","-","-",3,3,"-","-",3,3,"-","-","-","-",3,3,"-","-",3,3,"-","-","-","-",3,3,"-","-",3,3,"-","-","-","-",3,3,"-","-",3,3,"-","-","-","-",3,3,"-","-",3,"No previous inspection"]
["Report","Skills for Security Limited",50192,"Independent Learning Provider","West Midlands","Worcestershire","Independent Learning Provider","WBL - requires improvement",430258,"2014-09-22","2014-09-26","Published","2014-10-28",410652,"2013-06-28",3,3,"-","-","-","-","-",3,"-","-","-",3,"-","-","-","-","-",3,"-","-","-",3,"-","-","-","-","-",3,"-","-","-",3,"-","-","-","-","-",3,"-","-","-",2,"-","-","-","-","-",2,"-","-","-","Same"]
["Report","Trans-plant Training Limited",59164,"Independent Learning Provider","South West","Devon","Independent Learning Provider","WBL - full (regional)",446619,"2014-09-30","2014-10-03","Published","2014-11-07","NULL","NULL","NULL",3,"-","-","-","-","-",3,"-","-","-",3,"-","-","-","-","-",3,"-","-","-",3,"-","-","-","-","-",3,"-","-","-",3,"-","-","-","-","-",3,"-","-","-",2,"-","-","-","-","-",2,"-","-","-","No previous inspection"]
["Report","TQ Workforce Development Limited",58168,"Independent Learning Provider","East Midlands","Northamptonshire","Independent Learning Provider","WBL - requires improvement",430261,"2014-09-29","2014-10-03","Published","2014-11-07",408546,"2013-06-07",3,2,"-","-","-","-",2,2,"-","-",2,2,"-","-","-","-",2,2,"-","-",2,2,"-","-","-","-",2,2,"-","-",2,2,"-","-","-","-",2,2,"-","-",2,2,"-","-","-","-",2,2,"-","-",2,"Improved"]
["Report","Acacia Training Limited",50304,"Independent Learning Provider","West Midlands","Stoke-On-Trent","Independent Learning Provider","WBL - requires improvement",430249,"2014-09-29","2014-10-03","Published","2014-11-04",410640,"2013-04-19",3,3,"-","-","-","-","-",3,"-","-","-",3,"-","-","-","-","-",3,"-","-","-",3,"-","-","-","-","-",3,"-","-","-",3,"-","-","-","-","-",3,"-","-","-",2,"-","-","-","-","-",2,"-","-","-","Same"]
["Report","Lawn Tennis Association Limited",58182,"Independent Learning Provider","London","Wandsworth","Independent Learning Provider","Work Based Learning - full (national)",446609,"2014-10-06","2014-10-10","Published","2014-11-17",321537,"2008-11-13",2,1,"-","-","-","-","-",1,"-","-","-",1,"-","-","-","-","-",1,"-","-","-",1,"-","-","-","-","-",1,"-","-","-",1,"-","-","-","-","-",1,"-","-","-",2,"-","-","-","-","-",2,"-","-","-","Improved"]
["Report","Matrix Training and Development Limited",53268,"Independent Learning Provider","West Midlands","Telford and Wrekin","Independent Learning Provider","WBL - full (regional)",446602,"2014-10-14","2014-10-16","Published","2014-11-12",318303,"2008-01-18",2,2,"-","-","-","-","-",2,"-","-","-",2,"-","-","-","-","-",2,"-","-","-",2,"-","-","-","-","-",2,"-","-","-",2,"-","-","-","-","-",2,"-","-","-",2,"-","-","-","-","-",2,"-","-","-","Same"]
["Report","Woodspeen Training Limited",50262,"Independent Learning Provider","North East, Yorkshire & Humber","Kirklees","Independent Learning Provider","WBL - requires improvement",446598,"2014-10-13","2014-10-17","Published","2014-11-19",410699,"2013-05-24",3,2,"-","-","-","-","-",2,"-","-",2,2,"-","-","-","-","-",2,"-","-",2,2,"-","-","-","-","-",2,"-","-",2,2,"-","-","-","-","-",2,"-","-",2,2,"-","-","-","-","-",2,"-","-",2,"Improved"]
["Report","Skills Team Ltd",58340,"Independent Learning Provider","London","Ealing","Independent Learning Provider","WBL - requires improvement",430259,"2014-10-13","2014-10-17","Published","2014-11-27",410653,"2013-06-21",3,3,"-","-","-","-","-",3,"-","-","-",3,"-","-","-","-","-",3,"-","-","-",3,"-","-","-","-","-",3,"-","-","-",3,"-","-","-","-","-",3,"-","-","-",3,"-","-","-","-","-",3,"-","-","-","Same"]
["Report","CCP GRADUATE SCHOOL LTD",51090,"Independent Learning Provider","London","Brent","Independent Learning Provider","WBL - requires improvement",430251,"2014-10-20","2014-10-23","Published","2014-12-15",422425,"2013-06-21",3,3,"-","-","-",3,"-","-","-","-","-",3,"-","-","-",3,"-","-","-","-","-",2,"-","-","-",2,"-","-","-","-","-",3,"-","-","-",3,"-","-","-","-","-",2,"-","-","-",1,"-","-","-","-","-","Same"]
["Report","Aspire Achieve Advance Limited",59185,"Independent Learning Provider","East Midlands","Derbyshire","Independent Learning Provider","WBL - full (regional)",451933,"2014-10-20","2014-10-24","Published","2014-11-19","NULL","NULL","NULL",1,"-","-","-","-","-",1,"-","-","-",1,"-","-","-","-","-",1,"-","-","-",1,"-","-","-","-","-",1,"-","-","-",1,"-","-","-","-","-",1,"-","-","-",2,"-","-","-","-","-",2,"-","-","-","No previous inspection"]
["Report","Succead Limited",59159,"Independent Learning Provider","West Midlands","Birmingham","Independent Learning Provider","Work Based Learning - full (national)",452693,"2014-10-27","2014-10-31","Published","2014-11-21","NULL","NULL","NULL",3,"-","-","-","-","-",3,"-","-","-",3,"-","-","-","-","-",3,"-","-","-",3,"-","-","-","-","-",3,"-","-","-",3,"-","-","-","-","-",3,"-","-","-",3,"-","-","-","-","-",3,"-","-","-","No previous inspection"]
["Report","Team Enterprises Limited",58515,"Independent Learning Provider","North West","St. Helens","Independent Learning Provider","WBL - full (regional)",445777,"2014-10-27","2014-10-31","Published","2014-12-09",364590,"2011-05-06",2,3,"-","-",3,3,3,3,"-","-","-",3,"-","-",3,3,3,3,"-","-","-",3,"-","-",3,3,3,3,"-","-","-",3,"-","-",3,3,3,3,"-","-","-",3,"-","-",3,3,3,3,"-","-","-","Declined"]
["Report","MI ComputSolutions Incorporated",58370,"Independent Learning Provider","London","Lambeth","Independent Learning Provider","WBL - full (regional)",451598,"2014-10-27","2014-10-31","Published","2014-12-05",333284,"2009-08-14",2,2,"-","-","-","-",2,3,"-","-","-",2,"-","-","-","-",2,3,"-","-","-",2,"-","-","-","-",2,3,"-","-","-",2,"-","-","-","-",2,3,"-","-","-",2,"-","-","-","-",2,2,"-","-","-","Same"]
["Report","Bestland Solutions Limited",57838,"Independent Learning Provider","South East","Southampton","Independent Learning Provider","WBL - full (regional)",452620,"2014-11-04","2014-11-07","Published","2014-12-12","NULL","NULL","NULL",3,"-","-","-","-","-",3,"-","-","-",3,"-","-","-","-","-",3,"-","-","-",3,"-","-","-","-","-",3,"-","-","-",3,"-","-","-","-","-",3,"-","-","-",2,"-","-","-","-","-",2,"-","-","-","No previous inspection"]
["Report","Norman Mackie & Associates Limited",58507,"Independent Learning Provider","North West","Tameside","Independent Learning Provider","Work Based Learning - full (national)",451204,"2014-11-10","2014-11-12","Published","2014-12-15","NULL","NULL","NULL",2,"-","-","-","-","-","-","-","-",2,2,"-","-","-","-","-","-","-","-",2,2,"-","-","-","-","-","-","-","-",2,2,"-","-","-","-","-","-","-","-",2,1,"-","-","-","-","-","-","-","-",1,"No previous inspection"]
["Report","In Touch Care Limited",50138,"Independent Learning Provider","North East, Yorkshire & Humber","Sheffield","Independent Learning Provider","Work Based Learning - full (national)",446599,"2014-11-10","2014-11-14","Published","2014-12-19",408498,"2013-05-17",2,3,"-","-","-","-",3,3,"-","-","-",3,"-","-","-","-",3,3,"-","-","-",3,"-","-","-","-",3,3,"-","-","-",3,"-","-","-","-",3,3,"-","-","-",2,"-","-","-","-",2,2,"-","-","-","Declined"]
["Report","S.Y.T.G. Limited",54504,"Independent Learning Provider","North East, Yorkshire & Humber","Sheffield","Independent Learning Provider","WBL - requires improvement",430256,"2014-11-11","2014-11-14","Published","2014-12-17",410692,"2013-05-17",3,2,"-","-","-",2,"-","-","-","-","-",2,"-","-","-",2,"-","-","-","-","-",2,"-","-","-",2,"-","-","-","-","-",3,"-","-","-",3,"-","-","-","-","-",2,"-","-","-",2,"-","-","-","-","-","Improved"]
["Report","GHQ Training Limited",51961,"Independent Learning Provider","South West","Plymouth","Independent Learning Provider","WBL - full (regional)",445774,"2014-11-17","2014-11-20","Published","2014-12-25",376246,"2011-11-25",2,2,"-","-","-","-","-",2,"-","-","-",2,"-","-","-","-","-",2,"-","-","-",2,"-","-","-","-","-",2,"-","-","-",2,"-","-","-","-","-",2,"-","-","-",3,"-","-","-","-","-",3,"-","-","-","Same"]
["Report","Retail Motor Industry Training Limited",58614,"Independent Learning Provider","East Midlands","Nottingham","Independent Learning Provider","WBL - requires improvement",429794,"2014-11-17","2014-11-21","Published","2014-12-23",410650,"2013-07-19",3,2,"-","-","-","-","-",2,"-","-","-",2,"-","-","-","-","-",2,"-","-","-",2,"-","-","-","-","-",2,"-","-","-",1,"-","-","-","-","-",1,"-","-","-",1,"-","-","-","-","-",1,"-","-","-","Improved"]
["Report","Economic Solutions Limited (Manchester Solutions)",53233,"Independent Learning Provider","North West","Manchester","Independent Learning Provider","Work Based Learning - full (national)",443658,"2014-11-24","2014-11-28","Published","2014-12-24",388120,"2012-06-29",2,3,"-","-",3,3,3,3,"-","-","-",3,"-","-",3,3,3,3,"-","-","-",3,"-","-",3,3,3,3,"-","-","-",3,"-","-",3,3,3,3,"-","-","-",2,"-","-",2,2,2,2,"-","-","-","Declined"]
["Report","Barford Education and Training (North East) Limited",55459,"Independent Learning Provider","East of England","Essex","Independent Learning Provider","WBL - requires improvement",430250,"2014-11-24","2014-11-28","Published","2015-01-07",423508,"2013-06-07",3,4,"-","-","-","-","-",4,"-","-",4,4,"-","-","-","-","-",4,"-","-",4,4,"-","-","-","-","-",4,"-","-",4,4,"-","-","-","-","-",4,"-","-",4,2,"-","-","-","-","-",2,"-","-",2,"Declined"]
[{"$f":"IF(C121 <> \"\", HYPERLINK(CONCATENATE(\"http://reports.ofsted.gov.uk/inspection-reports/find-inspection-report/provider/ELS/\",C121),\"Report\"),\"\")","v":"Report"},"Alpha Building Services Engineering Ltd",59178,"Independent Learning Provider","London","Newham","Independent Learning Provider","WBL - full (regional)",446621,"2014-11-24","2014-11-28","Published","2015-02-18","NULL","NULL","NULL",4,"-","-","-","-","-",4,"-","-","-",4,"-","-","-","-","-",4,"-","-","-",4,"-","-","-","-","-",4,"-","-","-",4,"-","-","-","-","-",4,"-","-","-",3,"-","-","-","-","-",3,"-","-","-",{"$f":"IF(P121=\"Null\",\"No previous inspection\",IF(Q121>P121,\"Declined\", IF(Q121=P121,\"Same\",IF(Q121<P121,\"Improved\"))))","v":"No previous inspection"}]
["Report","Rocket Training Limited",54158,"Independent Learning Provider","North West","Liverpool","Independent Learning Provider","WBL - requires improvement",446603,"2014-11-24","2014-11-28","Published","2014-12-24",410691,"2013-06-28",3,3,"-","-","-",2,"-",3,"-","-","-",3,"-","-","-",2,"-",3,"-","-","-",3,"-","-","-",2,"-",3,"-","-","-",3,"-","-","-",2,"-",3,"-","-","-",2,"-","-","-",2,"-",2,"-","-","-","Same"]
["Report","Brinsworth Training Limited",58933,"Independent Learning Provider","North East, Yorkshire & Humber","Rotherham","Independent Learning Provider","WBL - full (regional)",454945,"2014-11-25","2014-11-28","Published","2014-12-24",376231,"2011-10-28",2,3,"-","-","-","-","-",3,"-","-","-",3,"-","-","-","-","-",3,"-","-","-",3,"-","-","-","-","-",3,"-","-","-",3,"-","-","-","-","-",3,"-","-","-",2,"-","-","-","-","-",2,"-","-","-","Declined"]
["Report","Strategic Training Solutions (Mansfield) Limited",54643,"Independent Learning Provider","East Midlands","Nottinghamshire","Independent Learning Provider","WBL - requires improvement",430260,"2014-12-02","2014-12-04","Published","2015-01-13",408544,"2013-06-27",3,3,"-","-","-",3,"-","-","-","-","-",3,"-","-","-",3,"-","-","-","-","-",3,"-","-","-",3,"-","-","-","-","-",3,"-","-","-",3,"-","-","-","-","-",2,"-","-","-",2,"-","-","-","-","-","Same"]
["Report","Venture Learning Limited",55208,"Independent Learning Provider","North West","Wigan","Independent Learning Provider","WBL - full (regional)",429009,"2014-12-01","2014-12-04","Published","2015-01-21",330959,"2009-01-16",1,4,"-","-","-","-","-",4,"-","-","-",4,"-","-","-","-","-",4,"-","-","-",4,"-","-","-","-","-",4,"-","-","-",4,"-","-","-","-","-",4,"-","-","-",4,"-","-","-","-","-",4,"-","-","-","Declined"]
["Report","Expedient Training Services Limited",51800,"Independent Learning Provider","North East, Yorkshire & Humber","South Tyneside","Independent Learning Provider","WBL - requires improvement",430253,"2014-12-02","2014-12-05","Published","2015-01-07",408494,"2013-06-14",3,3,"-","-","-","-","-",3,"-","-","-",2,"-","-","-","-","-",2,"-","-","-",2,"-","-","-","-","-",2,"-","-","-",3,"-","-","-","-","-",3,"-","-","-",2,"-","-","-","-","-",2,"-","-","-","Same"]
["Report","Options 2 Workplace Learning Ltd",58938,"Independent Learning Provider","East Midlands","Northamptonshire","Independent Learning Provider","WBL - full (regional)",452625,"2014-12-02","2014-12-05","Published","2015-01-08","NULL","NULL","NULL",3,"-","-","-","-","-",3,"-","-","-",3,"-","-","-","-","-",3,"-","-","-",3,"-","-","-","-","-",3,"-","-","-",3,"-","-","-","-","-",3,"-","-","-",2,"-","-","-","-","-",2,"-","-","-","No previous inspection"]
["Report","Four Counties Training Limited",51893,"Independent Learning Provider","London","Ealing","Independent Learning Provider","Work Based Learning - full (national)",446601,"2014-12-01","2014-12-05","Published","2015-01-21",321281,"2008-02-08",1,4,"-","-","-","-",4,4,"-","-","-",4,"-","-","-","-",4,4,"-","-","-",4,"-","-","-","-",4,4,"-","-","-",4,"-","-","-","-",4,4,"-","-","-",3,"-","-","-","-",3,3,"-","-","-","Declined"]
["Report","Mainstream Training Limited",58362,"Independent Learning Provider","South East","Kent","Independent Learning Provider","Work Based Learning - full (national)",446612,"2014-12-01","2014-12-05","Published","2015-01-15",330084,"2008-12-11",2,2,"-","-","-","-","-",2,"-","-",2,2,"-","-","-","-","-",2,"-","-",2,2,"-","-","-","-","-",2,"-","-",2,2,"-","-","-","-","-",2,"-","-",2,2,"-","-","-","-","-",2,"-","-",2,"Same"]
["Report","The Academy Hair & Beauty Ltd",54803,"Independent Learning Provider","North East, Yorkshire & Humber","North Yorkshire","Independent Learning Provider","WBL - full (regional)",452617,"2014-12-09","2014-12-11","Published","2015-01-16",318271,"2008-01-16",1,1,"-","-","-","-","-",1,"-","-","-",1,"-","-","-","-","-",1,"-","-","-",1,"-","-","-","-","-",1,"-","-","-",1,"-","-","-","-","-",1,"-","-","-",1,"-","-","-","-","-",1,"-","-","-","Same"]
["Report","Targeted Training Projects Limited",54744,"Independent Learning Provider","West Midlands","Dudley","Independent Learning Provider","WBL - full (regional)",446606,"2014-12-08","2014-12-12","Published","2015-01-27",307075,"2006-07-21",3,4,"-","-","-","-","-",4,"-","-","-",4,"-","-","-","-","-",4,"-","-","-",4,"-","-","-","-","-",4,"-","-","-",4,"-","-","-","-","-",4,"-","-","-",4,"-","-","-","-","-",4,"-","-","-","Declined"]
["Report","SBC Training Limited",54277,"Independent Learning Provider","West Midlands","Shropshire","Independent Learning Provider","Work Based Learning - full (national)",446604,"2014-12-08","2014-12-12","Published","2015-01-16",345866,"2010-07-09",2,3,"-","-",2,"-","-",3,"-","-","-",3,"-","-",2,"-","-",3,"-","-","-",3,"-","-",2,"-","-",3,"-","-","-",3,"-","-",2,"-","-",3,"-","-","-",2,"-","-",2,"-","-",2,"-","-","-","Declined"]
["Report","Chamber Training (Humber) Limited",51104,"Independent Learning Provider","North East, Yorkshire & Humber","Kingston upon Hull City of","Independent Learning Provider","WBL - requires improvement",429795,"2015-01-12","2015-01-16","Published","2015-02-23",404575,"2013-07-19",3,2,"-","-","-","-",2,2,"-","-","-",2,"-","-","-","-",2,2,"-","-","-",2,"-","-","-","-",2,2,"-","-","-",2,"-","-","-","-",2,2,"-","-","-",2,"-","-","-","-",2,2,"-","-","-","Improved"]
["Report","Community Training Services Limited",51259,"Independent Learning Provider","North East, Yorkshire & Humber","Sheffield","Independent Learning Provider","WBL - full (regional)",452979,"2015-01-12","2015-01-16","Published","2015-02-24",363219,"2011-01-21",2,2,"-","-","-",2,2,2,"-","-","-",3,"-","-","-",3,3,3,"-","-","-",2,"-","-","-",2,2,2,"-","-","-",2,"-","-","-",2,2,2,"-","-","-",2,"-","-","-",2,2,2,"-","-","-","Same"]
["Report","The Child Care Company (Old Windsor) Limited",58467,"Independent Learning Provider","South East","Slough","Independent Learning Provider","WBL - full (regional)",446611,"2015-01-19","2015-01-22","Published","2015-02-26","NULL","NULL","NULL",2,"-","-","-","-","-",2,"-","-","-",2,"-","-","-","-","-",2,"-","-","-",2,"-","-","-","-","-",2,"-","-","-",2,"-","-","-","-","-",2,"-","-","-",2,"-","-","-","-","-",2,"-","-","-","No previous inspection"]
["Report","The Virtual College",54946,"Independent Learning Provider","North East, Yorkshire & Humber","Bradford","Independent Learning Provider","Work Based Learning - full (national)",446608,"2015-01-19","2015-01-23","Published","2015-03-03",330940,"2009-01-16",2,3,"-","-","-","-",3,3,"-","-",3,2,"-","-","-","-",2,2,"-","-",2,2,"-","-","-","-",2,2,"-","-",2,3,"-","-","-","-",3,3,"-","-",3,3,"-","-","-","-",3,3,"-","-",3,"Declined"]
["Report","Aspiration Training Limited",57680,"Independent Learning Provider","West Midlands","Worcestershire","Independent Learning Provider","WBL - requires improvement",429796,"2015-01-19","2015-01-23","Published","2015-03-03",410641,"2013-07-26",3,3,"-","-","-","-","-",3,"-","-","-",3,"-","-","-","-","-",3,"-","-","-",3,"-","-","-","-","-",3,"-","-","-",3,"-","-","-","-","-",3,"-","-","-",2,"-","-","-","-","-",2,"-","-","-","Same"]
["Report","Staffline Recruitment Limited",59075,"Independent Learning Provider","East Midlands","Nottingham","Independent Learning Provider","WBL - requires improvement",433768,"2015-01-20","2015-01-23","Published","2015-03-02",424465,"2013-09-27",3,2,"-","-","-","-","-",2,"-","-","-",2,"-","-","-","-","-",2,"-","-","-",2,"-","-","-","-","-",2,"-","-","-",2,"-","-","-","-","-",2,"-","-","-",2,"-","-","-","-","-",2,"-","-","-","Improved"]
["Report","G B Training (UK) Ltd",51944,"Independent Learning Provider","West Midlands","Birmingham","Independent Learning Provider","WBL - full (regional)",452603,"2015-01-19","2015-01-23","Published","2015-03-03",307094,"2006-09-07",3,2,"-","-","-","-","-",2,"-","-","-",2,"-","-","-","-","-",2,"-","-","-",2,"-","-","-","-","-",2,"-","-","-",2,"-","-","-","-","-",2,"-","-","-",2,"-","-","-","-","-",2,"-","-","-","Improved"]
["Report","Baltic Training Services Limited",58229,"Independent Learning Provider","North East, Yorkshire & Humber","Durham","Independent Learning Provider","Work Based Learning - full (national)",452988,"2015-01-19","2015-01-23","Published","2015-03-02",333485,"2009-08-21",2,2,"-","-",2,"-","-",2,"-","-",2,2,"-","-",2,"-","-",2,"-","-",2,2,"-","-",2,"-","-",2,"-","-",2,2,"-","-",2,"-","-",2,"-","-",2,2,"-","-",2,"-","-",2,"-","-",2,"Same"]
["Report","DBC Training",59167,"Independent Learning Provider","East Midlands","Derby","Independent Learning Provider","WBL - full (regional)",456390,"2015-01-27","2015-01-29","Published","2015-03-05","NULL","NULL","NULL",3,"-","-","-","-","-",3,"-","-","-",3,"-","-","-","-","-",3,"-","-","-",3,"-","-","-","-","-",3,"-","-","-",2,"-","-","-","-","-",2,"-","-","-",2,"-","-","-","-","-",2,"-","-","-","No previous inspection"]
["Report","KATS Ltd",58323,"Independent Learning Provider","South East","Hampshire","Independent Learning Provider","WBL - full (regional)",452621,"2015-01-27","2015-01-30","Published","2015-03-25",333270,"2009-08-07",2,4,"-","-",4,"-","-",4,"-","-","-",4,"-","-",4,"-","-",4,"-","-","-",4,"-","-",4,"-","-",4,"-","-","-",4,"-","-",4,"-","-",4,"-","-","-",3,"-","-",3,"-","-",3,"-","-","-","Declined"]
["Report","Anderson Stockley Accredited Training Ltd",50410,"Independent Learning Provider","East Midlands","Northamptonshire","Independent Learning Provider","Work Based Learning - full (national)",452600,"2015-02-03","2015-02-05","Published","2015-03-12",329928,"2008-10-24",3,3,"-","-","-","-","-",3,"-","-","-",3,"-","-","-","-","-",3,"-","-","-",3,"-","-","-","-","-",3,"-","-","-",3,"-","-","-","-","-",3,"-","-","-",3,"-","-","-","-","-",3,"-","-","-","Same"]
["Report","lookfantastic Training Limited",53697,"Independent Learning Provider","South East","Brighton and Hove","Independent Learning Provider","Work Based Learning - full (national)",452613,"2015-02-02","2015-02-06","Published","2015-03-16",382484,"2011-06-24",2,3,"-","-","-","-",3,3,"-","-","-",3,"-","-","-","-",3,3,"-","-","-",2,"-","-","-","-",2,2,"-","-","-",3,"-","-","-","-",3,3,"-","-","-",3,"-","-","-","-",3,3,"-","-","-","Declined"]
["Report","Avanta Enterprise Limited",59173,"Independent Learning Provider","London","Westminster","Independent Learning Provider","Work Based Learning - full (national)",452630,"2015-02-02","2015-02-06","Published","2015-03-16","NULL","NULL","NULL",2,"-","-","-","-","-",2,"-","-",2,2,"-","-","-","-","-",2,"-","-",2,2,"-","-","-","-","-",2,"-","-",2,2,"-","-","-","-","-",2,"-","-",2,2,"-","-","-","-","-",2,"-","-",2,"No previous inspection"]
["Report","Straight A Training Limited",54640,"Independent Learning Provider","South East","Surrey","Independent Learning Provider","WBL - full (regional)",452981,"2015-02-03","2015-02-06","Published","2015-03-16",342602,"2009-12-11",2,3,"-","-","-","-","-",3,"-","-","-",2,"-","-","-","-","-",2,"-","-","-",3,"-","-","-","-","-",3,"-","-","-",3,"-","-","-","-","-",3,"-","-","-",3,"-","-","-","-","-",3,"-","-","-","Declined"]
["Report","Nuneaton Training Centre Limited",53693,"Independent Learning Provider","West Midlands","Warwickshire","Independent Learning Provider","WBL - full (regional)",452612,"2015-02-10","2015-02-12","Published","2015-03-06",406792,"2012-10-26",2,3,"-","-","-",3,"-","-","-","-","-",3,"-","-","-",3,"-","-","-","-","-",3,"-","-","-",3,"-","-","-","-","-",3,"-","-","-",3,"-","-","-","-","-",2,"-","-","-",2,"-","-","-","-","-","Declined"]
["Report","LIGA (UK) LTD",59155,"Independent Learning Provider","South East","Oxfordshire","Independent Learning Provider","Work Based Learning - full (national)",452628,"2015-02-11","2015-02-13","Published","2015-03-20","NULL","NULL","NULL",3,"-","-","-","-","-",3,"-","-","-",3,"-","-","-","-","-",3,"-","-","-",3,"-","-","-","-","-",3,"-","-","-",3,"-","-","-","-","-",3,"-","-","-",3,"-","-","-","-","-",3,"-","-","-",{"$f":"IF(P148=\"Null\",\"No previous inspection\",IF(Q148>P148,\"Declined\", IF(Q148=P148,\"Same\",IF(Q148<P148,\"Improved\"))))","v":"No previous inspection"}]
["Report","QDOS Training Limited",58397,"Independent Learning Provider","East Midlands","Leicester","Independent Learning Provider","WBL - full (regional)",452989,"2015-02-10","2015-02-13","Published","2015-04-09",376203,"2011-10-06",2,4,"-","-",4,"-",4,4,"-","-","-",2,"-","-",2,"-",2,2,"-","-","-",3,"-","-",2,"-",3,2,"-","-","-",4,"-","-",4,"-",4,4,"-","-","-",4,"-","-",4,"-",4,4,"-","-","-","Declined"]
["Report","The Real Apprenticeship Company Limited",59162,"Independent Learning Provider","West Midlands","Warwickshire","Independent Learning Provider","Work Based Learning - full (national)",455608,"2015-02-17","2015-02-20","Published","2015-03-20","NULL","NULL","NULL",2,"-","-","-","-","-",2,"-","-","-",2,"-","-","-","-","-",2,"-","-","-",2,"-","-","-","-","-",2,"-","-","-",2,"-","-","-","-","-",2,"-","-","-",2,"-","-","-","-","-",2,"-","-","-","No previous inspection"]
["Report","John Laing Training Ltd",52638,"Independent Learning Provider","East of England","Hertfordshire","Independent Learning Provider","Work Based Learning - full (national)",452605,"2015-02-17","2015-02-20","Published","2015-03-25",342621,"2009-11-20",3,2,"-","-","-","-","-",2,"-","-","-",2,"-","-","-","-","-",2,"-","-","-",2,"-","-","-","-","-",2,"-","-","-",2,"-","-","-","-","-",2,"-","-","-",2,"-","-","-","-","-",2,"-","-","-","Improved"]
["Report","Norfolk Training Services Limited",53550,"Independent Learning Provider","East of England","Norfolk","Independent Learning Provider","WBL - full (regional)",452611,"2015-02-16","2015-02-20","Published","2015-03-27",366019,"2011-08-05",2,3,"-","-","-",3,3,3,"-","-","-",3,"-","-","-",3,3,3,"-","-","-",3,"-","-","-",3,3,3,"-","-","-",3,"-","-","-",3,3,3,"-","-","-",3,"-","-","-",3,3,3,"-","-","-","Declined"]
["Report","ID Training",57877,"Independent Learning Provider","North East, Yorkshire & Humber","Newcastle Upon Tyne","Independent Learning Provider","WBL - full (regional)",452986,"2015-02-24","2015-02-27","Published","2015-04-09",330918,"2009-03-26",3,2,"-","-","-",2,"-",2,"-","-",2,2,"-","-","-",2,"-",2,"-","-",2,2,"-","-","-",2,"-",2,"-","-",2,2,"-","-","-",2,"-",2,"-","-",2,2,"-","-","-",2,"-",2,"-","-",2,"Improved"]
["Report","Herbert of Liverpool (Training) Ltd",50132,"Independent Learning Provider","North West","Liverpool","Independent Learning Provider","WBL - requires improvement",455920,"2015-02-24","2015-02-27","Published","2015-04-08",424335,"2013-10-25",3,4,"-","-","-","-","-",4,"-","-","-",4,"-","-","-","-","-",4,"-","-","-",4,"-","-","-","-","-",4,"-","-","-",4,"-","-","-","-","-",4,"-","-","-",3,"-","-","-","-","-",3,"-","-","-","Declined"]
["Report","The Training & Recruitment Partnership Limited",55053,"Independent Learning Provider","London","Merton","Independent Learning Provider","Work Based Learning - full (national)",452983,"2015-02-23","2015-02-27","Published","2015-04-01",364781,"2010-11-19",2,3,"-","-","-","-",3,3,"-","-","-",3,"-","-","-","-",3,3,"-","-","-",3,"-","-","-","-",3,3,"-","-","-",3,"-","-","-","-",3,3,"-","-","-",3,"-","-","-","-",3,3,"-","-","-","Declined"]
["Report","Babington Business College Limited",50586,"Independent Learning Provider","East Midlands","Derby","Independent Learning Provider","Work Based Learning - full (national)",452977,"2015-03-02","2015-03-06","Published","2015-04-07",375547,"2011-11-18",2,2,"-","-","-","-","-",2,"-","-","-",2,"-","-","-","-","-",2,"-","-","-",2,"-","-","-","-","-",2,"-","-","-",2,"-","-","-","-","-",2,"-","-","-",2,"-","-","-","-","-",2,"-","-","-","Same"]
["Report","Central Training Academy Limited",51072,"Independent Learning Provider","East of England","Southend-On-Sea","Independent Learning Provider","Work Based Learning - full (national)",452978,"2015-03-02","2015-03-06","Published","2015-04-14",345936,"2010-05-28",2,2,"-","-",2,2,3,2,"-","-","-",2,"-","-",2,2,3,2,"-","-","-",2,"-","-",2,2,3,2,"-","-","-",2,"-","-",2,2,3,2,"-","-","-",2,"-","-",2,2,2,2,"-","-","-","Same"]
["Report","London Vesta College Limited",59157,"Independent Learning Provider","London","Tower Hamlets","Independent Learning Provider","WBL - full (regional)",455606,"2015-03-04","2015-03-06","Published","2015-04-14","NULL","NULL","NULL",3,"-","-","-","-","-",3,"-","-","-",2,"-","-","-","-","-",2,"-","-","-",3,"-","-","-","-","-",3,"-","-","-",3,"-","-","-","-","-",3,"-","-","-",2,"-","-","-","-","-",2,"-","-","-","No previous inspection"]
["Report","Webs Training Limited",55294,"Independent Learning Provider","East Midlands","Nottinghamshire","Independent Learning Provider","WBL - full (regional)",452618,"2015-03-03","2015-03-06","Published","2015-04-09",362863,"2010-11-26",1,2,"-","-","-",2,2,2,"-","-","-",2,"-","-","-",2,2,2,"-","-","-",2,"-","-","-",2,2,2,"-","-","-",2,"-","-","-",2,2,2,"-","-","-",2,"-","-","-",2,2,2,"-","-","-","Declined"]
["Report","PERA Training Limited",59194,"Independent Learning Provider","East Midlands","Leicestershire","Independent Learning Provider","Work Based Learning - full (national)",452632,"2015-03-09","2015-03-13","Published","2015-04-17","NULL","NULL","NULL",2,"-","-","-","-","-",2,"-","-","-",2,"-","-","-","-","-",2,"-","-","-",2,"-","-","-","-","-",2,"-","-","-",2,"-","-","-","-","-",2,"-","-","-",2,"-","-","-","-","-",2,"-","-","-","No previous inspection"]
["Report","DV8 Training Ltd",51619,"Independent Learning Provider","London","Waltham Forest","Independent Learning Provider","WBL - full (regional)",446600,"2015-03-09","2015-03-13","Published","2015-04-22",318277,"2008-01-25",2,3,"-","-","-",3,"-","-","-","-","-",3,"-","-","-",3,"-","-","-","-","-",3,"-","-","-",3,"-","-","-","-","-",3,"-","-","-",3,"-","-","-","-","-",3,"-","-","-",3,"-","-","-","-","-","Declined"]
["Report","Didac Limited",51550,"Independent Learning Provider","South West","Bristol City of","Independent Learning Provider","Work Based Learning - full (national)",452601,"2015-03-10","2015-03-13","Published","2015-04-21",397718,"2012-06-14",1,2,"-","-","-",2,2,2,"-","-","-",3,"-","-","-",2,2,3,"-","-","-",2,"-","-","-",2,2,2,"-","-","-",2,"-","-","-",2,2,2,"-","-","-",2,"-","-","-",2,2,2,"-","-","-","Declined"]
["Report","Training Strategies Ltd.",59129,"Independent Learning Provider","North West","Liverpool","Independent Learning Provider","WBL - requires improvement",433767,"2015-03-10","2015-03-13","Published","2015-04-17",423817,"2013-09-27",3,2,"-","-","-","-",2,2,"-","-","-",2,"-","-","-","-",2,2,"-","-","-",2,"-","-","-","-",2,2,"-","-","-",2,"-","-","-","-",2,2,"-","-","-",3,"-","-","-","-",3,3,"-","-","-","Improved"]
["Report","The Apprentice Academy Limited",59161,"Independent Learning Provider","North West","Manchester","Independent Learning Provider","WBL - full (regional)",455607,"2015-03-10","2015-03-13","Published","2015-04-15","NULL","NULL","NULL",3,"-","-","-","-","-",3,"-","-","-",3,"-","-","-","-","-",3,"-","-","-",3,"-","-","-","-","-",3,"-","-","-",3,"-","-","-","-","-",3,"-","-","-",3,"-","-","-","-","-",3,"-","-","-","No previous inspection"]
["Report","Health Education North East",59195,"Independent Learning Provider","North East, Yorkshire & Humber","Newcastle Upon Tyne","Independent Learning Provider","WBL - full (regional)",452633,"2015-03-16","2015-03-19","Published","2015-04-23","NULL","NULL","NULL",2,"-","-","-","-",2,2,"-","-","-",2,"-","-","-","-",2,2,"-","-","-",2,"-","-","-","-",2,2,"-","-","-",2,"-","-","-","-",2,2,"-","-","-",2,"-","-","-","-",2,2,"-","-","-","No previous inspection"]
["Report","Focus Training (SW) Limited",50126,"Independent Learning Provider","South West","Plymouth","Independent Learning Provider","WBL - full (regional)",452974,"2015-03-16","2015-03-20","Published","2015-05-01",376243,"2011-09-30",2,2,"-","-",2,"-","-",2,"-","-",2,2,"-","-",2,"-","-",2,"-","-",2,2,"-","-",2,"-","-",2,"-","-",2,2,"-","-",2,"-","-",2,"-","-",2,2,"-","-",2,"-","-",2,"-","-",2,"Same"]
["Report","Weir Training Limited",55295,"Independent Learning Provider","South East","Surrey","Independent Learning Provider","WBL - full (regional)",452984,"2015-03-16","2015-03-20","Published","2015-04-23",333250,"2009-07-23",2,2,"-","-","-","-","-",2,"-","-","-",2,"-","-","-","-","-",2,"-","-","-",2,"-","-","-","-","-",2,"-","-","-",2,"-","-","-","-","-",2,"-","-","-",2,"-","-","-","-","-",2,"-","-","-","Same"]
["Report","Astute Minds Ltd",59168,"Independent Learning Provider","London","Camden","Independent Learning Provider","WBL - full (regional)",455611,"2015-03-24","2015-03-27","Published","2015-04-27","NULL","NULL","NULL",2,"-","-","-","-","-",2,"-","-","-",3,"-","-","-","-","-",3,"-","-","-",2,"-","-","-","-","-",2,"-","-","-",2,"-","-","-","-","-",2,"-","-","-",2,"-","-","-","-","-",2,"-","-","-","No previous inspection"]
["Report","Hudson & Hughes Training Limited",52396,"Independent Learning Provider","South West","Somerset","Independent Learning Provider","WBL - full (regional)",452604,"2015-03-24","2015-03-27","Published","2015-04-30",365986,"2011-05-27",2,2,"-","-",2,"-",2,2,"-","-","-",2,"-","-",2,"-",2,2,"-","-","-",2,"-","-",2,"-",2,2,"-","-","-",2,"-","-",2,"-",2,2,"-","-","-",3,"-","-",3,"-",3,3,"-","-","-","Same"]
["Report","Midstream (West Lancs) Ltd",139245,"Independent Specialist College","North West","Lancashire","Special College","ISC - full inspection",446689,"2014-09-16","2014-09-18","Published","2014-10-21","NULL","NULL","NULL",4,"-","-","-",4,4,"-","-","-","-",3,"-","-","-",3,3,"-","-","-","-",4,"-","-","-",4,4,"-","-","-","-",4,"-","-","-",4,4,"-","-","-","-",3,"-","-","-",3,3,"-","-","-","-","No previous inspection"]
["Report","Orpheus Centre",131950,"Independent Specialist College","South East","Surrey","Special College","ISC - full inspection",446687,"2014-10-21","2014-10-22","Published","2014-12-03",317375,"2007-06-08",4,3,"-","-","-",3,3,"-","-","-","-",3,"-","-","-",3,3,"-","-","-","-",3,"-","-","-",3,3,"-","-","-","-",3,"-","-","-",3,3,"-","-","-","-",3,"-","-","-",3,3,"-","-","-","-","Improved"]
["Report","Communication Specialist College -  Doncaster",131869,"Independent Specialist College","North East, Yorkshire & Humber","Doncaster","Special College","ISC - full inspection",429190,"2014-11-11","2014-11-13","Published","2014-12-16",316974,"2007-10-05",2,2,"-","-","-",2,2,"-","-","-","-",2,"-","-","-",2,2,"-","-","-","-",2,"-","-","-",2,2,"-","-","-","-",2,"-","-","-",2,2,"-","-","-","-",2,"-","-","-",2,2,"-","-","-","-","Same"]
["Report","Area 51 Education Ltd",139243,"Independent Specialist College","London","Haringey","Special College","ISC - full inspection",446688,"2014-11-12","2014-11-14","Published","2014-12-19","NULL","NULL","NULL",3,"-","-","-","-",3,"-","-","-","-",3,"-","-","-","-",3,"-","-","-","-",3,"-","-","-","-",3,"-","-","-","-",3,"-","-","-","-",3,"-","-","-","-",3,"-","-","-","-",3,"-","-","-","-","No previous inspection"]
["Report","Sheiling College",139249,"Independent Specialist College","South West","Dorset","Special College","ISC - full inspection",451325,"2014-12-02","2014-12-03","Published","2015-01-12","NULL","NULL","NULL",2,"-","-","-","-",2,"-","-","-","-",2,"-","-","-","-",2,"-","-","-","-",2,"-","-","-","-",2,"-","-","-","-",2,"-","-","-","-",2,"-","-","-","-",2,"-","-","-","-",2,"-","-","-","-","No previous inspection"]
["Report","Strathmore College",132021,"Independent Specialist College","West Midlands","Stoke-On-Trent","Special College","ISC - requires improvement",446033,"2015-03-25","2015-03-27","Published","2015-04-29",429195,"2014-02-27",3,2,"-","-","-",2,2,"-","-","-","-",2,"-","-","-",2,2,"-","-","-","-",2,"-","-","-",2,2,"-","-","-","-",2,"-","-","-",2,2,"-","-","-","-",2,"-","-","-",2,2,"-","-","-","-","Improved"]
["Report","Newham Sixth Form College",130452,"Sixth Form College","London","Newham","Further Education","SFC - full inspection",452156,"2014-09-15","2014-09-19","Published","2014-10-24",330823,"2009-02-06",2,3,"-","-","-",3,3,"-","-","-","-",3,"-","-","-",3,3,"-","-","-","-",3,"-","-","-",3,3,"-","-","-","-",3,"-","-","-",3,3,"-","-","-","-",2,"-","-","-",2,2,"-","-","-","-","Declined"]
["Report","King George V College",130492,"Sixth Form College","North West","Sefton","Further Education","SFC - full inspection",446535,"2014-09-16","2014-09-19","Published","2014-10-23",385365,"2012-03-22",2,4,"-","-","-",4,4,"-","-","-","-",4,"-","-","-",4,4,"-","-","-","-",4,"-","-","-",4,4,"-","-","-","-",4,"-","-","-",4,4,"-","-","-","-",2,"-","-","-",2,2,"-","-","-","-","Declined"]
["Report","Joseph Chamberlain Sixth Form College",130468,"Sixth Form College","West Midlands","Birmingham","Further Education","FE College - requires improvement",430285,"2014-09-16","2014-09-19","Published","2014-10-23",421160,"2013-04-19",3,2,"-","-","-",2,2,"-",2,"-","-",2,"-","-","-",2,2,"-",2,"-","-",2,"-","-","-",2,2,"-",2,"-","-",1,"-","-","-",1,1,"-",1,"-","-",2,"-","-","-",2,2,"-",2,"-","-","Improved"]
["Report","Hartlepool Sixth Form College",130568,"Sixth Form College","North East, Yorkshire & Humber","Hartlepool","Further Education","SFC - full inspection",446538,"2014-09-23","2014-09-26","Published","2014-11-13",345834,"2010-05-21",2,4,"-","-","-",4,4,"-","-","-","-",4,"-","-","-",4,4,"-","-","-","-",3,"-","-","-",3,3,"-","-","-","-",4,"-","-","-",4,4,"-","-","-","-",2,"-","-","-",2,2,"-","-","-","-","Declined"]
["Report","SEEVIC College",130681,"Sixth Form College","East of England","Essex","Further Education","FE College - requires improvement",430276,"2014-09-29","2014-10-03","Published","2014-11-04",409324,"2013-04-19",3,3,"-","-",2,3,3,2,"-","-","-",3,"-","-",2,3,3,2,"-","-","-",3,"-","-",2,3,3,2,"-","-","-",3,"-","-",2,3,3,2,"-","-","-",3,"-","-",3,3,3,3,"-","-","-","Same"]
["Report","Bilborough College",130787,"Sixth Form College","East Midlands","Nottingham","Further Education","SFC - full inspection",452491,"2015-01-20","2015-01-23","Published","2015-03-06",331246,"2009-03-25",2,3,"-","-","-",3,"-","-","-","-","-",3,"-","-","-",3,"-","-","-","-","-",3,"-","-","-",3,"-","-","-","-","-",3,"-","-","-",3,"-","-","-","-","-",2,"-","-","-",2,"-","-","-","-","-","Declined"]
["Report","New College Telford",130801,"Sixth Form College","West Midlands","Telford and Wrekin","Further Education","SFC - full inspection",452492,"2015-02-10","2015-02-13","Published","2015-03-19",408451,"2013-03-22",2,3,"-","-","-",3,3,"-","-","-","-",3,"-","-","-",3,3,"-","-","-","-",3,"-","-","-",3,3,"-","-","-","-",3,"-","-","-",3,3,"-","-","-","-",2,"-","-","-",2,2,"-","-","-","-","Declined"]
["Report","Prior Pursglove College",130575,"Sixth Form College","North East, Yorkshire & Humber","Redcar and Cleveland","Further Education","SFC - reinspection",446543,"2015-03-03","2015-03-06","Published","2015-04-09",423378,"2013-12-06",4,2,"-","-","-",2,2,2,"-","-","-",2,"-","-","-",2,2,2,"-","-","-",2,"-","-","-",2,2,2,"-","-","-",2,"-","-","-",2,2,2,"-","-","-",2,"-","-","-",2,2,2,"-","-","-","Improved"]
["Report","Strode's College",130833,"Sixth Form College","South East","Surrey","Further Education","SFC - full inspection",452545,"2015-03-10","2015-03-13","Published","2015-04-24",332979,"2009-05-15",2,3,"-","-","-",3,"-","-","-","-","-",3,"-","-","-",3,"-","-","-","-","-",3,"-","-","-",3,"-","-","-","-","-",3,"-","-","-",3,"-","-","-","-","-",3,"-","-","-",3,"-","-","-","-","-","Declined"]
[{"$f":"IF(C185 <> \"\", HYPERLINK(CONCATENATE(\"http://reports.ofsted.gov.uk/inspection-reports/find-inspection-report/provider/ELS/\",C185),\"Report\"),\"\")","v":"Report"},"Kingston Maurward College",130655,"Specialist Further Education","South West","Dorset","Further Education","FE College - requires improvement",430267,"2014-09-30","2014-10-03","Published","2014-11-07",410603,"2013-05-03",3,2,"-","-","-",2,2,2,"-","-","-",2,"-","-","-",2,2,2,"-","-","-",2,"-","-","-",2,2,2,"-","-","-",3,"-","-","-",3,3,2,"-","-","-",2,"-","-","-",2,2,2,"-","-","-","Improved"]
["Report","Hartpury College",130687,"Specialist Further Education","South West","Gloucestershire","Further Education","FE College - full inspection",452550,"2015-03-17","2015-03-20","Published","2015-04-29",345455,"2009-11-27",1,2,"-","-","-",2,2,2,"-","-","-",2,"-","-","-",2,2,2,"-","-","-",2,"-","-","-",2,2,2,"-","-","-",2,"-","-","-",2,2,2,"-","-","-",2,"-","-","-",2,2,2,"-","-","-","Declined"]

{"sheet":"Pivot SSA","index":5,"n_rows":91,"n_cols":6,"rows_kept":91,"cut":false,"hidden":true,"merged":[]}
[]
[]
["Count of Inspection Number","Column Labels"]
["Row Labels",1,2,3,4,"Grand Total"]
["Agriculture, Horticulture and Animal Care",null,8,3,null,11]
["Arts, Media and Publishing",10,27,10,null,47]
["Business, Administration and Law",4,68,52,8,132]
["Community Development",null,null,1,null,1]
["Construction, Planning and the Built Environment",null,10,9,3,22]
["Education and Training",null,null,3,null,3]
["Engineering and Manufacturing Technologies",7,25,24,2,58]
["Family Learning",null,2,1,null,3]
["Health, Public Services and Care",10,50,38,1,99]
["Humanities",2,null,null,null,2]
["Information and Communication Technology",4,18,6,1,29]
["Languages, Literature and Culture",1,2,8,2,13]
["Leisure, Travel and Tourism",6,15,3,null,24]
["Preparation for Life and Work",5,55,48,15,123]
["Retail and Commercial Enterprise",2,29,14,4,49]
["Science and Mathematics",1,12,24,4,41]
["Social Sciences",null,3,3,null,6]
["Grand Total",52,324,247,40,663]
[]
[]
[]
["Count of Inspection Number","Column Labels"]
["Row Labels",1,2,3,4,"Grand Total"]
["Accounting and Finance",2,7,6,1,16]
["Administration",1,31,20,1,53]
["Agriculture",null,1,2,null,3]
["Animal Care and Veterinary Science",null,3,null,null,3]
["Beauty Therapy",null,2,null,null,2]
["Building and Construction",null,5,7,3,15]
["Building Services",null,2,null,null,2]
["Business",1,3,4,null,8]
["Business Management",null,19,19,2,40]
["Communications Technology",null,1,null,null,1]
["Community Development",null,null,1,null,1]
["Community Learning",null,2,1,1,4]
["Construction Crafts",null,3,2,null,5]
["Customer service",null,4,null,3,7]
["Early Years and Playwork",4,14,12,null,30]
["Employability Training",1,14,10,3,28]
["Engineering",4,9,9,null,22]
["English",1,1,7,1,10]
["Environmental Conservation",null,null,1,null,1]
["Equine Studies",null,1,null,null,1]
["ESOL",1,5,2,1,9]
["Family Learning",null,2,1,null,3]
["Forestry",null,1,null,null,1]
["Foundation English",null,9,16,4,29]
["Foundation English and Mathematics",null,9,3,null,12]
["Foundation mathematics",null,9,12,5,26]
["Hairdressing",null,4,1,3,8]
["Hairdressing and beauty therapy",1,5,8,1,15]
["Health and Social Care",4,33,22,1,60]
["Health, Public Services and Care",null,1,null,null,1]
["History",1,null,null,null,1]
["Horticulture",null,1,null,null,1]
["Horticulture and Forestry",null,1,null,null,1]
["Hospitality and Catering",null,9,2,null,11]
["ICT for practitioners",3,7,2,1,13]
["ICT for Users",1,10,4,null,15]
["Independent living and leisure skills",3,7,4,1,15]
["Law and Legal Services",null,3,2,1,6]
["Manufacturing Technologies",1,12,7,null,20]
["Marketing and Sales",null,1,1,null,2]
["Mathematics and Statistics",1,4,12,1,18]
["Media and Communication",1,3,3,null,7]
["Modern foreign languages",null,1,1,1,3]
["Motor vehicle",1,4,5,null,10]
["Nursing and Dental Health",1,null,2,null,3]
["Performing Arts",3,10,1,null,14]
["Psychology",null,2,null,null,2]
["Public Services",2,6,2,null,10]
["Retailing and Wholesaling",null,4,1,null,5]
["Science",null,7,12,2,21]
["Science and Mathematics",null,null,null,1,1]
["Service Enterprises",null,1,null,null,1]
["Social Sciences",null,1,3,null,4]
["Sociology and Social Policy",null,1,null,null,1]
["Sport",3,8,2,null,13]
["Sport, Leisure and Recreation",1,3,null,null,4]
["Teaching and Lecturing",null,null,2,null,2]
["Theology and Religious Studies",1,null,null,null,1]
["Training to Provide Learning Support",null,null,1,null,1]
["Transportation operations and maintenance",1,null,3,2,6]
["Travel and Tourism",1,null,1,null,2]
["Visual Arts",6,14,6,null,26]
["Warehousing and Distribution",1,4,2,null,7]
["Grand Total",52,324,247,40,663]

{"sheet":"Sector subject area data","index":6,"n_rows":666,"n_cols":17,"rows_kept":666,"cut":false,"hidden":false,"merged":[]}
["Sector subject area judgements for further education and skills providers inspected since 1 September 2014"]
[]
["Report","Provider Name","URN","Local authority","Ofsted region","Provider type","Inspection Type","Inspection Number","Inspection Start Date","Inspection End Date","Inspection Status","Inspection Report Published","SSA 1 code","SSA 1 descriptor","SSA 2 code","SSA 2 descriptor","Outcome"]
[{"$f":"IF(C4 <> \"\", HYPERLINK(CONCATENATE(\"http://reports.ofsted.gov.uk/inspection-reports/find-inspection-report/provider/ELS/\",C4),\"Report\"),\"\")","v":"Report"},"The Training & Recruitment Partnership Limited",55053,"Merton","London","Independent Learning Provider","Work Based Learning - full (national)",452983,"2015-02-23","2015-02-27","Published","2015-04-01",1,"Health, Public Services and Care",300,"Health and Social Care",3]
["Report","The Training & Recruitment Partnership Limited",55053,"Merton","London","Independent Learning Provider","Work Based Learning - full (national)",452983,"2015-02-23","2015-02-27","Published","2015-04-01",1,"Health, Public Services and Care",500,"Early Years and Playwork",3]
["Report","The Training & Recruitment Partnership Limited",55053,"Merton","London","Independent Learning Provider","Work Based Learning - full (national)",452983,"2015-02-23","2015-02-27","Published","2015-04-01",15,"Business, Administration and Law",600,"Business",3]
["Report","The Training & Recruitment Partnership Limited",55053,"Merton","London","Independent Learning Provider","Work Based Learning - full (national)",452983,"2015-02-23","2015-02-27","Published","2015-04-01",5,"Construction, Planning and the Built Environment",200,"Building and Construction",3]
["Report","Targeted Training Projects Limited",54744,"Dudley","West Midlands","Independent Learning Provider","WBL - full (regional)",446606,"2014-12-08","2014-12-12","Published","2015-01-27",5,"Construction, Planning and the Built Environment",200,"Building and Construction",4]
["Report","Solihull College",130481,"Solihull","West Midlands","General Further Education/Tertiary College","FE College - full inspection",452547,"2015-03-09","2015-03-13","Published","2015-04-21",3,"Agriculture, Horticulture and Animal Care",300,"Animal Care and Veterinary Science",2]
["Report","Solihull College",130481,"Solihull","West Midlands","General Further Education/Tertiary College","FE College - full inspection",452547,"2015-03-09","2015-03-13","Published","2015-04-21",6,"Information and Communication Technology",200,"ICT for Users",2]
["Report","Solihull College",130481,"Solihull","West Midlands","General Further Education/Tertiary College","FE College - full inspection",452547,"2015-03-09","2015-03-13","Published","2015-04-21",15,"Business, Administration and Law",200,"Administration",2]
["Report","Solihull College",130481,"Solihull","West Midlands","General Further Education/Tertiary College","FE College - full inspection",452547,"2015-03-09","2015-03-13","Published","2015-04-21",1,"Health, Public Services and Care",300,"Health and Social Care",2]
["Report","Solihull College",130481,"Solihull","West Midlands","General Further Education/Tertiary College","FE College - full inspection",452547,"2015-03-09","2015-03-13","Published","2015-04-21",3,"Agriculture, Horticulture and Animal Care",200,"Horticulture and Forestry",2]
["Report","Solihull College",130481,"Solihull","West Midlands","General Further Education/Tertiary College","FE College - full inspection",452547,"2015-03-09","2015-03-13","Published","2015-04-21",6,"Information and Communication Technology",100,"ICT for practitioners",2]
["Report","Solihull College",130481,"Solihull","West Midlands","General Further Education/Tertiary College","FE College - full inspection",452547,"2015-03-09","2015-03-13","Published","2015-04-21",9,"Arts, Media and Publishing",200,"Visual Arts",3]
["Report","Solihull College",130481,"Solihull","West Midlands","General Further Education/Tertiary College","FE College - full inspection",452547,"2015-03-09","2015-03-13","Published","2015-04-21",14,"Preparation for Life and Work",112,"Foundation English",3]
["Report","The Maltings College",139433,"Calderdale","North East, Yorkshire & Humber","Free school-16-19","16-19 academy - full inspection",452498,"2015-01-13","2015-01-16","Published","2015-02-27",7,"Retail and Commercial Enterprise",301,"Hairdressing and beauty therapy",3]
["Report","Northern School of Contemporary Dance",133840,"Leeds","North East, Yorkshire & Humber","Higher Education Institution","FE in HE - full inspection",444690,"2014-11-11","2014-11-14","Published","2014-12-17",9,"Arts, Media and Publishing",100,"Performing Arts",1]
["Report","The Academy Hair & Beauty Ltd",54803,"North Yorkshire","North East, Yorkshire & Humber","Independent Learning Provider","WBL - full (regional)",452617,"2014-12-09","2014-12-11","Published","2015-01-16",7,"Retail and Commercial Enterprise",301,"Hairdressing and beauty therapy",1]
["Report","North Yorkshire County Council",50229,"North Yorkshire","North East, Yorkshire & Humber","Community Learning and Skills","ACL - requires improvement",446660,"2014-11-03","2014-11-07","Published","2014-12-10",1,"Health, Public Services and Care",300,"Health and Social Care",3]
["Report","North Yorkshire County Council",50229,"North Yorkshire","North East, Yorkshire & Humber","Community Learning and Skills","ACL - requires improvement",446660,"2014-11-03","2014-11-07","Published","2014-12-10",1,"Health, Public Services and Care",500,"Early Years and Playwork",3]
["Report","Astute Minds Ltd",59168,"Camden","London","Independent Learning Provider","WBL - full (regional)",455611,"2015-03-24","2015-03-27","Published","2015-04-27",15,"Business, Administration and Law",200,"Administration",2]
["Report","The Mary Ward Centre (AE Centre)",130404,"Camden","London","Not applicable","Adult and Community - full (regional)",452634,"2015-01-19","2015-01-23","Published","2015-02-27",14,"Preparation for Life and Work",103,"ESOL",2]
["Report","The Mary Ward Centre (AE Centre)",130404,"Camden","London","Not applicable","Adult and Community - full (regional)",452634,"2015-01-19","2015-01-23","Published","2015-02-27",9,"Arts, Media and Publishing",200,"Visual Arts",2]
["Report","LeSoCo",130415,"Lewisham","London","General Further Education/Tertiary College","FE College - reinspection",440233,"2015-02-02","2015-02-06","Published","2015-04-01",6,"Information and Communication Technology",200,"ICT for Users",3]
["Report","LeSoCo",130415,"Lewisham","London","General Further Education/Tertiary College","FE College - reinspection",440233,"2015-02-02","2015-02-06","Published","2015-04-01",14,"Preparation for Life and Work",112,"Foundation English",4]
["Report","LeSoCo",130415,"Lewisham","London","General Further Education/Tertiary College","FE College - reinspection",440233,"2015-02-02","2015-02-06","Published","2015-04-01",1,"Health, Public Services and Care",300,"Health and Social Care",3]
["Report","LeSoCo",130415,"Lewisham","London","General Further Education/Tertiary College","FE College - reinspection",440233,"2015-02-02","2015-02-06","Published","2015-04-01",5,"Construction, Planning and the Built Environment",202,"Construction Crafts",3]
["Report","LeSoCo",130415,"Lewisham","London","General Further Education/Tertiary College","FE College - reinspection",440233,"2015-02-02","2015-02-06","Published","2015-04-01",7,"Retail and Commercial Enterprise",400,"Hospitality and Catering",2]
["Report","LeSoCo",130415,"Lewisham","London","General Further Education/Tertiary College","FE College - reinspection",440233,"2015-02-02","2015-02-06","Published","2015-04-01",9,"Arts, Media and Publishing",100,"Performing Arts",2]
["Report","LeSoCo",130415,"Lewisham","London","General Further Education/Tertiary College","FE College - reinspection",440233,"2015-02-02","2015-02-06","Published","2015-04-01",14,"Preparation for Life and Work",113,"Foundation mathematics",4]
["Report","Avanta Enterprise Limited",59173,"Westminster","London","Independent Learning Provider","Work Based Learning - full (national)",452630,"2015-02-02","2015-02-06","Published","2015-03-16",15,"Business, Administration and Law",200,"Administration",2]
["Report","Avanta Enterprise Limited",59173,"Westminster","London","Independent Learning Provider","Work Based Learning - full (national)",452630,"2015-02-02","2015-02-06","Published","2015-03-16",1,"Health, Public Services and Care",300,"Health and Social Care",2]
["Report","Avanta Enterprise Limited",59173,"Westminster","London","Independent Learning Provider","Work Based Learning - full (national)",452630,"2015-02-02","2015-02-06","Published","2015-03-16",14,"Preparation for Life and Work",204,"Employability Training",2]
["Report","Avanta Enterprise Limited",59173,"Westminster","London","Independent Learning Provider","Work Based Learning - full (national)",452630,"2015-02-02","2015-02-06","Published","2015-03-16",15,"Business, Administration and Law",300,"Business Management",2]
["Report","Hounslow Adult and Community Education",53132,"Hounslow","London","Community Learning and Skills","Adult and Community - full (regional)",446662,"2014-12-01","2014-12-05","Published","2015-01-14",7,"Retail and Commercial Enterprise",302,"Hairdressing",2]
["Report","Hounslow Adult and Community Education",53132,"Hounslow","London","Community Learning and Skills","Adult and Community - full (regional)",446662,"2014-12-01","2014-12-05","Published","2015-01-14",9,"Arts, Media and Publishing",200,"Visual Arts",2]
["Report","Hounslow Adult and Community Education",53132,"Hounslow","London","Community Learning and Skills","Adult and Community - full (regional)",446662,"2014-12-01","2014-12-05","Published","2015-01-14",14,"Preparation for Life and Work",103,"ESOL",2]
["Report","Hounslow Adult and Community Education",53132,"Hounslow","London","Community Learning and Skills","Adult and Community - full (regional)",446662,"2014-12-01","2014-12-05","Published","2015-01-14",7,"Retail and Commercial Enterprise",303,"Beauty Therapy",2]
["Report","DV8 Training Ltd",51619,"Waltham Forest","London","Independent Learning Provider","WBL - full (regional)",446600,"2015-03-09","2015-03-13","Published","2015-04-22",9,"Arts, Media and Publishing",300,"Media and Communication",3]
["Report","DV8 Training Ltd",51619,"Waltham Forest","London","Independent Learning Provider","WBL - full (regional)",446600,"2015-03-09","2015-03-13","Published","2015-04-22",14,"Preparation for Life and Work",114,"Foundation English and Mathematics",3]
["Report","DV8 Training Ltd",51619,"Waltham Forest","London","Independent Learning Provider","WBL - full (regional)",446600,"2015-03-09","2015-03-13","Published","2015-04-22",9,"Arts, Media and Publishing",100,"Performing Arts",3]
["Report","Waltham Forest College",130456,"Waltham Forest","London","General Further Education/Tertiary College","FE College - requires improvement",430281,"2014-10-13","2014-10-17","Published","2014-11-21",7,"Retail and Commercial Enterprise",400,"Hospitality and Catering",2]
["Report","Waltham Forest College",130456,"Waltham Forest","London","General Further Education/Tertiary College","FE College - requires improvement",430281,"2014-10-13","2014-10-17","Published","2014-11-21",15,"Business, Administration and Law",500,"Law and Legal Services",2]
["Report","Kingston University",133825,"Kingston Upon Thames","London","Higher Education Institution","FE in HE - full inspection",446542,"2015-01-20","2015-01-23","Published","2015-03-02",9,"Arts, Media and Publishing",200,"Visual Arts",1]
["Report","Alpha Building Services Engineering Ltd",59178,"Newham","London","Independent Learning Provider","WBL - full (regional)",446621,"2014-11-24","2014-11-28","Published","2015-02-18",5,"Construction, Planning and the Built Environment",200,"Building and Construction",4]
["Report","Alpha Building Services Engineering Ltd",59178,"Newham","London","Independent Learning Provider","WBL - full (regional)",446621,"2014-11-24","2014-11-28","Published","2015-02-18",4,"Engineering and Manufacturing Technologies",400,"Transportation operations and maintenance",3]
["Report","Newham Sixth Form College",130452,"Newham","London","Sixth Form College","SFC - full inspection",452156,"2014-09-15","2014-09-19","Published","2014-10-24",2,"Science and Mathematics",200,"Mathematics and Statistics",3]
["Report","Newham Sixth Form College",130452,"Newham","London","Sixth Form College","SFC - full inspection",452156,"2014-09-15","2014-09-19","Published","2014-10-24",2,"Science and Mathematics",100,"Science",3]
["Report","Newham Sixth Form College",130452,"Newham","London","Sixth Form College","SFC - full inspection",452156,"2014-09-15","2014-09-19","Published","2014-10-24",6,"Information and Communication Technology",100,"ICT for practitioners",2]
["Report","Newham Sixth Form College",130452,"Newham","London","Sixth Form College","SFC - full inspection",452156,"2014-09-15","2014-09-19","Published","2014-10-24",15,"Business, Administration and Law",300,"Business Management",3]
["Report","Newham Sixth Form College",130452,"Newham","London","Sixth Form College","SFC - full inspection",452156,"2014-09-15","2014-09-19","Published","2014-10-24",9,"Arts, Media and Publishing",200,"Visual Arts",2]
["Report","Newham Sixth Form College",130452,"Newham","London","Sixth Form College","SFC - full inspection",452156,"2014-09-15","2014-09-19","Published","2014-10-24",12,"Languages, Literature and Culture",100,"English",3]
["Report","Newham Sixth Form College",130452,"Newham","London","Sixth Form College","SFC - full inspection",452156,"2014-09-15","2014-09-19","Published","2014-10-24",15,"Business, Administration and Law",100,"Accounting and Finance",3]
["Report","Newham Sixth Form College",130452,"Newham","London","Sixth Form College","SFC - full inspection",452156,"2014-09-15","2014-09-19","Published","2014-10-24",6,"Information and Communication Technology",200,"ICT for Users",2]
["Report","Newham Sixth Form College",130452,"Newham","London","Sixth Form College","SFC - full inspection",452156,"2014-09-15","2014-09-19","Published","2014-10-24",9,"Arts, Media and Publishing",300,"Media and Communication",2]
["Report","Hereward College of Further Education",130474,"Coventry","West Midlands","General Further Education/Tertiary College","FE College - requires improvement",452778,"2015-01-27","2015-01-30","Published","2015-03-06",14,"Preparation for Life and Work",108,"Independent living and leisure skills",2]
["Report","Hereward College of Further Education",130474,"Coventry","West Midlands","General Further Education/Tertiary College","FE College - requires improvement",452778,"2015-01-27","2015-01-30","Published","2015-03-06",1,"Health, Public Services and Care",300,"Health and Social Care",3]
["Report","JBC Computer Training Limited",59153,"Coventry","West Midlands","Independent Learning Provider","WBL - full (regional)",446618,"2014-09-17","2014-09-19","Published","2014-10-23",6,"Information and Communication Technology",100,"ICT for practitioners",2]
["Report","Sandwell Training Association Limited",54271,"Sandwell","West Midlands","Community Learning and Skills","WBL - full (regional)",452616,"2015-02-16","2015-02-20","Published","2015-03-20",1,"Health, Public Services and Care",300,"Health and Social Care",3]
[{"$f":"IF(C61 <> \"\", HYPERLINK(CONCATENATE(\"http://reports.ofsted.gov.uk/inspection-reports/find-inspection-report/provider/ELS/\",C61),\"Report\"),\"\")","v":"Report"},"Sandwell Training Association Limited",54271,"Sandwell","West Midlands","Community Learning and Skills","WBL - full (regional)",452616,"2015-02-16","2015-02-20","Published","2015-03-20",15,"Business, Administration and Law",200,"Administration",3]
["Report","Sandwell Training Association Limited",54271,"Sandwell","West Midlands","Community Learning and Skills","WBL - full (regional)",452616,"2015-02-16","2015-02-20","Published","2015-03-20",15,"Business, Administration and Law",300,"Business Management",3]
["Report","Stem Academy",139793,"Islington","London","Free school-16-19","16-19 academy - full inspection",452500,"2015-01-27","2015-01-30","Published","2015-03-26",2,"Science and Mathematics",0,"Science and Mathematics",4]
["Report","Stem Academy",139793,"Islington","London","Free school-16-19","16-19 academy - full inspection",452500,"2015-01-27","2015-01-30","Published","2015-03-26",2,"Science and Mathematics",100,"Science",4]
["Report","Stem Academy",139793,"Islington","London","Free school-16-19","16-19 academy - full inspection",452500,"2015-01-27","2015-01-30","Published","2015-03-26",6,"Information and Communication Technology",100,"ICT for practitioners",4]
["Report","London Learning Consortium Community Interest Company",58611,"Croydon","London","Community Learning and Skills","WBL - requires improvement",430254,"2014-11-24","2014-11-28","Published","2015-01-13",1,"Health, Public Services and Care",300,"Health and Social Care",2]
["Report","London Learning Consortium Community Interest Company",58611,"Croydon","London","Community Learning and Skills","WBL - requires improvement",430254,"2014-11-24","2014-11-28","Published","2015-01-13",5,"Construction, Planning and the Built Environment",200,"Building and Construction",2]
["Report","London Learning Consortium Community Interest Company",58611,"Croydon","London","Community Learning and Skills","WBL - requires improvement",430254,"2014-11-24","2014-11-28","Published","2015-01-13",15,"Business, Administration and Law",200,"Administration",2]
["Report","London Learning Consortium Community Interest Company",58611,"Croydon","London","Community Learning and Skills","WBL - requires improvement",430254,"2014-11-24","2014-11-28","Published","2015-01-13",14,"Preparation for Life and Work",114,"Foundation English and Mathematics",2]
["Report","Haringey London Borough Council",53124,"Haringey","London","Community Learning and Skills","ACL - requires improvement",430294,"2014-11-10","2014-11-14","Published","2014-12-19",6,"Information and Communication Technology",200,"ICT for Users",3]
["Report","Haringey London Borough Council",53124,"Haringey","London","Community Learning and Skills","ACL - requires improvement",430294,"2014-11-10","2014-11-14","Published","2014-12-19",14,"Preparation for Life and Work",114,"Foundation English and Mathematics",3]
["Report","Haringey London Borough Council",53124,"Haringey","London","Community Learning and Skills","ACL - requires improvement",430294,"2014-11-10","2014-11-14","Published","2014-12-19",14,"Preparation for Life and Work",103,"ESOL",2]
["Report","Area 51 Education Ltd",139243,"Haringey","London","Unknown","ISC - full inspection",446688,"2014-11-12","2014-11-14","Published","2014-12-19",14,"Preparation for Life and Work",108,"Independent living and leisure skills",3]
["Report","Rocket Training Limited",54158,"Liverpool","North West (EY & ELS)","Independent Learning Provider","WBL - requires improvement",446603,"2014-11-24","2014-11-28","Published","2014-12-24",15,"Business, Administration and Law",200,"Administration",3]
["Report","Rocket Training Limited",54158,"Liverpool","North West (EY & ELS)","Independent Learning Provider","WBL - requires improvement",446603,"2014-11-24","2014-11-28","Published","2014-12-24",14,"Preparation for Life and Work",204,"Employability Training",2]
["Report","The Communiversity",58913,"Liverpool","North West (EY & ELS)","Community Learning and Skills","Adult and Community - full (regional)",455664,"2015-03-10","2015-03-12","Published","2015-04-16",1,"Health, Public Services and Care",500,"Early Years and Playwork",3]
["Report","Herbert of Liverpool (Training) Ltd",50132,"Liverpool","North West (EY & ELS)","Independent Learning Provider","WBL - requires improvement",455920,"2015-02-24","2015-02-27","Published","2015-04-08",7,"Retail and Commercial Enterprise",302,"Hairdressing",4]
["Report","Training Strategies Ltd.",59129,"Liverpool","North West (EY & ELS)","Independent Learning Provider","WBL - requires improvement",433767,"2015-03-10","2015-03-13","Published","2015-04-17",1,"Health, Public Services and Care",400,"Public Services",2]
["Report","Training Strategies Ltd.",59129,"Liverpool","North West (EY & ELS)","Independent Learning Provider","WBL - requires improvement",433767,"2015-03-10","2015-03-13","Published","2015-04-17",1,"Health, Public Services and Care",300,"Health and Social Care",2]
["Report","Training Strategies Ltd.",59129,"Liverpool","North West (EY & ELS)","Independent Learning Provider","WBL - requires improvement",433767,"2015-03-10","2015-03-13","Published","2015-04-17",1,"Health, Public Services and Care",500,"Early Years and Playwork",2]
["Report","Training Strategies Ltd.",59129,"Liverpool","North West (EY & ELS)","Independent Learning Provider","WBL - requires improvement",433767,"2015-03-10","2015-03-13","Published","2015-04-17",15,"Business, Administration and Law",300,"Business Management",3]
["Report","Team Enterprises Limited",58515,"St. Helens","North West (EY & ELS)","Independent Learning Provider","WBL - full (regional)",445777,"2014-10-27","2014-10-31","Published","2014-12-09",13,"Education and Training",100,"Teaching and Lecturing",3]
["Report","Team Enterprises Limited",58515,"St. Helens","North West (EY & ELS)","Independent Learning Provider","WBL - full (regional)",445777,"2014-10-27","2014-10-31","Published","2014-12-09",1,"Health, Public Services and Care",300,"Health and Social Care",3]
["Report","Team Enterprises Limited",58515,"St. Helens","North West (EY & ELS)","Independent Learning Provider","WBL - full (regional)",445777,"2014-10-27","2014-10-31","Published","2014-12-09",14,"Preparation for Life and Work",204,"Employability Training",3]
["Report","Team Enterprises Limited",58515,"St. Helens","North West (EY & ELS)","Independent Learning Provider","WBL - full (regional)",445777,"2014-10-27","2014-10-31","Published","2014-12-09",15,"Business, Administration and Law",300,"Business Management",3]
["Report","Joseph Chamberlain Sixth Form College",130468,"Birmingham","West Midlands","Sixth Form College","FE College - requires improvement",430285,"2014-09-16","2014-09-19","Published","2014-10-23",2,"Science and Mathematics",100,"Science",2]
["Report","Joseph Chamberlain Sixth Form College",130468,"Birmingham","West Midlands","Sixth Form College","FE College - requires improvement",430285,"2014-09-16","2014-09-19","Published","2014-10-23",10,"Humanities",100,"History",1]
["Report","Joseph Chamberlain Sixth Form College",130468,"Birmingham","West Midlands","Sixth Form College","FE College - requires improvement",430285,"2014-09-16","2014-09-19","Published","2014-10-23",10,"Humanities",400,"Theology and Religious Studies",1]
["Report","Joseph Chamberlain Sixth Form College",130468,"Birmingham","West Midlands","Sixth Form College","FE College - requires improvement",430285,"2014-09-16","2014-09-19","Published","2014-10-23",6,"Information and Communication Technology",100,"ICT for practitioners",2]
["Report","Joseph Chamberlain Sixth Form College",130468,"Birmingham","West Midlands","Sixth Form College","FE College - requires improvement",430285,"2014-09-16","2014-09-19","Published","2014-10-23",2,"Science and Mathematics",200,"Mathematics and Statistics",1]
["Report","Succead Limited",59159,"Birmingham","West Midlands","Independent Learning Provider","Work Based Learning - full (national)",452693,"2014-10-27","2014-10-31","Published","2014-11-21",15,"Business, Administration and Law",300,"Business Management",3]
["Report","Succead Limited",59159,"Birmingham","West Midlands","Independent Learning Provider","Work Based Learning - full (national)",452693,"2014-10-27","2014-10-31","Published","2014-11-21",4,"Engineering and Manufacturing Technologies",200,"Manufacturing Technologies",3]
["Report","Succead Limited",59159,"Birmingham","West Midlands","Independent Learning Provider","Work Based Learning - full (national)",452693,"2014-10-27","2014-10-31","Published","2014-11-21",15,"Business, Administration and Law",200,"Administration",3]
["Report","G B Training (UK) Ltd",51944,"Birmingham","West Midlands","Independent Learning Provider","WBL - full (regional)",452603,"2015-01-19","2015-01-23","Published","2015-03-03",15,"Business, Administration and Law",300,"Business Management",2]
["Report","G B Training (UK) Ltd",51944,"Birmingham","West Midlands","Independent Learning Provider","WBL - full (regional)",452603,"2015-01-19","2015-01-23","Published","2015-03-03",1,"Health, Public Services and Care",300,"Health and Social Care",2]
["Report","G B Training (UK) Ltd",51944,"Birmingham","West Midlands","Independent Learning Provider","WBL - full (regional)",452603,"2015-01-19","2015-01-23","Published","2015-03-03",15,"Business, Administration and Law",200,"Administration",2]
["Report","G B Training (UK) Ltd",51944,"Birmingham","West Midlands","Independent Learning Provider","WBL - full (regional)",452603,"2015-01-19","2015-01-23","Published","2015-03-03",6,"Information and Communication Technology",100,"ICT for practitioners",3]
["Report","G B Training (UK) Ltd",51944,"Birmingham","West Midlands","Independent Learning Provider","WBL - full (regional)",452603,"2015-01-19","2015-01-23","Published","2015-03-03",7,"Retail and Commercial Enterprise",400,"Hospitality and Catering",2]
["Report","Sunderland City Metropolitan Borough Council",54666,"Sunderland","North East, Yorkshire & Humber","Community Learning and Skills","Adult and Community - full (regional)",446667,"2014-11-24","2014-11-28","Published","2014-12-24",1,"Health, Public Services and Care",300,"Health and Social Care",2]
["Report","Sunderland City Metropolitan Borough Council",54666,"Sunderland","North East, Yorkshire & Humber","Community Learning and Skills","Adult and Community - full (regional)",446667,"2014-11-24","2014-11-28","Published","2014-12-24",6,"Information and Communication Technology",200,"ICT for Users",2]
["Report","Sunderland City Metropolitan Borough Council",54666,"Sunderland","North East, Yorkshire & Humber","Community Learning and Skills","Adult and Community - full (regional)",446667,"2014-11-24","2014-11-28","Published","2014-12-24",17,"Family Learning",0,"Family Learning",2]
["Report","Barnfield College",130599,"Luton","East of England","General Further Education/Tertiary College","FE College - full inspection",447145,"2014-11-17","2014-11-21","Published","2015-01-08",14,"Preparation for Life and Work",113,"Foundation mathematics",4]
["Report","Barnfield College",130599,"Luton","East of England","General Further Education/Tertiary College","FE College - full inspection",447145,"2014-11-17","2014-11-21","Published","2015-01-08",5,"Construction, Planning and the Built Environment",200,"Building and Construction",4]
["Report","Barnfield College",130599,"Luton","East of England","General Further Education/Tertiary College","FE College - full inspection",447145,"2014-11-17","2014-11-21","Published","2015-01-08",7,"Retail and Commercial Enterprise",301,"Hairdressing and beauty therapy",4]
["Report","Barnfield College",130599,"Luton","East of England","General Further Education/Tertiary College","FE College - full inspection",447145,"2014-11-17","2014-11-21","Published","2015-01-08",9,"Arts, Media and Publishing",200,"Visual Arts",3]
["Report","Barnfield College",130599,"Luton","East of England","General Further Education/Tertiary College","FE College - full inspection",447145,"2014-11-17","2014-11-21","Published","2015-01-08",1,"Health, Public Services and Care",300,"Health and Social Care",3]
["Report","East London Advanced Technology Training",51646,"Hackney","London","Community Learning and Skills","Adult and Community - full (regional)",452602,"2015-01-14","2015-01-16","Published","2015-02-20",6,"Information and Communication Technology",200,"ICT for Users",1]
["Report","East London Advanced Technology Training",51646,"Hackney","London","Community Learning and Skills","Adult and Community - full (regional)",452602,"2015-01-14","2015-01-16","Published","2015-02-20",6,"Information and Communication Technology",100,"ICT for practitioners",1]
["Report","London Vesta College Limited",59157,"Tower Hamlets","London","Independent Learning Provider","WBL - full (regional)",455606,"2015-03-04","2015-03-06","Published","2015-04-14",6,"Information and Communication Technology",100,"ICT for practitioners",3]
["Report","City Gateway",58841,"Tower Hamlets","London","Community Learning and Skills","WBL - full (regional)",452623,"2015-03-16","2015-03-19","Published","2015-04-22",14,"Preparation for Life and Work",113,"Foundation mathematics",2]
["Report","City Gateway",58841,"Tower Hamlets","London","Community Learning and Skills","WBL - full (regional)",452623,"2015-03-16","2015-03-19","Published","2015-04-22",15,"Business, Administration and Law",200,"Administration",2]
["Report","City Gateway",58841,"Tower Hamlets","London","Community Learning and Skills","WBL - full (regional)",452623,"2015-03-16","2015-03-19","Published","2015-04-22",14,"Preparation for Life and Work",204,"Employability Training",1]
["Report","CCP GRADUATE SCHOOL LTD",51090,"Brent","London","Independent Learning Provider","WBL - requires improvement",430251,"2014-10-20","2014-10-23","Published","2014-12-15",14,"Preparation for Life and Work",114,"Foundation English and Mathematics",2]
["Report","Havering London Borough Council",53127,"Havering","London","Community Learning and Skills","Adult and community - full (national)",434068,"2014-10-13","2014-10-17","Published","2014-12-04",14,"Preparation for Life and Work",111,"Community Learning",2]
["Report","Wolverhampton Adult Education Service",55413,"Wolverhampton","West Midlands","Community Learning and Skills","Adult and Community - full (regional)",446669,"2014-12-08","2014-12-12","Published","2015-01-15",6,"Information and Communication Technology",200,"ICT for Users",2]
["Report","Wolverhampton Adult Education Service",55413,"Wolverhampton","West Midlands","Community Learning and Skills","Adult and Community - full (regional)",446669,"2014-12-08","2014-12-12","Published","2015-01-15",9,"Arts, Media and Publishing",200,"Visual Arts",1]
["Report","Wolverhampton Adult Education Service",55413,"Wolverhampton","West Midlands","Community Learning and Skills","Adult and Community - full (regional)",446669,"2014-12-08","2014-12-12","Published","2015-01-15",14,"Preparation for Life and Work",114,"Foundation English and Mathematics",2]
["Report","City of Wolverhampton College",130484,"Wolverhampton","West Midlands","General Further Education/Tertiary College","FE College - requires improvement",430270,"2014-10-20","2014-10-24","Published","2014-11-28",2,"Science and Mathematics",100,"Science",2]
["Report","City of Wolverhampton College",130484,"Wolverhampton","West Midlands","General Further Education/Tertiary College","FE College - requires improvement",430270,"2014-10-20","2014-10-24","Published","2014-11-28",5,"Construction, Planning and the Built Environment",200,"Building and Construction",2]
["Report","City of Wolverhampton College",130484,"Wolverhampton","West Midlands","General Further Education/Tertiary College","FE College - requires improvement",430270,"2014-10-20","2014-10-24","Published","2014-11-28",15,"Business, Administration and Law",200,"Administration",2]
[{"$f":"IF(C121 <> \"\", HYPERLINK(CONCATENATE(\"http://reports.ofsted.gov.uk/inspection-reports/find-inspection-report/provider/ELS/\",C121),\"Report\"),\"\")","v":"Report"},"City of Wolverhampton College",130484,"Wolverhampton","West Midlands","General Further Education/Tertiary College","FE College - requires improvement",430270,"2014-10-20","2014-10-24","Published","2014-11-28",1,"Health, Public Services and Care",500,"Early Years and Playwork",2]
["Report","City of Wolverhampton College",130484,"Wolverhampton","West Midlands","General Further Education/Tertiary College","FE College - requires improvement",430270,"2014-10-20","2014-10-24","Published","2014-11-28",2,"Science and Mathematics",200,"Mathematics and Statistics",2]
["Report","City of Wolverhampton College",130484,"Wolverhampton","West Midlands","General Further Education/Tertiary College","FE College - requires improvement",430270,"2014-10-20","2014-10-24","Published","2014-11-28",7,"Retail and Commercial Enterprise",301,"Hairdressing and beauty therapy",3]
["Report","City of Wolverhampton College",130484,"Wolverhampton","West Midlands","General Further Education/Tertiary College","FE College - requires improvement",430270,"2014-10-20","2014-10-24","Published","2014-11-28",14,"Preparation for Life and Work",112,"Foundation English",3]
["Report","City of Wolverhampton College",130484,"Wolverhampton","West Midlands","General Further Education/Tertiary College","FE College - requires improvement",430270,"2014-10-20","2014-10-24","Published","2014-11-28",14,"Preparation for Life and Work",113,"Foundation mathematics",3]
["Report","City of Wolverhampton College",130484,"Wolverhampton","West Midlands","General Further Education/Tertiary College","FE College - requires improvement",430270,"2014-10-20","2014-10-24","Published","2014-11-28",1,"Health, Public Services and Care",300,"Health and Social Care",2]
["Report","City of Wolverhampton College",130484,"Wolverhampton","West Midlands","General Further Education/Tertiary College","FE College - requires improvement",430270,"2014-10-20","2014-10-24","Published","2014-11-28",4,"Engineering and Manufacturing Technologies",100,"Engineering",2]
["Report","The Marine Society College of the Sea",130414,"Lambeth","London","Not applicable","Adult and Community - full (regional)",446670,"2014-10-08","2014-10-10","Published","2014-11-24",14,"Preparation for Life and Work",111,"Community Learning",4]
["Report","MI ComputSolutions Incorporated",58370,"Lambeth","London","Independent Learning Provider","WBL - full (regional)",451598,"2014-10-27","2014-10-31","Published","2014-12-05",1,"Health, Public Services and Care",300,"Health and Social Care",2]
["Report","MI ComputSolutions Incorporated",58370,"Lambeth","London","Independent Learning Provider","WBL - full (regional)",451598,"2014-10-27","2014-10-31","Published","2014-12-05",14,"Preparation for Life and Work",114,"Foundation English and Mathematics",2]
["Report","Roots and Shoots",54175,"Lambeth","London","Community Learning and Skills","WBL - full (regional)",434051,"2014-11-24","2014-11-27","Published","2015-01-15",14,"Preparation for Life and Work",204,"Employability Training",2]
["Report","Lambeth College",130413,"Lambeth","London","General Further Education/Tertiary College","FE College - requires improvement",429287,"2014-12-08","2014-12-12","Published","2015-01-23",14,"Preparation for Life and Work",113,"Foundation mathematics",2]
["Report","Lambeth College",130413,"Lambeth","London","General Further Education/Tertiary College","FE College - requires improvement",429287,"2014-12-08","2014-12-12","Published","2015-01-23",4,"Engineering and Manufacturing Technologies",100,"Engineering",3]
["Report","Lambeth College",130413,"Lambeth","London","General Further Education/Tertiary College","FE College - requires improvement",429287,"2014-12-08","2014-12-12","Published","2015-01-23",14,"Preparation for Life and Work",103,"ESOL",3]
["Report","Lambeth College",130413,"Lambeth","London","General Further Education/Tertiary College","FE College - requires improvement",429287,"2014-12-08","2014-12-12","Published","2015-01-23",15,"Business, Administration and Law",600,"Business",3]
["Report","Lambeth College",130413,"Lambeth","London","General Further Education/Tertiary College","FE College - requires improvement",429287,"2014-12-08","2014-12-12","Published","2015-01-23",4,"Engineering and Manufacturing Technologies",300,"Motor vehicle",3]
["Report","Lambeth College",130413,"Lambeth","London","General Further Education/Tertiary College","FE College - requires improvement",429287,"2014-12-08","2014-12-12","Published","2015-01-23",5,"Construction, Planning and the Built Environment",200,"Building and Construction",3]
["Report","Lambeth College",130413,"Lambeth","London","General Further Education/Tertiary College","FE College - requires improvement",429287,"2014-12-08","2014-12-12","Published","2015-01-23",1,"Health, Public Services and Care",300,"Health and Social Care",2]
["Report","Lambeth College",130413,"Lambeth","London","General Further Education/Tertiary College","FE College - requires improvement",429287,"2014-12-08","2014-12-12","Published","2015-01-23",14,"Preparation for Life and Work",108,"Independent living and leisure skills",2]
["Report","Skills Team Ltd",58340,"Ealing","London","Independent Learning Provider","WBL - requires improvement",430259,"2014-10-13","2014-10-17","Published","2014-11-27",6,"Information and Communication Technology",200,"ICT for Users",3]
["Report","Skills Team Ltd",58340,"Ealing","London","Independent Learning Provider","WBL - requires improvement",430259,"2014-10-13","2014-10-17","Published","2014-11-27",15,"Business, Administration and Law",300,"Business Management",2]
["Report","Four Counties Training Limited",51893,"Ealing","London","Independent Learning Provider","Work Based Learning - full (national)",446601,"2014-12-01","2014-12-05","Published","2015-01-21",4,"Engineering and Manufacturing Technologies",400,"Transportation operations and maintenance",4]
["Report","Four Counties Training Limited",51893,"Ealing","London","Independent Learning Provider","Work Based Learning - full (national)",446601,"2014-12-01","2014-12-05","Published","2015-01-21",15,"Business, Administration and Law",300,"Business Management",3]
["Report","Four Counties Training Limited",51893,"Ealing","London","Independent Learning Provider","Work Based Learning - full (national)",446601,"2014-12-01","2014-12-05","Published","2015-01-21",15,"Business, Administration and Law",401,"Customer service",4]
["Report","Four Counties Training Limited",51893,"Ealing","London","Independent Learning Provider","Work Based Learning - full (national)",446601,"2014-12-01","2014-12-05","Published","2015-01-21",1,"Health, Public Services and Care",300,"Health and Social Care",3]
["Report","Norman Mackie & Associates Limited",58507,"Tameside","North West (EY & ELS)","Independent Learning Provider","Work Based Learning - full (national)",451204,"2014-11-10","2014-11-12","Published","2014-12-15",14,"Preparation for Life and Work",204,"Employability Training",2]
["Report","Tameside College",130516,"Tameside","North West (EY & ELS)","General Further Education/Tertiary College","FE College - full inspection",452546,"2015-03-02","2015-03-06","Published","2015-04-10",2,"Science and Mathematics",200,"Mathematics and Statistics",3]
["Report","Tameside College",130516,"Tameside","North West (EY & ELS)","General Further Education/Tertiary College","FE College - full inspection",452546,"2015-03-02","2015-03-06","Published","2015-04-10",4,"Engineering and Manufacturing Technologies",300,"Motor vehicle",1]
["Report","Tameside College",130516,"Tameside","North West (EY & ELS)","General Further Education/Tertiary College","FE College - full inspection",452546,"2015-03-02","2015-03-06","Published","2015-04-10",2,"Science and Mathematics",100,"Science",3]
["Report","North Yorkshire County Council",50229,"North Yorkshire","North East, Yorkshire & Humber","Community Learning and Skills","ACL - requires improvement",446660,"2014-11-03","2014-11-07","Published","2014-12-10",6,"Information and Communication Technology",200,"ICT for Users",2]
["Report","North Yorkshire County Council",50229,"North Yorkshire","North East, Yorkshire & Humber","Community Learning and Skills","ACL - requires improvement",446660,"2014-11-03","2014-11-07","Published","2014-12-10",14,"Preparation for Life and Work",114,"Foundation English and Mathematics",2]
["Report","Ministry of Defence (Navy)",58403,"Portsmouth","South East","Employer","WBL - full (regional)",452622,"2015-03-09","2015-03-13","Published","2015-04-21",1,"Health, Public Services and Care",400,"Public Services",1]
["Report","Ministry of Defence (Navy)",58403,"Portsmouth","South East","Employer","WBL - full (regional)",452622,"2015-03-09","2015-03-13","Published","2015-04-21",6,"Information and Communication Technology",101,"Communications Technology",2]
["Report","Ministry of Defence (Navy)",58403,"Portsmouth","South East","Employer","WBL - full (regional)",452622,"2015-03-09","2015-03-13","Published","2015-04-21",4,"Engineering and Manufacturing Technologies",100,"Engineering",2]
["Report","Ministry of Defence (Navy)",58403,"Portsmouth","South East","Employer","WBL - full (regional)",452622,"2015-03-09","2015-03-13","Published","2015-04-21",4,"Engineering and Manufacturing Technologies",200,"Manufacturing Technologies",2]
["Report","New College Swindon",130851,"Swindon","South West","General Further Education/Tertiary College","FE College - full inspection",446541,"2014-12-01","2014-12-05","Published","2015-01-14",1,"Health, Public Services and Care",300,"Health and Social Care",1]
["Report","New College Swindon",130851,"Swindon","South West","General Further Education/Tertiary College","FE College - full inspection",446541,"2014-12-01","2014-12-05","Published","2015-01-14",14,"Preparation for Life and Work",112,"Foundation English",2]
["Report","New College Swindon",130851,"Swindon","South West","General Further Education/Tertiary College","FE College - full inspection",446541,"2014-12-01","2014-12-05","Published","2015-01-14",15,"Business, Administration and Law",300,"Business Management",3]
["Report","New College Swindon",130851,"Swindon","South West","General Further Education/Tertiary College","FE College - full inspection",446541,"2014-12-01","2014-12-05","Published","2015-01-14",9,"Arts, Media and Publishing",300,"Media and Communication",2]
["Report","New College Swindon",130851,"Swindon","South West","General Further Education/Tertiary College","FE College - full inspection",446541,"2014-12-01","2014-12-05","Published","2015-01-14",12,"Languages, Literature and Culture",202,"Modern foreign languages",3]
["Report","New College Swindon",130851,"Swindon","South West","General Further Education/Tertiary College","FE College - full inspection",446541,"2014-12-01","2014-12-05","Published","2015-01-14",6,"Information and Communication Technology",100,"ICT for practitioners",2]
["Report","New College Swindon",130851,"Swindon","South West","General Further Education/Tertiary College","FE College - full inspection",446541,"2014-12-01","2014-12-05","Published","2015-01-14",9,"Arts, Media and Publishing",100,"Performing Arts",2]
["Report","New College Swindon",130851,"Swindon","South West","General Further Education/Tertiary College","FE College - full inspection",446541,"2014-12-01","2014-12-05","Published","2015-01-14",12,"Languages, Literature and Culture",100,"English",3]
["Report","New College Swindon",130851,"Swindon","South West","General Further Education/Tertiary College","FE College - full inspection",446541,"2014-12-01","2014-12-05","Published","2015-01-14",15,"Business, Administration and Law",100,"Accounting and Finance",2]
["Report","New College Swindon",130851,"Swindon","South West","General Further Education/Tertiary College","FE College - full inspection",446541,"2014-12-01","2014-12-05","Published","2015-01-14",6,"Information and Communication Technology",200,"ICT for Users",2]
["Report","New College Swindon",130851,"Swindon","South West","General Further Education/Tertiary College","FE College - full inspection",446541,"2014-12-01","2014-12-05","Published","2015-01-14",1,"Health, Public Services and Care",500,"Early Years and Playwork",1]
["Report","New College Swindon",130851,"Swindon","South West","General Further Education/Tertiary College","FE College - full inspection",446541,"2014-12-01","2014-12-05","Published","2015-01-14",2,"Science and Mathematics",200,"Mathematics and Statistics",2]
["Report","Beacon Employment",59072,"Worcestershire","West Midlands","Community Learning and Skills","WBL - full (regional)",434036,"2014-09-23","2014-09-26","Published","2014-10-29",14,"Preparation for Life and Work",204,"Employability Training",4]
["Report","Skills for Security Limited",50192,"Worcestershire","West Midlands","Independent Learning Provider","WBL - requires improvement",430258,"2014-09-22","2014-09-26","Published","2014-10-28",1,"Health, Public Services and Care",400,"Public Services",3]
["Report","Worcestershire County Council",55422,"Worcestershire","West Midlands","Community Learning and Skills","Adult and Community - full (regional)",451949,"2014-12-02","2014-12-05","Published","2015-01-07",14,"Preparation for Life and Work",113,"Foundation mathematics",2]
["Report","Worcestershire County Council",55422,"Worcestershire","West Midlands","Community Learning and Skills","Adult and Community - full (regional)",451949,"2014-12-02","2014-12-05","Published","2015-01-07",14,"Preparation for Life and Work",112,"Foundation English",3]
["Report","Greenwich Community College at Plumstead Centre",130405,"Greenwich","London","General Further Education/Tertiary College","FE College - requires improvement",430272,"2014-11-10","2014-11-14","Published","2014-12-19",14,"Preparation for Life and Work",112,"Foundation English",4]
["Report","Greenwich Community College at Plumstead Centre",130405,"Greenwich","London","General Further Education/Tertiary College","FE College - requires improvement",430272,"2014-11-10","2014-11-14","Published","2014-12-19",15,"Business, Administration and Law",100,"Accounting and Finance",3]
["Report","Greenwich Community College at Plumstead Centre",130405,"Greenwich","London","General Further Education/Tertiary College","FE College - requires improvement",430272,"2014-11-10","2014-11-14","Published","2014-12-19",1,"Health, Public Services and Care",300,"Health and Social Care",2]
["Report","Greenwich Community College at Plumstead Centre",130405,"Greenwich","London","General Further Education/Tertiary College","FE College - requires improvement",430272,"2014-11-10","2014-11-14","Published","2014-12-19",14,"Preparation for Life and Work",103,"ESOL",2]
["Report","Greenwich Community College at Plumstead Centre",130405,"Greenwich","London","General Further Education/Tertiary College","FE College - requires improvement",430272,"2014-11-10","2014-11-14","Published","2014-12-19",1,"Health, Public Services and Care",500,"Early Years and Playwork",2]
["Report","Greenwich Community College at Plumstead Centre",130405,"Greenwich","London","General Further Education/Tertiary College","FE College - requires improvement",430272,"2014-11-10","2014-11-14","Published","2014-12-19",14,"Preparation for Life and Work",113,"Foundation mathematics",4]
["Report","Greenwich Community College at Plumstead Centre",130405,"Greenwich","London","General Further Education/Tertiary College","FE College - requires improvement",430272,"2014-11-10","2014-11-14","Published","2014-12-19",15,"Business, Administration and Law",300,"Business Management",3]
["Report","Lawn Tennis Association Limited",58182,"Wandsworth","London","Independent Learning Provider","Work Based Learning - full (national)",446609,"2014-10-06","2014-10-10","Published","2014-11-17",8,"Leisure, Travel and Tourism",101,"Sport",1]
["Report","Wandsworth London Borough Council",53152,"Wandsworth","London","Community Learning and Skills","Adult and Community - full (regional)",446663,"2014-12-08","2014-12-12","Published","2015-01-21",1,"Health, Public Services and Care",300,"Health and Social Care",3]
["Report","Wandsworth London Borough Council",53152,"Wandsworth","London","Community Learning and Skills","Adult and Community - full (regional)",446663,"2014-12-08","2014-12-12","Published","2015-01-21",9,"Arts, Media and Publishing",200,"Visual Arts",2]
["Report","Wandsworth London Borough Council",53152,"Wandsworth","London","Community Learning and Skills","Adult and Community - full (regional)",446663,"2014-12-08","2014-12-12","Published","2015-01-21",1,"Health, Public Services and Care",500,"Early Years and Playwork",3]
["Report","Wandsworth London Borough Council",53152,"Wandsworth","London","Community Learning and Skills","Adult and Community - full (regional)",446663,"2014-12-08","2014-12-12","Published","2015-01-21",14,"Preparation for Life and Work",103,"ESOL",3]
[{"$f":"IF(C184 <> \"\", HYPERLINK(CONCATENATE(\"http://reports.ofsted.gov.uk/inspection-reports/find-inspection-report/provider/ELS/\",C184),\"Report\"),\"\")","v":"Report"},"Communication Specialist College -  Doncaster",131869,"Doncaster","North East, Yorkshire & Humber","Independent Specialist College","ISC - full inspection",429190,"2014-11-11","2014-11-13","Published","2014-12-16",14,"Preparation for Life and Work",108,"Independent living and leisure skills",2]
["Report","The Virtual College",54946,"Bradford","North East, Yorkshire & Humber","Independent Learning Provider","Work Based Learning - full (national)",446608,"2015-01-19","2015-01-23","Published","2015-03-03",14,"Preparation for Life and Work",204,"Employability Training",2]
["Report","The Virtual College",54946,"Bradford","North East, Yorkshire & Humber","Independent Learning Provider","Work Based Learning - full (national)",446608,"2015-01-19","2015-01-23","Published","2015-03-03",4,"Engineering and Manufacturing Technologies",200,"Manufacturing Technologies",2]
["Report","The Virtual College",54946,"Bradford","North East, Yorkshire & Humber","Independent Learning Provider","Work Based Learning - full (national)",446608,"2015-01-19","2015-01-23","Published","2015-03-03",1,"Health, Public Services and Care",300,"Health and Social Care",2]
["Report","The Virtual College",54946,"Bradford","North East, Yorkshire & Humber","Independent Learning Provider","Work Based Learning - full (national)",446608,"2015-01-19","2015-01-23","Published","2015-03-03",15,"Business, Administration and Law",401,"Customer service",2]
["Report","The Virtual College",54946,"Bradford","North East, Yorkshire & Humber","Independent Learning Provider","Work Based Learning - full (national)",446608,"2015-01-19","2015-01-23","Published","2015-03-03",15,"Business, Administration and Law",200,"Administration",2]
["Report","Bradford College",130532,"Bradford","North East, Yorkshire & Humber","General Further Education/Tertiary College","FE College - full inspection",446537,"2014-09-22","2014-09-26","Published","2014-10-29",7,"Retail and Commercial Enterprise",301,"Hairdressing and beauty therapy",3]
["Report","Waltham Forest College",130456,"Waltham Forest","London","General Further Education/Tertiary College","FE College - requires improvement",430281,"2014-10-13","2014-10-17","Published","2014-11-21",1,"Health, Public Services and Care",500,"Early Years and Playwork",3]
["Report","Waltham Forest College",130456,"Waltham Forest","London","General Further Education/Tertiary College","FE College - requires improvement",430281,"2014-10-13","2014-10-17","Published","2014-11-21",1,"Health, Public Services and Care",300,"Health and Social Care",3]
["Report","Waltham Forest College",130456,"Waltham Forest","London","General Further Education/Tertiary College","FE College - requires improvement",430281,"2014-10-13","2014-10-17","Published","2014-11-21",4,"Engineering and Manufacturing Technologies",300,"Motor vehicle",3]
["Report","Waltham Forest College",130456,"Waltham Forest","London","General Further Education/Tertiary College","FE College - requires improvement",430281,"2014-10-13","2014-10-17","Published","2014-11-21",7,"Retail and Commercial Enterprise",301,"Hairdressing and beauty therapy",2]
["Report","Waltham Forest College",130456,"Waltham Forest","London","General Further Education/Tertiary College","FE College - requires improvement",430281,"2014-10-13","2014-10-17","Published","2014-11-21",14,"Preparation for Life and Work",112,"Foundation English",4]
["Report","Waltham Forest College",130456,"Waltham Forest","London","General Further Education/Tertiary College","FE College - requires improvement",430281,"2014-10-13","2014-10-17","Published","2014-11-21",15,"Business, Administration and Law",300,"Business Management",2]
["Report","Connell Sixth Form College",139730,"Manchester","North West (EY & ELS)","Free school-16-19","16-19 academy - full inspection",452499,"2015-01-27","2015-01-30","Published","2015-03-17",2,"Science and Mathematics",200,"Mathematics and Statistics",3]
["Report","Connell Sixth Form College",139730,"Manchester","North West (EY & ELS)","Free school-16-19","16-19 academy - full inspection",452499,"2015-01-27","2015-01-30","Published","2015-03-17",2,"Science and Mathematics",100,"Science",3]
["Report","Economic Solutions Limited (Manchester Solutions)",53233,"Manchester","North West (EY & ELS)","Independent Learning Provider","Work Based Learning - full (national)",443658,"2014-11-24","2014-11-28","Published","2014-12-24",7,"Retail and Commercial Enterprise",301,"Hairdressing and beauty therapy",3]
["Report","Economic Solutions Limited (Manchester Solutions)",53233,"Manchester","North West (EY & ELS)","Independent Learning Provider","Work Based Learning - full (national)",443658,"2014-11-24","2014-11-28","Published","2014-12-24",4,"Engineering and Manufacturing Technologies",300,"Motor vehicle",2]
["Report","Economic Solutions Limited (Manchester Solutions)",53233,"Manchester","North West (EY & ELS)","Independent Learning Provider","Work Based Learning - full (national)",443658,"2014-11-24","2014-11-28","Published","2014-12-24",1,"Health, Public Services and Care",300,"Health and Social Care",2]
["Report","Economic Solutions Limited (Manchester Solutions)",53233,"Manchester","North West (EY & ELS)","Independent Learning Provider","Work Based Learning - full (national)",443658,"2014-11-24","2014-11-28","Published","2014-12-24",14,"Preparation for Life and Work",114,"Foundation English and Mathematics",3]
["Report","The Apprentice Academy Limited",59161,"Manchester","North West (EY & ELS)","Independent Learning Provider","WBL - full (regional)",455607,"2015-03-10","2015-03-13","Published","2015-04-15",15,"Business, Administration and Law",200,"Administration",3]
["Report","The Apprentice Academy Limited",59161,"Manchester","North West (EY & ELS)","Independent Learning Provider","WBL - full (regional)",455607,"2015-03-10","2015-03-13","Published","2015-04-15",15,"Business, Administration and Law",400,"Marketing and Sales",3]
["Report","Babington Business College Limited",50586,"Derby","East Midlands","Independent Learning Provider","Work Based Learning - full (national)",452977,"2015-03-02","2015-03-06","Published","2015-04-07",1,"Health, Public Services and Care",300,"Health and Social Care",2]
["Report","Babington Business College Limited",50586,"Derby","East Midlands","Independent Learning Provider","Work Based Learning - full (national)",452977,"2015-03-02","2015-03-06","Published","2015-04-07",15,"Business, Administration and Law",200,"Administration",2]
["Report","Babington Business College Limited",50586,"Derby","East Midlands","Independent Learning Provider","Work Based Learning - full (national)",452977,"2015-03-02","2015-03-06","Published","2015-04-07",15,"Business, Administration and Law",100,"Accounting and Finance",1]
["Report","DBC Training",59167,"Derby","East Midlands","Independent Learning Provider","WBL - full (regional)",456390,"2015-01-27","2015-01-29","Published","2015-03-05",15,"Business, Administration and Law",200,"Administration",3]
["Report","Derby Skillbuild",51525,"Derby","East Midlands","Community Learning and Skills","WBL - requires improvement",434401,"2015-03-17","2015-03-19","Published","2015-04-24",14,"Preparation for Life and Work",204,"Employability Training",2]
["Report","QDOS Training Limited",58397,"Leicester","East Midlands","Independent Learning Provider","WBL - full (regional)",452989,"2015-02-10","2015-02-13","Published","2015-04-09",6,"Information and Communication Technology",200,"ICT for Users",3]
["Report","QDOS Training Limited",58397,"Leicester","East Midlands","Independent Learning Provider","WBL - full (regional)",452989,"2015-02-10","2015-02-13","Published","2015-04-09",15,"Business, Administration and Law",200,"Administration",2]
["Report","Barford Education and Training (North East) Limited",55459,"Essex","East of England","Independent Learning Provider","WBL - requires improvement",430250,"2014-11-24","2014-11-28","Published","2015-01-07",4,"Engineering and Manufacturing Technologies",400,"Transportation operations and maintenance",4]
["Report","Sandwell Training Association Limited",54271,"Sandwell","West Midlands","Community Learning and Skills","WBL - full (regional)",452616,"2015-02-16","2015-02-20","Published","2015-03-20",4,"Engineering and Manufacturing Technologies",100,"Engineering",3]
["Report","Sandwell Training Association Limited",54271,"Sandwell","West Midlands","Community Learning and Skills","WBL - full (regional)",452616,"2015-02-16","2015-02-20","Published","2015-03-20",4,"Engineering and Manufacturing Technologies",200,"Manufacturing Technologies",3]
["Report","Woodspeen Training Limited",50262,"Kirklees","North East, Yorkshire & Humber","Independent Learning Provider","WBL - requires improvement",446598,"2014-10-13","2014-10-17","Published","2014-11-19",15,"Business, Administration and Law",200,"Administration",3]
["Report","Woodspeen Training Limited",50262,"Kirklees","North East, Yorkshire & Humber","Independent Learning Provider","WBL - requires improvement",446598,"2014-10-13","2014-10-17","Published","2014-11-19",7,"Retail and Commercial Enterprise",302,"Hairdressing",2]
["Report","Woodspeen Training Limited",50262,"Kirklees","North East, Yorkshire & Humber","Independent Learning Provider","WBL - requires improvement",446598,"2014-10-13","2014-10-17","Published","2014-11-19",1,"Health, Public Services and Care",300,"Health and Social Care",2]
["Report","Skills for Health Limited",58437,"Bristol City of","South West","Community Learning and Skills","WBL - requires improvement",430257,"2014-10-20","2014-10-24","Published","2014-11-28",1,"Health, Public Services and Care",300,"Health and Social Care",2]
["Report","Skills for Health Limited",58437,"Bristol City of","South West","Community Learning and Skills","WBL - requires improvement",430257,"2014-10-20","2014-10-24","Published","2014-11-28",15,"Business, Administration and Law",200,"Administration",3]
["Report","Didac Limited",51550,"Bristol City of","South West","Independent Learning Provider","Work Based Learning - full (national)",452601,"2015-03-10","2015-03-13","Published","2015-04-21",4,"Engineering and Manufacturing Technologies",200,"Manufacturing Technologies",2]
["Report","Didac Limited",51550,"Bristol City of","South West","Independent Learning Provider","Work Based Learning - full (national)",452601,"2015-03-10","2015-03-13","Published","2015-04-21",15,"Business, Administration and Law",200,"Administration",2]
["Report","Didac Limited",51550,"Bristol City of","South West","Independent Learning Provider","Work Based Learning - full (national)",452601,"2015-03-10","2015-03-13","Published","2015-04-21",15,"Business, Administration and Law",401,"Customer service",2]
["Report","Weymouth College",130653,"Dorset","South West","General Further Education/Tertiary College","FE College - requires improvement",430282,"2015-01-13","2015-01-16","Published","2015-02-20",1,"Health, Public Services and Care",300,"Health and Social Care",2]
["Report","Weymouth College",130653,"Dorset","South West","General Further Education/Tertiary College","FE College - requires improvement",430282,"2015-01-13","2015-01-16","Published","2015-02-20",7,"Retail and Commercial Enterprise",400,"Hospitality and Catering",2]
["Report","Aspiration Training Limited",57680,"Worcestershire","West Midlands","Independent Learning Provider","WBL - requires improvement",429796,"2015-01-19","2015-01-23","Published","2015-03-03",1,"Health, Public Services and Care",300,"Health and Social Care",3]
["Report","John Laing Training Ltd",52638,"Hertfordshire","East of England","Independent Learning Provider","Work Based Learning - full (national)",452605,"2015-02-17","2015-02-20","Published","2015-03-25",15,"Business, Administration and Law",200,"Administration",2]
["Report","John Laing Training Ltd",52638,"Hertfordshire","East of England","Independent Learning Provider","Work Based Learning - full (national)",452605,"2015-02-17","2015-02-20","Published","2015-03-25",15,"Business, Administration and Law",400,"Marketing and Sales",2]
["Report","Barnfield College",130599,"Luton","East of England","General Further Education/Tertiary College","FE College - full inspection",447145,"2014-11-17","2014-11-21","Published","2015-01-08",9,"Arts, Media and Publishing",300,"Media and Communication",3]
["Report","Barnfield College",130599,"Luton","East of England","General Further Education/Tertiary College","FE College - full inspection",447145,"2014-11-17","2014-11-21","Published","2015-01-08",14,"Preparation for Life and Work",103,"ESOL",4]
["Report","Luton Borough Council",53201,"Luton","East of England","Community Learning and Skills","Adult and community - full (national)",434069,"2014-09-29","2014-10-03","Published","2014-11-07",14,"Preparation for Life and Work",103,"ESOL",2]
[{"$f":"IF(C231 <> \"\", HYPERLINK(CONCATENATE(\"http://reports.ofsted.gov.uk/inspection-reports/find-inspection-report/provider/ELS/\",C231),\"Report\"),\"\")","v":"Report"},"Luton Borough Council",53201,"Luton","East of England","Community Learning and Skills","Adult and community - full (national)",434069,"2014-09-29","2014-10-03","Published","2014-11-07",15,"Business, Administration and Law",600,"Business",2]
["Report","Luton Borough Council",53201,"Luton","East of England","Community Learning and Skills","Adult and community - full (national)",434069,"2014-09-29","2014-10-03","Published","2014-11-07",14,"Preparation for Life and Work",114,"Foundation English and Mathematics",2]
["Report","Aspire Achieve Advance Limited",59185,"Derbyshire","East Midlands","Independent Learning Provider","WBL - full (regional)",451933,"2014-10-20","2014-10-24","Published","2014-11-19",6,"Information and Communication Technology",100,"ICT for practitioners",1]
["Report","Aspire Achieve Advance Limited",59185,"Derbyshire","East Midlands","Independent Learning Provider","WBL - full (regional)",451933,"2014-10-20","2014-10-24","Published","2014-11-19",15,"Business, Administration and Law",100,"Accounting and Finance",1]
["Report","GI Group",59190,"Derbyshire","East Midlands","Employer","WBL - full (regional)",452631,"2015-01-13","2015-01-16","Published","2015-02-26",7,"Retail and Commercial Enterprise",200,"Warehousing and Distribution",3]
["Report","GI Group",59190,"Derbyshire","East Midlands","Employer","WBL - full (regional)",452631,"2015-01-13","2015-01-16","Published","2015-02-26",4,"Engineering and Manufacturing Technologies",200,"Manufacturing Technologies",3]
["Report","South Leicestershire College",130750,"Leicestershire","East Midlands","General Further Education/Tertiary College","FE College - requires improvement",430277,"2014-11-24","2014-11-28","Published","2015-01-07",15,"Business, Administration and Law",300,"Business Management",2]
["Report","South Leicestershire College",130750,"Leicestershire","East Midlands","General Further Education/Tertiary College","FE College - requires improvement",430277,"2014-11-24","2014-11-28","Published","2015-01-07",1,"Health, Public Services and Care",300,"Health and Social Care",2]
["Report","South Leicestershire College",130750,"Leicestershire","East Midlands","General Further Education/Tertiary College","FE College - requires improvement",430277,"2014-11-24","2014-11-28","Published","2015-01-07",4,"Engineering and Manufacturing Technologies",100,"Engineering",2]
["Report","South Leicestershire College",130750,"Leicestershire","East Midlands","General Further Education/Tertiary College","FE College - requires improvement",430277,"2014-11-24","2014-11-28","Published","2015-01-07",1,"Health, Public Services and Care",500,"Early Years and Playwork",2]
["Report","South Leicestershire College",130750,"Leicestershire","East Midlands","General Further Education/Tertiary College","FE College - requires improvement",430277,"2014-11-24","2014-11-28","Published","2015-01-07",4,"Engineering and Manufacturing Technologies",200,"Manufacturing Technologies",2]
["Report","South Leicestershire College",130750,"Leicestershire","East Midlands","General Further Education/Tertiary College","FE College - requires improvement",430277,"2014-11-24","2014-11-28","Published","2015-01-07",5,"Construction, Planning and the Built Environment",200,"Building and Construction",2]
["Report","South Leicestershire College",130750,"Leicestershire","East Midlands","General Further Education/Tertiary College","FE College - requires improvement",430277,"2014-11-24","2014-11-28","Published","2015-01-07",14,"Preparation for Life and Work",112,"Foundation English",2]
["Report","South Leicestershire College",130750,"Leicestershire","East Midlands","General Further Education/Tertiary College","FE College - requires improvement",430277,"2014-11-24","2014-11-28","Published","2015-01-07",14,"Preparation for Life and Work",113,"Foundation mathematics",2]
["Report","South Leicestershire College",130750,"Leicestershire","East Midlands","General Further Education/Tertiary College","FE College - requires improvement",430277,"2014-11-24","2014-11-28","Published","2015-01-07",15,"Business, Administration and Law",100,"Accounting and Finance",2]
["Report","PERA Training Limited",59194,"Leicestershire","East Midlands","Independent Learning Provider","Work Based Learning - full (national)",452632,"2015-03-09","2015-03-13","Published","2015-04-17",7,"Retail and Commercial Enterprise",100,"Retailing and Wholesaling",2]
["Report","PERA Training Limited",59194,"Leicestershire","East Midlands","Independent Learning Provider","Work Based Learning - full (national)",452632,"2015-03-09","2015-03-13","Published","2015-04-17",4,"Engineering and Manufacturing Technologies",200,"Manufacturing Technologies",2]
["Report","Priory Central Services Limited",59108,"Leicestershire","East Midlands","Employer","WBL - requires improvement",434394,"2015-03-02","2015-03-06","Published","2015-04-17",1,"Health, Public Services and Care",300,"Health and Social Care",4]
["Report","City of Wolverhampton College",130484,"Wolverhampton","West Midlands","General Further Education/Tertiary College","FE College - requires improvement",430270,"2014-10-20","2014-10-24","Published","2014-11-28",4,"Engineering and Manufacturing Technologies",200,"Manufacturing Technologies",2]
["Report","King George V College",130492,"Sefton","North West (EY & ELS)","Sixth Form College","SFC - full inspection",446535,"2014-09-16","2014-09-19","Published","2014-10-23",2,"Science and Mathematics",100,"Science",4]
["Report","King George V College",130492,"Sefton","North West (EY & ELS)","Sixth Form College","SFC - full inspection",446535,"2014-09-16","2014-09-19","Published","2014-10-23",12,"Languages, Literature and Culture",100,"English",3]
["Report","King George V College",130492,"Sefton","North West (EY & ELS)","Sixth Form College","SFC - full inspection",446535,"2014-09-16","2014-09-19","Published","2014-10-23",15,"Business, Administration and Law",500,"Law and Legal Services",4]
["Report","King George V College",130492,"Sefton","North West (EY & ELS)","Sixth Form College","SFC - full inspection",446535,"2014-09-16","2014-09-19","Published","2014-10-23",12,"Languages, Literature and Culture",202,"Modern foreign languages",4]
["Report","King George V College",130492,"Sefton","North West (EY & ELS)","Sixth Form College","SFC - full inspection",446535,"2014-09-16","2014-09-19","Published","2014-10-23",15,"Business, Administration and Law",600,"Business",3]
["Report","Hugh Baird College",130490,"Sefton","North West (EY & ELS)","General Further Education/Tertiary College","FE College - full inspection",452484,"2015-02-02","2015-02-06","Published","2015-03-09",7,"Retail and Commercial Enterprise",301,"Hairdressing and beauty therapy",3]
["Report","Hugh Baird College",130490,"Sefton","North West (EY & ELS)","General Further Education/Tertiary College","FE College - full inspection",452484,"2015-02-02","2015-02-06","Published","2015-03-09",14,"Preparation for Life and Work",112,"Foundation English",3]
["Report","Hugh Baird College",130490,"Sefton","North West (EY & ELS)","General Further Education/Tertiary College","FE College - full inspection",452484,"2015-02-02","2015-02-06","Published","2015-03-09",1,"Health, Public Services and Care",300,"Health and Social Care",2]
["Report","Hugh Baird College",130490,"Sefton","North West (EY & ELS)","General Further Education/Tertiary College","FE College - full inspection",452484,"2015-02-02","2015-02-06","Published","2015-03-09",5,"Construction, Planning and the Built Environment",202,"Construction Crafts",2]
["Report","Hugh Baird College",130490,"Sefton","North West (EY & ELS)","General Further Education/Tertiary College","FE College - full inspection",452484,"2015-02-02","2015-02-06","Published","2015-03-09",14,"Preparation for Life and Work",108,"Independent living and leisure skills",1]
[{"$f":"IF(C260 <> \"\", HYPERLINK(CONCATENATE(\"http://reports.ofsted.gov.uk/inspection-reports/find-inspection-report/provider/ELS/\",C260),\"Report\"),\"\")","v":"Report"},"Hugh Baird College",130490,"Sefton","North West (EY & ELS)","General Further Education/Tertiary College","FE College - full inspection",452484,"2015-02-02","2015-02-06","Published","2015-03-09",15,"Business, Administration and Law",200,"Administration",2]
["Report","Hugh Baird College",130490,"Sefton","North West (EY & ELS)","General Further Education/Tertiary College","FE College - full inspection",452484,"2015-02-02","2015-02-06","Published","2015-03-09",15,"Business, Administration and Law",300,"Business Management",2]
["Report","Expedient Training Services Limited",51800,"South Tyneside","North East, Yorkshire & Humber","Independent Learning Provider","WBL - requires improvement",430253,"2014-12-02","2014-12-05","Published","2015-01-07",1,"Health, Public Services and Care",300,"Health and Social Care",2]
["Report","Kimberley 16 - 19 Stem College",139798,"Bedford","East of England","Free school-16-19","16-19 academy - full inspection",452501,"2015-03-10","2015-03-13","Published","2015-04-21",2,"Science and Mathematics",200,"Mathematics and Statistics",3]
["Report","Kimberley 16 - 19 Stem College",139798,"Bedford","East of England","Free school-16-19","16-19 academy - full inspection",452501,"2015-03-10","2015-03-13","Published","2015-04-21",4,"Engineering and Manufacturing Technologies",100,"Engineering",2]
["Report","Kimberley 16 - 19 Stem College",139798,"Bedford","East of England","Free school-16-19","16-19 academy - full inspection",452501,"2015-03-10","2015-03-13","Published","2015-04-21",2,"Science and Mathematics",100,"Science",3]
["Report","Strathmore College",132021,"Stoke-On-Trent","West Midlands","Independent Specialist College","ISC - requires improvement",446033,"2015-03-25","2015-03-27","Published","2015-04-29",14,"Preparation for Life and Work",108,"Independent living and leisure skills",2]
["Report","Acacia Training Limited",50304,"Stoke-On-Trent","West Midlands","Independent Learning Provider","WBL - requires improvement",430249,"2014-09-29","2014-10-03","Published","2014-11-04",15,"Business, Administration and Law",300,"Business Management",3]
["Report","Acacia Training Limited",50304,"Stoke-On-Trent","West Midlands","Independent Learning Provider","WBL - requires improvement",430249,"2014-09-29","2014-10-03","Published","2014-11-04",1,"Health, Public Services and Care",300,"Health and Social Care",3]
["Report","Wokingham Council",50246,"Wokingham","South East","Community Learning and Skills","Adult and Community - full (regional)",452599,"2014-11-11","2014-11-13","Published","2014-12-23",18,"Community Development",0,"Community Development",3]
["Report","Bradford College",130532,"Bradford","North East, Yorkshire & Humber","General Further Education/Tertiary College","FE College - full inspection",446537,"2014-09-22","2014-09-26","Published","2014-10-29",8,"Leisure, Travel and Tourism",101,"Sport",2]
["Report","Bradford College",130532,"Bradford","North East, Yorkshire & Humber","General Further Education/Tertiary College","FE College - full inspection",446537,"2014-09-22","2014-09-26","Published","2014-10-29",1,"Health, Public Services and Care",300,"Health and Social Care",1]
["Report","Bradford College",130532,"Bradford","North East, Yorkshire & Humber","General Further Education/Tertiary College","FE College - full inspection",446537,"2014-09-22","2014-09-26","Published","2014-10-29",4,"Engineering and Manufacturing Technologies",100,"Engineering",2]
["Report","Bradford College",130532,"Bradford","North East, Yorkshire & Humber","General Further Education/Tertiary College","FE College - full inspection",446537,"2014-09-22","2014-09-26","Published","2014-10-29",14,"Preparation for Life and Work",103,"ESOL",1]
["Report","Bradford College",130532,"Bradford","North East, Yorkshire & Humber","General Further Education/Tertiary College","FE College - full inspection",446537,"2014-09-22","2014-09-26","Published","2014-10-29",15,"Business, Administration and Law",300,"Business Management",3]
["Report","Bradford College",130532,"Bradford","North East, Yorkshire & Humber","General Further Education/Tertiary College","FE College - full inspection",446537,"2014-09-22","2014-09-26","Published","2014-10-29",1,"Health, Public Services and Care",500,"Early Years and Playwork",1]
["Report","Bradford College",130532,"Bradford","North East, Yorkshire & Humber","General Further Education/Tertiary College","FE College - full inspection",446537,"2014-09-22","2014-09-26","Published","2014-10-29",14,"Preparation for Life and Work",113,"Foundation mathematics",2]
["Report","Bradford College",130532,"Bradford","North East, Yorkshire & Humber","General Further Education/Tertiary College","FE College - full inspection",446537,"2014-09-22","2014-09-26","Published","2014-10-29",15,"Business, Administration and Law",200,"Administration",2]
["Report","Bradford College",130532,"Bradford","North East, Yorkshire & Humber","General Further Education/Tertiary College","FE College - full inspection",446537,"2014-09-22","2014-09-26","Published","2014-10-29",14,"Preparation for Life and Work",112,"Foundation English",2]
["Report","South Gloucestershire and Stroud College",139238,"South Gloucestershire","South West","General Further Education/Tertiary College","FE College - full inspection",452493,"2014-11-17","2014-11-21","Published","2014-12-23",5,"Construction, Planning and the Built Environment",200,"Building and Construction",2]
["Report","South Gloucestershire and Stroud College",139238,"South Gloucestershire","South West","General Further Education/Tertiary College","FE College - full inspection",452493,"2014-11-17","2014-11-21","Published","2014-12-23",15,"Business, Administration and Law",600,"Business",1]
["Report","South Gloucestershire and Stroud College",139238,"South Gloucestershire","South West","General Further Education/Tertiary College","FE College - full inspection",452493,"2014-11-17","2014-11-21","Published","2014-12-23",9,"Arts, Media and Publishing",100,"Performing Arts",1]
["Report","South Gloucestershire and Stroud College",139238,"South Gloucestershire","South West","General Further Education/Tertiary College","FE College - full inspection",452493,"2014-11-17","2014-11-21","Published","2014-12-23",14,"Preparation for Life and Work",112,"Foundation English",3]
["Report","South Gloucestershire and Stroud College",139238,"South Gloucestershire","South West","General Further Education/Tertiary College","FE College - full inspection",452493,"2014-11-17","2014-11-21","Published","2014-12-23",14,"Preparation for Life and Work",113,"Foundation mathematics",3]
["Report","South Gloucestershire and Stroud College",139238,"South Gloucestershire","South West","General Further Education/Tertiary College","FE College - full inspection",452493,"2014-11-17","2014-11-21","Published","2014-12-23",2,"Science and Mathematics",200,"Mathematics and Statistics",3]
["Report","South Gloucestershire and Stroud College",139238,"South Gloucestershire","South West","General Further Education/Tertiary College","FE College - full inspection",452493,"2014-11-17","2014-11-21","Published","2014-12-23",8,"Leisure, Travel and Tourism",100,"Sport, Leisure and Recreation",1]
["Report","South Gloucestershire and Stroud College",139238,"South Gloucestershire","South West","General Further Education/Tertiary College","FE College - full inspection",452493,"2014-11-17","2014-11-21","Published","2014-12-23",8,"Leisure, Travel and Tourism",102,"Public Services",2]
["Report","South Gloucestershire and Stroud College",139238,"South Gloucestershire","South West","General Further Education/Tertiary College","FE College - full inspection",452493,"2014-11-17","2014-11-21","Published","2014-12-23",9,"Arts, Media and Publishing",200,"Visual Arts",1]
["Report","South Gloucestershire and Stroud College",139238,"South Gloucestershire","South West","General Further Education/Tertiary College","FE College - full inspection",452493,"2014-11-17","2014-11-21","Published","2014-12-23",2,"Science and Mathematics",100,"Science",3]
[{"$f":"IF(C289 <> \"\", HYPERLINK(CONCATENATE(\"http://reports.ofsted.gov.uk/inspection-reports/find-inspection-report/provider/ELS/\",C289),\"Report\"),\"\")","v":"Report"},"YMCA Training",57598,"Stockport","North West (EY & ELS)","Community Learning and Skills","Work Based Learning - full (national)",452735,"2015-03-23","2015-03-27","Published","2015-04-29",14,"Preparation for Life and Work",204,"Employability Training",3]
["Report","YMCA Training",57598,"Stockport","North West (EY & ELS)","Community Learning and Skills","Work Based Learning - full (national)",452735,"2015-03-23","2015-03-27","Published","2015-04-29",1,"Health, Public Services and Care",500,"Early Years and Playwork",2]
["Report","YMCA Training",57598,"Stockport","North West (EY & ELS)","Community Learning and Skills","Work Based Learning - full (national)",452735,"2015-03-23","2015-03-27","Published","2015-04-29",15,"Business, Administration and Law",200,"Administration",3]
["Report","Stockport College",130512,"Stockport","North West (EY & ELS)","General Further Education/Tertiary College","FE College - reinspection",433764,"2014-12-08","2014-12-12","Published","2015-01-15",1,"Health, Public Services and Care",300,"Health and Social Care",3]
["Report","Stockport College",130512,"Stockport","North West (EY & ELS)","General Further Education/Tertiary College","FE College - reinspection",433764,"2014-12-08","2014-12-12","Published","2015-01-15",4,"Engineering and Manufacturing Technologies",100,"Engineering",3]
["Report","Stockport College",130512,"Stockport","North West (EY & ELS)","General Further Education/Tertiary College","FE College - reinspection",433764,"2014-12-08","2014-12-12","Published","2015-01-15",14,"Preparation for Life and Work",112,"Foundation English",3]
["Report","Stockport College",130512,"Stockport","North West (EY & ELS)","General Further Education/Tertiary College","FE College - reinspection",433764,"2014-12-08","2014-12-12","Published","2015-01-15",9,"Arts, Media and Publishing",200,"Visual Arts",2]
["Report","Stockport College",130512,"Stockport","North West (EY & ELS)","General Further Education/Tertiary College","FE College - reinspection",433764,"2014-12-08","2014-12-12","Published","2015-01-15",15,"Business, Administration and Law",300,"Business Management",3]
["Report","Stockport College",130512,"Stockport","North West (EY & ELS)","General Further Education/Tertiary College","FE College - reinspection",433764,"2014-12-08","2014-12-12","Published","2015-01-15",4,"Engineering and Manufacturing Technologies",200,"Manufacturing Technologies",3]
["Report","Stockport College",130512,"Stockport","North West (EY & ELS)","General Further Education/Tertiary College","FE College - reinspection",433764,"2014-12-08","2014-12-12","Published","2015-01-15",9,"Arts, Media and Publishing",100,"Performing Arts",2]
["Report","Stockport College",130512,"Stockport","North West (EY & ELS)","General Further Education/Tertiary College","FE College - reinspection",433764,"2014-12-08","2014-12-12","Published","2015-01-15",15,"Business, Administration and Law",500,"Law and Legal Services",3]
["Report","Stockport College",130512,"Stockport","North West (EY & ELS)","General Further Education/Tertiary College","FE College - reinspection",433764,"2014-12-08","2014-12-12","Published","2015-01-15",1,"Health, Public Services and Care",500,"Early Years and Playwork",3]
["Report","Stockport College",130512,"Stockport","North West (EY & ELS)","General Further Education/Tertiary College","FE College - reinspection",433764,"2014-12-08","2014-12-12","Published","2015-01-15",14,"Preparation for Life and Work",204,"Employability Training",3]
["Report","Venture Learning Limited",55208,"Wigan","North West (EY & ELS)","Independent Learning Provider","WBL - full (regional)",429009,"2014-12-01","2014-12-04","Published","2015-01-21",7,"Retail and Commercial Enterprise",302,"Hairdressing",4]
["Report","Wigan and Leigh College",130521,"Wigan","North West (EY & ELS)","General Further Education/Tertiary College","FE College - full inspection",446536,"2015-03-09","2015-03-13","Published","2015-04-17",4,"Engineering and Manufacturing Technologies",100,"Engineering",3]
["Report","Wigan and Leigh College",130521,"Wigan","North West (EY & ELS)","General Further Education/Tertiary College","FE College - full inspection",446536,"2015-03-09","2015-03-13","Published","2015-04-17",7,"Retail and Commercial Enterprise",301,"Hairdressing and beauty therapy",2]
["Report","Wigan and Leigh College",130521,"Wigan","North West (EY & ELS)","General Further Education/Tertiary College","FE College - full inspection",446536,"2015-03-09","2015-03-13","Published","2015-04-17",14,"Preparation for Life and Work",112,"Foundation English",3]
["Report","Wigan and Leigh College",130521,"Wigan","North West (EY & ELS)","General Further Education/Tertiary College","FE College - full inspection",446536,"2015-03-09","2015-03-13","Published","2015-04-17",1,"Health, Public Services and Care",500,"Early Years and Playwork",3]
["Report","Wigan and Leigh College",130521,"Wigan","North West (EY & ELS)","General Further Education/Tertiary College","FE College - full inspection",446536,"2015-03-09","2015-03-13","Published","2015-04-17",1,"Health, Public Services and Care",300,"Health and Social Care",3]
["Report","Wigan and Leigh College",130521,"Wigan","North West (EY & ELS)","General Further Education/Tertiary College","FE College - full inspection",446536,"2015-03-09","2015-03-13","Published","2015-04-17",15,"Business, Administration and Law",100,"Accounting and Finance",3]
["Report","Tameside College",130516,"Tameside","North West (EY & ELS)","General Further Education/Tertiary College","FE College - full inspection",452546,"2015-03-02","2015-03-06","Published","2015-04-10",4,"Engineering and Manufacturing Technologies",100,"Engineering",1]
["Report","Tameside College",130516,"Tameside","North West (EY & ELS)","General Further Education/Tertiary College","FE College - full inspection",452546,"2015-03-02","2015-03-06","Published","2015-04-10",7,"Retail and Commercial Enterprise",400,"Hospitality and Catering",2]
["Report","Tameside College",130516,"Tameside","North West (EY & ELS)","General Further Education/Tertiary College","FE College - full inspection",452546,"2015-03-02","2015-03-06","Published","2015-04-10",12,"Languages, Literature and Culture",100,"English",4]
["Report","Tameside College",130516,"Tameside","North West (EY & ELS)","General Further Education/Tertiary College","FE College - full inspection",452546,"2015-03-02","2015-03-06","Published","2015-04-10",15,"Business, Administration and Law",100,"Accounting and Finance",4]
["Report","Tameside College",130516,"Tameside","North West (EY & ELS)","General Further Education/Tertiary College","FE College - full inspection",452546,"2015-03-02","2015-03-06","Published","2015-04-10",14,"Preparation for Life and Work",108,"Independent living and leisure skills",2]
["Report","Tameside College",130516,"Tameside","North West (EY & ELS)","General Further Education/Tertiary College","FE College - full inspection",452546,"2015-03-02","2015-03-06","Published","2015-04-10",15,"Business, Administration and Law",200,"Administration",2]
["Report","Trafford College",130519,"Trafford","North West (EY & ELS)","General Further Education/Tertiary College","FE College - full inspection",452485,"2015-01-19","2015-01-23","Published","2015-03-02",1,"Health, Public Services and Care",500,"Early Years and Playwork",3]
["Report","Trafford College",130519,"Trafford","North West (EY & ELS)","General Further Education/Tertiary College","FE College - full inspection",452485,"2015-01-19","2015-01-23","Published","2015-03-02",2,"Science and Mathematics",200,"Mathematics and Statistics",3]
["Report","Trafford College",130519,"Trafford","North West (EY & ELS)","General Further Education/Tertiary College","FE College - full inspection",452485,"2015-01-19","2015-01-23","Published","2015-03-02",7,"Retail and Commercial Enterprise",303,"Beauty Therapy",2]
[{"$f":"IF(C318 <> \"\", HYPERLINK(CONCATENATE(\"http://reports.ofsted.gov.uk/inspection-reports/find-inspection-report/provider/ELS/\",C318),\"Report\"),\"\")","v":"Report"},"Trafford College",130519,"Trafford","North West (EY & ELS)","General Further Education/Tertiary College","FE College - full inspection",452485,"2015-01-19","2015-01-23","Published","2015-03-02",2,"Science and Mathematics",100,"Science",3]
["Report","Trafford College",130519,"Trafford","North West (EY & ELS)","General Further Education/Tertiary College","FE College - full inspection",452485,"2015-01-19","2015-01-23","Published","2015-03-02",15,"Business, Administration and Law",300,"Business Management",3]
["Report","Trafford College",130519,"Trafford","North West (EY & ELS)","General Further Education/Tertiary College","FE College - full inspection",452485,"2015-01-19","2015-01-23","Published","2015-03-02",1,"Health, Public Services and Care",300,"Health and Social Care",3]
["Report","Trafford College",130519,"Trafford","North West (EY & ELS)","General Further Education/Tertiary College","FE College - full inspection",452485,"2015-01-19","2015-01-23","Published","2015-03-02",7,"Retail and Commercial Enterprise",302,"Hairdressing",2]
["Report","Trafford College",130519,"Trafford","North West (EY & ELS)","General Further Education/Tertiary College","FE College - full inspection",452485,"2015-01-19","2015-01-23","Published","2015-03-02",15,"Business, Administration and Law",100,"Accounting and Finance",3]
["Report","Trafford College",130519,"Trafford","North West (EY & ELS)","General Further Education/Tertiary College","FE College - full inspection",452485,"2015-01-19","2015-01-23","Published","2015-03-02",14,"Preparation for Life and Work",108,"Independent living and leisure skills",2]
["Report","Trafford College",130519,"Trafford","North West (EY & ELS)","General Further Education/Tertiary College","FE College - full inspection",452485,"2015-01-19","2015-01-23","Published","2015-03-02",15,"Business, Administration and Law",200,"Administration",2]
["Report","Morthyng Group Limited",53422,"Rotherham","North East, Yorkshire & Humber","Community Learning and Skills","WBL - full (regional)",452205,"2014-10-13","2014-10-17","Published","2014-11-19",14,"Preparation for Life and Work",204,"Employability Training",2]
["Report","Brinsworth Training Limited",58933,"Rotherham","North East, Yorkshire & Humber","Independent Learning Provider","WBL - full (regional)",454945,"2014-11-25","2014-11-28","Published","2014-12-24",4,"Engineering and Manufacturing Technologies",100,"Engineering",3]
["Report","Brinsworth Training Limited",58933,"Rotherham","North East, Yorkshire & Humber","Independent Learning Provider","WBL - full (regional)",454945,"2014-11-25","2014-11-28","Published","2014-12-24",4,"Engineering and Manufacturing Technologies",200,"Manufacturing Technologies",3]
["Report","Redcar & Cleveland Adult Learning Service",54087,"Redcar and Cleveland","North East, Yorkshire & Humber","Community Learning and Skills","Adult and Community - full (regional)",446665,"2014-09-23","2014-09-26","Published","2014-10-29",6,"Information and Communication Technology",200,"ICT for Users",2]
["Report","Barford Education and Training (North East) Limited",55459,"Essex","East of England","Independent Learning Provider","WBL - requires improvement",430250,"2014-11-24","2014-11-28","Published","2015-01-07",15,"Business, Administration and Law",200,"Administration",3]
["Report","Barford Education and Training (North East) Limited",55459,"Essex","East of England","Independent Learning Provider","WBL - requires improvement",430250,"2014-11-24","2014-11-28","Published","2015-01-07",4,"Engineering and Manufacturing Technologies",200,"Manufacturing Technologies",3]
["Report","Barford Education and Training (North East) Limited",55459,"Essex","East of England","Independent Learning Provider","WBL - requires improvement",430250,"2014-11-24","2014-11-28","Published","2015-01-07",14,"Preparation for Life and Work",204,"Employability Training",4]
["Report","Barford Education and Training (North East) Limited",55459,"Essex","East of England","Independent Learning Provider","WBL - requires improvement",430250,"2014-11-24","2014-11-28","Published","2015-01-07",15,"Business, Administration and Law",300,"Business Management",3]
["Report","Epping Forest College",130677,"Essex","East of England","General Further Education/Tertiary College","FE College - requires improvement",430271,"2014-10-20","2014-10-24","Published","2014-11-28",1,"Health, Public Services and Care",300,"Health and Social Care",2]
["Report","Epping Forest College",130677,"Essex","East of England","General Further Education/Tertiary College","FE College - requires improvement",430271,"2014-10-20","2014-10-24","Published","2014-11-28",1,"Health, Public Services and Care",500,"Early Years and Playwork",2]
["Report","Epping Forest College",130677,"Essex","East of England","General Further Education/Tertiary College","FE College - requires improvement",430271,"2014-10-20","2014-10-24","Published","2014-11-28",4,"Engineering and Manufacturing Technologies",300,"Motor vehicle",3]
["Report","Epping Forest College",130677,"Essex","East of England","General Further Education/Tertiary College","FE College - requires improvement",430271,"2014-10-20","2014-10-24","Published","2014-11-28",8,"Leisure, Travel and Tourism",100,"Sport, Leisure and Recreation",2]
["Report","Epping Forest College",130677,"Essex","East of England","General Further Education/Tertiary College","FE College - requires improvement",430271,"2014-10-20","2014-10-24","Published","2014-11-28",14,"Preparation for Life and Work",113,"Foundation mathematics",3]
["Report","Epping Forest College",130677,"Essex","East of England","General Further Education/Tertiary College","FE College - requires improvement",430271,"2014-10-20","2014-10-24","Published","2014-11-28",15,"Business, Administration and Law",100,"Accounting and Finance",2]
["Report","Epping Forest College",130677,"Essex","East of England","General Further Education/Tertiary College","FE College - requires improvement",430271,"2014-10-20","2014-10-24","Published","2014-11-28",4,"Engineering and Manufacturing Technologies",100,"Engineering",3]
["Report","Epping Forest College",130677,"Essex","East of England","General Further Education/Tertiary College","FE College - requires improvement",430271,"2014-10-20","2014-10-24","Published","2014-11-28",9,"Arts, Media and Publishing",200,"Visual Arts",2]
["Report","Epping Forest College",130677,"Essex","East of England","General Further Education/Tertiary College","FE College - requires improvement",430271,"2014-10-20","2014-10-24","Published","2014-11-28",15,"Business, Administration and Law",300,"Business Management",2]
[{"$f":"IF(C342 <> \"\", HYPERLINK(CONCATENATE(\"http://reports.ofsted.gov.uk/inspection-reports/find-inspection-report/provider/ELS/\",C342),\"Report\"),\"\")","v":"Report"},"Adult Community Learning Essex",51766,"Essex","East of England","Community Learning and Skills","Adult and Community - full (regional)",423415,"2014-11-10","2014-11-14","Published","2014-12-19",1,"Health, Public Services and Care",300,"Health and Social Care",2]
["Report","Adult Community Learning Essex",51766,"Essex","East of England","Community Learning and Skills","Adult and Community - full (regional)",423415,"2014-11-10","2014-11-14","Published","2014-12-19",1,"Health, Public Services and Care",500,"Early Years and Playwork",2]
["Report","Adult Community Learning Essex",51766,"Essex","East of England","Community Learning and Skills","Adult and Community - full (regional)",423415,"2014-11-10","2014-11-14","Published","2014-12-19",9,"Arts, Media and Publishing",100,"Performing Arts",2]
["Report","Adult Community Learning Essex",51766,"Essex","East of England","Community Learning and Skills","Adult and Community - full (regional)",423415,"2014-11-10","2014-11-14","Published","2014-12-19",14,"Preparation for Life and Work",113,"Foundation mathematics",3]
["Report","Adult Community Learning Essex",51766,"Essex","East of England","Community Learning and Skills","Adult and Community - full (regional)",423415,"2014-11-10","2014-11-14","Published","2014-12-19",9,"Arts, Media and Publishing",200,"Visual Arts",2]
["Report","Adult Community Learning Essex",51766,"Essex","East of England","Community Learning and Skills","Adult and Community - full (regional)",423415,"2014-11-10","2014-11-14","Published","2014-12-19",14,"Preparation for Life and Work",112,"Foundation English",3]
["Report","SEEVIC College",130681,"Essex","East of England","Sixth Form College","FE College - requires improvement",430276,"2014-09-29","2014-10-03","Published","2014-11-04",2,"Science and Mathematics",200,"Mathematics and Statistics",3]
["Report","SEEVIC College",130681,"Essex","East of England","Sixth Form College","FE College - requires improvement",430276,"2014-09-29","2014-10-03","Published","2014-11-04",1,"Health, Public Services and Care",300,"Health and Social Care",2]
["Report","SEEVIC College",130681,"Essex","East of England","Sixth Form College","FE College - requires improvement",430276,"2014-09-29","2014-10-03","Published","2014-11-04",1,"Health, Public Services and Care",500,"Early Years and Playwork",2]
["Report","Weymouth College",130653,"Dorset","South West","General Further Education/Tertiary College","FE College - requires improvement",430282,"2015-01-13","2015-01-16","Published","2015-02-20",9,"Arts, Media and Publishing",100,"Performing Arts",2]
["Report","Weymouth College",130653,"Dorset","South West","General Further Education/Tertiary College","FE College - requires improvement",430282,"2015-01-13","2015-01-16","Published","2015-02-20",14,"Preparation for Life and Work",112,"Foundation English",2]
["Report","Weymouth College",130653,"Dorset","South West","General Further Education/Tertiary College","FE College - requires improvement",430282,"2015-01-13","2015-01-16","Published","2015-02-20",1,"Health, Public Services and Care",500,"Early Years and Playwork",2]
["Report","Kingston Maurward College",130655,"Dorset","South West","Specialist Further Education","FE College - requires improvement",430267,"2014-09-30","2014-10-03","Published","2014-11-07",8,"Leisure, Travel and Tourism",101,"Sport",2]
["Report","Kingston Maurward College",130655,"Dorset","South West","Specialist Further Education","FE College - requires improvement",430267,"2014-09-30","2014-10-03","Published","2014-11-07",3,"Agriculture, Horticulture and Animal Care",201,"Horticulture",2]
["Report","Kingston Maurward College",130655,"Dorset","South West","Specialist Further Education","FE College - requires improvement",430267,"2014-09-30","2014-10-03","Published","2014-11-07",3,"Agriculture, Horticulture and Animal Care",400,"Environmental Conservation",3]
["Report","Kingston Maurward College",130655,"Dorset","South West","Specialist Further Education","FE College - requires improvement",430267,"2014-09-30","2014-10-03","Published","2014-11-07",3,"Agriculture, Horticulture and Animal Care",100,"Agriculture",3]
["Report","Kingston Maurward College",130655,"Dorset","South West","Specialist Further Education","FE College - requires improvement",430267,"2014-09-30","2014-10-03","Published","2014-11-07",3,"Agriculture, Horticulture and Animal Care",202,"Forestry",2]
["Report","Kingston Maurward College",130655,"Dorset","South West","Specialist Further Education","FE College - requires improvement",430267,"2014-09-30","2014-10-03","Published","2014-11-07",8,"Leisure, Travel and Tourism",102,"Public Services",2]
["Report","Kingston Maurward College",130655,"Dorset","South West","Specialist Further Education","FE College - requires improvement",430267,"2014-09-30","2014-10-03","Published","2014-11-07",14,"Preparation for Life and Work",113,"Foundation mathematics",3]
["Report","Sheiling College",139249,"Dorset","South West","Unknown","ISC - full inspection",451325,"2014-12-02","2014-12-03","Published","2015-01-12",14,"Preparation for Life and Work",108,"Independent living and leisure skills",2]
["Report","KATS Ltd",58323,"Hampshire","South East","Independent Learning Provider","WBL - full (regional)",452621,"2015-01-27","2015-01-30","Published","2015-03-25",15,"Business, Administration and Law",401,"Customer service",4]
["Report","KATS Ltd",58323,"Hampshire","South East","Independent Learning Provider","WBL - full (regional)",452621,"2015-01-27","2015-01-30","Published","2015-03-25",15,"Business, Administration and Law",300,"Business Management",4]
["Report","KATS Ltd",58323,"Hampshire","South East","Independent Learning Provider","WBL - full (regional)",452621,"2015-01-27","2015-01-30","Published","2015-03-25",7,"Retail and Commercial Enterprise",302,"Hairdressing",4]
["Report","Bestland Solutions Limited",57838,"Southampton","South East","Independent Learning Provider","WBL - full (regional)",452620,"2014-11-04","2014-11-07","Published","2014-12-12",13,"Education and Training",200,"Training to Provide Learning Support",3]
["Report","Bestland Solutions Limited",57838,"Southampton","South East","Independent Learning Provider","WBL - full (regional)",452620,"2014-11-04","2014-11-07","Published","2014-12-12",15,"Business, Administration and Law",200,"Administration",3]
["Report","Newbury College",130602,"West Berkshire","South East","General Further Education/Tertiary College","FE College - full inspection",452486,"2015-01-27","2015-01-30","Published","2015-03-10",9,"Arts, Media and Publishing",300,"Media and Communication",2]
["Report","Newbury College",130602,"West Berkshire","South East","General Further Education/Tertiary College","FE College - full inspection",452486,"2015-01-27","2015-01-30","Published","2015-03-10",9,"Arts, Media and Publishing",200,"Visual Arts",2]
["Report","Newbury College",130602,"West Berkshire","South East","General Further Education/Tertiary College","FE College - full inspection",452486,"2015-01-27","2015-01-30","Published","2015-03-10",15,"Business, Administration and Law",100,"Accounting and Finance",2]
["Report","Newbury College",130602,"West Berkshire","South East","General Further Education/Tertiary College","FE College - full inspection",452486,"2015-01-27","2015-01-30","Published","2015-03-10",1,"Health, Public Services and Care",0,"Health, Public Services and Care",2]
["Report","Newbury College",130602,"West Berkshire","South East","General Further Education/Tertiary College","FE College - full inspection",452486,"2015-01-27","2015-01-30","Published","2015-03-10",7,"Retail and Commercial Enterprise",301,"Hairdressing and beauty therapy",3]
["Report","Wigan and Leigh College",130521,"Wigan","North West (EY & ELS)","General Further Education/Tertiary College","FE College - full inspection",446536,"2015-03-09","2015-03-13","Published","2015-04-17",15,"Business, Administration and Law",200,"Administration",3]
["Report","Wigan and Leigh College",130521,"Wigan","North West (EY & ELS)","General Further Education/Tertiary College","FE College - full inspection",446536,"2015-03-09","2015-03-13","Published","2015-04-17",5,"Construction, Planning and the Built Environment",200,"Building and Construction",3]
[{"$f":"IF(C374 <> \"\", HYPERLINK(CONCATENATE(\"http://reports.ofsted.gov.uk/inspection-reports/find-inspection-report/provider/ELS/\",C374),\"Report\"),\"\")","v":"Report"},"Manor Training and Resource Centre Limited",53239,"Sheffield","North East, Yorkshire & Humber","Community Learning and Skills","Adult and Community - full (regional)",446664,"2014-10-22","2014-10-24","Published","2014-11-28",14,"Preparation for Life and Work",204,"Employability Training",3]
["Report","S.Y.T.G. Limited",54504,"Sheffield","North East, Yorkshire & Humber","Independent Learning Provider","WBL - requires improvement",430256,"2014-11-11","2014-11-14","Published","2014-12-17",14,"Preparation for Life and Work",204,"Employability Training",2]
["Report","METSKILL Limited",53330,"Sheffield","North East, Yorkshire & Humber","Community Learning and Skills","Work Based Learning - full (national)",452609,"2015-02-09","2015-02-13","Published","2015-03-24",4,"Engineering and Manufacturing Technologies",100,"Engineering",3]
["Report","In Touch Care Limited",50138,"Sheffield","North East, Yorkshire & Humber","Independent Learning Provider","Work Based Learning - full (national)",446599,"2014-11-10","2014-11-14","Published","2014-12-19",1,"Health, Public Services and Care",200,"Nursing and Dental Health",3]
["Report","In Touch Care Limited",50138,"Sheffield","North East, Yorkshire & Humber","Independent Learning Provider","Work Based Learning - full (national)",446599,"2014-11-10","2014-11-14","Published","2014-12-19",13,"Education and Training",100,"Teaching and Lecturing",3]
["Report","In Touch Care Limited",50138,"Sheffield","North East, Yorkshire & Humber","Independent Learning Provider","Work Based Learning - full (national)",446599,"2014-11-10","2014-11-14","Published","2014-12-19",1,"Health, Public Services and Care",300,"Health and Social Care",3]
["Report","Open Door Adult Learning Centre",53746,"Sheffield","North East, Yorkshire & Humber","Community Learning and Skills","Adult and Community - full (regional)",452615,"2015-03-24","2015-03-27","Published","2015-05-01",14,"Preparation for Life and Work",114,"Foundation English and Mathematics",2]
["Report","Open Door Adult Learning Centre",53746,"Sheffield","North East, Yorkshire & Humber","Community Learning and Skills","Adult and Community - full (regional)",452615,"2015-03-24","2015-03-27","Published","2015-05-01",6,"Information and Communication Technology",200,"ICT for Users",2]
["Report","Community Training Services Limited",51259,"Sheffield","North East, Yorkshire & Humber","Independent Learning Provider","WBL - full (regional)",452979,"2015-01-12","2015-01-16","Published","2015-02-24",14,"Preparation for Life and Work",112,"Foundation English",2]
["Report","Community Training Services Limited",51259,"Sheffield","North East, Yorkshire & Humber","Independent Learning Provider","WBL - full (regional)",452979,"2015-01-12","2015-01-16","Published","2015-02-24",15,"Business, Administration and Law",200,"Administration",2]
["Report","Community Training Services Limited",51259,"Sheffield","North East, Yorkshire & Humber","Independent Learning Provider","WBL - full (regional)",452979,"2015-01-12","2015-01-16","Published","2015-02-24",15,"Business, Administration and Law",300,"Business Management",2]
["Report","Community Training Services Limited",51259,"Sheffield","North East, Yorkshire & Humber","Independent Learning Provider","WBL - full (regional)",452979,"2015-01-12","2015-01-16","Published","2015-02-24",1,"Health, Public Services and Care",300,"Health and Social Care",2]
["Report","Health Education North East",59195,"Newcastle Upon Tyne","North East, Yorkshire & Humber","Independent Learning Provider","WBL - full (regional)",452633,"2015-03-16","2015-03-19","Published","2015-04-23",15,"Business, Administration and Law",200,"Administration",2]
["Report","Health Education North East",59195,"Newcastle Upon Tyne","North East, Yorkshire & Humber","Independent Learning Provider","WBL - full (regional)",452633,"2015-03-16","2015-03-19","Published","2015-04-23",1,"Health, Public Services and Care",300,"Health and Social Care",2]
["Report","ID Training",57877,"Newcastle Upon Tyne","North East, Yorkshire & Humber","Independent Learning Provider","WBL - full (regional)",452986,"2015-02-24","2015-02-27","Published","2015-04-09",1,"Health, Public Services and Care",300,"Health and Social Care",2]
["Report","ID Training",57877,"Newcastle Upon Tyne","North East, Yorkshire & Humber","Independent Learning Provider","WBL - full (regional)",452986,"2015-02-24","2015-02-27","Published","2015-04-09",1,"Health, Public Services and Care",500,"Early Years and Playwork",2]
["Report","Chamber Training (Humber) Limited",51104,"Kingston upon Hull City of","North East, Yorkshire & Humber","Independent Learning Provider","WBL - requires improvement",429795,"2015-01-12","2015-01-16","Published","2015-02-23",15,"Business, Administration and Law",300,"Business Management",2]
["Report","Chamber Training (Humber) Limited",51104,"Kingston upon Hull City of","North East, Yorkshire & Humber","Independent Learning Provider","WBL - requires improvement",429795,"2015-01-12","2015-01-16","Published","2015-02-23",1,"Health, Public Services and Care",300,"Health and Social Care",2]
["Report","Chamber Training (Humber) Limited",51104,"Kingston upon Hull City of","North East, Yorkshire & Humber","Independent Learning Provider","WBL - requires improvement",429795,"2015-01-12","2015-01-16","Published","2015-02-23",4,"Engineering and Manufacturing Technologies",100,"Engineering",2]
["Report","Chamber Training (Humber) Limited",51104,"Kingston upon Hull City of","North East, Yorkshire & Humber","Independent Learning Provider","WBL - requires improvement",429795,"2015-01-12","2015-01-16","Published","2015-02-23",4,"Engineering and Manufacturing Technologies",200,"Manufacturing Technologies",2]
["Report","Redcar & Cleveland Adult Learning Service",54087,"Redcar and Cleveland","North East, Yorkshire & Humber","Community Learning and Skills","Adult and Community - full (regional)",446665,"2014-09-23","2014-09-26","Published","2014-10-29",14,"Preparation for Life and Work",114,"Foundation English and Mathematics",2]
["Report","Prior Pursglove College",130575,"Redcar and Cleveland","North East, Yorkshire & Humber","Sixth Form College","SFC - reinspection",446543,"2015-03-03","2015-03-06","Published","2015-04-09",9,"Arts, Media and Publishing",200,"Visual Arts",2]
["Report","Prior Pursglove College",130575,"Redcar and Cleveland","North East, Yorkshire & Humber","Sixth Form College","SFC - reinspection",446543,"2015-03-03","2015-03-06","Published","2015-04-09",11,"Social Sciences",0,"Social Sciences",2]
[{"$f":"IF(C397 <> \"\", HYPERLINK(CONCATENATE(\"http://reports.ofsted.gov.uk/inspection-reports/find-inspection-report/provider/ELS/\",C397),\"Report\"),\"\")","v":"Report"},"Prior Pursglove College",130575,"Redcar and Cleveland","North East, Yorkshire & Humber","Sixth Form College","SFC - reinspection",446543,"2015-03-03","2015-03-06","Published","2015-04-09",15,"Business, Administration and Law",500,"Law and Legal Services",2]
["Report","Prior Pursglove College",130575,"Redcar and Cleveland","North East, Yorkshire & Humber","Sixth Form College","SFC - reinspection",446543,"2015-03-03","2015-03-06","Published","2015-04-09",2,"Science and Mathematics",100,"Science",2]
["Report","Prior Pursglove College",130575,"Redcar and Cleveland","North East, Yorkshire & Humber","Sixth Form College","SFC - reinspection",446543,"2015-03-03","2015-03-06","Published","2015-04-09",2,"Science and Mathematics",200,"Mathematics and Statistics",2]
["Report","Prior Pursglove College",130575,"Redcar and Cleveland","North East, Yorkshire & Humber","Sixth Form College","SFC - reinspection",446543,"2015-03-03","2015-03-06","Published","2015-04-09",12,"Languages, Literature and Culture",100,"English",3]
["Report","Prior Pursglove College",130575,"Redcar and Cleveland","North East, Yorkshire & Humber","Sixth Form College","SFC - reinspection",446543,"2015-03-03","2015-03-06","Published","2015-04-09",15,"Business, Administration and Law",600,"Business",2]
["Report","Safe in Tees Valley Limited",54245,"Stockton-on-Tees","North East, Yorkshire & Humber","Community Learning and Skills","WBL - full (regional)",451617,"2014-10-15","2014-10-17","Published","2014-11-19",14,"Preparation for Life and Work",204,"Employability Training",4]
["Report","Amersham and Wycombe College",130608,"Buckinghamshire","South East","General Further Education/Tertiary College","FE College - requires improvement",430268,"2014-11-03","2014-11-07","Published","2014-12-12",9,"Arts, Media and Publishing",200,"Visual Arts",2]
["Report","Amersham and Wycombe College",130608,"Buckinghamshire","South East","General Further Education/Tertiary College","FE College - requires improvement",430268,"2014-11-03","2014-11-07","Published","2014-12-12",15,"Business, Administration and Law",300,"Business Management",3]
["Report","Amersham and Wycombe College",130608,"Buckinghamshire","South East","General Further Education/Tertiary College","FE College - requires improvement",430268,"2014-11-03","2014-11-07","Published","2014-12-12",5,"Construction, Planning and the Built Environment",202,"Construction Crafts",3]
["Report","Amersham and Wycombe College",130608,"Buckinghamshire","South East","General Further Education/Tertiary College","FE College - requires improvement",430268,"2014-11-03","2014-11-07","Published","2014-12-12",9,"Arts, Media and Publishing",100,"Performing Arts",2]
["Report","Amersham and Wycombe College",130608,"Buckinghamshire","South East","General Further Education/Tertiary College","FE College - requires improvement",430268,"2014-11-03","2014-11-07","Published","2014-12-12",14,"Preparation for Life and Work",113,"Foundation mathematics",3]
["Report","Amersham and Wycombe College",130608,"Buckinghamshire","South East","General Further Education/Tertiary College","FE College - requires improvement",430268,"2014-11-03","2014-11-07","Published","2014-12-12",15,"Business, Administration and Law",100,"Accounting and Finance",2]
["Report","Amersham and Wycombe College",130608,"Buckinghamshire","South East","General Further Education/Tertiary College","FE College - requires improvement",430268,"2014-11-03","2014-11-07","Published","2014-12-12",15,"Business, Administration and Law",200,"Administration",2]
["Report","Durham County Council",50219,"Durham","North East, Yorkshire & Humber","Community Learning and Skills","ACL - requires improvement",434393,"2015-01-19","2015-01-23","Published","2015-03-06",15,"Business, Administration and Law",200,"Administration",1]
["Report","Durham County Council",50219,"Durham","North East, Yorkshire & Humber","Community Learning and Skills","ACL - requires improvement",434393,"2015-01-19","2015-01-23","Published","2015-03-06",14,"Preparation for Life and Work",114,"Foundation English and Mathematics",2]
["Report","Durham County Council",50219,"Durham","North East, Yorkshire & Humber","Community Learning and Skills","ACL - requires improvement",434393,"2015-01-19","2015-01-23","Published","2015-03-06",14,"Preparation for Life and Work",111,"Community Learning",2]
["Report","Baltic Training Services Limited",58229,"Durham","North East, Yorkshire & Humber","Independent Learning Provider","Work Based Learning - full (national)",452988,"2015-01-19","2015-01-23","Published","2015-03-02",6,"Information and Communication Technology",100,"ICT for practitioners",2]
["Report","SEEVIC College",130681,"Essex","East of England","Sixth Form College","FE College - requires improvement",430276,"2014-09-29","2014-10-03","Published","2014-11-04",2,"Science and Mathematics",100,"Science",3]
["Report","SEEVIC College",130681,"Essex","East of England","Sixth Form College","FE College - requires improvement",430276,"2014-09-29","2014-10-03","Published","2014-11-04",11,"Social Sciences",200,"Sociology and Social Policy",2]
["Report","SEEVIC College",130681,"Essex","East of England","Sixth Form College","FE College - requires improvement",430276,"2014-09-29","2014-10-03","Published","2014-11-04",15,"Business, Administration and Law",600,"Business",2]
["Report","SEEVIC College",130681,"Essex","East of England","Sixth Form College","FE College - requires improvement",430276,"2014-09-29","2014-10-03","Published","2014-11-04",8,"Leisure, Travel and Tourism",100,"Sport, Leisure and Recreation",2]
["Report","SEEVIC College",130681,"Essex","East of England","Sixth Form College","FE College - requires improvement",430276,"2014-09-29","2014-10-03","Published","2014-11-04",11,"Social Sciences",201,"Psychology",2]
["Report","SEEVIC College",130681,"Essex","East of England","Sixth Form College","FE College - requires improvement",430276,"2014-09-29","2014-10-03","Published","2014-11-04",14,"Preparation for Life and Work",112,"Foundation English",3]
["Report","Midstream (West Lancs) Ltd",139245,"Lancashire","North West (EY & ELS)","Special College","ISC - full inspection",446689,"2014-09-16","2014-09-18","Published","2014-10-21",14,"Preparation for Life and Work",108,"Independent living and leisure skills",4]
["Report","Lancashire Adult Learning",52911,"Lancashire","North West (EY & ELS)","Community Learning and Skills","Adult and community - full (national)",446661,"2014-11-03","2014-11-07","Published","2014-12-10",14,"Preparation for Life and Work",204,"Employability Training",2]
["Report","Lancashire Adult Learning",52911,"Lancashire","North West (EY & ELS)","Community Learning and Skills","Adult and community - full (national)",446661,"2014-11-03","2014-11-07","Published","2014-12-10",15,"Business, Administration and Law",300,"Business Management",2]
["Report","Lancashire Adult Learning",52911,"Lancashire","North West (EY & ELS)","Community Learning and Skills","Adult and community - full (national)",446661,"2014-11-03","2014-11-07","Published","2014-12-10",17,"Family Learning",0,"Family Learning",3]
["Report","Lancashire Adult Learning",52911,"Lancashire","North West (EY & ELS)","Community Learning and Skills","Adult and community - full (national)",446661,"2014-11-03","2014-11-07","Published","2014-12-10",9,"Arts, Media and Publishing",200,"Visual Arts",3]
["Report","LIGA (UK) LTD",59155,"Oxfordshire","South East","Independent Learning Provider","Work Based Learning - full (national)",452628,"2015-02-11","2015-02-13","Published","2015-03-20",15,"Business, Administration and Law",200,"Administration",3]
["Report","Worthing College",130845,"West Sussex","South East","General Further Education/Tertiary College","FE College - requires improvement",430283,"2014-10-07","2014-10-10","Published","2014-11-14",9,"Arts, Media and Publishing",200,"Visual Arts",2]
["Report","Worthing College",130845,"West Sussex","South East","General Further Education/Tertiary College","FE College - requires improvement",430283,"2014-10-07","2014-10-10","Published","2014-11-14",11,"Social Sciences",0,"Social Sciences",3]
["Report","Worthing College",130845,"West Sussex","South East","General Further Education/Tertiary College","FE College - requires improvement",430283,"2014-10-07","2014-10-10","Published","2014-11-14",8,"Leisure, Travel and Tourism",102,"Public Services",1]
[{"$f":"IF(C429 <> \"\", HYPERLINK(CONCATENATE(\"http://reports.ofsted.gov.uk/inspection-reports/find-inspection-report/provider/ELS/\",C429),\"Report\"),\"\")","v":"Report"},"Worthing College",130845,"West Sussex","South East","General Further Education/Tertiary College","FE College - requires improvement",430283,"2014-10-07","2014-10-10","Published","2014-11-14",9,"Arts, Media and Publishing",100,"Performing Arts",2]
["Report","Worthing College",130845,"West Sussex","South East","General Further Education/Tertiary College","FE College - requires improvement",430283,"2014-10-07","2014-10-10","Published","2014-11-14",12,"Languages, Literature and Culture",100,"English",3]
["Report","Worthing College",130845,"West Sussex","South East","General Further Education/Tertiary College","FE College - requires improvement",430283,"2014-10-07","2014-10-10","Published","2014-11-14",8,"Leisure, Travel and Tourism",101,"Sport",1]
["Report","Central Sussex College",129383,"West Sussex","South East","General Further Education/Tertiary College","FE College - requires improvement",430269,"2014-10-20","2014-10-24","Published","2014-11-28",1,"Health, Public Services and Care",300,"Health and Social Care",2]
["Report","Central Sussex College",129383,"West Sussex","South East","General Further Education/Tertiary College","FE College - requires improvement",430269,"2014-10-20","2014-10-24","Published","2014-11-28",7,"Retail and Commercial Enterprise",301,"Hairdressing and beauty therapy",3]
["Report","Central Sussex College",129383,"West Sussex","South East","General Further Education/Tertiary College","FE College - requires improvement",430269,"2014-10-20","2014-10-24","Published","2014-11-28",15,"Business, Administration and Law",200,"Administration",3]
["Report","Newbury College",130602,"West Berkshire","South East","General Further Education/Tertiary College","FE College - full inspection",452486,"2015-01-27","2015-01-30","Published","2015-03-10",15,"Business, Administration and Law",300,"Business Management",2]
["Report","Central Training Academy Limited",51072,"Southend-On-Sea","East of England","Independent Learning Provider","Work Based Learning - full (national)",452978,"2015-03-02","2015-03-06","Published","2015-04-14",14,"Preparation for Life and Work",204,"Employability Training",2]
["Report","Central Training Academy Limited",51072,"Southend-On-Sea","East of England","Independent Learning Provider","Work Based Learning - full (national)",452978,"2015-03-02","2015-03-06","Published","2015-04-14",7,"Retail and Commercial Enterprise",302,"Hairdressing",2]
["Report","Central Training Academy Limited",51072,"Southend-On-Sea","East of England","Independent Learning Provider","Work Based Learning - full (national)",452978,"2015-03-02","2015-03-06","Published","2015-04-14",15,"Business, Administration and Law",200,"Administration",2]
["Report","Southend-on-Sea Borough Council",54519,"Southend-On-Sea","East of England","Community Learning and Skills","Adult and Community - full (regional)",446666,"2014-10-06","2014-10-10","Published","2014-11-12",1,"Health, Public Services and Care",500,"Early Years and Playwork",1]
["Report","Southend-on-Sea Borough Council",54519,"Southend-On-Sea","East of England","Community Learning and Skills","Adult and Community - full (regional)",446666,"2014-10-06","2014-10-10","Published","2014-11-12",14,"Preparation for Life and Work",112,"Foundation English",3]
["Report","Southend-on-Sea Borough Council",54519,"Southend-On-Sea","East of England","Community Learning and Skills","Adult and Community - full (regional)",446666,"2014-10-06","2014-10-10","Published","2014-11-12",9,"Arts, Media and Publishing",200,"Visual Arts",1]
["Report","Southend-on-Sea Borough Council",54519,"Southend-On-Sea","East of England","Community Learning and Skills","Adult and Community - full (regional)",446666,"2014-10-06","2014-10-10","Published","2014-11-12",14,"Preparation for Life and Work",204,"Employability Training",2]
["Report","Ministry of Defence (RAF)",54191,"Gloucestershire","South West","Employer","Work Based Learning - full (national)",446605,"2014-12-08","2014-12-12","Published","2015-01-21",1,"Health, Public Services and Care",400,"Public Services",2]
["Report","Ministry of Defence (RAF)",54191,"Gloucestershire","South West","Employer","Work Based Learning - full (national)",446605,"2014-12-08","2014-12-12","Published","2015-01-21",4,"Engineering and Manufacturing Technologies",100,"Engineering",1]
["Report","Ministry of Defence (RAF)",54191,"Gloucestershire","South West","Employer","Work Based Learning - full (national)",446605,"2014-12-08","2014-12-12","Published","2015-01-21",6,"Information and Communication Technology",100,"ICT for practitioners",1]
["Report","Ministry of Defence (RAF)",54191,"Gloucestershire","South West","Employer","Work Based Learning - full (national)",446605,"2014-12-08","2014-12-12","Published","2015-01-21",7,"Retail and Commercial Enterprise",200,"Warehousing and Distribution",2]
["Report","Hartpury College",130687,"Gloucestershire","South West","Specialist Further Education","FE College - full inspection",452550,"2015-03-17","2015-03-20","Published","2015-04-29",3,"Agriculture, Horticulture and Animal Care",100,"Agriculture",2]
["Report","Hartpury College",130687,"Gloucestershire","South West","Specialist Further Education","FE College - full inspection",452550,"2015-03-17","2015-03-20","Published","2015-04-29",8,"Leisure, Travel and Tourism",101,"Sport",1]
["Report","Hartpury College",130687,"Gloucestershire","South West","Specialist Further Education","FE College - full inspection",452550,"2015-03-17","2015-03-20","Published","2015-04-29",3,"Agriculture, Horticulture and Animal Care",300,"Animal Care and Veterinary Science",2]
["Report","Hartpury College",130687,"Gloucestershire","South West","Specialist Further Education","FE College - full inspection",452550,"2015-03-17","2015-03-20","Published","2015-04-29",2,"Science and Mathematics",100,"Science",3]
["Report","Hartpury College",130687,"Gloucestershire","South West","Specialist Further Education","FE College - full inspection",452550,"2015-03-17","2015-03-20","Published","2015-04-29",2,"Science and Mathematics",200,"Mathematics and Statistics",3]
["Report","Strode College",130806,"Somerset","South West","General Further Education/Tertiary College","FE College - full inspection",446539,"2014-09-23","2014-09-26","Published","2014-10-31",2,"Science and Mathematics",100,"Science",2]
["Report","Strode College",130806,"Somerset","South West","General Further Education/Tertiary College","FE College - full inspection",446539,"2014-09-23","2014-09-26","Published","2014-10-31",12,"Languages, Literature and Culture",100,"English",1]
["Report","Strode College",130806,"Somerset","South West","General Further Education/Tertiary College","FE College - full inspection",446539,"2014-09-23","2014-09-26","Published","2014-10-31",9,"Arts, Media and Publishing",200,"Visual Arts",1]
["Report","Strode College",130806,"Somerset","South West","General Further Education/Tertiary College","FE College - full inspection",446539,"2014-09-23","2014-09-26","Published","2014-10-31",14,"Preparation for Life and Work",108,"Independent living and leisure skills",1]
["Report","Hudson & Hughes Training Limited",52396,"Somerset","South West","Independent Learning Provider","WBL - full (regional)",452604,"2015-03-24","2015-03-27","Published","2015-04-30",1,"Health, Public Services and Care",300,"Health and Social Care",2]
["Report","Chamber Training (Humber) Limited",51104,"Kingston upon Hull City of","North East, Yorkshire & Humber","Independent Learning Provider","WBL - requires improvement",429795,"2015-01-12","2015-01-16","Published","2015-02-23",15,"Business, Administration and Law",200,"Administration",2]
["Report","Darlington College",130656,"Darlington","North East, Yorkshire & Humber","General Further Education/Tertiary College","FE College - full inspection",452549,"2015-02-09","2015-02-13","Published","2015-03-20",8,"Leisure, Travel and Tourism",101,"Sport",3]
["Report","Darlington College",130656,"Darlington","North East, Yorkshire & Humber","General Further Education/Tertiary College","FE College - full inspection",452549,"2015-02-09","2015-02-13","Published","2015-03-20",8,"Leisure, Travel and Tourism",200,"Travel and Tourism",3]
["Report","Darlington College",130656,"Darlington","North East, Yorkshire & Humber","General Further Education/Tertiary College","FE College - full inspection",452549,"2015-02-09","2015-02-13","Published","2015-03-20",9,"Arts, Media and Publishing",200,"Visual Arts",3]
[{"$f":"IF(C461 <> \"\", HYPERLINK(CONCATENATE(\"http://reports.ofsted.gov.uk/inspection-reports/find-inspection-report/provider/ELS/\",C461),\"Report\"),\"\")","v":"Report"},"Darlington College",130656,"Darlington","North East, Yorkshire & Humber","General Further Education/Tertiary College","FE College - full inspection",452549,"2015-02-09","2015-02-13","Published","2015-03-20",5,"Construction, Planning and the Built Environment",200,"Building and Construction",3]
["Report","Darlington College",130656,"Darlington","North East, Yorkshire & Humber","General Further Education/Tertiary College","FE College - full inspection",452549,"2015-02-09","2015-02-13","Published","2015-03-20",9,"Arts, Media and Publishing",300,"Media and Communication",3]
["Report","Darlington College",130656,"Darlington","North East, Yorkshire & Humber","General Further Education/Tertiary College","FE College - full inspection",452549,"2015-02-09","2015-02-13","Published","2015-03-20",14,"Preparation for Life and Work",112,"Foundation English",4]
["Report","Darlington College",130656,"Darlington","North East, Yorkshire & Humber","General Further Education/Tertiary College","FE College - full inspection",452549,"2015-02-09","2015-02-13","Published","2015-03-20",15,"Business, Administration and Law",200,"Administration",3]
["Report","Darlington College",130656,"Darlington","North East, Yorkshire & Humber","General Further Education/Tertiary College","FE College - full inspection",452549,"2015-02-09","2015-02-13","Published","2015-03-20",15,"Business, Administration and Law",600,"Business",3]
["Report","Darlington College",130656,"Darlington","North East, Yorkshire & Humber","General Further Education/Tertiary College","FE College - full inspection",452549,"2015-02-09","2015-02-13","Published","2015-03-20",4,"Engineering and Manufacturing Technologies",100,"Engineering",3]
["Report","Darlington College",130656,"Darlington","North East, Yorkshire & Humber","General Further Education/Tertiary College","FE College - full inspection",452549,"2015-02-09","2015-02-13","Published","2015-03-20",4,"Engineering and Manufacturing Technologies",200,"Manufacturing Technologies",3]
["Report","Stafford College",130813,"Staffordshire","West Midlands","General Further Education/Tertiary College","FE College - requires improvement",430279,"2014-10-06","2014-10-10","Published","2014-11-18",7,"Retail and Commercial Enterprise",200,"Warehousing and Distribution",2]
["Report","Stafford College",130813,"Staffordshire","West Midlands","General Further Education/Tertiary College","FE College - requires improvement",430279,"2014-10-06","2014-10-10","Published","2014-11-18",15,"Business, Administration and Law",100,"Accounting and Finance",3]
["Report","Stafford College",130813,"Staffordshire","West Midlands","General Further Education/Tertiary College","FE College - requires improvement",430279,"2014-10-06","2014-10-10","Published","2014-11-18",15,"Business, Administration and Law",300,"Business Management",3]
["Report","Stafford College",130813,"Staffordshire","West Midlands","General Further Education/Tertiary College","FE College - requires improvement",430279,"2014-10-06","2014-10-10","Published","2014-11-18",9,"Arts, Media and Publishing",100,"Performing Arts",1]
["Report","Stafford College",130813,"Staffordshire","West Midlands","General Further Education/Tertiary College","FE College - requires improvement",430279,"2014-10-06","2014-10-10","Published","2014-11-18",1,"Health, Public Services and Care",300,"Health and Social Care",2]
["Report","Stafford College",130813,"Staffordshire","West Midlands","General Further Education/Tertiary College","FE College - requires improvement",430279,"2014-10-06","2014-10-10","Published","2014-11-18",6,"Information and Communication Technology",200,"ICT for Users",2]
["Report","Stafford College",130813,"Staffordshire","West Midlands","General Further Education/Tertiary College","FE College - requires improvement",430279,"2014-10-06","2014-10-10","Published","2014-11-18",14,"Preparation for Life and Work",113,"Foundation mathematics",3]
["Report","Stafford College",130813,"Staffordshire","West Midlands","General Further Education/Tertiary College","FE College - requires improvement",430279,"2014-10-06","2014-10-10","Published","2014-11-18",6,"Information and Communication Technology",100,"ICT for practitioners",2]
["Report","Baltic Training Services Limited",58229,"Durham","North East, Yorkshire & Humber","Independent Learning Provider","Work Based Learning - full (national)",452988,"2015-01-19","2015-01-23","Published","2015-03-02",14,"Preparation for Life and Work",204,"Employability Training",2]
["Report","Unique Training North East Limited",56817,"Durham","North East, Yorkshire & Humber","Independent Learning Provider","WBL - requires improvement",429793,"2014-09-09","2014-09-12","Published","2014-10-23",15,"Business, Administration and Law",300,"Business Management",3]
["Report","Unique Training North East Limited",56817,"Durham","North East, Yorkshire & Humber","Independent Learning Provider","WBL - requires improvement",429793,"2014-09-09","2014-09-12","Published","2014-10-23",7,"Retail and Commercial Enterprise",400,"Hospitality and Catering",2]
["Report","Unique Training North East Limited",56817,"Durham","North East, Yorkshire & Humber","Independent Learning Provider","WBL - requires improvement",429793,"2014-09-09","2014-09-12","Published","2014-10-23",15,"Business, Administration and Law",200,"Administration",3]
["Report","County Training",54373,"Shropshire","West Midlands","Community Learning and Skills","ACL - requires improvement",440287,"2015-01-19","2015-01-23","Published","2015-03-03",14,"Preparation for Life and Work",204,"Employability Training",2]
["Report","County Training",54373,"Shropshire","West Midlands","Community Learning and Skills","ACL - requires improvement",440287,"2015-01-19","2015-01-23","Published","2015-03-03",1,"Health, Public Services and Care",300,"Health and Social Care",1]
["Report","County Training",54373,"Shropshire","West Midlands","Community Learning and Skills","ACL - requires improvement",440287,"2015-01-19","2015-01-23","Published","2015-03-03",15,"Business, Administration and Law",200,"Administration",2]
["Report","SBC Training Limited",54277,"Shropshire","West Midlands","Independent Learning Provider","Work Based Learning - full (national)",446604,"2014-12-08","2014-12-12","Published","2015-01-16",15,"Business, Administration and Law",200,"Administration",2]
["Report","SBC Training Limited",54277,"Shropshire","West Midlands","Independent Learning Provider","Work Based Learning - full (national)",446604,"2014-12-08","2014-12-12","Published","2015-01-16",5,"Construction, Planning and the Built Environment",201,"Building Services",2]
["Report","SBC Training Limited",54277,"Shropshire","West Midlands","Independent Learning Provider","Work Based Learning - full (national)",446604,"2014-12-08","2014-12-12","Published","2015-01-16",7,"Retail and Commercial Enterprise",100,"Retailing and Wholesaling",2]
["Report","SBC Training Limited",54277,"Shropshire","West Midlands","Independent Learning Provider","Work Based Learning - full (national)",446604,"2014-12-08","2014-12-12","Published","2015-01-16",1,"Health, Public Services and Care",300,"Health and Social Care",3]
["Report","SBC Training Limited",54277,"Shropshire","West Midlands","Independent Learning Provider","Work Based Learning - full (national)",446604,"2014-12-08","2014-12-12","Published","2015-01-16",7,"Retail and Commercial Enterprise",200,"Warehousing and Distribution",2]
["Report","North Shropshire College",130797,"Shropshire","West Midlands","General Further Education/Tertiary College","FE College - requires improvement",430280,"2014-10-14","2014-10-17","Published","2014-11-21",2,"Science and Mathematics",200,"Mathematics and Statistics",3]
["Report","North Shropshire College",130797,"Shropshire","West Midlands","General Further Education/Tertiary College","FE College - requires improvement",430280,"2014-10-14","2014-10-17","Published","2014-11-21",14,"Preparation for Life and Work",108,"Independent living and leisure skills",3]
["Report","North Shropshire College",130797,"Shropshire","West Midlands","General Further Education/Tertiary College","FE College - requires improvement",430280,"2014-10-14","2014-10-17","Published","2014-11-21",2,"Science and Mathematics",100,"Science",3]
["Report","North Shropshire College",130797,"Shropshire","West Midlands","General Further Education/Tertiary College","FE College - requires improvement",430280,"2014-10-14","2014-10-17","Published","2014-11-21",3,"Agriculture, Horticulture and Animal Care",100,"Agriculture",3]
["Report","North Shropshire College",130797,"Shropshire","West Midlands","General Further Education/Tertiary College","FE College - requires improvement",430280,"2014-10-14","2014-10-17","Published","2014-11-21",8,"Leisure, Travel and Tourism",100,"Sport, Leisure and Recreation",2]
[{"$f":"IF(C493 <> \"\", HYPERLINK(CONCATENATE(\"http://reports.ofsted.gov.uk/inspection-reports/find-inspection-report/provider/ELS/\",C493),\"Report\"),\"\")","v":"Report"},"New College Telford",130801,"Telford and Wrekin","West Midlands","Sixth Form College","SFC - full inspection",452492,"2015-02-10","2015-02-13","Published","2015-03-19",15,"Business, Administration and Law",300,"Business Management",2]
["Report","New College Telford",130801,"Telford and Wrekin","West Midlands","Sixth Form College","SFC - full inspection",452492,"2015-02-10","2015-02-13","Published","2015-03-19",15,"Business, Administration and Law",500,"Law and Legal Services",2]
["Report","New College Telford",130801,"Telford and Wrekin","West Midlands","Sixth Form College","SFC - full inspection",452492,"2015-02-10","2015-02-13","Published","2015-03-19",2,"Science and Mathematics",100,"Science",2]
["Report","Matrix Training and Development Limited",53268,"Telford and Wrekin","West Midlands","Independent Learning Provider","WBL - full (regional)",446602,"2014-10-14","2014-10-16","Published","2014-11-12",15,"Business, Administration and Law",200,"Administration",2]
["Report","The Cornwall Council",51349,"Cornwall","South West","Community Learning and Skills","ACL - requires improvement",430293,"2014-11-17","2014-11-21","Published","2015-01-14",9,"Arts, Media and Publishing",200,"Visual Arts",2]
["Report","Central Sussex College",129383,"West Sussex","South East","General Further Education/Tertiary College","FE College - requires improvement",430269,"2014-10-20","2014-10-24","Published","2014-11-28",15,"Business, Administration and Law",300,"Business Management",3]
["Report","Central Sussex College",129383,"West Sussex","South East","General Further Education/Tertiary College","FE College - requires improvement",430269,"2014-10-20","2014-10-24","Published","2014-11-28",5,"Construction, Planning and the Built Environment",200,"Building and Construction",2]
["Report","Central Sussex College",129383,"West Sussex","South East","General Further Education/Tertiary College","FE College - requires improvement",430269,"2014-10-20","2014-10-24","Published","2014-11-28",8,"Leisure, Travel and Tourism",101,"Sport",3]
["Report","Central Sussex College",129383,"West Sussex","South East","General Further Education/Tertiary College","FE College - requires improvement",430269,"2014-10-20","2014-10-24","Published","2014-11-28",14,"Preparation for Life and Work",113,"Foundation mathematics",3]
["Report","Lowestoft College",130819,"Suffolk","East of England","General Further Education/Tertiary College","FE College - requires improvement",430274,"2014-12-02","2014-12-05","Published","2015-01-14",7,"Retail and Commercial Enterprise",301,"Hairdressing and beauty therapy",3]
["Report","Lowestoft College",130819,"Suffolk","East of England","General Further Education/Tertiary College","FE College - requires improvement",430274,"2014-12-02","2014-12-05","Published","2015-01-14",9,"Arts, Media and Publishing",200,"Visual Arts",3]
["Report","Lowestoft College",130819,"Suffolk","East of England","General Further Education/Tertiary College","FE College - requires improvement",430274,"2014-12-02","2014-12-05","Published","2015-01-14",14,"Preparation for Life and Work",112,"Foundation English",3]
["Report","Lowestoft College",130819,"Suffolk","East of England","General Further Education/Tertiary College","FE College - requires improvement",430274,"2014-12-02","2014-12-05","Published","2015-01-14",14,"Preparation for Life and Work",113,"Foundation mathematics",3]
["Report","Thomas Cook Group UK Limited",58184,"Peterborough","East of England","Employer","Work Based Learning - full (national)",452987,"2015-03-23","2015-03-27","Published","2015-04-30",8,"Leisure, Travel and Tourism",200,"Travel and Tourism",1]
["Report","Warrington Borough Council",55268,"Warrington","North West (EY & ELS)","Community Learning and Skills","Adult and Community - full (regional)",446668,"2014-10-14","2014-10-17","Published","2014-12-16",14,"Preparation for Life and Work",111,"Community Learning",3]
["Report","Warrington Borough Council",55268,"Warrington","North West (EY & ELS)","Community Learning and Skills","Adult and Community - full (regional)",446668,"2014-10-14","2014-10-17","Published","2014-12-16",15,"Business, Administration and Law",401,"Customer service",4]
["Report","Warrington Borough Council",55268,"Warrington","North West (EY & ELS)","Community Learning and Skills","Adult and Community - full (regional)",446668,"2014-10-14","2014-10-17","Published","2014-12-16",15,"Business, Administration and Law",200,"Administration",4]
["Report","Warrington Collegiate",130617,"Warrington","North West (EY & ELS)","General Further Education/Tertiary College","FE College - full inspection",447146,"2014-10-20","2014-10-24","Published","2014-11-28",1,"Health, Public Services and Care",300,"Health and Social Care",3]
["Report","Warrington Collegiate",130617,"Warrington","North West (EY & ELS)","General Further Education/Tertiary College","FE College - full inspection",447146,"2014-10-20","2014-10-24","Published","2014-11-28",4,"Engineering and Manufacturing Technologies",300,"Motor vehicle",2]
["Report","Warrington Collegiate",130617,"Warrington","North West (EY & ELS)","General Further Education/Tertiary College","FE College - full inspection",447146,"2014-10-20","2014-10-24","Published","2014-11-28",7,"Retail and Commercial Enterprise",301,"Hairdressing and beauty therapy",2]
["Report","Warrington Collegiate",130617,"Warrington","North West (EY & ELS)","General Further Education/Tertiary College","FE College - full inspection",447146,"2014-10-20","2014-10-24","Published","2014-11-28",15,"Business, Administration and Law",100,"Accounting and Finance",3]
["Report","Warrington Collegiate",130617,"Warrington","North West (EY & ELS)","General Further Education/Tertiary College","FE College - full inspection",447146,"2014-10-20","2014-10-24","Published","2014-11-28",1,"Health, Public Services and Care",500,"Early Years and Playwork",3]
["Report","Warrington Collegiate",130617,"Warrington","North West (EY & ELS)","General Further Education/Tertiary College","FE College - full inspection",447146,"2014-10-20","2014-10-24","Published","2014-11-28",15,"Business, Administration and Law",200,"Administration",3]
["Report","Warrington Collegiate",130617,"Warrington","North West (EY & ELS)","General Further Education/Tertiary College","FE College - full inspection",447146,"2014-10-20","2014-10-24","Published","2014-11-28",4,"Engineering and Manufacturing Technologies",100,"Engineering",2]
["Report","Warrington Collegiate",130617,"Warrington","North West (EY & ELS)","General Further Education/Tertiary College","FE College - full inspection",447146,"2014-10-20","2014-10-24","Published","2014-11-28",5,"Construction, Planning and the Built Environment",200,"Building and Construction",3]
["Report","Warrington Collegiate",130617,"Warrington","North West (EY & ELS)","General Further Education/Tertiary College","FE College - full inspection",447146,"2014-10-20","2014-10-24","Published","2014-11-28",14,"Preparation for Life and Work",113,"Foundation mathematics",4]
["Report","E.ON UK Plc",58731,"Nottinghamshire","East Midlands","Employer","WBL - full (regional)",452990,"2015-01-20","2015-01-23","Published","2015-03-12",4,"Engineering and Manufacturing Technologies",100,"Engineering",3]
["Report","Central College Nottingham",130783,"Nottinghamshire","East Midlands","General Further Education/Tertiary College","FE College - requires improvement",430278,"2014-11-10","2014-11-14","Published","2014-12-18",2,"Science and Mathematics",100,"Science",3]
["Report","Central College Nottingham",130783,"Nottinghamshire","East Midlands","General Further Education/Tertiary College","FE College - requires improvement",430278,"2014-11-10","2014-11-14","Published","2014-12-18",4,"Engineering and Manufacturing Technologies",300,"Motor vehicle",2]
["Report","Central College Nottingham",130783,"Nottinghamshire","East Midlands","General Further Education/Tertiary College","FE College - requires improvement",430278,"2014-11-10","2014-11-14","Published","2014-12-18",8,"Leisure, Travel and Tourism",102,"Public Services",2]
["Report","Central College Nottingham",130783,"Nottinghamshire","East Midlands","General Further Education/Tertiary College","FE College - requires improvement",430278,"2014-11-10","2014-11-14","Published","2014-12-18",14,"Preparation for Life and Work",108,"Independent living and leisure skills",1]
["Report","Central College Nottingham",130783,"Nottinghamshire","East Midlands","General Further Education/Tertiary College","FE College - requires improvement",430278,"2014-11-10","2014-11-14","Published","2014-12-18",2,"Science and Mathematics",200,"Mathematics and Statistics",3]
[{"$f":"IF(C525 <> \"\", HYPERLINK(CONCATENATE(\"http://reports.ofsted.gov.uk/inspection-reports/find-inspection-report/provider/ELS/\",C525),\"Report\"),\"\")","v":"Report"},"Central College Nottingham",130783,"Nottinghamshire","East Midlands","General Further Education/Tertiary College","FE College - requires improvement",430278,"2014-11-10","2014-11-14","Published","2014-12-18",4,"Engineering and Manufacturing Technologies",200,"Manufacturing Technologies",2]
["Report","The Cornwall Council",51349,"Cornwall","South West","Community Learning and Skills","ACL - requires improvement",430293,"2014-11-17","2014-11-21","Published","2015-01-14",14,"Preparation for Life and Work",113,"Foundation mathematics",2]
["Report","The Cornwall Council",51349,"Cornwall","South West","Community Learning and Skills","ACL - requires improvement",430293,"2014-11-17","2014-11-21","Published","2015-01-14",6,"Information and Communication Technology",200,"ICT for Users",2]
["Report","The Cornwall Council",51349,"Cornwall","South West","Community Learning and Skills","ACL - requires improvement",430293,"2014-11-17","2014-11-21","Published","2015-01-14",14,"Preparation for Life and Work",112,"Foundation English",2]
["Report","The Learning Partnership for Cornwall and The Isles of Scilly Limited",59113,"Cornwall","South West","Independent Learning Provider","WBL - full (regional)",434062,"2014-09-16","2014-09-19","Published","2014-10-30",14,"Preparation for Life and Work",112,"Foundation English",3]
["Report","The Learning Partnership for Cornwall and The Isles of Scilly Limited",59113,"Cornwall","South West","Independent Learning Provider","WBL - full (regional)",434062,"2014-09-16","2014-09-19","Published","2014-10-30",14,"Preparation for Life and Work",204,"Employability Training",3]
["Report","The Learning Partnership for Cornwall and The Isles of Scilly Limited",59113,"Cornwall","South West","Independent Learning Provider","WBL - full (regional)",434062,"2014-09-16","2014-09-19","Published","2014-10-30",15,"Business, Administration and Law",200,"Administration",3]
["Report","New College Stamford ",130760,"Lincolnshire","East Midlands","General Further Education/Tertiary College","FE College - full inspection",452490,"2015-03-24","2015-03-27","Published","2015-04-29",1,"Health, Public Services and Care",300,"Health and Social Care",3]
["Report","New College Stamford ",130760,"Lincolnshire","East Midlands","General Further Education/Tertiary College","FE College - full inspection",452490,"2015-03-24","2015-03-27","Published","2015-04-29",15,"Business, Administration and Law",300,"Business Management",4]
[{"$f":"IF(C534 <> \"\", HYPERLINK(CONCATENATE(\"http://reports.ofsted.gov.uk/inspection-reports/find-inspection-report/provider/ELS/\",C534),\"Report\"),\"\")","v":"Report"},"New College Stamford ",130760,"Lincolnshire","East Midlands","General Further Education/Tertiary College","FE College - full inspection",452490,"2015-03-24","2015-03-27","Published","2015-04-29",1,"Health, Public Services and Care",500,"Early Years and Playwork",3]
["Report","New College Stamford ",130760,"Lincolnshire","East Midlands","General Further Education/Tertiary College","FE College - full inspection",452490,"2015-03-24","2015-03-27","Published","2015-04-29",2,"Science and Mathematics",200,"Mathematics and Statistics",3]
["Report","New College Stamford ",130760,"Lincolnshire","East Midlands","General Further Education/Tertiary College","FE College - full inspection",452490,"2015-03-24","2015-03-27","Published","2015-04-29",2,"Science and Mathematics",100,"Science",3]
["Report","New College Stamford ",130760,"Lincolnshire","East Midlands","General Further Education/Tertiary College","FE College - full inspection",452490,"2015-03-24","2015-03-27","Published","2015-04-29",5,"Construction, Planning and the Built Environment",201,"Building Services",2]
["Report","New College Stamford ",130760,"Lincolnshire","East Midlands","General Further Education/Tertiary College","FE College - full inspection",452490,"2015-03-24","2015-03-27","Published","2015-04-29",5,"Construction, Planning and the Built Environment",202,"Construction Crafts",2]
["Report","New College Stamford ",130760,"Lincolnshire","East Midlands","General Further Education/Tertiary College","FE College - full inspection",452490,"2015-03-24","2015-03-27","Published","2015-04-29",14,"Preparation for Life and Work",112,"Foundation English",2]
["Report","Norfolk Training Services Limited",53550,"Norfolk","East of England","Independent Learning Provider","WBL - full (regional)",452611,"2015-02-16","2015-02-20","Published","2015-03-27",14,"Preparation for Life and Work",204,"Employability Training",3]
["Report","Norfolk Training Services Limited",53550,"Norfolk","East of England","Independent Learning Provider","WBL - full (regional)",452611,"2015-02-16","2015-02-20","Published","2015-03-27",15,"Business, Administration and Law",200,"Administration",2]
["Report","Norfolk Training Services Limited",53550,"Norfolk","East of England","Independent Learning Provider","WBL - full (regional)",452611,"2015-02-16","2015-02-20","Published","2015-03-27",7,"Retail and Commercial Enterprise",200,"Warehousing and Distribution",3]
["Report","Norfolk Training Services Limited",53550,"Norfolk","East of England","Independent Learning Provider","WBL - full (regional)",452611,"2015-02-16","2015-02-20","Published","2015-03-27",4,"Engineering and Manufacturing Technologies",300,"Motor vehicle",3]
["Report","Norfolk Training Services Limited",53550,"Norfolk","East of England","Independent Learning Provider","WBL - full (regional)",452611,"2015-02-16","2015-02-20","Published","2015-03-27",7,"Retail and Commercial Enterprise",100,"Retailing and Wholesaling",3]
["Report","Norfolk Training Services Limited",53550,"Norfolk","East of England","Independent Learning Provider","WBL - full (regional)",452611,"2015-02-16","2015-02-20","Published","2015-03-27",15,"Business, Administration and Law",401,"Customer service",2]
["Report","NCC Adult Education Services",53545,"Norfolk","East of England","Community Learning and Skills","Adult and Community - full (regional)",452610,"2015-01-19","2015-01-23","Published","2015-03-09",14,"Preparation for Life and Work",112,"Foundation English",3]
["Report","NCC Adult Education Services",53545,"Norfolk","East of England","Community Learning and Skills","Adult and Community - full (regional)",452610,"2015-01-19","2015-01-23","Published","2015-03-09",8,"Leisure, Travel and Tourism",101,"Sport",2]
["Report","GHQ Training Limited",51961,"Plymouth","South West","Independent Learning Provider","WBL - full (regional)",445774,"2014-11-17","2014-11-20","Published","2014-12-25",7,"Retail and Commercial Enterprise",301,"Hairdressing and beauty therapy",2]
["Report","GHQ Training Limited",51961,"Plymouth","South West","Independent Learning Provider","WBL - full (regional)",445774,"2014-11-17","2014-11-20","Published","2014-12-25",15,"Business, Administration and Law",200,"Administration",2]
["Report","GHQ Training Limited",51961,"Plymouth","South West","Independent Learning Provider","WBL - full (regional)",445774,"2014-11-17","2014-11-20","Published","2014-12-25",1,"Health, Public Services and Care",500,"Early Years and Playwork",2]
["Report","Focus Training (SW) Limited",50126,"Plymouth","South West","Independent Learning Provider","WBL - full (regional)",452974,"2015-03-16","2015-03-20","Published","2015-05-01",7,"Retail and Commercial Enterprise",300,"Service Enterprises",2]
["Report","Focus Training (SW) Limited",50126,"Plymouth","South West","Independent Learning Provider","WBL - full (regional)",452974,"2015-03-16","2015-03-20","Published","2015-05-01",15,"Business, Administration and Law",200,"Administration",2]
["Report","Focus Training (SW) Limited",50126,"Plymouth","South West","Independent Learning Provider","WBL - full (regional)",452974,"2015-03-16","2015-03-20","Published","2015-05-01",1,"Health, Public Services and Care",300,"Health and Social Care",2]
["Report","Focus Training (SW) Limited",50126,"Plymouth","South West","Independent Learning Provider","WBL - full (regional)",452974,"2015-03-16","2015-03-20","Published","2015-05-01",7,"Retail and Commercial Enterprise",400,"Hospitality and Catering",2]
["Report","Focus Training (SW) Limited",50126,"Plymouth","South West","Independent Learning Provider","WBL - full (regional)",452974,"2015-03-16","2015-03-20","Published","2015-05-01",15,"Business, Administration and Law",300,"Business Management",2]
["Report","Mainstream Training Limited",58362,"Kent","South East","Independent Learning Provider","Work Based Learning - full (national)",446612,"2014-12-01","2014-12-05","Published","2015-01-15",5,"Construction, Planning and the Built Environment",202,"Construction Crafts",2]
["Report","Mainstream Training Limited",58362,"Kent","South East","Independent Learning Provider","Work Based Learning - full (national)",446612,"2014-12-01","2014-12-05","Published","2015-01-15",4,"Engineering and Manufacturing Technologies",400,"Transportation operations and maintenance",1]
["Report","Mainstream Training Limited",58362,"Kent","South East","Independent Learning Provider","Work Based Learning - full (national)",446612,"2014-12-01","2014-12-05","Published","2015-01-15",7,"Retail and Commercial Enterprise",200,"Warehousing and Distribution",1]
["Report","Mainstream Training Limited",58362,"Kent","South East","Independent Learning Provider","Work Based Learning - full (national)",446612,"2014-12-01","2014-12-05","Published","2015-01-15",15,"Business, Administration and Law",200,"Administration",2]
["Report","Romney Resource 2000 Ltd",58383,"Kent","South East","Community Learning and Skills","WBL - requires improvement",434392,"2015-03-03","2015-03-06","Published","2015-04-22",14,"Preparation for Life and Work",204,"Employability Training",3]
["Report","Waverley Training Services",55287,"Surrey","South East","Community Learning and Skills","WBL - requires improvement",430262,"2014-10-06","2014-10-10","Published","2014-11-18",1,"Health, Public Services and Care",300,"Health and Social Care",3]
["Report","Waverley Training Services",55287,"Surrey","South East","Community Learning and Skills","WBL - requires improvement",430262,"2014-10-06","2014-10-10","Published","2014-11-18",1,"Health, Public Services and Care",500,"Early Years and Playwork",3]
["Report","Waverley Training Services",55287,"Surrey","South East","Community Learning and Skills","WBL - requires improvement",430262,"2014-10-06","2014-10-10","Published","2014-11-18",14,"Preparation for Life and Work",204,"Employability Training",3]
["Report","Waverley Training Services",55287,"Surrey","South East","Community Learning and Skills","WBL - requires improvement",430262,"2014-10-06","2014-10-10","Published","2014-11-18",15,"Business, Administration and Law",300,"Business Management",3]
["Report","Waverley Training Services",55287,"Surrey","South East","Community Learning and Skills","WBL - requires improvement",430262,"2014-10-06","2014-10-10","Published","2014-11-18",8,"Leisure, Travel and Tourism",101,"Sport",2]
[{"$f":"IF(C566 <> \"\", HYPERLINK(CONCATENATE(\"http://reports.ofsted.gov.uk/inspection-reports/find-inspection-report/provider/ELS/\",C566),\"Report\"),\"\")","v":"Report"},"Waverley Training Services",55287,"Surrey","South East","Community Learning and Skills","WBL - requires improvement",430262,"2014-10-06","2014-10-10","Published","2014-11-18",15,"Business, Administration and Law",200,"Administration",3]
["Report","Compass Group UK & Ireland",58805,"Surrey","South East","Employer","WBL - requires improvement",430252,"2014-11-10","2014-11-14","Published","2014-12-19",7,"Retail and Commercial Enterprise",400,"Hospitality and Catering",2]
["Report","Compass Group UK & Ireland",58805,"Surrey","South East","Employer","WBL - requires improvement",430252,"2014-11-10","2014-11-14","Published","2014-12-19",15,"Business, Administration and Law",300,"Business Management",3]
["Report","Orpheus Centre",131950,"Surrey","South East","Independent Specialist College","ISC - full inspection",446687,"2014-10-21","2014-10-22","Published","2014-12-03",14,"Preparation for Life and Work",108,"Independent living and leisure skills",3]
["Report","Straight A Training Limited",54640,"Surrey","South East","Independent Learning Provider","WBL - full (regional)",452981,"2015-02-03","2015-02-06","Published","2015-03-16",7,"Retail and Commercial Enterprise",400,"Hospitality and Catering",3]
["Report","Weir Training Limited",55295,"Surrey","South East","Independent Learning Provider","WBL - full (regional)",452984,"2015-03-16","2015-03-20","Published","2015-04-23",7,"Retail and Commercial Enterprise",200,"Warehousing and Distribution",2]
["Report","Central College Nottingham",130783,"Nottinghamshire","East Midlands","General Further Education/Tertiary College","FE College - requires improvement",430278,"2014-11-10","2014-11-14","Published","2014-12-18",1,"Health, Public Services and Care",300,"Health and Social Care",3]
["Report","Central College Nottingham",130783,"Nottinghamshire","East Midlands","General Further Education/Tertiary College","FE College - requires improvement",430278,"2014-11-10","2014-11-14","Published","2014-12-18",8,"Leisure, Travel and Tourism",101,"Sport",2]
["Report","Central College Nottingham",130783,"Nottinghamshire","East Midlands","General Further Education/Tertiary College","FE College - requires improvement",430278,"2014-11-10","2014-11-14","Published","2014-12-18",14,"Preparation for Life and Work",112,"Foundation English",3]
["Report","Central College Nottingham",130783,"Nottinghamshire","East Midlands","General Further Education/Tertiary College","FE College - requires improvement",430278,"2014-11-10","2014-11-14","Published","2014-12-18",14,"Preparation for Life and Work",113,"Foundation mathematics",3]
["Report","Strategic Training Solutions (Mansfield) Limited",54643,"Nottinghamshire","East Midlands","Independent Learning Provider","WBL - requires improvement",430260,"2014-12-02","2014-12-04","Published","2015-01-13",14,"Preparation for Life and Work",204,"Employability Training",3]
["Report","Webs Training Limited",55294,"Nottinghamshire","East Midlands","Independent Learning Provider","WBL - full (regional)",452618,"2015-03-03","2015-03-06","Published","2015-04-09",4,"Engineering and Manufacturing Technologies",200,"Manufacturing Technologies",2]
["Report","Staffline Recruitment Limited",59075,"Nottingham","East Midlands","Independent Learning Provider","WBL - requires improvement",433768,"2015-01-20","2015-01-23","Published","2015-03-02",4,"Engineering and Manufacturing Technologies",200,"Manufacturing Technologies",2]
["Report","Bilborough College",130787,"Nottingham","East Midlands","Sixth Form College","SFC - full inspection",452491,"2015-01-20","2015-01-23","Published","2015-03-06",2,"Science and Mathematics",100,"Science",2]
["Report","Bilborough College",130787,"Nottingham","East Midlands","Sixth Form College","SFC - full inspection",452491,"2015-01-20","2015-01-23","Published","2015-03-06",2,"Science and Mathematics",200,"Mathematics and Statistics",4]
["Report","Bilborough College",130787,"Nottingham","East Midlands","Sixth Form College","SFC - full inspection",452491,"2015-01-20","2015-01-23","Published","2015-03-06",11,"Social Sciences",0,"Social Sciences",3]
["Report","Bilborough College",130787,"Nottingham","East Midlands","Sixth Form College","SFC - full inspection",452491,"2015-01-20","2015-01-23","Published","2015-03-06",12,"Languages, Literature and Culture",100,"English",3]
["Report","Retail Motor Industry Training Limited",58614,"Nottingham","East Midlands","Independent Learning Provider","WBL - requires improvement",429794,"2014-11-17","2014-11-21","Published","2014-12-23",15,"Business, Administration and Law",401,"Customer service",2]
["Report","Retail Motor Industry Training Limited",58614,"Nottingham","East Midlands","Independent Learning Provider","WBL - requires improvement",429794,"2014-11-17","2014-11-21","Published","2014-12-23",4,"Engineering and Manufacturing Technologies",300,"Motor vehicle",2]
["Report","Retail Motor Industry Training Limited",58614,"Nottingham","East Midlands","Independent Learning Provider","WBL - requires improvement",429794,"2014-11-17","2014-11-21","Published","2014-12-23",15,"Business, Administration and Law",300,"Business Management",2]
["Report","Retail Motor Industry Training Limited",58614,"Nottingham","East Midlands","Independent Learning Provider","WBL - requires improvement",429794,"2014-11-17","2014-11-21","Published","2014-12-23",1,"Health, Public Services and Care",300,"Health and Social Care",2]
["Report","Nottingham City Council",53664,"Nottingham","East Midlands","Community Learning and Skills","Adult and Community - full (regional)",423419,"2015-02-04","2015-02-06","Published","2015-03-13",17,"Family Learning",0,"Family Learning",2]
["Report","Furness College",130633,"Cumbria","North West (EY & ELS)","General Further Education/Tertiary College","FE College - full inspection",452487,"2015-03-24","2015-03-27","Published","2015-05-01",4,"Engineering and Manufacturing Technologies",100,"Engineering",1]
["Report","Furness College",130633,"Cumbria","North West (EY & ELS)","General Further Education/Tertiary College","FE College - full inspection",452487,"2015-03-24","2015-03-27","Published","2015-05-01",14,"Preparation for Life and Work",112,"Foundation English",3]
["Report","Furness College",130633,"Cumbria","North West (EY & ELS)","General Further Education/Tertiary College","FE College - full inspection",452487,"2015-03-24","2015-03-27","Published","2015-05-01",14,"Preparation for Life and Work",113,"Foundation mathematics",2]
["Report","Furness College",130633,"Cumbria","North West (EY & ELS)","General Further Education/Tertiary College","FE College - full inspection",452487,"2015-03-24","2015-03-27","Published","2015-05-01",4,"Engineering and Manufacturing Technologies",200,"Manufacturing Technologies",2]
["Report","NCC Adult Education Services",53545,"Norfolk","East of England","Community Learning and Skills","Adult and Community - full (regional)",452610,"2015-01-19","2015-01-23","Published","2015-03-09",14,"Preparation for Life and Work",108,"Independent living and leisure skills",3]
[{"$f":"IF(C593 <> \"\", HYPERLINK(CONCATENATE(\"http://reports.ofsted.gov.uk/inspection-reports/find-inspection-report/provider/ELS/\",C593),\"Report\"),\"\")","v":"Report"},"Sir Isaac Newton Sixth Form Free School",139896,"Norfolk","East of England","Free school-16-19","16-19 academy - full inspection",452502,"2015-03-03","2015-03-06","Published","2015-03-31",2,"Science and Mathematics",100,"Science",2]
["Report","Sir Isaac Newton Sixth Form Free School",139896,"Norfolk","East of England","Free school-16-19","16-19 academy - full inspection",452502,"2015-03-03","2015-03-06","Published","2015-03-31",2,"Science and Mathematics",101,"Psychology",2]
["Report","Sir Isaac Newton Sixth Form Free School",139896,"Norfolk","East of England","Free school-16-19","16-19 academy - full inspection",452502,"2015-03-03","2015-03-06","Published","2015-03-31",2,"Science and Mathematics",200,"Mathematics and Statistics",2]
["Report","MidKent College",130726,"Medway","South East","General Further Education/Tertiary College","FE College - full inspection",452489,"2015-03-02","2015-03-06","Published","2015-04-22",9,"Arts, Media and Publishing",100,"Performing Arts",2]
["Report","MidKent College",130726,"Medway","South East","General Further Education/Tertiary College","FE College - full inspection",452489,"2015-03-02","2015-03-06","Published","2015-04-22",1,"Health, Public Services and Care",300,"Health and Social Care",2]
["Report","MidKent College",130726,"Medway","South East","General Further Education/Tertiary College","FE College - full inspection",452489,"2015-03-02","2015-03-06","Published","2015-04-22",7,"Retail and Commercial Enterprise",400,"Hospitality and Catering",3]
["Report","MidKent College",130726,"Medway","South East","General Further Education/Tertiary College","FE College - full inspection",452489,"2015-03-02","2015-03-06","Published","2015-04-22",9,"Arts, Media and Publishing",200,"Visual Arts",2]
["Report","MidKent College",130726,"Medway","South East","General Further Education/Tertiary College","FE College - full inspection",452489,"2015-03-02","2015-03-06","Published","2015-04-22",1,"Health, Public Services and Care",500,"Early Years and Playwork",2]
["Report","MidKent College",130726,"Medway","South East","General Further Education/Tertiary College","FE College - full inspection",452489,"2015-03-02","2015-03-06","Published","2015-04-22",5,"Construction, Planning and the Built Environment",200,"Building and Construction",3]
["Report","MidKent College",130726,"Medway","South East","General Further Education/Tertiary College","FE College - full inspection",452489,"2015-03-02","2015-03-06","Published","2015-04-22",14,"Preparation for Life and Work",113,"Foundation mathematics",4]
["Report","MidKent College",130726,"Medway","South East","General Further Education/Tertiary College","FE College - full inspection",452489,"2015-03-02","2015-03-06","Published","2015-04-22",7,"Retail and Commercial Enterprise",301,"Hairdressing and beauty therapy",2]
["Report","Training 2000 Limited",55045,"Blackburn with Darwen","North West (EY & ELS)","Community Learning and Skills","WBL - full (regional)",452982,"2015-02-02","2015-02-06","Published","2015-03-12",4,"Engineering and Manufacturing Technologies",100,"Engineering",1]
["Report","Training 2000 Limited",55045,"Blackburn with Darwen","North West (EY & ELS)","Community Learning and Skills","WBL - full (regional)",452982,"2015-02-02","2015-02-06","Published","2015-03-12",1,"Health, Public Services and Care",200,"Nursing and Dental Health",1]
["Report","Training 2000 Limited",55045,"Blackburn with Darwen","North West (EY & ELS)","Community Learning and Skills","WBL - full (regional)",452982,"2015-02-02","2015-02-06","Published","2015-03-12",14,"Preparation for Life and Work",204,"Employability Training",2]
["Report","Training 2000 Limited",55045,"Blackburn with Darwen","North West (EY & ELS)","Community Learning and Skills","WBL - full (regional)",452982,"2015-02-02","2015-02-06","Published","2015-03-12",4,"Engineering and Manufacturing Technologies",200,"Manufacturing Technologies",1]
["Report","Training 2000 Limited",55045,"Blackburn with Darwen","North West (EY & ELS)","Community Learning and Skills","WBL - full (regional)",452982,"2015-02-02","2015-02-06","Published","2015-03-12",15,"Business, Administration and Law",100,"Accounting and Finance",2]
["Report","Training 2000 Limited",55045,"Blackburn with Darwen","North West (EY & ELS)","Community Learning and Skills","WBL - full (regional)",452982,"2015-02-02","2015-02-06","Published","2015-03-12",15,"Business, Administration and Law",200,"Administration",2]
["Report","Anderson Stockley Accredited Training Ltd",50410,"Northamptonshire","East Midlands","Independent Learning Provider","Work Based Learning - full (national)",452600,"2015-02-03","2015-02-05","Published","2015-03-12",1,"Health, Public Services and Care",200,"Nursing and Dental Health",3]
["Report","TQ Workforce Development Limited",58168,"Northamptonshire","East Midlands","Independent Learning Provider","WBL - requires improvement",430261,"2014-09-29","2014-10-03","Published","2014-11-07",1,"Health, Public Services and Care",400,"Public Services",3]
["Report","TQ Workforce Development Limited",58168,"Northamptonshire","East Midlands","Independent Learning Provider","WBL - requires improvement",430261,"2014-09-29","2014-10-03","Published","2014-11-07",14,"Preparation for Life and Work",113,"Foundation mathematics",2]
["Report","TQ Workforce Development Limited",58168,"Northamptonshire","East Midlands","Independent Learning Provider","WBL - requires improvement",430261,"2014-09-29","2014-10-03","Published","2014-11-07",15,"Business, Administration and Law",200,"Administration",2]
["Report","TQ Workforce Development Limited",58168,"Northamptonshire","East Midlands","Independent Learning Provider","WBL - requires improvement",430261,"2014-09-29","2014-10-03","Published","2014-11-07",14,"Preparation for Life and Work",112,"Foundation English",2]
["Report","TQ Workforce Development Limited",58168,"Northamptonshire","East Midlands","Independent Learning Provider","WBL - requires improvement",430261,"2014-09-29","2014-10-03","Published","2014-11-07",15,"Business, Administration and Law",300,"Business Management",2]
["Report","Options 2 Workplace Learning Ltd",58938,"Northamptonshire","East Midlands","Independent Learning Provider","WBL - full (regional)",452625,"2014-12-02","2014-12-05","Published","2015-01-08",15,"Business, Administration and Law",200,"Administration",3]
["Report","Hartlepool Sixth Form College",130568,"Hartlepool","North East, Yorkshire & Humber","Sixth Form College","SFC - full inspection",446538,"2014-09-23","2014-09-26","Published","2014-11-13",15,"Business, Administration and Law",300,"Business Management",2]
["Report","Hartlepool Sixth Form College",130568,"Hartlepool","North East, Yorkshire & Humber","Sixth Form College","SFC - full inspection",446538,"2014-09-23","2014-09-26","Published","2014-11-13",15,"Business, Administration and Law",500,"Law and Legal Services",3]
["Report","Hartlepool Sixth Form College",130568,"Hartlepool","North East, Yorkshire & Humber","Sixth Form College","SFC - full inspection",446538,"2014-09-23","2014-09-26","Published","2014-11-13",12,"Languages, Literature and Culture",100,"English",2]
["Report","Hartlepool Sixth Form College",130568,"Hartlepool","North East, Yorkshire & Humber","Sixth Form College","SFC - full inspection",446538,"2014-09-23","2014-09-26","Published","2014-11-13",12,"Languages, Literature and Culture",202,"Modern foreign languages",2]
["Report","lookfantastic Training Limited",53697,"Brighton and Hove","South East","Independent Learning Provider","Work Based Learning - full (national)",452613,"2015-02-02","2015-02-06","Published","2015-03-16",8,"Leisure, Travel and Tourism",101,"Sport",2]
["Report","lookfantastic Training Limited",53697,"Brighton and Hove","South East","Independent Learning Provider","Work Based Learning - full (national)",452613,"2015-02-02","2015-02-06","Published","2015-03-16",4,"Engineering and Manufacturing Technologies",100,"Engineering",2]
["Report","lookfantastic Training Limited",53697,"Brighton and Hove","South East","Independent Learning Provider","Work Based Learning - full (national)",452613,"2015-02-02","2015-02-06","Published","2015-03-16",4,"Engineering and Manufacturing Technologies",200,"Manufacturing Technologies",2]
[{"$f":"IF(C624 <> \"\", HYPERLINK(CONCATENATE(\"http://reports.ofsted.gov.uk/inspection-reports/find-inspection-report/provider/ELS/\",C624),\"Report\"),\"\")","v":"Report"},"lookfantastic Training Limited",53697,"Brighton and Hove","South East","Independent Learning Provider","Work Based Learning - full (national)",452613,"2015-02-02","2015-02-06","Published","2015-03-16",7,"Retail and Commercial Enterprise",302,"Hairdressing",3]
["Report","The Child Care Company (Old Windsor) Limited",58467,"Slough","South East","Independent Learning Provider","WBL - full (regional)",446611,"2015-01-19","2015-01-22","Published","2015-02-26",1,"Health, Public Services and Care",500,"Early Years and Playwork",2]
["Report","The Child Care Company (Old Windsor) Limited",58467,"Slough","South East","Independent Learning Provider","WBL - full (regional)",446611,"2015-01-19","2015-01-22","Published","2015-02-26",15,"Business, Administration and Law",200,"Administration",3]
["Report","Huntingdonshire Regional College",130612,"Cambridgeshire","East of England","General Further Education/Tertiary College","FE College - requires improvement",430273,"2014-11-17","2014-11-21","Published","2014-12-17",14,"Preparation for Life and Work",113,"Foundation mathematics",3]
["Report","Huntingdonshire Regional College",130612,"Cambridgeshire","East of England","General Further Education/Tertiary College","FE College - requires improvement",430273,"2014-11-17","2014-11-21","Published","2014-12-17",8,"Leisure, Travel and Tourism",102,"Public Services",2]
["Report","Huntingdonshire Regional College",130612,"Cambridgeshire","East of England","General Further Education/Tertiary College","FE College - requires improvement",430273,"2014-11-17","2014-11-21","Published","2014-12-17",1,"Health, Public Services and Care",300,"Health and Social Care",3]
["Report","Huntingdonshire Regional College",130612,"Cambridgeshire","East of England","General Further Education/Tertiary College","FE College - requires improvement",430273,"2014-11-17","2014-11-21","Published","2014-12-17",4,"Engineering and Manufacturing Technologies",300,"Motor vehicle",3]
["Report","Huntingdonshire Regional College",130612,"Cambridgeshire","East of England","General Further Education/Tertiary College","FE College - requires improvement",430273,"2014-11-17","2014-11-21","Published","2014-12-17",4,"Engineering and Manufacturing Technologies",400,"Transportation operations and maintenance",3]
["Report","Huntingdonshire Regional College",130612,"Cambridgeshire","East of England","General Further Education/Tertiary College","FE College - requires improvement",430273,"2014-11-17","2014-11-21","Published","2014-12-17",8,"Leisure, Travel and Tourism",101,"Sport",2]
["Report","Huntingdonshire Regional College",130612,"Cambridgeshire","East of England","General Further Education/Tertiary College","FE College - requires improvement",430273,"2014-11-17","2014-11-21","Published","2014-12-17",1,"Health, Public Services and Care",500,"Early Years and Playwork",3]
["Report","Trans-plant Training Limited",59164,"Devon","South West","Independent Learning Provider","WBL - full (regional)",446619,"2014-09-30","2014-10-03","Published","2014-11-07",4,"Engineering and Manufacturing Technologies",400,"Transportation operations and maintenance",3]
["Report","The Real Apprenticeship Company Limited",59162,"Warwickshire","West Midlands","Independent Learning Provider","Work Based Learning - full (national)",455608,"2015-02-17","2015-02-20","Published","2015-03-20",7,"Retail and Commercial Enterprise",100,"Retailing and Wholesaling",2]
["Report","Stratford-upon-Avon College",130837,"Warwickshire","West Midlands","General Further Education/Tertiary College","FE College - requires improvement",433769,"2015-03-17","2015-03-20","Published","2015-04-09",9,"Arts, Media and Publishing",200,"Visual Arts",2]
["Report","Stratford-upon-Avon College",130837,"Warwickshire","West Midlands","General Further Education/Tertiary College","FE College - requires improvement",433769,"2015-03-17","2015-03-20","Published","2015-04-09",14,"Preparation for Life and Work",113,"Foundation mathematics",2]
["Report","Stratford-upon-Avon College",130837,"Warwickshire","West Midlands","General Further Education/Tertiary College","FE College - requires improvement",433769,"2015-03-17","2015-03-20","Published","2015-04-09",1,"Health, Public Services and Care",300,"Health and Social Care",2]
["Report","Nuneaton Training Centre Limited",53693,"Warwickshire","West Midlands","Independent Learning Provider","WBL - full (regional)",452612,"2015-02-10","2015-02-12","Published","2015-03-06",14,"Preparation for Life and Work",204,"Employability Training",3]
["Report","Warwickshire College Group",130835,"Warwickshire","West Midlands","General Further Education/Tertiary College","FE College - full inspection",461394,"2015-03-09","2015-03-13","Published","2015-04-02",3,"Agriculture, Horticulture and Animal Care",301,"Equine Studies",2]
["Report","Warwickshire College Group",130835,"Warwickshire","West Midlands","General Further Education/Tertiary College","FE College - full inspection",461394,"2015-03-09","2015-03-13","Published","2015-04-02",14,"Preparation for Life and Work",113,"Foundation mathematics",3]
["Report","Warwickshire College Group",130835,"Warwickshire","West Midlands","General Further Education/Tertiary College","FE College - full inspection",461394,"2015-03-09","2015-03-13","Published","2015-04-02",3,"Agriculture, Horticulture and Animal Care",300,"Animal Care and Veterinary Science",2]
["Report","Warwickshire College Group",130835,"Warwickshire","West Midlands","General Further Education/Tertiary College","FE College - full inspection",461394,"2015-03-09","2015-03-13","Published","2015-04-02",8,"Leisure, Travel and Tourism",101,"Sport",2]
["Report","Warwickshire College Group",130835,"Warwickshire","West Midlands","General Further Education/Tertiary College","FE College - full inspection",461394,"2015-03-09","2015-03-13","Published","2015-04-02",15,"Business, Administration and Law",300,"Business Management",2]
["Report","Warwickshire College Group",130835,"Warwickshire","West Midlands","General Further Education/Tertiary College","FE College - full inspection",461394,"2015-03-09","2015-03-13","Published","2015-04-02",4,"Engineering and Manufacturing Technologies",100,"Engineering",2]
["Report","Warwickshire College Group",130835,"Warwickshire","West Midlands","General Further Education/Tertiary College","FE College - full inspection",461394,"2015-03-09","2015-03-13","Published","2015-04-02",14,"Preparation for Life and Work",112,"Foundation English",3]
["Report","Stratford-upon-Avon College",130837,"Warwickshire","West Midlands","General Further Education/Tertiary College","FE College - requires improvement",433769,"2015-03-17","2015-03-20","Published","2015-04-09",1,"Health, Public Services and Care",500,"Early Years and Playwork",2]
["Report","Stratford-upon-Avon College",130837,"Warwickshire","West Midlands","General Further Education/Tertiary College","FE College - requires improvement",433769,"2015-03-17","2015-03-20","Published","2015-04-09",9,"Arts, Media and Publishing",100,"Performing Arts",2]
["Report","Stratford-upon-Avon College",130837,"Warwickshire","West Midlands","General Further Education/Tertiary College","FE College - requires improvement",433769,"2015-03-17","2015-03-20","Published","2015-04-09",7,"Retail and Commercial Enterprise",400,"Hospitality and Catering",2]
["Report","East Surrey College",130824,"Surrey","South East","General Further Education/Tertiary College","FE College - full inspection",446540,"2014-12-09","2014-12-12","Published","2015-01-21",9,"Arts, Media and Publishing",200,"Visual Arts",1]
["Report","East Surrey College",130824,"Surrey","South East","General Further Education/Tertiary College","FE College - full inspection",446540,"2014-12-09","2014-12-12","Published","2015-01-21",15,"Business, Administration and Law",300,"Business Management",2]
["Report","East Surrey College",130824,"Surrey","South East","General Further Education/Tertiary College","FE College - full inspection",446540,"2014-12-09","2014-12-12","Published","2015-01-21",5,"Construction, Planning and the Built Environment",200,"Building and Construction",3]
["Report","East Surrey College",130824,"Surrey","South East","General Further Education/Tertiary College","FE College - full inspection",446540,"2014-12-09","2014-12-12","Published","2015-01-21",1,"Health, Public Services and Care",300,"Health and Social Care",1]
["Report","East Surrey College",130824,"Surrey","South East","General Further Education/Tertiary College","FE College - full inspection",446540,"2014-12-09","2014-12-12","Published","2015-01-21",1,"Health, Public Services and Care",500,"Early Years and Playwork",1]
["Report","East Surrey College",130824,"Surrey","South East","General Further Education/Tertiary College","FE College - full inspection",446540,"2014-12-09","2014-12-12","Published","2015-01-21",9,"Arts, Media and Publishing",300,"Media and Communication",1]
[{"$f":"IF(C656 <> \"\", HYPERLINK(CONCATENATE(\"http://reports.ofsted.gov.uk/inspection-reports/find-inspection-report/provider/ELS/\",C656),\"Report\"),\"\")","v":"Report"},"East Surrey College",130824,"Surrey","South East","General Further Education/Tertiary College","FE College - full inspection",446540,"2014-12-09","2014-12-12","Published","2015-01-21",15,"Business, Administration and Law",100,"Accounting and Finance",2]
["Report","East Surrey College",130824,"Surrey","South East","General Further Education/Tertiary College","FE College - full inspection",446540,"2014-12-09","2014-12-12","Published","2015-01-21",14,"Preparation for Life and Work",112,"Foundation English",2]
["Report","Strode's College",130833,"Surrey","South East","Sixth Form College","SFC - full inspection",452545,"2015-03-10","2015-03-13","Published","2015-04-24",2,"Science and Mathematics",200,"Mathematics and Statistics",3]
["Report","Strode's College",130833,"Surrey","South East","Sixth Form College","SFC - full inspection",452545,"2015-03-10","2015-03-13","Published","2015-04-24",11,"Social Sciences",0,"Social Sciences",3]
["Report","Strode's College",130833,"Surrey","South East","Sixth Form College","SFC - full inspection",452545,"2015-03-10","2015-03-13","Published","2015-04-24",2,"Science and Mathematics",100,"Science",3]
["Report","Strode's College",130833,"Surrey","South East","Sixth Form College","SFC - full inspection",452545,"2015-03-10","2015-03-13","Published","2015-04-24",9,"Arts, Media and Publishing",100,"Performing Arts",2]
["Report","Strode's College",130833,"Surrey","South East","Sixth Form College","SFC - full inspection",452545,"2015-03-10","2015-03-13","Published","2015-04-24",12,"Languages, Literature and Culture",100,"English",3]
["Report","Strode's College",130833,"Surrey","South East","Sixth Form College","SFC - full inspection",452545,"2015-03-10","2015-03-13","Published","2015-04-24",9,"Arts, Media and Publishing",200,"Visual Arts",3]
["Report","Weir Training Limited",55295,"Surrey","South East","Independent Learning Provider","WBL - full (regional)",452984,"2015-03-16","2015-03-20","Published","2015-04-23",7,"Retail and Commercial Enterprise",100,"Retailing and Wholesaling",2]
["Report","Weir Training Limited",55295,"Surrey","South East","Independent Learning Provider","WBL - full (regional)",452984,"2015-03-16","2015-03-20","Published","2015-04-23",15,"Business, Administration and Law",300,"Business Management",2]
["Report","Weir Training Limited",55295,"Surrey","South East","Independent Learning Provider","WBL - full (regional)",452984,"2015-03-16","2015-03-20","Published","2015-04-23",15,"Business, Administration and Law",200,"Administration",2]

{"sheet":"PTT Data","index":7,"n_rows":208,"n_cols":23,"rows_kept":208,"cut":false,"hidden":true,"merged":[]}
["Provider Name","Provider Type","Provider URN","Inspection Number","UKPRN","Inspection Start Date","Inspection End Date","Ofsted Region","Inadequate","Inspection Publication Date","Link to report","Overall Effectiveness grade","Outcome for learners","Quality of Teaching Learning and Assessment","Effectiveness of Leadership and Management","Comparison OE","Comparison outcomes for learners","Comparison teaching","Comparison Effectiveness of leadership and management"]
["Unique Training North East Limited","WBL - requires improvement",56817,429793,10033129,"2014-09-09","2014-09-12","North East, Yorkshire and Humberside","N","2014-10-23T03:15:04.520","Link",3,2,2,3,{"$f":"VLOOKUP($D2,'Inspection data'!$I:$AU,9,FALSE)","v":3},{"$f":"VLOOKUP($D2,'Inspection data'!$I:$AU,19,FALSE)","v":2},{"$f":"VLOOKUP($D2,'Inspection data'!$I:$AU,29,FALSE)","v":2},{"$f":"VLOOKUP($D2,'Inspection data'!$I:$AU,39,FALSE)","v":3},{"$f":"IF(L2=P2,\"\",\"check\")","v":""},{"$f":"IF(M2=Q2,\"\",\"check\")","v":""},"",""]
["JBC Computer Training Limited","WBL - full (regional)",59153,446618,10019314,"2014-09-17","2014-09-19","West Midlands","N","2014-10-23T03:15:10.793","Link",2,2,2,2,{"$f":"VLOOKUP($D3,'Inspection data'!$I:$AU,9,FALSE)","v":2},{"$f":"VLOOKUP($D3,'Inspection data'!$I:$AU,19,FALSE)","v":2},{"$f":"VLOOKUP($D3,'Inspection data'!$I:$AU,29,FALSE)","v":2},{"$f":"VLOOKUP($D3,'Inspection data'!$I:$AU,39,FALSE)","v":2},{"$f":"IF(L3=P3,\"\",\"check\")","v":""},"","",""]
["The Learning Partnership for Cornwall and The Isles of Scilly Limited","WBL - full (regional)",59113,434062,10006735,"2014-09-16","2014-09-19","South West","N","2014-10-30T03:15:03.700","Link",3,3,3,3,{"$f":"VLOOKUP($D4,'Inspection data'!$I:$AU,9,FALSE)","v":3},{"$f":"VLOOKUP($D4,'Inspection data'!$I:$AU,19,FALSE)","v":3},{"$f":"VLOOKUP($D4,'Inspection data'!$I:$AU,29,FALSE)","v":3},{"$f":"VLOOKUP($D4,'Inspection data'!$I:$AU,39,FALSE)","v":3},"","","",""]
["Beacon Employment","WBL - full (regional)",59072,434036,10000588,"2014-09-23","2014-09-26","West Midlands","Y","2014-10-29T03:15:04.733","Link",4,4,4,4,{"$f":"VLOOKUP($D5,'Inspection data'!$I:$AU,9,FALSE)","v":4},{"$f":"VLOOKUP($D5,'Inspection data'!$I:$AU,19,FALSE)","v":4},{"$f":"VLOOKUP($D5,'Inspection data'!$I:$AU,29,FALSE)","v":4},{"$f":"VLOOKUP($D5,'Inspection data'!$I:$AU,39,FALSE)","v":4},"","","",""]
["Redcar & Cleveland Adult Learning Service","Adult and Community - full (regional)",54087,446665,10005413,"2014-09-23","2014-09-26","North East, Yorkshire and Humberside","N","2014-10-29T03:15:07.230","Link",2,2,2,2,{"$f":"VLOOKUP($D6,'Inspection data'!$I:$AU,9,FALSE)","v":2},{"$f":"VLOOKUP($D6,'Inspection data'!$I:$AU,19,FALSE)","v":2},{"$f":"VLOOKUP($D6,'Inspection data'!$I:$AU,29,FALSE)","v":2},{"$f":"VLOOKUP($D6,'Inspection data'!$I:$AU,39,FALSE)","v":2},"","","",""]
["Skills for Security Limited","WBL - requires improvement",50192,430258,10010523,"2014-09-22","2014-09-26","West Midlands","N","2014-10-28T03:15:03.413","Link",3,3,3,3,{"$f":"VLOOKUP($D7,'Inspection data'!$I:$AU,9,FALSE)","v":3},{"$f":"VLOOKUP($D7,'Inspection data'!$I:$AU,19,FALSE)","v":3},{"$f":"VLOOKUP($D7,'Inspection data'!$I:$AU,29,FALSE)","v":3},{"$f":"VLOOKUP($D7,'Inspection data'!$I:$AU,39,FALSE)","v":3},"","","",""]
["Acacia Training Limited","WBL - requires improvement",50304,430249,10000061,"2014-09-29","2014-10-03","West Midlands","N","2014-11-04T03:15:03.117","Link",3,3,3,3,{"$f":"VLOOKUP($D8,'Inspection data'!$I:$AU,9,FALSE)","v":3},{"$f":"VLOOKUP($D8,'Inspection data'!$I:$AU,19,FALSE)","v":3},{"$f":"VLOOKUP($D8,'Inspection data'!$I:$AU,29,FALSE)","v":3},{"$f":"VLOOKUP($D8,'Inspection data'!$I:$AU,39,FALSE)","v":3},"","","",""]
["Luton Borough Council","Adult and community - full (national)",53201,434069,10004124,"2014-09-29","2014-10-03","East of England","N","2014-11-07T03:15:05.350","Link",2,2,2,2,{"$f":"VLOOKUP($D9,'Inspection data'!$I:$AU,9,FALSE)","v":2},{"$f":"VLOOKUP($D9,'Inspection data'!$I:$AU,19,FALSE)","v":2},{"$f":"VLOOKUP($D9,'Inspection data'!$I:$AU,29,FALSE)","v":2},{"$f":"VLOOKUP($D9,'Inspection data'!$I:$AU,39,FALSE)","v":2},"","","",""]
["TQ Workforce Development Limited","WBL - requires improvement",58168,430261,10010939,"2014-09-29","2014-10-03","East Midlands","N","2014-11-07T03:15:04.063","Link",2,2,2,2,{"$f":"VLOOKUP($D10,'Inspection data'!$I:$AU,9,FALSE)","v":2},{"$f":"VLOOKUP($D10,'Inspection data'!$I:$AU,19,FALSE)","v":2},{"$f":"VLOOKUP($D10,'Inspection data'!$I:$AU,29,FALSE)","v":2},{"$f":"VLOOKUP($D10,'Inspection data'!$I:$AU,39,FALSE)","v":2},"","","",""]
["Trans-plant Training Limited","WBL - full (regional)",59164,446619,10021850,"2014-09-30","2014-10-03","South West","N","2014-11-07T03:15:09.380","Link",3,3,3,3,{"$f":"VLOOKUP($D11,'Inspection data'!$I:$AU,9,FALSE)","v":3},{"$f":"VLOOKUP($D11,'Inspection data'!$I:$AU,19,FALSE)","v":3},{"$f":"VLOOKUP($D11,'Inspection data'!$I:$AU,29,FALSE)","v":3},{"$f":"VLOOKUP($D11,'Inspection data'!$I:$AU,39,FALSE)","v":3},"","","",""]
["Lawn Tennis Association Limited","Work Based Learning - full (national)",58182,446609,10022654,"2014-10-06","2014-10-10","London","N","2014-11-17T03:15:06.943","Link",1,1,1,1,{"$f":"VLOOKUP($D12,'Inspection data'!$I:$AU,9,FALSE)","v":1},{"$f":"VLOOKUP($D12,'Inspection data'!$I:$AU,19,FALSE)","v":1},{"$f":"VLOOKUP($D12,'Inspection data'!$I:$AU,29,FALSE)","v":1},{"$f":"VLOOKUP($D12,'Inspection data'!$I:$AU,39,FALSE)","v":1},"","","",""]
["Southend-on-Sea Borough Council","Adult and Community - full (regional)",54519,446666,10006029,"2014-10-06","2014-10-10","East of England","N","2014-11-12T03:15:07.790","Link",2,2,2,2,{"$f":"VLOOKUP($D13,'Inspection data'!$I:$AU,9,FALSE)","v":2},{"$f":"VLOOKUP($D13,'Inspection data'!$I:$AU,19,FALSE)","v":2},{"$f":"VLOOKUP($D13,'Inspection data'!$I:$AU,29,FALSE)","v":2},{"$f":"VLOOKUP($D13,'Inspection data'!$I:$AU,39,FALSE)","v":2},"","","",""]
["The Marine Society College of the Sea","Adult and Community - full (regional)",130414,446670,10004204,"2014-10-08","2014-10-10","London","Y","2014-11-24T03:15:07.390","Link",4,4,4,4,{"$f":"VLOOKUP($D14,'Inspection data'!$I:$AU,9,FALSE)","v":4},{"$f":"VLOOKUP($D14,'Inspection data'!$I:$AU,19,FALSE)","v":4},{"$f":"VLOOKUP($D14,'Inspection data'!$I:$AU,29,FALSE)","v":4},{"$f":"VLOOKUP($D14,'Inspection data'!$I:$AU,39,FALSE)","v":4},"","","",""]
["Waverley Training Services","WBL - requires improvement",55287,430262,10008986,"2014-10-06","2014-10-10","South East","N","2014-11-18T03:15:03.793","Link",3,3,3,3,{"$f":"VLOOKUP($D15,'Inspection data'!$I:$AU,9,FALSE)","v":3},{"$f":"VLOOKUP($D15,'Inspection data'!$I:$AU,19,FALSE)","v":3},{"$f":"VLOOKUP($D15,'Inspection data'!$I:$AU,29,FALSE)","v":3},{"$f":"VLOOKUP($D15,'Inspection data'!$I:$AU,39,FALSE)","v":3},"","","",""]
["Matrix Training and Development Limited","WBL - full (regional)",53268,446602,10004240,"2014-10-14","2014-10-16","West Midlands","N","2014-11-12T03:15:07.390","Link",2,2,2,2,{"$f":"VLOOKUP($D16,'Inspection data'!$I:$AU,9,FALSE)","v":2},{"$f":"VLOOKUP($D16,'Inspection data'!$I:$AU,19,FALSE)","v":2},{"$f":"VLOOKUP($D16,'Inspection data'!$I:$AU,29,FALSE)","v":2},{"$f":"VLOOKUP($D16,'Inspection data'!$I:$AU,39,FALSE)","v":2},"","","",""]
["Havering London Borough Council","Adult and community - full (national)",53127,434068,10003993,"2014-10-13","2014-10-17","London","N","2014-12-04T03:15:03.693","Link",2,2,2,2,{"$f":"VLOOKUP($D17,'Inspection data'!$I:$AU,9,FALSE)","v":2},{"$f":"VLOOKUP($D17,'Inspection data'!$I:$AU,19,FALSE)","v":2},{"$f":"VLOOKUP($D17,'Inspection data'!$I:$AU,29,FALSE)","v":2},{"$f":"VLOOKUP($D17,'Inspection data'!$I:$AU,39,FALSE)","v":2},"","","",""]
["Warrington Borough Council","Adult and Community - full (regional)",55268,446668,10007336,"2014-10-14","2014-10-17","North West","Y","2014-12-16","Link",4,4,3,4,{"$f":"VLOOKUP($D18,'Inspection data'!$I:$AU,9,FALSE)","v":4},{"$f":"VLOOKUP($D18,'Inspection data'!$I:$AU,19,FALSE)","v":4},{"$f":"VLOOKUP($D18,'Inspection data'!$I:$AU,29,FALSE)","v":3},{"$f":"VLOOKUP($D18,'Inspection data'!$I:$AU,39,FALSE)","v":4},"","","",""]
["Morthyng Group Limited","WBL - full (regional)",53422,452205,10004434,"2014-10-13","2014-10-17","North East, Yorkshire and Humberside","N","2014-11-19T03:15:17.480","Link",2,2,2,2,{"$f":"VLOOKUP($D19,'Inspection data'!$I:$AU,9,FALSE)","v":2},{"$f":"VLOOKUP($D19,'Inspection data'!$I:$AU,19,FALSE)","v":2},{"$f":"VLOOKUP($D19,'Inspection data'!$I:$AU,29,FALSE)","v":2},{"$f":"VLOOKUP($D19,'Inspection data'!$I:$AU,39,FALSE)","v":2},"","","",""]
["Safe in Tees Valley Limited","WBL - full (regional)",54245,451617,10005615,"2014-10-15","2014-10-17","North East, Yorkshire and Humberside","Y","2014-11-19T03:15:13.777","Link",4,4,4,4,{"$f":"VLOOKUP($D20,'Inspection data'!$I:$AU,9,FALSE)","v":4},{"$f":"VLOOKUP($D20,'Inspection data'!$I:$AU,19,FALSE)","v":4},{"$f":"VLOOKUP($D20,'Inspection data'!$I:$AU,29,FALSE)","v":4},{"$f":"VLOOKUP($D20,'Inspection data'!$I:$AU,39,FALSE)","v":4},"","","",""]
["Skills Team Ltd","WBL - requires improvement",58340,430259,10012834,"2014-10-13","2014-10-17","London","N","2014-11-27T03:15:04.193","Link",3,3,3,3,{"$f":"VLOOKUP($D21,'Inspection data'!$I:$AU,9,FALSE)","v":3},{"$f":"VLOOKUP($D21,'Inspection data'!$I:$AU,19,FALSE)","v":3},{"$f":"VLOOKUP($D21,'Inspection data'!$I:$AU,29,FALSE)","v":3},{"$f":"VLOOKUP($D21,'Inspection data'!$I:$AU,39,FALSE)","v":3},"","","",""]
["Woodspeen Training Limited","WBL - requires improvement",50262,446598,10000028,"2014-10-13","2014-10-17","North East, Yorkshire and Humberside","N","2014-11-19T03:15:06.353","Link",2,2,2,2,{"$f":"VLOOKUP($D22,'Inspection data'!$I:$AU,9,FALSE)","v":2},{"$f":"VLOOKUP($D22,'Inspection data'!$I:$AU,19,FALSE)","v":2},{"$f":"VLOOKUP($D22,'Inspection data'!$I:$AU,29,FALSE)","v":2},{"$f":"VLOOKUP($D22,'Inspection data'!$I:$AU,39,FALSE)","v":2},"","","",""]
["CCP GRADUATE SCHOOL LTD","WBL - requires improvement",51090,430251,10001292,"2014-10-20","2014-10-23","London","N","2014-12-15T03:15:03.810","Link",3,3,2,3,{"$f":"VLOOKUP($D23,'Inspection data'!$I:$AU,9,FALSE)","v":3},{"$f":"VLOOKUP($D23,'Inspection data'!$I:$AU,19,FALSE)","v":3},{"$f":"VLOOKUP($D23,'Inspection data'!$I:$AU,29,FALSE)","v":2},{"$f":"VLOOKUP($D23,'Inspection data'!$I:$AU,39,FALSE)","v":3},"","","",""]
["Manor Training and Resource Centre Limited","Adult and Community - full (regional)",53239,446664,10004192,"2014-10-22","2014-10-24","North East, Yorkshire and Humberside","N","2014-11-28","Link",3,3,3,3,{"$f":"VLOOKUP($D24,'Inspection data'!$I:$AU,9,FALSE)","v":3},{"$f":"VLOOKUP($D24,'Inspection data'!$I:$AU,19,FALSE)","v":3},{"$f":"VLOOKUP($D24,'Inspection data'!$I:$AU,29,FALSE)","v":3},{"$f":"VLOOKUP($D24,'Inspection data'!$I:$AU,39,FALSE)","v":3},"","","",""]
["Aspire Achieve Advance Limited","WBL - full (regional)",59185,451933,10031241,"2014-10-20","2014-10-24","East Midlands","N","2014-11-19T03:15:15.110","Link",1,1,1,1,{"$f":"VLOOKUP($D25,'Inspection data'!$I:$AU,9,FALSE)","v":1},{"$f":"VLOOKUP($D25,'Inspection data'!$I:$AU,19,FALSE)","v":1},{"$f":"VLOOKUP($D25,'Inspection data'!$I:$AU,29,FALSE)","v":1},{"$f":"VLOOKUP($D25,'Inspection data'!$I:$AU,39,FALSE)","v":1},"","","",""]
["Skills for Health Limited","WBL - requires improvement",58437,430257,10038112,"2014-10-20","2014-10-24","South West","N","2014-11-28T03:15:02.983","Link",2,2,2,2,{"$f":"VLOOKUP($D26,'Inspection data'!$I:$AU,9,FALSE)","v":2},{"$f":"VLOOKUP($D26,'Inspection data'!$I:$AU,19,FALSE)","v":2},{"$f":"VLOOKUP($D26,'Inspection data'!$I:$AU,29,FALSE)","v":2},{"$f":"VLOOKUP($D26,'Inspection data'!$I:$AU,39,FALSE)","v":2},"","","",""]
["MI ComputSolutions Incorporated","WBL - full (regional)",58370,451598,10018328,"2014-10-27","2014-10-31","London","N","2014-12-05T03:15:21.160","Link",2,2,2,2,{"$f":"VLOOKUP($D27,'Inspection data'!$I:$AU,9,FALSE)","v":2},{"$f":"VLOOKUP($D27,'Inspection data'!$I:$AU,19,FALSE)","v":2},{"$f":"VLOOKUP($D27,'Inspection data'!$I:$AU,29,FALSE)","v":2},{"$f":"VLOOKUP($D27,'Inspection data'!$I:$AU,39,FALSE)","v":2},"","","",""]
["Succead Limited","Work Based Learning - full (national)",59159,452693,10033478,"2014-10-27","2014-10-31","West Midlands","N","2014-11-21T03:15:15.453","Link",3,3,3,3,{"$f":"VLOOKUP($D28,'Inspection data'!$I:$AU,9,FALSE)","v":3},{"$f":"VLOOKUP($D28,'Inspection data'!$I:$AU,19,FALSE)","v":3},{"$f":"VLOOKUP($D28,'Inspection data'!$I:$AU,29,FALSE)","v":3},{"$f":"VLOOKUP($D28,'Inspection data'!$I:$AU,39,FALSE)","v":3},"","","",""]
["Team Enterprises Limited","WBL - full (regional)",58515,445777,10006519,"2014-10-27","2014-10-31","North West","N","2014-12-09T03:15:05.767","Link",3,3,3,3,{"$f":"VLOOKUP($D29,'Inspection data'!$I:$AU,9,FALSE)","v":3},{"$f":"VLOOKUP($D29,'Inspection data'!$I:$AU,19,FALSE)","v":3},{"$f":"VLOOKUP($D29,'Inspection data'!$I:$AU,29,FALSE)","v":3},{"$f":"VLOOKUP($D29,'Inspection data'!$I:$AU,39,FALSE)","v":3},"","","",""]
["Bestland Solutions Limited","WBL - full (regional)",57838,452620,10018344,"2014-11-04","2014-11-07","South East","N","2014-12-12","Link",3,3,3,3,{"$f":"VLOOKUP($D30,'Inspection data'!$I:$AU,9,FALSE)","v":3},{"$f":"VLOOKUP($D30,'Inspection data'!$I:$AU,19,FALSE)","v":3},{"$f":"VLOOKUP($D30,'Inspection data'!$I:$AU,29,FALSE)","v":3},{"$f":"VLOOKUP($D30,'Inspection data'!$I:$AU,39,FALSE)","v":3},"","","",""]
["Lancashire Adult Learning","Adult and community - full (national)",52911,446661,10003765,"2014-11-03","2014-11-07","North West","Y","2014-12-10T03:15:07.653","Link",4,3,3,4,{"$f":"VLOOKUP($D31,'Inspection data'!$I:$AU,9,FALSE)","v":4},{"$f":"VLOOKUP($D31,'Inspection data'!$I:$AU,19,FALSE)","v":3},{"$f":"VLOOKUP($D31,'Inspection data'!$I:$AU,29,FALSE)","v":3},{"$f":"VLOOKUP($D31,'Inspection data'!$I:$AU,39,FALSE)","v":4},"","","",""]
["North Yorkshire County Council","ACL - requires improvement",50229,446660,10004727,"2014-11-03","2014-11-07","North East, Yorkshire and Humberside","N","2014-12-10T03:15:07.207","Link",2,2,2,2,{"$f":"VLOOKUP($D32,'Inspection data'!$I:$AU,9,FALSE)","v":2},{"$f":"VLOOKUP($D32,'Inspection data'!$I:$AU,19,FALSE)","v":2},{"$f":"VLOOKUP($D32,'Inspection data'!$I:$AU,29,FALSE)","v":2},{"$f":"VLOOKUP($D32,'Inspection data'!$I:$AU,39,FALSE)","v":2},"","","",""]
["Norman Mackie & Associates Limited","Work Based Learning - full (national)",58507,451204,10004665,"2014-11-10","2014-11-12","North West","N","2014-12-15T03:15:08.043","Link",2,2,2,2,{"$f":"VLOOKUP($D33,'Inspection data'!$I:$AU,9,FALSE)","v":2},{"$f":"VLOOKUP($D33,'Inspection data'!$I:$AU,19,FALSE)","v":2},{"$f":"VLOOKUP($D33,'Inspection data'!$I:$AU,29,FALSE)","v":2},{"$f":"VLOOKUP($D33,'Inspection data'!$I:$AU,39,FALSE)","v":2},"","","",""]
["Wokingham Council","Adult and Community - full (regional)",50246,452599,10007567,"2014-11-11","2014-11-13","South East","N","2014-12-23T03:15:16.427","Link",3,3,2,3,{"$f":"VLOOKUP($D34,'Inspection data'!$I:$AU,9,FALSE)","v":3},{"$f":"VLOOKUP($D34,'Inspection data'!$I:$AU,19,FALSE)","v":3},{"$f":"VLOOKUP($D34,'Inspection data'!$I:$AU,29,FALSE)","v":2},{"$f":"VLOOKUP($D34,'Inspection data'!$I:$AU,39,FALSE)","v":3},"","","",""]
["Adult Community Learning Essex","Adult and Community - full (regional)",51766,423415,10002327,"2014-11-10","2014-11-14","East of England","N","2014-12-19T03:15:03.380","Link",3,3,3,3,{"$f":"VLOOKUP($D35,'Inspection data'!$I:$AU,9,FALSE)","v":3},{"$f":"VLOOKUP($D35,'Inspection data'!$I:$AU,19,FALSE)","v":3},{"$f":"VLOOKUP($D35,'Inspection data'!$I:$AU,29,FALSE)","v":3},{"$f":"VLOOKUP($D35,'Inspection data'!$I:$AU,39,FALSE)","v":3},"","","",""]
["Compass Group UK & Ireland","WBL - requires improvement",58805,430252,10024317,"2014-11-10","2014-11-14","South East","N","2014-12-19T03:15:03.937","Link",2,3,2,2,{"$f":"VLOOKUP($D36,'Inspection data'!$I:$AU,9,FALSE)","v":2},{"$f":"VLOOKUP($D36,'Inspection data'!$I:$AU,19,FALSE)","v":3},{"$f":"VLOOKUP($D36,'Inspection data'!$I:$AU,29,FALSE)","v":2},{"$f":"VLOOKUP($D36,'Inspection data'!$I:$AU,39,FALSE)","v":2},"","","",""]
["Haringey London Borough Council","ACL - requires improvement",53124,430294,10002859,"2014-11-10","2014-11-14","London","N","2014-12-19T03:15:05.130","Link",3,3,3,3,{"$f":"VLOOKUP($D37,'Inspection data'!$I:$AU,9,FALSE)","v":3},{"$f":"VLOOKUP($D37,'Inspection data'!$I:$AU,19,FALSE)","v":3},{"$f":"VLOOKUP($D37,'Inspection data'!$I:$AU,29,FALSE)","v":3},{"$f":"VLOOKUP($D37,'Inspection data'!$I:$AU,39,FALSE)","v":3},"","","",""]
["In Touch Care Limited","Work Based Learning - full (national)",50138,446599,10003279,"2014-11-10","2014-11-14","North East, Yorkshire and Humberside","N","2014-12-19T03:15:11.570","Link",3,3,3,3,{"$f":"VLOOKUP($D38,'Inspection data'!$I:$AU,9,FALSE)","v":3},{"$f":"VLOOKUP($D38,'Inspection data'!$I:$AU,19,FALSE)","v":3},{"$f":"VLOOKUP($D38,'Inspection data'!$I:$AU,29,FALSE)","v":3},{"$f":"VLOOKUP($D38,'Inspection data'!$I:$AU,39,FALSE)","v":3},"","","",""]
["S.Y.T.G. Limited","WBL - requires improvement",54504,430256,10010846,"2014-11-11","2014-11-14","North East, Yorkshire and Humberside","N","2014-12-17T03:15:04.440","Link",2,2,2,3,{"$f":"VLOOKUP($D39,'Inspection data'!$I:$AU,9,FALSE)","v":2},{"$f":"VLOOKUP($D39,'Inspection data'!$I:$AU,19,FALSE)","v":2},{"$f":"VLOOKUP($D39,'Inspection data'!$I:$AU,29,FALSE)","v":2},{"$f":"VLOOKUP($D39,'Inspection data'!$I:$AU,39,FALSE)","v":3},"","","",""]
["GHQ Training Limited","WBL - full (regional)",51961,445774,10012171,"2014-11-17","2014-11-20","South West","N","2014-12-25T03:15:03.660","Link",2,2,2,2,{"$f":"VLOOKUP($D40,'Inspection data'!$I:$AU,9,FALSE)","v":2},{"$f":"VLOOKUP($D40,'Inspection data'!$I:$AU,19,FALSE)","v":2},{"$f":"VLOOKUP($D40,'Inspection data'!$I:$AU,29,FALSE)","v":2},{"$f":"VLOOKUP($D40,'Inspection data'!$I:$AU,39,FALSE)","v":2},"","","",""]
["Retail Motor Industry Training Limited","WBL - requires improvement",58614,429794,10023047,"2014-11-17","2014-11-21","East Midlands","N","2014-12-23T03:15:03.820","Link",2,2,2,1,{"$f":"VLOOKUP($D41,'Inspection data'!$I:$AU,9,FALSE)","v":2},{"$f":"VLOOKUP($D41,'Inspection data'!$I:$AU,19,FALSE)","v":2},{"$f":"VLOOKUP($D41,'Inspection data'!$I:$AU,29,FALSE)","v":2},{"$f":"VLOOKUP($D41,'Inspection data'!$I:$AU,39,FALSE)","v":1},"","","",""]
["The Cornwall Council (Cornwall Adult Education)","ACL - requires improvement",51349,430293,10001695,"2014-11-17","2014-11-21","South West","N","2015-01-14","Link",2,2,2,2,{"$f":"VLOOKUP($D42,'Inspection data'!$I:$AU,9,FALSE)","v":2},{"$f":"VLOOKUP($D42,'Inspection data'!$I:$AU,19,FALSE)","v":2},{"$f":"VLOOKUP($D42,'Inspection data'!$I:$AU,29,FALSE)","v":2},{"$f":"VLOOKUP($D42,'Inspection data'!$I:$AU,39,FALSE)","v":2},"","","",""]
["Roots and Shoots","WBL - full (regional)",54175,434051,10005522,"2014-11-24","2014-11-27","London","N","2015-01-15T03:15:03.687","Link",2,2,2,2,{"$f":"VLOOKUP($D43,'Inspection data'!$I:$AU,9,FALSE)","v":2},{"$f":"VLOOKUP($D43,'Inspection data'!$I:$AU,19,FALSE)","v":2},{"$f":"VLOOKUP($D43,'Inspection data'!$I:$AU,29,FALSE)","v":2},{"$f":"VLOOKUP($D43,'Inspection data'!$I:$AU,39,FALSE)","v":2},"","","",""]
["Alpha Building Services Engineering Ltd","WBL - full (regional)",59178,446621,10022311,"2014-11-24","2014-11-28","London","Y","2015-02-18T03:15:04.617","Link",4,4,4,4,{"$f":"VLOOKUP($D44,'Inspection data'!$I:$AU,9,FALSE)","v":4},{"$f":"VLOOKUP($D44,'Inspection data'!$I:$AU,19,FALSE)","v":4},{"$f":"VLOOKUP($D44,'Inspection data'!$I:$AU,29,FALSE)","v":4},{"$f":"VLOOKUP($D44,'Inspection data'!$I:$AU,39,FALSE)","v":4},"","","",""]
["Barford Education and Training (North East) Limited (aka XRT Training and Consultancy)","WBL - requires improvement",55459,430250,10000525,"2014-11-24","2014-11-28","East of England","Y","2015-01-07T03:15:03.860","Link",4,4,4,4,{"$f":"VLOOKUP($D45,'Inspection data'!$I:$AU,9,FALSE)","v":4},{"$f":"VLOOKUP($D45,'Inspection data'!$I:$AU,19,FALSE)","v":4},{"$f":"VLOOKUP($D45,'Inspection data'!$I:$AU,29,FALSE)","v":4},{"$f":"VLOOKUP($D45,'Inspection data'!$I:$AU,39,FALSE)","v":4},"","","",""]
["Brinsworth Training Limited","WBL - full (regional)",58933,454945,10022320,"2014-11-25","2014-11-28","North East, Yorkshire and Humberside","N","2014-12-24T03:15:12.203","Link",3,3,3,3,{"$f":"VLOOKUP($D46,'Inspection data'!$I:$AU,9,FALSE)","v":3},{"$f":"VLOOKUP($D46,'Inspection data'!$I:$AU,19,FALSE)","v":3},{"$f":"VLOOKUP($D46,'Inspection data'!$I:$AU,29,FALSE)","v":3},{"$f":"VLOOKUP($D46,'Inspection data'!$I:$AU,39,FALSE)","v":3},"","","",""]
["Economic Solutions Limited (Manchester Solutions)","Work Based Learning - full (national)",53233,443658,10004177,"2014-11-24","2014-11-28","North West","N","2014-12-24T03:15:04.050","Link",3,3,3,3,{"$f":"VLOOKUP($D47,'Inspection data'!$I:$AU,9,FALSE)","v":3},{"$f":"VLOOKUP($D47,'Inspection data'!$I:$AU,19,FALSE)","v":3},{"$f":"VLOOKUP($D47,'Inspection data'!$I:$AU,29,FALSE)","v":3},{"$f":"VLOOKUP($D47,'Inspection data'!$I:$AU,39,FALSE)","v":3},"","","",""]
["London Learning Consortium Community Interest Company","WBL - requires improvement",58611,430254,10021684,"2014-11-24","2014-11-28","London","N","2015-01-13T03:15:03.307","Link",2,2,2,2,{"$f":"VLOOKUP($D48,'Inspection data'!$I:$AU,9,FALSE)","v":2},{"$f":"VLOOKUP($D48,'Inspection data'!$I:$AU,19,FALSE)","v":2},{"$f":"VLOOKUP($D48,'Inspection data'!$I:$AU,29,FALSE)","v":2},{"$f":"VLOOKUP($D48,'Inspection data'!$I:$AU,39,FALSE)","v":2},"","","",""]
["Rocket Training Limited","WBL - requires improvement",54158,446603,10005514,"2014-11-24","2014-11-28","North West","N","2014-12-24T03:15:05.200","Link",3,3,3,3,{"$f":"VLOOKUP($D49,'Inspection data'!$I:$AU,9,FALSE)","v":3},{"$f":"VLOOKUP($D49,'Inspection data'!$I:$AU,19,FALSE)","v":3},{"$f":"VLOOKUP($D49,'Inspection data'!$I:$AU,29,FALSE)","v":3},{"$f":"VLOOKUP($D49,'Inspection data'!$I:$AU,39,FALSE)","v":3},"","","",""]
["Sunderland City Metropolitan Borough Council","Adult and Community - full (regional)",54666,446667,10006407,"2014-11-24","2014-11-28","North East, Yorkshire and Humberside","N","2014-12-24T03:15:05.587","Link",2,2,2,2,{"$f":"VLOOKUP($D50,'Inspection data'!$I:$AU,9,FALSE)","v":2},{"$f":"VLOOKUP($D50,'Inspection data'!$I:$AU,19,FALSE)","v":2},{"$f":"VLOOKUP($D50,'Inspection data'!$I:$AU,29,FALSE)","v":2},{"$f":"VLOOKUP($D50,'Inspection data'!$I:$AU,39,FALSE)","v":2},"","","",""]
["Strategic Training Solutions (Mansfield) Limited","WBL - requires improvement",54643,430260,10006367,"2014-12-02","2014-12-04","East Midlands","N","2015-01-13T03:15:03.720","Link",3,3,3,3,{"$f":"VLOOKUP($D51,'Inspection data'!$I:$AU,9,FALSE)","v":3},{"$f":"VLOOKUP($D51,'Inspection data'!$I:$AU,19,FALSE)","v":3},{"$f":"VLOOKUP($D51,'Inspection data'!$I:$AU,29,FALSE)","v":3},{"$f":"VLOOKUP($D51,'Inspection data'!$I:$AU,39,FALSE)","v":3},"","","",""]
["Venture Learning Limited","WBL - full (regional)",55208,429009,10007218,"2014-12-01","2014-12-04","North West","Y","2015-01-21T03:15:03.340","Link",4,4,4,4,{"$f":"VLOOKUP($D52,'Inspection data'!$I:$AU,9,FALSE)","v":4},{"$f":"VLOOKUP($D52,'Inspection data'!$I:$AU,19,FALSE)","v":4},{"$f":"VLOOKUP($D52,'Inspection data'!$I:$AU,29,FALSE)","v":4},{"$f":"VLOOKUP($D52,'Inspection data'!$I:$AU,39,FALSE)","v":4},"","","",""]
["Expedient Training Services Limited","WBL - requires improvement",51800,430253,10002375,"2014-12-02","2014-12-05","North East, Yorkshire and Humberside","N","2015-01-07T03:15:04.357","Link",3,2,2,3,{"$f":"VLOOKUP($D53,'Inspection data'!$I:$AU,9,FALSE)","v":3},{"$f":"VLOOKUP($D53,'Inspection data'!$I:$AU,19,FALSE)","v":2},{"$f":"VLOOKUP($D53,'Inspection data'!$I:$AU,29,FALSE)","v":2},{"$f":"VLOOKUP($D53,'Inspection data'!$I:$AU,39,FALSE)","v":3},"","","",""]
["Four Counties Training Limited","Work Based Learning - full (national)",51893,446601,10002554,"2014-12-01","2014-12-05","London","Y","2015-01-21T03:15:04.710","Link",4,4,4,4,{"$f":"VLOOKUP($D54,'Inspection data'!$I:$AU,9,FALSE)","v":4},{"$f":"VLOOKUP($D54,'Inspection data'!$I:$AU,19,FALSE)","v":4},{"$f":"VLOOKUP($D54,'Inspection data'!$I:$AU,29,FALSE)","v":4},{"$f":"VLOOKUP($D54,'Inspection data'!$I:$AU,39,FALSE)","v":4},"","","",""]
["Hounslow Adult and Community Education","Adult and Community - full (regional)",53132,446662,10003165,"2014-12-01","2014-12-05","London","N","2015-01-14T03:15:05.477","Link",2,2,2,2,{"$f":"VLOOKUP($D55,'Inspection data'!$I:$AU,9,FALSE)","v":2},{"$f":"VLOOKUP($D55,'Inspection data'!$I:$AU,19,FALSE)","v":2},{"$f":"VLOOKUP($D55,'Inspection data'!$I:$AU,29,FALSE)","v":2},{"$f":"VLOOKUP($D55,'Inspection data'!$I:$AU,39,FALSE)","v":2},"","","",""]
["Mainstream Training Limited","Work Based Learning - full (national)",58362,446612,10009491,"2014-12-01","2014-12-05","South East","N","2015-01-15T03:15:04.507","Link",2,2,2,2,{"$f":"VLOOKUP($D56,'Inspection data'!$I:$AU,9,FALSE)","v":2},{"$f":"VLOOKUP($D56,'Inspection data'!$I:$AU,19,FALSE)","v":2},{"$f":"VLOOKUP($D56,'Inspection data'!$I:$AU,29,FALSE)","v":2},{"$f":"VLOOKUP($D56,'Inspection data'!$I:$AU,39,FALSE)","v":2},"","","",""]
["Options 2 Workplace Learning Ltd","WBL - full (regional)",58938,452625,10010572,"2014-12-02","2014-12-05","East Midlands","N","2015-01-08T03:15:30.403","Link",3,3,3,3,{"$f":"VLOOKUP($D57,'Inspection data'!$I:$AU,9,FALSE)","v":3},{"$f":"VLOOKUP($D57,'Inspection data'!$I:$AU,19,FALSE)","v":3},{"$f":"VLOOKUP($D57,'Inspection data'!$I:$AU,29,FALSE)","v":3},{"$f":"VLOOKUP($D57,'Inspection data'!$I:$AU,39,FALSE)","v":3},"","","",""]
["Worcestershire County Council","Adult and Community - full (regional)",55422,451949,10007623,"2014-12-02","2014-12-05","West Midlands","N","2015-01-07T03:15:21.570","Link",3,3,3,3,{"$f":"VLOOKUP($D58,'Inspection data'!$I:$AU,9,FALSE)","v":3},{"$f":"VLOOKUP($D58,'Inspection data'!$I:$AU,19,FALSE)","v":3},{"$f":"VLOOKUP($D58,'Inspection data'!$I:$AU,29,FALSE)","v":3},{"$f":"VLOOKUP($D58,'Inspection data'!$I:$AU,39,FALSE)","v":3},"","","",""]
["The Academy Hair & Beauty Ltd","WBL - full (regional)",54803,452617,10006574,"2014-12-09","2014-12-11","North East, Yorkshire and Humberside","N","2015-01-16T03:15:08.487","Link",1,1,1,1,{"$f":"VLOOKUP($D59,'Inspection data'!$I:$AU,9,FALSE)","v":1},{"$f":"VLOOKUP($D59,'Inspection data'!$I:$AU,19,FALSE)","v":1},{"$f":"VLOOKUP($D59,'Inspection data'!$I:$AU,29,FALSE)","v":1},{"$f":"VLOOKUP($D59,'Inspection data'!$I:$AU,39,FALSE)","v":1},"","","",""]
["Ministry of Defence (RAF)","Work Based Learning - full (national)",54191,446605,10033441,"2014-12-08","2014-12-12","South West","N","2015-01-21T03:15:05.090","Link",1,1,1,1,{"$f":"VLOOKUP($D60,'Inspection data'!$I:$AU,9,FALSE)","v":1},{"$f":"VLOOKUP($D60,'Inspection data'!$I:$AU,19,FALSE)","v":1},{"$f":"VLOOKUP($D60,'Inspection data'!$I:$AU,29,FALSE)","v":1},{"$f":"VLOOKUP($D60,'Inspection data'!$I:$AU,39,FALSE)","v":1},"","","",""]
["SBC Training Limited","Work Based Learning - full (national)",54277,446604,10033746,"2014-12-08","2014-12-12","West Midlands","N","2015-01-16T03:15:05.203","Link",3,3,3,3,{"$f":"VLOOKUP($D61,'Inspection data'!$I:$AU,9,FALSE)","v":3},{"$f":"VLOOKUP($D61,'Inspection data'!$I:$AU,19,FALSE)","v":3},{"$f":"VLOOKUP($D61,'Inspection data'!$I:$AU,29,FALSE)","v":3},{"$f":"VLOOKUP($D61,'Inspection data'!$I:$AU,39,FALSE)","v":3},"","","",""]
["Targeted Training Projects Limited","WBL - full (regional)",54744,446606,10006500,"2014-12-08","2014-12-12","West Midlands","Y","2015-01-27T03:15:05.657","Link",4,4,4,4,{"$f":"VLOOKUP($D62,'Inspection data'!$I:$AU,9,FALSE)","v":4},{"$f":"VLOOKUP($D62,'Inspection data'!$I:$AU,19,FALSE)","v":4},{"$f":"VLOOKUP($D62,'Inspection data'!$I:$AU,29,FALSE)","v":4},{"$f":"VLOOKUP($D62,'Inspection data'!$I:$AU,39,FALSE)","v":4},"","","",""]
["Wandsworth London Borough Council","Adult and Community - full (regional)",53152,446663,10004002,"2014-12-08","2014-12-12","London","Y","2015-01-21T03:15:05.477","Link",4,3,3,4,{"$f":"VLOOKUP($D63,'Inspection data'!$I:$AU,9,FALSE)","v":4},{"$f":"VLOOKUP($D63,'Inspection data'!$I:$AU,19,FALSE)","v":3},{"$f":"VLOOKUP($D63,'Inspection data'!$I:$AU,29,FALSE)","v":3},{"$f":"VLOOKUP($D63,'Inspection data'!$I:$AU,39,FALSE)","v":4},"","","",""]
["Wolverhampton Adult Education Service","Adult and Community - full (regional)",55413,446669,10007576,"2014-12-08","2014-12-12","West Midlands","N","2015-01-15T03:15:04.900","Link",1,1,1,1,{"$f":"VLOOKUP($D64,'Inspection data'!$I:$AU,9,FALSE)","v":1},{"$f":"VLOOKUP($D64,'Inspection data'!$I:$AU,19,FALSE)","v":1},{"$f":"VLOOKUP($D64,'Inspection data'!$I:$AU,29,FALSE)","v":1},{"$f":"VLOOKUP($D64,'Inspection data'!$I:$AU,39,FALSE)","v":1},"","","",""]
["Chamber Training (Humber) Limited","WBL - requires improvement",51104,429795,10001310,"2015-01-12","2015-01-16","North East, Yorkshire and Humberside","N","2015-02-23T03:15:03.110","Link",2,2,2,2,{"$f":"VLOOKUP($D65,'Inspection data'!$I:$AU,9,FALSE)","v":2},{"$f":"VLOOKUP($D65,'Inspection data'!$I:$AU,19,FALSE)","v":2},{"$f":"VLOOKUP($D65,'Inspection data'!$I:$AU,29,FALSE)","v":2},{"$f":"VLOOKUP($D65,'Inspection data'!$I:$AU,39,FALSE)","v":2},"","","",""]
["Community Training Services Limited","WBL - full (regional)",51259,452979,10001602,"2015-01-12","2015-01-16","North East, Yorkshire and Humberside","N","2015-02-24T03:15:07.913","Link",2,3,2,2,{"$f":"VLOOKUP($D66,'Inspection data'!$I:$AU,9,FALSE)","v":2},{"$f":"VLOOKUP($D66,'Inspection data'!$I:$AU,19,FALSE)","v":3},{"$f":"VLOOKUP($D66,'Inspection data'!$I:$AU,29,FALSE)","v":2},{"$f":"VLOOKUP($D66,'Inspection data'!$I:$AU,39,FALSE)","v":2},"","","",""]
["East London Advanced Technology Training","Adult and Community - full (regional)",51646,452602,10002118,"2015-01-14","2015-01-16","London","N","2015-02-20T03:15:07.020","Link",1,1,1,1,{"$f":"VLOOKUP($D67,'Inspection data'!$I:$AU,9,FALSE)","v":1},{"$f":"VLOOKUP($D67,'Inspection data'!$I:$AU,19,FALSE)","v":1},{"$f":"VLOOKUP($D67,'Inspection data'!$I:$AU,29,FALSE)","v":1},{"$f":"VLOOKUP($D67,'Inspection data'!$I:$AU,39,FALSE)","v":1},{"$f":"IF(L67=P67,\"\",\"check\")","v":""},"","",""]
["GI Group","WBL - full (regional)",59190,452631,10039882,"2015-01-13","2015-01-16","South East","N","2015-02-26T03:15:11.530","Link",3,3,3,3,{"$f":"VLOOKUP($D68,'Inspection data'!$I:$AU,9,FALSE)","v":3},{"$f":"VLOOKUP($D68,'Inspection data'!$I:$AU,19,FALSE)","v":3},{"$f":"VLOOKUP($D68,'Inspection data'!$I:$AU,29,FALSE)","v":3},{"$f":"VLOOKUP($D68,'Inspection data'!$I:$AU,39,FALSE)","v":3},"","","",""]
["The Child Care Company (Old Windsor) Limited","WBL - full (regional)",58467,446611,10022788,"2015-01-19","2015-01-22","South East","N","2015-02-26T03:15:05.210","Link",2,2,2,2,{"$f":"VLOOKUP($D69,'Inspection data'!$I:$AU,9,FALSE)","v":2},{"$f":"VLOOKUP($D69,'Inspection data'!$I:$AU,19,FALSE)","v":2},{"$f":"VLOOKUP($D69,'Inspection data'!$I:$AU,29,FALSE)","v":2},{"$f":"VLOOKUP($D69,'Inspection data'!$I:$AU,39,FALSE)","v":2},"","","",""]
["Aspiration Training Limited","WBL - requires improvement",57680,429796,10000421,"2015-01-19","2015-01-23","West Midlands","N","2015-03-03T03:15:03.010","Link",3,3,3,3,{"$f":"VLOOKUP($D70,'Inspection data'!$I:$AU,9,FALSE)","v":3},{"$f":"VLOOKUP($D70,'Inspection data'!$I:$AU,19,FALSE)","v":3},{"$f":"VLOOKUP($D70,'Inspection data'!$I:$AU,29,FALSE)","v":3},{"$f":"VLOOKUP($D70,'Inspection data'!$I:$AU,39,FALSE)","v":3},"","","",""]
["Baltic Training Services Limited","Work Based Learning - full (national)",58229,452988,10019026,"2015-01-19","2015-01-23","North East, Yorkshire and Humberside","N","2015-03-02T03:15:35.210","Link",2,2,2,2,{"$f":"VLOOKUP($D71,'Inspection data'!$I:$AU,9,FALSE)","v":2},{"$f":"VLOOKUP($D71,'Inspection data'!$I:$AU,19,FALSE)","v":2},{"$f":"VLOOKUP($D71,'Inspection data'!$I:$AU,29,FALSE)","v":2},{"$f":"VLOOKUP($D71,'Inspection data'!$I:$AU,39,FALSE)","v":2},"","","",""]
["County Training","ACL - requires improvement",54373,440287,10005825,"2015-01-19","2015-01-23","West Midlands","N","2015-03-03T03:15:03.770","Link",2,2,2,1,{"$f":"VLOOKUP($D72,'Inspection data'!$I:$AU,9,FALSE)","v":2},{"$f":"VLOOKUP($D72,'Inspection data'!$I:$AU,19,FALSE)","v":2},{"$f":"VLOOKUP($D72,'Inspection data'!$I:$AU,29,FALSE)","v":2},{"$f":"VLOOKUP($D72,'Inspection data'!$I:$AU,39,FALSE)","v":1},"","","",""]
["Durham County Council","ACL - requires improvement",50219,434393,10002064,"2015-01-19","2015-01-23","North East, Yorkshire and Humberside","N","2015-03-06T03:15:03.620","Link",2,2,2,2,{"$f":"VLOOKUP($D73,'Inspection data'!$I:$AU,9,FALSE)","v":2},{"$f":"VLOOKUP($D73,'Inspection data'!$I:$AU,19,FALSE)","v":2},{"$f":"VLOOKUP($D73,'Inspection data'!$I:$AU,29,FALSE)","v":2},{"$f":"VLOOKUP($D73,'Inspection data'!$I:$AU,39,FALSE)","v":2},"","","",""]
["E.ON UK Plc","WBL - full (regional)",58731,452990,10023793,"2015-01-20","2015-01-23","East Midlands","N","2015-03-12T03:15:07","Link",3,3,3,3,{"$f":"VLOOKUP($D74,'Inspection data'!$I:$AU,9,FALSE)","v":3},{"$f":"VLOOKUP($D74,'Inspection data'!$I:$AU,19,FALSE)","v":3},{"$f":"VLOOKUP($D74,'Inspection data'!$I:$AU,29,FALSE)","v":3},{"$f":"VLOOKUP($D74,'Inspection data'!$I:$AU,39,FALSE)","v":3},"","","",""]
["G B Training (UK) Ltd","WBL - full (regional)",51944,452603,10002618,"2015-01-19","2015-01-23","West Midlands","N","2015-03-03T03:15:07.357","Link",2,2,2,2,{"$f":"VLOOKUP($D75,'Inspection data'!$I:$AU,9,FALSE)","v":2},{"$f":"VLOOKUP($D75,'Inspection data'!$I:$AU,19,FALSE)","v":2},{"$f":"VLOOKUP($D75,'Inspection data'!$I:$AU,29,FALSE)","v":2},{"$f":"VLOOKUP($D75,'Inspection data'!$I:$AU,39,FALSE)","v":2},"","","",""]
["NCC Adult Education Services","Adult and Community - full (regional)",53545,452610,10004657,"2015-01-19","2015-01-23","East of England","Y","2015-03-09T03:15:11.157","Link",4,3,3,4,{"$f":"VLOOKUP($D76,'Inspection data'!$I:$AU,9,FALSE)","v":4},{"$f":"VLOOKUP($D76,'Inspection data'!$I:$AU,19,FALSE)","v":3},{"$f":"VLOOKUP($D76,'Inspection data'!$I:$AU,29,FALSE)","v":3},{"$f":"VLOOKUP($D76,'Inspection data'!$I:$AU,39,FALSE)","v":4},"","","",""]
["Staffline Recruitment Limited","WBL - requires improvement",59075,433768,10032018,"2015-01-20","2015-01-23","East Midlands","N","2015-03-02T03:15:05.117","Link",2,2,2,2,{"$f":"VLOOKUP($D77,'Inspection data'!$I:$AU,9,FALSE)","v":2},{"$f":"VLOOKUP($D77,'Inspection data'!$I:$AU,19,FALSE)","v":2},{"$f":"VLOOKUP($D77,'Inspection data'!$I:$AU,29,FALSE)","v":2},{"$f":"VLOOKUP($D77,'Inspection data'!$I:$AU,39,FALSE)","v":2},"","","",""]
["The Mary Ward Centre (AE Centre)","Adult and Community - full (regional)",130404,452634,10007875,"2015-01-19","2015-01-23","London","N","2015-02-27T03:15:09.037","Link",2,2,2,2,{"$f":"VLOOKUP($D78,'Inspection data'!$I:$AU,9,FALSE)","v":2},{"$f":"VLOOKUP($D78,'Inspection data'!$I:$AU,19,FALSE)","v":2},{"$f":"VLOOKUP($D78,'Inspection data'!$I:$AU,29,FALSE)","v":2},{"$f":"VLOOKUP($D78,'Inspection data'!$I:$AU,39,FALSE)","v":2},"","","",""]
["The Virtual College","Work Based Learning - full (national)",54946,446608,10006845,"2015-01-19","2015-01-23","North East, Yorkshire and Humberside","N","2015-03-03T03:15:05.250","Link",3,2,2,3,{"$f":"VLOOKUP($D79,'Inspection data'!$I:$AU,9,FALSE)","v":3},{"$f":"VLOOKUP($D79,'Inspection data'!$I:$AU,19,FALSE)","v":2},{"$f":"VLOOKUP($D79,'Inspection data'!$I:$AU,29,FALSE)","v":2},{"$f":"VLOOKUP($D79,'Inspection data'!$I:$AU,39,FALSE)","v":3},"","","",""]
["DBC Training","WBL - full (regional)",59167,456390,10005109,"2015-01-27","2015-01-29","East Midlands","N","2015-03-05T03:15:12.220","Link",3,3,3,2,{"$f":"VLOOKUP($D80,'Inspection data'!$I:$AU,9,FALSE)","v":3},{"$f":"VLOOKUP($D80,'Inspection data'!$I:$AU,19,FALSE)","v":3},{"$f":"VLOOKUP($D80,'Inspection data'!$I:$AU,29,FALSE)","v":3},{"$f":"VLOOKUP($D80,'Inspection data'!$I:$AU,39,FALSE)","v":2},"","","",""]
["KATS Ltd","WBL - full (regional)",58323,452621,10016742,"2015-01-27","2015-01-30","South East","Y","2015-03-25T03:15:13.217","Link",4,4,4,4,{"$f":"VLOOKUP($D81,'Inspection data'!$I:$AU,9,FALSE)","v":4},{"$f":"VLOOKUP($D81,'Inspection data'!$I:$AU,19,FALSE)","v":4},{"$f":"VLOOKUP($D81,'Inspection data'!$I:$AU,29,FALSE)","v":4},{"$f":"VLOOKUP($D81,'Inspection data'!$I:$AU,39,FALSE)","v":4},"","","",""]
["Anderson Stockley Accredited Training Ltd","Work Based Learning - full (national)",50410,452600,10023918,"2015-02-03","2015-02-05","East Midlands","N","2015-03-12T03:15:05.357","Link",3,3,3,3,{"$f":"VLOOKUP($D82,'Inspection data'!$I:$AU,9,FALSE)","v":3},{"$f":"VLOOKUP($D82,'Inspection data'!$I:$AU,19,FALSE)","v":3},{"$f":"VLOOKUP($D82,'Inspection data'!$I:$AU,29,FALSE)","v":3},{"$f":"VLOOKUP($D82,'Inspection data'!$I:$AU,39,FALSE)","v":3},"","","",""]
["Avanta Enterprise Limited","Work Based Learning - full (national)",59173,452630,10036431,"2015-02-02","2015-02-06","London","N","2015-03-16T03:15:05.913","Link",2,2,2,2,{"$f":"VLOOKUP($D83,'Inspection data'!$I:$AU,9,FALSE)","v":2},{"$f":"VLOOKUP($D83,'Inspection data'!$I:$AU,19,FALSE)","v":2},{"$f":"VLOOKUP($D83,'Inspection data'!$I:$AU,29,FALSE)","v":2},{"$f":"VLOOKUP($D83,'Inspection data'!$I:$AU,39,FALSE)","v":2},"","","",""]
["Lookfantastic Training Limited","Work Based Learning - full (national)",53697,452613,10012477,"2015-02-02","2015-02-06","South East","N","2015-03-16T03:15:05.500","Link",3,3,2,3,{"$f":"VLOOKUP($D84,'Inspection data'!$I:$AU,9,FALSE)","v":3},{"$f":"VLOOKUP($D84,'Inspection data'!$I:$AU,19,FALSE)","v":3},{"$f":"VLOOKUP($D84,'Inspection data'!$I:$AU,29,FALSE)","v":2},{"$f":"VLOOKUP($D84,'Inspection data'!$I:$AU,39,FALSE)","v":3},"","","",""]
["Nottingham City Council","Adult and Community - full (regional)",53664,423419,10004791,"2015-02-04","2015-02-06","East Midlands","N","2015-03-13T03:15:03.113","Link",2,2,2,2,{"$f":"VLOOKUP($D85,'Inspection data'!$I:$AU,9,FALSE)","v":2},{"$f":"VLOOKUP($D85,'Inspection data'!$I:$AU,19,FALSE)","v":2},{"$f":"VLOOKUP($D85,'Inspection data'!$I:$AU,29,FALSE)","v":2},{"$f":"VLOOKUP($D85,'Inspection data'!$I:$AU,39,FALSE)","v":2},"","","",""]
["Straight A Training Limited","WBL - full (regional)",54640,452981,10006365,"2015-02-03","2015-02-06","South East","N","2015-03-16T03:15:06.330","Link",3,2,3,3,{"$f":"VLOOKUP($D86,'Inspection data'!$I:$AU,9,FALSE)","v":3},{"$f":"VLOOKUP($D86,'Inspection data'!$I:$AU,19,FALSE)","v":2},{"$f":"VLOOKUP($D86,'Inspection data'!$I:$AU,29,FALSE)","v":3},{"$f":"VLOOKUP($D86,'Inspection data'!$I:$AU,39,FALSE)","v":3},"","","",""]
["Training 2000 Limited","WBL - full (regional)",55045,452982,10006987,"2015-02-02","2015-02-06","North West","N","2015-03-12T03:15:06.593","Link",2,2,2,1,{"$f":"VLOOKUP($D87,'Inspection data'!$I:$AU,9,FALSE)","v":2},{"$f":"VLOOKUP($D87,'Inspection data'!$I:$AU,19,FALSE)","v":2},{"$f":"VLOOKUP($D87,'Inspection data'!$I:$AU,29,FALSE)","v":2},{"$f":"VLOOKUP($D87,'Inspection data'!$I:$AU,39,FALSE)","v":1},"","","",""]
["Nuneaton Training Centre Limited","WBL - full (regional)",53693,452612,10004819,"2015-02-10","2015-02-12","West Midlands","N","2015-03-06T03:15:13.240","Link",3,3,3,3,{"$f":"VLOOKUP($D88,'Inspection data'!$I:$AU,9,FALSE)","v":3},{"$f":"VLOOKUP($D88,'Inspection data'!$I:$AU,19,FALSE)","v":3},{"$f":"VLOOKUP($D88,'Inspection data'!$I:$AU,29,FALSE)","v":3},{"$f":"VLOOKUP($D88,'Inspection data'!$I:$AU,39,FALSE)","v":3},"","","",""]
["LIGA (UK) LTD","Work Based Learning - full (national)",59155,452628,10034315,"2015-02-11","2015-02-13","South East","N","2015-03-20T03:15:08.600","Link",3,3,3,3,{"$f":"VLOOKUP($D89,'Inspection data'!$I:$AU,9,FALSE)","v":3},{"$f":"VLOOKUP($D89,'Inspection data'!$I:$AU,19,FALSE)","v":3},{"$f":"VLOOKUP($D89,'Inspection data'!$I:$AU,29,FALSE)","v":3},{"$f":"VLOOKUP($D89,'Inspection data'!$I:$AU,39,FALSE)","v":3},"","","",""]
["METSKILL Limited","Work Based Learning - full (national)",53330,452609,10004319,"2015-02-09","2015-02-13","North East, Yorkshire and Humberside","N","2015-03-24T03:15:09.030","Link",3,3,3,3,{"$f":"VLOOKUP($D90,'Inspection data'!$I:$AU,9,FALSE)","v":3},{"$f":"VLOOKUP($D90,'Inspection data'!$I:$AU,19,FALSE)","v":3},{"$f":"VLOOKUP($D90,'Inspection data'!$I:$AU,29,FALSE)","v":3},{"$f":"VLOOKUP($D90,'Inspection data'!$I:$AU,39,FALSE)","v":3},"","","",""]
["QDOS Training Limited","WBL - full (regional)",58397,452989,10021018,"2015-02-10","2015-02-13","East Midlands","Y","2015-04-09T03:15:05.380","Link",4,2,3,4,{"$f":"VLOOKUP($D91,'Inspection data'!$I:$AU,9,FALSE)","v":4},{"$f":"VLOOKUP($D91,'Inspection data'!$I:$AU,19,FALSE)","v":2},{"$f":"VLOOKUP($D91,'Inspection data'!$I:$AU,29,FALSE)","v":3},{"$f":"VLOOKUP($D91,'Inspection data'!$I:$AU,39,FALSE)","v":4},"","","",""]
["John Laing Training Limited","Work Based Learning - full (national)",52638,452605,10003490,"2015-02-17","2015-02-20","East of England","N","2015-03-25T03:15:12.797","Link",2,2,2,2,{"$f":"VLOOKUP($D92,'Inspection data'!$I:$AU,9,FALSE)","v":2},{"$f":"VLOOKUP($D92,'Inspection data'!$I:$AU,19,FALSE)","v":2},{"$f":"VLOOKUP($D92,'Inspection data'!$I:$AU,29,FALSE)","v":2},{"$f":"VLOOKUP($D92,'Inspection data'!$I:$AU,39,FALSE)","v":2},"","","",""]
["Norfolk Training Services Limited","WBL - full (regional)",53550,452611,10004663,"2015-02-16","2015-02-20","East of England","N","2015-03-27T03:15:09.777","Link",3,3,3,3,{"$f":"VLOOKUP($D93,'Inspection data'!$I:$AU,9,FALSE)","v":3},{"$f":"VLOOKUP($D93,'Inspection data'!$I:$AU,19,FALSE)","v":3},{"$f":"VLOOKUP($D93,'Inspection data'!$I:$AU,29,FALSE)","v":3},{"$f":"VLOOKUP($D93,'Inspection data'!$I:$AU,39,FALSE)","v":3},"","","",""]
["Sandwell Training Association Limited","WBL - full (regional)",54271,452616,10005673,"2015-02-16","2015-02-20","West Midlands","N","2015-03-20T03:15:08.173","Link",3,3,3,3,{"$f":"VLOOKUP($D94,'Inspection data'!$I:$AU,9,FALSE)","v":3},{"$f":"VLOOKUP($D94,'Inspection data'!$I:$AU,19,FALSE)","v":3},{"$f":"VLOOKUP($D94,'Inspection data'!$I:$AU,29,FALSE)","v":3},{"$f":"VLOOKUP($D94,'Inspection data'!$I:$AU,39,FALSE)","v":3},"","","",""]
["The Real Apprenticeship Company Limited","Work Based Learning - full (national)",59162,455608,10030670,"2015-02-17","2015-02-20","West Midlands","N","2015-03-20T03:15:16.683","Link",2,2,2,2,{"$f":"VLOOKUP($D95,'Inspection data'!$I:$AU,9,FALSE)","v":2},{"$f":"VLOOKUP($D95,'Inspection data'!$I:$AU,19,FALSE)","v":2},{"$f":"VLOOKUP($D95,'Inspection data'!$I:$AU,29,FALSE)","v":2},{"$f":"VLOOKUP($D95,'Inspection data'!$I:$AU,39,FALSE)","v":2},"","","",""]
["Herbert of Liverpool (Training) Ltd","WBL - requires improvement",50132,455920,10003019,"2015-02-24","2015-02-27","North West","Y","2015-04-08T03:15:08.610","Link",4,4,4,4,{"$f":"VLOOKUP($D96,'Inspection data'!$I:$AU,9,FALSE)","v":4},{"$f":"VLOOKUP($D96,'Inspection data'!$I:$AU,19,FALSE)","v":4},{"$f":"VLOOKUP($D96,'Inspection data'!$I:$AU,29,FALSE)","v":4},{"$f":"VLOOKUP($D96,'Inspection data'!$I:$AU,39,FALSE)","v":4},"","","",""]
["ID Training","WBL - full (regional)",57877,452986,10013539,"2015-02-24","2015-02-27","North East, Yorkshire and Humberside","N","2015-04-09T03:15:04.930","Link",2,2,2,2,{"$f":"VLOOKUP($D97,'Inspection data'!$I:$AU,9,FALSE)","v":2},{"$f":"VLOOKUP($D97,'Inspection data'!$I:$AU,19,FALSE)","v":2},{"$f":"VLOOKUP($D97,'Inspection data'!$I:$AU,29,FALSE)","v":2},{"$f":"VLOOKUP($D97,'Inspection data'!$I:$AU,39,FALSE)","v":2},"","","",""]
["The Training & Recruitment Partnership Limited","Work Based Learning - full (national)",55053,452983,10006986,"2015-02-23","2015-02-27","London","N","2015-04-01T03:15:07.460","Link",3,3,3,3,{"$f":"VLOOKUP($D98,'Inspection data'!$I:$AU,9,FALSE)","v":3},{"$f":"VLOOKUP($D98,'Inspection data'!$I:$AU,19,FALSE)","v":3},{"$f":"VLOOKUP($D98,'Inspection data'!$I:$AU,29,FALSE)","v":3},{"$f":"VLOOKUP($D98,'Inspection data'!$I:$AU,39,FALSE)","v":3},"","","",""]
["Babington Business College Limited","Work Based Learning - full (national)",50586,452977,10000494,"2015-03-02","2015-03-06","East Midlands","N","2015-04-07T03:15:03.570","Link",2,2,2,2,{"$f":"VLOOKUP($D99,'Inspection data'!$I:$AU,9,FALSE)","v":2},{"$f":"VLOOKUP($D99,'Inspection data'!$I:$AU,19,FALSE)","v":2},{"$f":"VLOOKUP($D99,'Inspection data'!$I:$AU,29,FALSE)","v":2},{"$f":"VLOOKUP($D99,'Inspection data'!$I:$AU,39,FALSE)","v":2},"","","",""]
["Central Training Academy Limited","Work Based Learning - full (national)",51072,452978,10001259,"2015-03-02","2015-03-06","East of England","N","2015-04-14T03:15:05.670","Link",2,2,2,2,{"$f":"VLOOKUP($D100,'Inspection data'!$I:$AU,9,FALSE)","v":2},{"$f":"VLOOKUP($D100,'Inspection data'!$I:$AU,19,FALSE)","v":2},{"$f":"VLOOKUP($D100,'Inspection data'!$I:$AU,29,FALSE)","v":2},{"$f":"VLOOKUP($D100,'Inspection data'!$I:$AU,39,FALSE)","v":2},"","","",""]
["London Vesta College Limited","WBL - full (regional)",59157,455606,10024404,"2015-03-04","2015-03-06","London","N","2015-04-14T03:15:10.233","Link",3,2,3,3,{"$f":"VLOOKUP($D101,'Inspection data'!$I:$AU,9,FALSE)","v":3},{"$f":"VLOOKUP($D101,'Inspection data'!$I:$AU,19,FALSE)","v":2},{"$f":"VLOOKUP($D101,'Inspection data'!$I:$AU,29,FALSE)","v":3},{"$f":"VLOOKUP($D101,'Inspection data'!$I:$AU,39,FALSE)","v":3},"","","",""]
["Priory Central Services Limited","WBL - requires improvement",59108,434394,10034058,"2015-03-02","2015-03-06","East Midlands","Y","2015-04-17T03:15:04.020","Link",4,4,4,4,{"$f":"VLOOKUP($D102,'Inspection data'!$I:$AU,9,FALSE)","v":4},{"$f":"VLOOKUP($D102,'Inspection data'!$I:$AU,19,FALSE)","v":4},{"$f":"VLOOKUP($D102,'Inspection data'!$I:$AU,29,FALSE)","v":4},{"$f":"VLOOKUP($D102,'Inspection data'!$I:$AU,39,FALSE)","v":4},"","","",""]
["Romney Resource 2000 Ltd","WBL - requires improvement",58383,434392,10005521,"2015-03-03","2015-03-06","South East","N","2015-04-22T03:15:03.853","Link",3,3,3,3,{"$f":"VLOOKUP($D103,'Inspection data'!$I:$AU,9,FALSE)","v":3},{"$f":"VLOOKUP($D103,'Inspection data'!$I:$AU,19,FALSE)","v":3},{"$f":"VLOOKUP($D103,'Inspection data'!$I:$AU,29,FALSE)","v":3},{"$f":"VLOOKUP($D103,'Inspection data'!$I:$AU,39,FALSE)","v":3},"","","",""]
["Webs Training Limited","WBL - full (regional)",55294,452618,10007375,"2015-03-03","2015-03-06","East Midlands","N","2015-04-09T03:15:04.460","Link",2,2,2,2,{"$f":"VLOOKUP($D104,'Inspection data'!$I:$AU,9,FALSE)","v":2},{"$f":"VLOOKUP($D104,'Inspection data'!$I:$AU,19,FALSE)","v":2},{"$f":"VLOOKUP($D104,'Inspection data'!$I:$AU,29,FALSE)","v":2},{"$f":"VLOOKUP($D104,'Inspection data'!$I:$AU,39,FALSE)","v":2},"","","",""]
["BROADLAND DISTRICT COUNCIL","WBL - full (regional)",50098,452973,10000941,"2015-03-09","2015-03-13","East of England","N",null,"Link",3,3,3,3,{"$f":"VLOOKUP($D105,'Inspection data'!$I:$AU,9,FALSE)","v":{"$error":"#N/A"}},{"$f":"VLOOKUP($D105,'Inspection data'!$I:$AU,19,FALSE)","v":{"$error":"#N/A"}},{"$f":"VLOOKUP($D105,'Inspection data'!$I:$AU,29,FALSE)","v":{"$error":"#N/A"}},{"$f":"VLOOKUP($D105,'Inspection data'!$I:$AU,39,FALSE)","v":{"$error":"#N/A"}},{"$error":"#N/A"},{"$error":"#N/A"},{"$error":"#N/A"},{"$error":"#N/A"}]
["Bromley London Borough Council","Adult and Community - full (regional)",53108,452606,10003987,"2015-03-10","2015-03-13","London","N",null,"Link",3,3,2,3,{"$f":"VLOOKUP($D106,'Inspection data'!$I:$AU,9,FALSE)","v":{"$error":"#N/A"}},{"$f":"VLOOKUP($D106,'Inspection data'!$I:$AU,19,FALSE)","v":{"$error":"#N/A"}},{"$f":"VLOOKUP($D106,'Inspection data'!$I:$AU,29,FALSE)","v":{"$error":"#N/A"}},{"$f":"VLOOKUP($D106,'Inspection data'!$I:$AU,39,FALSE)","v":{"$error":"#N/A"}},{"$error":"#N/A"},{"$error":"#N/A"},{"$error":"#N/A"},{"$error":"#N/A"}]
["Didac Limited","Work Based Learning - full (national)",51550,452601,10001967,"2015-03-10","2015-03-13","South West","N","2015-04-21T03:15:12.863","Link",2,3,2,2,{"$f":"VLOOKUP($D107,'Inspection data'!$I:$AU,9,FALSE)","v":2},{"$f":"VLOOKUP($D107,'Inspection data'!$I:$AU,19,FALSE)","v":3},{"$f":"VLOOKUP($D107,'Inspection data'!$I:$AU,29,FALSE)","v":2},{"$f":"VLOOKUP($D107,'Inspection data'!$I:$AU,39,FALSE)","v":2},"","","",""]
["DV8 Training Ltd","WBL - full (regional)",51619,446600,10002073,"2015-03-09","2015-03-13","London","N","2015-04-22T03:15:04.377","Link",3,3,3,3,{"$f":"VLOOKUP($D108,'Inspection data'!$I:$AU,9,FALSE)","v":3},{"$f":"VLOOKUP($D108,'Inspection data'!$I:$AU,19,FALSE)","v":3},{"$f":"VLOOKUP($D108,'Inspection data'!$I:$AU,29,FALSE)","v":3},{"$f":"VLOOKUP($D108,'Inspection data'!$I:$AU,39,FALSE)","v":3},"","","",""]
["Ministry of Defence (Navy)","WBL - full (regional)",58403,452622,10033438,"2015-03-09","2015-03-13","South East","N","2015-04-21T03:15:13.270","Link",2,2,2,2,{"$f":"VLOOKUP($D109,'Inspection data'!$I:$AU,9,FALSE)","v":2},{"$f":"VLOOKUP($D109,'Inspection data'!$I:$AU,19,FALSE)","v":2},{"$f":"VLOOKUP($D109,'Inspection data'!$I:$AU,29,FALSE)","v":2},{"$f":"VLOOKUP($D109,'Inspection data'!$I:$AU,39,FALSE)","v":2},"","","",""]
["PERA Training Limited","Work Based Learning - full (national)",59194,452632,10038913,"2015-03-09","2015-03-13","East Midlands","N","2015-04-17T03:15:07.557","Link",2,2,2,2,{"$f":"VLOOKUP($D110,'Inspection data'!$I:$AU,9,FALSE)","v":2},{"$f":"VLOOKUP($D110,'Inspection data'!$I:$AU,19,FALSE)","v":2},{"$f":"VLOOKUP($D110,'Inspection data'!$I:$AU,29,FALSE)","v":2},{"$f":"VLOOKUP($D110,'Inspection data'!$I:$AU,39,FALSE)","v":2},"","","",""]
["The Apprentice Academy Limited","WBL - full (regional)",59161,455607,10036578,"2015-03-10","2015-03-13","North West","N","2015-04-15T03:15:16.247","Link",3,3,3,3,{"$f":"VLOOKUP($D111,'Inspection data'!$I:$AU,9,FALSE)","v":3},{"$f":"VLOOKUP($D111,'Inspection data'!$I:$AU,19,FALSE)","v":3},{"$f":"VLOOKUP($D111,'Inspection data'!$I:$AU,29,FALSE)","v":3},{"$f":"VLOOKUP($D111,'Inspection data'!$I:$AU,39,FALSE)","v":3},"","","",""]
["Alt Valley Community Trust ('The Communiversity')","Adult and Community - full (regional)",58913,455664,10001777,"2015-03-10","2015-03-12","North West","N","2015-04-16T03:15:22.353","Link",3,3,3,3,{"$f":"VLOOKUP($D112,'Inspection data'!$I:$AU,9,FALSE)","v":3},{"$f":"VLOOKUP($D112,'Inspection data'!$I:$AU,19,FALSE)","v":3},{"$f":"VLOOKUP($D112,'Inspection data'!$I:$AU,29,FALSE)","v":3},{"$f":"VLOOKUP($D112,'Inspection data'!$I:$AU,39,FALSE)","v":3},"","","",""]
["Training Strategies Ltd.","WBL - requires improvement",59129,433767,10027873,"2015-03-10","2015-03-13","North West","N","2015-04-17T03:15:03.277","Link",2,2,2,2,{"$f":"VLOOKUP($D113,'Inspection data'!$I:$AU,9,FALSE)","v":2},{"$f":"VLOOKUP($D113,'Inspection data'!$I:$AU,19,FALSE)","v":2},{"$f":"VLOOKUP($D113,'Inspection data'!$I:$AU,29,FALSE)","v":2},{"$f":"VLOOKUP($D113,'Inspection data'!$I:$AU,39,FALSE)","v":2},"","","",""]
["Cheshire West and Chester Council","Adult and community - full (national)",58930,452624,10024294,"2015-03-17","2015-03-20","North West","N",null,"Link",2,2,2,2,{"$f":"VLOOKUP($D114,'Inspection data'!$I:$AU,9,FALSE)","v":{"$error":"#N/A"}},{"$f":"VLOOKUP($D114,'Inspection data'!$I:$AU,19,FALSE)","v":{"$error":"#N/A"}},{"$f":"VLOOKUP($D114,'Inspection data'!$I:$AU,29,FALSE)","v":{"$error":"#N/A"}},{"$f":"VLOOKUP($D114,'Inspection data'!$I:$AU,39,FALSE)","v":{"$error":"#N/A"}},{"$error":"#N/A"},{"$error":"#N/A"},{"$error":"#N/A"},{"$error":"#N/A"}]
["City Gateway","WBL - full (regional)",58841,452623,10019383,"2015-03-16","2015-03-20","London","N","2015-04-22T03:15:09.290","Link",2,2,2,2,{"$f":"VLOOKUP($D115,'Inspection data'!$I:$AU,9,FALSE)","v":2},{"$f":"VLOOKUP($D115,'Inspection data'!$I:$AU,19,FALSE)","v":2},{"$f":"VLOOKUP($D115,'Inspection data'!$I:$AU,29,FALSE)","v":2},{"$f":"VLOOKUP($D115,'Inspection data'!$I:$AU,39,FALSE)","v":2},"","","",""]
["Derby Skillbuild","WBL - requires improvement",51525,434401,10007922,"2015-03-17","2015-03-19","East Midlands","N","2015-04-24T00:29:18.083","Link",2,2,2,2,{"$f":"VLOOKUP($D116,'Inspection data'!$I:$AU,9,FALSE)","v":2},{"$f":"VLOOKUP($D116,'Inspection data'!$I:$AU,19,FALSE)","v":2},{"$f":"VLOOKUP($D116,'Inspection data'!$I:$AU,29,FALSE)","v":2},{"$f":"VLOOKUP($D116,'Inspection data'!$I:$AU,39,FALSE)","v":2},"","","",""]
["Focus Training (SW) Limited","WBL - full (regional)",50126,452974,10026590,"2015-03-16","2015-03-20","South West","N","2015-05-01T03:15:05.823","Link",2,2,2,2,{"$f":"VLOOKUP($D117,'Inspection data'!$I:$AU,9,FALSE)","v":2},{"$f":"VLOOKUP($D117,'Inspection data'!$I:$AU,19,FALSE)","v":2},{"$f":"VLOOKUP($D117,'Inspection data'!$I:$AU,29,FALSE)","v":2},{"$f":"VLOOKUP($D117,'Inspection data'!$I:$AU,39,FALSE)","v":2},"","","",""]
["Health Education North East","WBL - full (regional)",59195,452633,10041332,"2015-03-16","2015-03-19","North East, Yorkshire and Humberside","N","2015-04-23T03:15:10.230","Link",2,2,2,2,{"$f":"VLOOKUP($D118,'Inspection data'!$I:$AU,9,FALSE)","v":2},{"$f":"VLOOKUP($D118,'Inspection data'!$I:$AU,19,FALSE)","v":2},{"$f":"VLOOKUP($D118,'Inspection data'!$I:$AU,29,FALSE)","v":2},{"$f":"VLOOKUP($D118,'Inspection data'!$I:$AU,39,FALSE)","v":2},"","","",""]
["Royal Borough of Kingston upon Thames Council","ACL - requires improvement",54196,434390,10005549,"2015-03-17","2015-03-20","London","N",null,"Link",2,2,2,2,{"$f":"VLOOKUP($D119,'Inspection data'!$I:$AU,9,FALSE)","v":{"$error":"#N/A"}},{"$f":"VLOOKUP($D119,'Inspection data'!$I:$AU,19,FALSE)","v":{"$error":"#N/A"}},{"$f":"VLOOKUP($D119,'Inspection data'!$I:$AU,29,FALSE)","v":{"$error":"#N/A"}},{"$f":"VLOOKUP($D119,'Inspection data'!$I:$AU,39,FALSE)","v":{"$error":"#N/A"}},{"$error":"#N/A"},{"$error":"#N/A"},{"$error":"#N/A"},{"$error":"#N/A"}]
["Weir Training Limited","WBL - full (regional)",55295,452984,10007377,"2015-03-16","2015-03-20","South East","N","2015-04-23T03:15:10.640","Link",2,2,2,2,{"$f":"VLOOKUP($D120,'Inspection data'!$I:$AU,9,FALSE)","v":2},{"$f":"VLOOKUP($D120,'Inspection data'!$I:$AU,19,FALSE)","v":2},{"$f":"VLOOKUP($D120,'Inspection data'!$I:$AU,29,FALSE)","v":2},{"$f":"VLOOKUP($D120,'Inspection data'!$I:$AU,39,FALSE)","v":2},"","","",""]
["Astute Minds Ltd","WBL - full (regional)",59168,455611,10020307,"2015-03-24","2015-03-27","London","N","2015-04-27T03:15:29.677","Link",2,3,2,2,{"$f":"VLOOKUP($D121,'Inspection data'!$I:$AU,9,FALSE)","v":2},{"$f":"VLOOKUP($D121,'Inspection data'!$I:$AU,19,FALSE)","v":3},{"$f":"VLOOKUP($D121,'Inspection data'!$I:$AU,29,FALSE)","v":2},{"$f":"VLOOKUP($D121,'Inspection data'!$I:$AU,39,FALSE)","v":2},"","","",""]
["Enfield London Borough Council","Adult and community - full (national)",53116,452607,10002260,"2015-03-24","2015-03-27","London","N",null,"Link",2,2,2,2,{"$f":"VLOOKUP($D122,'Inspection data'!$I:$AU,9,FALSE)","v":{"$error":"#N/A"}},{"$f":"VLOOKUP($D122,'Inspection data'!$I:$AU,19,FALSE)","v":{"$error":"#N/A"}},{"$f":"VLOOKUP($D122,'Inspection data'!$I:$AU,29,FALSE)","v":{"$error":"#N/A"}},{"$f":"VLOOKUP($D122,'Inspection data'!$I:$AU,39,FALSE)","v":{"$error":"#N/A"}},{"$error":"#N/A"},{"$error":"#N/A"},{"$error":"#N/A"},{"$error":"#N/A"}]
["Hudson & Hughes Training Limited","WBL - full (regional)",52396,452604,10003192,"2015-03-24","2015-03-27","South West","N","2015-04-30T03:15:06.750","Link",2,2,2,2,{"$f":"VLOOKUP($D123,'Inspection data'!$I:$AU,9,FALSE)","v":2},{"$f":"VLOOKUP($D123,'Inspection data'!$I:$AU,19,FALSE)","v":2},{"$f":"VLOOKUP($D123,'Inspection data'!$I:$AU,29,FALSE)","v":2},{"$f":"VLOOKUP($D123,'Inspection data'!$I:$AU,39,FALSE)","v":2},"","","",""]
["Open Door Adult Learning Centre","Adult and Community - full (regional)",53746,452615,10030688,"2015-03-24","2015-03-27","North East, Yorkshire and Humberside","N","2015-05-01T03:15:05.400","Link",3,3,2,3,{"$f":"VLOOKUP($D124,'Inspection data'!$I:$AU,9,FALSE)","v":3},{"$f":"VLOOKUP($D124,'Inspection data'!$I:$AU,19,FALSE)","v":3},{"$f":"VLOOKUP($D124,'Inspection data'!$I:$AU,29,FALSE)","v":2},{"$f":"VLOOKUP($D124,'Inspection data'!$I:$AU,39,FALSE)","v":3},"","","",""]
["Redbridge Institute of Adult Education","Adult and Community - full (regional)",53141,452608,10005412,"2015-03-23","2015-03-27","London","N",null,"Link",2,2,2,2,{"$f":"VLOOKUP($D125,'Inspection data'!$I:$AU,9,FALSE)","v":{"$error":"#N/A"}},{"$f":"VLOOKUP($D125,'Inspection data'!$I:$AU,19,FALSE)","v":{"$error":"#N/A"}},{"$f":"VLOOKUP($D125,'Inspection data'!$I:$AU,29,FALSE)","v":{"$error":"#N/A"}},{"$f":"VLOOKUP($D125,'Inspection data'!$I:$AU,39,FALSE)","v":{"$error":"#N/A"}},{"$error":"#N/A"},{"$error":"#N/A"},{"$error":"#N/A"},{"$error":"#N/A"}]
["Thomas Cook Group UK Limited","Work Based Learning - full (national)",58184,452987,10032145,"2015-03-23","2015-03-27","East of England","N","2015-04-30T03:15:07.160","Link",1,1,1,1,{"$f":"VLOOKUP($D126,'Inspection data'!$I:$AU,9,FALSE)","v":1},{"$f":"VLOOKUP($D126,'Inspection data'!$I:$AU,19,FALSE)","v":1},{"$f":"VLOOKUP($D126,'Inspection data'!$I:$AU,29,FALSE)","v":1},{"$f":"VLOOKUP($D126,'Inspection data'!$I:$AU,39,FALSE)","v":1},"","","",""]
["YMCA Training","Work Based Learning - full (national)",57598,452735,10007405,"2015-03-23","2015-03-27","North West","N","2015-04-29T00:20:24.657","Link",3,3,3,3,{"$f":"VLOOKUP($D127,'Inspection data'!$I:$AU,9,FALSE)","v":3},{"$f":"VLOOKUP($D127,'Inspection data'!$I:$AU,19,FALSE)","v":3},{"$f":"VLOOKUP($D127,'Inspection data'!$I:$AU,29,FALSE)","v":3},{"$f":"VLOOKUP($D127,'Inspection data'!$I:$AU,39,FALSE)","v":3},"","","",""]
["All Trades Training Limited","WBL - requires improvement",59124,440400,10027693,"2015-04-15","2015-04-17","East of England","N",null,"Link",2,2,2,2,{"$f":"VLOOKUP($D128,'Inspection data'!$I:$AU,9,FALSE)","v":{"$error":"#N/A"}},{"$f":"VLOOKUP($D128,'Inspection data'!$I:$AU,19,FALSE)","v":{"$error":"#N/A"}},{"$f":"VLOOKUP($D128,'Inspection data'!$I:$AU,29,FALSE)","v":{"$error":"#N/A"}},{"$f":"VLOOKUP($D128,'Inspection data'!$I:$AU,39,FALSE)","v":{"$error":"#N/A"}},{"$error":"#N/A"},{"$error":"#N/A"},{"$error":"#N/A"},{"$error":"#N/A"}]
["DV8 TRAINING (BRIGHTON) LIMITED","WBL - full (regional)",59191,455621,10029823,"2015-04-21","2015-04-24","South East","N",null,"Link",3,3,3,3,{"$f":"VLOOKUP($D129,'Inspection data'!$I:$AU,9,FALSE)","v":{"$error":"#N/A"}},{"$f":"VLOOKUP($D129,'Inspection data'!$I:$AU,19,FALSE)","v":{"$error":"#N/A"}},{"$f":"VLOOKUP($D129,'Inspection data'!$I:$AU,29,FALSE)","v":{"$error":"#N/A"}},{"$f":"VLOOKUP($D129,'Inspection data'!$I:$AU,39,FALSE)","v":{"$error":"#N/A"}},{"$error":"#N/A"},{"$error":"#N/A"},{"$error":"#N/A"},{"$error":"#N/A"}]
["Kwik-Fit (GB) Limited","WBL - requires improvement",52896,434402,10003724,"2015-04-20","2015-04-24","East Midlands","N",null,"Link",1,1,1,1,{"$f":"VLOOKUP($D130,'Inspection data'!$I:$AU,9,FALSE)","v":{"$error":"#N/A"}},{"$f":"VLOOKUP($D130,'Inspection data'!$I:$AU,19,FALSE)","v":{"$error":"#N/A"}},{"$f":"VLOOKUP($D130,'Inspection data'!$I:$AU,29,FALSE)","v":{"$error":"#N/A"}},{"$f":"VLOOKUP($D130,'Inspection data'!$I:$AU,39,FALSE)","v":{"$error":"#N/A"}},{"$error":"#N/A"},{"$error":"#N/A"},{"$error":"#N/A"},{"$f":"IF(O130=S130,\"\",\"check\")","v":{"$error":"#N/A"}}]
["North West Training Council","WBL - requires improvement",53615,440402,10004723,"2015-04-20","2015-04-24","North West","N",null,"Link",2,2,2,2,{"$f":"VLOOKUP($D131,'Inspection data'!$I:$AU,9,FALSE)","v":{"$error":"#N/A"}},{"$f":"VLOOKUP($D131,'Inspection data'!$I:$AU,19,FALSE)","v":{"$error":"#N/A"}},{"$f":"VLOOKUP($D131,'Inspection data'!$I:$AU,29,FALSE)","v":{"$error":"#N/A"}},{"$f":"VLOOKUP($D131,'Inspection data'!$I:$AU,39,FALSE)","v":{"$error":"#N/A"}},{"$f":"IF(L131=P131,\"\",\"check\")","v":{"$error":"#N/A"}},{"$error":"#N/A"},{"$error":"#N/A"},{"$error":"#N/A"}]
["Steps to Work (Walsall) Ltd","Adult and Community - full (regional)",50202,455576,10006325,"2015-04-22","2015-04-24","West Midlands","N",null,"Link",3,3,3,2,{"$f":"VLOOKUP($D132,'Inspection data'!$I:$AU,9,FALSE)","v":{"$error":"#N/A"}},{"$f":"VLOOKUP($D132,'Inspection data'!$I:$AU,19,FALSE)","v":{"$error":"#N/A"}},{"$f":"VLOOKUP($D132,'Inspection data'!$I:$AU,29,FALSE)","v":{"$error":"#N/A"}},{"$f":"VLOOKUP($D132,'Inspection data'!$I:$AU,39,FALSE)","v":{"$error":"#N/A"}},{"$error":"#N/A"},{"$error":"#N/A"},{"$error":"#N/A"},{"$error":"#N/A"}]
["Veolia Environement Development Centre Limited","WBL - requires improvement",58179,440392,10014199,"2015-04-20","2015-04-24","London","N",null,"Link",3,3,3,3,{"$f":"VLOOKUP($D133,'Inspection data'!$I:$AU,9,FALSE)","v":{"$error":"#N/A"}},{"$f":"VLOOKUP($D133,'Inspection data'!$I:$AU,19,FALSE)","v":{"$error":"#N/A"}},{"$f":"VLOOKUP($D133,'Inspection data'!$I:$AU,29,FALSE)","v":{"$error":"#N/A"}},{"$f":"VLOOKUP($D133,'Inspection data'!$I:$AU,39,FALSE)","v":{"$error":"#N/A"}},{"$error":"#N/A"},{"$error":"#N/A"},{"$error":"#N/A"},{"$error":"#N/A"}]
["North East Lincolnshire Council","ACL - requires improvement",53575,446860,10004684,"2015-04-28","2015-05-01","North East, Yorkshire & Humber","N",null,"Link",3,3,3,3,{"$f":"VLOOKUP($D134,'Inspection data'!$I:$AU,9,FALSE)","v":{"$error":"#N/A"}},{"$f":"VLOOKUP($D134,'Inspection data'!$I:$AU,19,FALSE)","v":{"$error":"#N/A"}},{"$f":"VLOOKUP($D134,'Inspection data'!$I:$AU,29,FALSE)","v":{"$error":"#N/A"}},{"$f":"VLOOKUP($D134,'Inspection data'!$I:$AU,39,FALSE)","v":{"$error":"#N/A"}},{"$error":"#N/A"},{"$error":"#N/A"},{"$error":"#N/A"},{"$error":"#N/A"}]
["ProCo NW Limited","WBL - requires improvement",53981,440404,10021842,"2015-04-27","2015-05-01","North West","",null,"Link",null,null,null,null,{"$f":"VLOOKUP($D135,'Inspection data'!$I:$AU,9,FALSE)","v":{"$error":"#N/A"}},{"$f":"VLOOKUP($D135,'Inspection data'!$I:$AU,19,FALSE)","v":{"$error":"#N/A"}},{"$f":"VLOOKUP($D135,'Inspection data'!$I:$AU,29,FALSE)","v":{"$error":"#N/A"}},{"$f":"VLOOKUP($D135,'Inspection data'!$I:$AU,39,FALSE)","v":{"$error":"#N/A"}},{"$error":"#N/A"},{"$error":"#N/A"},{"$error":"#N/A"},{"$error":"#N/A"}]
["Midstream (West Lancs) Ltd","ISC - full inspection",139245,446689,10020990,"2014-09-16","2014-09-18","North West","Y","2014-10-21T03:15:05.030","Link",4,3,4,4,{"$f":"VLOOKUP($D136,'Inspection data'!$I:$AU,9,FALSE)","v":4},{"$f":"VLOOKUP($D136,'Inspection data'!$I:$AU,19,FALSE)","v":3},{"$f":"VLOOKUP($D136,'Inspection data'!$I:$AU,29,FALSE)","v":4},{"$f":"VLOOKUP($D136,'Inspection data'!$I:$AU,39,FALSE)","v":4},"","","",""]
["Newham Sixth Form College","SFC - full inspection",130452,452156,10004608,"2014-09-15","2014-09-19","London","N","2014-10-24T03:15:19.917","Link",3,3,3,3,{"$f":"VLOOKUP($D137,'Inspection data'!$I:$AU,9,FALSE)","v":3},{"$f":"VLOOKUP($D137,'Inspection data'!$I:$AU,19,FALSE)","v":3},{"$f":"VLOOKUP($D137,'Inspection data'!$I:$AU,29,FALSE)","v":3},{"$f":"VLOOKUP($D137,'Inspection data'!$I:$AU,39,FALSE)","v":3},"","","",""]
["Joseph Chamberlain Sixth Form College","FE College - requires improvement",130468,430285,10003511,"2014-09-16","2014-09-19","West Midlands","N","2014-10-23T03:15:04.920","Link",2,2,2,1,{"$f":"VLOOKUP($D138,'Inspection data'!$I:$AU,9,FALSE)","v":2},{"$f":"VLOOKUP($D138,'Inspection data'!$I:$AU,19,FALSE)","v":2},{"$f":"VLOOKUP($D138,'Inspection data'!$I:$AU,29,FALSE)","v":2},{"$f":"VLOOKUP($D138,'Inspection data'!$I:$AU,39,FALSE)","v":1},"","","",""]
["King George V College","SFC - full inspection",130492,446535,10003640,"2014-09-16","2014-09-19","North West","Y","2014-10-23T03:15:10.390","Link",4,4,4,4,{"$f":"VLOOKUP($D139,'Inspection data'!$I:$AU,9,FALSE)","v":4},{"$f":"VLOOKUP($D139,'Inspection data'!$I:$AU,19,FALSE)","v":4},{"$f":"VLOOKUP($D139,'Inspection data'!$I:$AU,29,FALSE)","v":4},{"$f":"VLOOKUP($D139,'Inspection data'!$I:$AU,39,FALSE)","v":4},"","","",""]
["Bradford College","FE College - full inspection",130532,446537,10000840,"2014-09-22","2014-09-26","North East, Yorkshire and Humberside","N","2014-10-29T03:15:06.663","Link",2,2,2,2,{"$f":"VLOOKUP($D140,'Inspection data'!$I:$AU,9,FALSE)","v":2},{"$f":"VLOOKUP($D140,'Inspection data'!$I:$AU,19,FALSE)","v":2},{"$f":"VLOOKUP($D140,'Inspection data'!$I:$AU,29,FALSE)","v":2},{"$f":"VLOOKUP($D140,'Inspection data'!$I:$AU,39,FALSE)","v":2},"","","",""]
["Hartlepool Sixth Form College","SFC - full inspection",130568,446538,10002918,"2014-09-23","2014-09-26","North East, Yorkshire and Humberside","Y","2014-11-13","Link",4,4,3,4,{"$f":"VLOOKUP($D141,'Inspection data'!$I:$AU,9,FALSE)","v":4},{"$f":"VLOOKUP($D141,'Inspection data'!$I:$AU,19,FALSE)","v":4},{"$f":"VLOOKUP($D141,'Inspection data'!$I:$AU,29,FALSE)","v":3},{"$f":"VLOOKUP($D141,'Inspection data'!$I:$AU,39,FALSE)","v":4},"","","",""]
["Strode College","FE College - full inspection",130806,446539,10006378,"2014-09-23","2014-09-26","South West","N","2014-10-31","Link",1,1,1,1,{"$f":"VLOOKUP($D142,'Inspection data'!$I:$AU,9,FALSE)","v":1},{"$f":"VLOOKUP($D142,'Inspection data'!$I:$AU,19,FALSE)","v":1},{"$f":"VLOOKUP($D142,'Inspection data'!$I:$AU,29,FALSE)","v":1},{"$f":"VLOOKUP($D142,'Inspection data'!$I:$AU,39,FALSE)","v":1},"","","",""]
["SEEVIC College","FE College - requires improvement",130681,430276,10005736,"2014-09-29","2014-10-03","East of England","N","2014-11-04T03:15:03.607","Link",3,3,3,3,{"$f":"VLOOKUP($D143,'Inspection data'!$I:$AU,9,FALSE)","v":3},{"$f":"VLOOKUP($D143,'Inspection data'!$I:$AU,19,FALSE)","v":3},{"$f":"VLOOKUP($D143,'Inspection data'!$I:$AU,29,FALSE)","v":3},{"$f":"VLOOKUP($D143,'Inspection data'!$I:$AU,39,FALSE)","v":3},"","","",""]
["Kingston Maurward College","FE College - requires improvement",130655,430267,10003676,"2014-09-30","2014-10-03","South West","N","2014-11-07T03:15:04.490","Link",2,2,2,3,{"$f":"VLOOKUP($D144,'Inspection data'!$I:$AU,9,FALSE)","v":2},{"$f":"VLOOKUP($D144,'Inspection data'!$I:$AU,19,FALSE)","v":2},{"$f":"VLOOKUP($D144,'Inspection data'!$I:$AU,29,FALSE)","v":2},{"$f":"VLOOKUP($D144,'Inspection data'!$I:$AU,39,FALSE)","v":3},"","","",""]
["Stafford College","FE College - requires improvement",130813,430279,10006293,"2014-10-06","2014-10-10","West Midlands","N","2014-11-18T03:15:04.523","Link",3,3,3,3,{"$f":"VLOOKUP($D145,'Inspection data'!$I:$AU,9,FALSE)","v":3},{"$f":"VLOOKUP($D145,'Inspection data'!$I:$AU,19,FALSE)","v":3},{"$f":"VLOOKUP($D145,'Inspection data'!$I:$AU,29,FALSE)","v":3},{"$f":"VLOOKUP($D145,'Inspection data'!$I:$AU,39,FALSE)","v":3},"","","",""]
["Worthing College","FE College - requires improvement",130845,430283,10007643,"2014-10-07","2014-10-10","South East","N","2014-11-14T03:15:03.080","Link",3,3,3,3,{"$f":"VLOOKUP($D146,'Inspection data'!$I:$AU,9,FALSE)","v":3},{"$f":"VLOOKUP($D146,'Inspection data'!$I:$AU,19,FALSE)","v":3},{"$f":"VLOOKUP($D146,'Inspection data'!$I:$AU,29,FALSE)","v":3},{"$f":"VLOOKUP($D146,'Inspection data'!$I:$AU,39,FALSE)","v":3},"","","",""]
["Waltham Forest College","FE College - requires improvement",130456,430281,10007321,"2014-10-13","2014-10-17","London","N","2014-11-21T03:15:04.590","Link",3,3,3,3,{"$f":"VLOOKUP($D147,'Inspection data'!$I:$AU,9,FALSE)","v":3},{"$f":"VLOOKUP($D147,'Inspection data'!$I:$AU,19,FALSE)","v":3},{"$f":"VLOOKUP($D147,'Inspection data'!$I:$AU,29,FALSE)","v":3},{"$f":"VLOOKUP($D147,'Inspection data'!$I:$AU,39,FALSE)","v":3},"","","",""]
["Walford and North Shropshire College","FE College - requires improvement",130797,430280,10007299,"2014-10-14","2014-10-17","West Midlands","N","2014-11-21T03:15:04.170","Link",3,3,3,3,{"$f":"VLOOKUP($D148,'Inspection data'!$I:$AU,9,FALSE)","v":3},{"$f":"VLOOKUP($D148,'Inspection data'!$I:$AU,19,FALSE)","v":3},{"$f":"VLOOKUP($D148,'Inspection data'!$I:$AU,29,FALSE)","v":3},{"$f":"VLOOKUP($D148,'Inspection data'!$I:$AU,39,FALSE)","v":3},"","","",""]
["Orpheus Centre","ISC - full inspection",131950,446687,10009111,"2014-10-21","2014-10-22","South East","N","2014-12-03T03:15:08.710","Link",3,3,3,3,{"$f":"VLOOKUP($D149,'Inspection data'!$I:$AU,9,FALSE)","v":3},{"$f":"VLOOKUP($D149,'Inspection data'!$I:$AU,19,FALSE)","v":3},{"$f":"VLOOKUP($D149,'Inspection data'!$I:$AU,29,FALSE)","v":3},{"$f":"VLOOKUP($D149,'Inspection data'!$I:$AU,39,FALSE)","v":3},"","","",""]
["Central Sussex College","FE College - requires improvement",129383,430269,10001744,"2014-10-20","2014-10-24","South East","N","2014-11-28","Link",3,3,3,3,{"$f":"VLOOKUP($D150,'Inspection data'!$I:$AU,9,FALSE)","v":3},{"$f":"VLOOKUP($D150,'Inspection data'!$I:$AU,19,FALSE)","v":3},{"$f":"VLOOKUP($D150,'Inspection data'!$I:$AU,29,FALSE)","v":3},{"$f":"VLOOKUP($D150,'Inspection data'!$I:$AU,39,FALSE)","v":3},"","","",""]
["City of Wolverhampton College","FE College - requires improvement",130484,430270,10007578,"2014-10-20","2014-10-24","West Midlands","N","2014-11-28","Link",2,3,2,2,{"$f":"VLOOKUP($D151,'Inspection data'!$I:$AU,9,FALSE)","v":2},{"$f":"VLOOKUP($D151,'Inspection data'!$I:$AU,19,FALSE)","v":3},{"$f":"VLOOKUP($D151,'Inspection data'!$I:$AU,29,FALSE)","v":2},{"$f":"VLOOKUP($D151,'Inspection data'!$I:$AU,39,FALSE)","v":2},"","","",""]
["Epping Forest College","FE College - requires improvement",130677,430271,10002297,"2014-10-20","2014-10-24","East of England","N","2014-11-28","Link",3,3,3,2,{"$f":"VLOOKUP($D152,'Inspection data'!$I:$AU,9,FALSE)","v":3},{"$f":"VLOOKUP($D152,'Inspection data'!$I:$AU,19,FALSE)","v":3},{"$f":"VLOOKUP($D152,'Inspection data'!$I:$AU,29,FALSE)","v":3},{"$f":"VLOOKUP($D152,'Inspection data'!$I:$AU,39,FALSE)","v":2},"","","",""]
["Warrington Collegiate","FE College - full inspection",130617,447146,10007339,"2014-10-20","2014-10-24","North West","N","2014-11-28","Link",3,3,3,3,{"$f":"VLOOKUP($D153,'Inspection data'!$I:$AU,9,FALSE)","v":3},{"$f":"VLOOKUP($D153,'Inspection data'!$I:$AU,19,FALSE)","v":3},{"$f":"VLOOKUP($D153,'Inspection data'!$I:$AU,29,FALSE)","v":3},{"$f":"VLOOKUP($D153,'Inspection data'!$I:$AU,39,FALSE)","v":3},"","","",""]
["Amersham and Wycombe College","FE College - requires improvement",130608,430268,10000275,"2014-11-03","2014-11-07","South East","N","2014-12-12","Link",3,3,3,2,{"$f":"VLOOKUP($D154,'Inspection data'!$I:$AU,9,FALSE)","v":3},{"$f":"VLOOKUP($D154,'Inspection data'!$I:$AU,19,FALSE)","v":3},{"$f":"VLOOKUP($D154,'Inspection data'!$I:$AU,29,FALSE)","v":3},{"$f":"VLOOKUP($D154,'Inspection data'!$I:$AU,39,FALSE)","v":2},"","","",""]
["Communication Specialist College -  Doncaster","ISC - full inspection",131869,429190,10002006,"2014-11-11","2014-11-13","North East, Yorkshire and Humberside","N","2014-12-16T03:15:04.180","Link",2,2,2,2,{"$f":"VLOOKUP($D155,'Inspection data'!$I:$AU,9,FALSE)","v":2},{"$f":"VLOOKUP($D155,'Inspection data'!$I:$AU,19,FALSE)","v":2},{"$f":"VLOOKUP($D155,'Inspection data'!$I:$AU,29,FALSE)","v":2},{"$f":"VLOOKUP($D155,'Inspection data'!$I:$AU,39,FALSE)","v":2},"","","",""]
["Area 51 Education Ltd","ISC - full inspection",139243,446688,10024163,"2014-11-12","2014-11-14","London","N","2014-12-19T03:15:11.973","Link",3,3,3,3,{"$f":"VLOOKUP($D156,'Inspection data'!$I:$AU,9,FALSE)","v":3},{"$f":"VLOOKUP($D156,'Inspection data'!$I:$AU,19,FALSE)","v":3},{"$f":"VLOOKUP($D156,'Inspection data'!$I:$AU,29,FALSE)","v":3},{"$f":"VLOOKUP($D156,'Inspection data'!$I:$AU,39,FALSE)","v":3},"","","",""]
["Central College Nottingham","FE College - requires improvement",130783,430278,10005991,"2014-11-10","2014-11-14","East Midlands","N","2014-12-18T03:15:03.513","Link",3,3,3,2,{"$f":"VLOOKUP($D157,'Inspection data'!$I:$AU,9,FALSE)","v":3},{"$f":"VLOOKUP($D157,'Inspection data'!$I:$AU,19,FALSE)","v":3},{"$f":"VLOOKUP($D157,'Inspection data'!$I:$AU,29,FALSE)","v":3},{"$f":"VLOOKUP($D157,'Inspection data'!$I:$AU,39,FALSE)","v":2},"","","",""]
["Greenwich Community College at Plumstead Centre","FE College - requires improvement",130405,430272,10002780,"2014-11-10","2014-11-14","London","Y","2014-12-19T03:15:04.333","Link",4,4,4,4,{"$f":"VLOOKUP($D158,'Inspection data'!$I:$AU,9,FALSE)","v":4},{"$f":"VLOOKUP($D158,'Inspection data'!$I:$AU,19,FALSE)","v":4},{"$f":"VLOOKUP($D158,'Inspection data'!$I:$AU,29,FALSE)","v":4},{"$f":"VLOOKUP($D158,'Inspection data'!$I:$AU,39,FALSE)","v":4},"","","",""]
["Northern School of Contemporary Dance","FE in HE - full inspection",133840,444690,10008816,"2014-11-11","2014-11-14","North East, Yorkshire and Humberside","N","2014-12-17T03:15:08.787","Link",1,1,1,1,{"$f":"VLOOKUP($D159,'Inspection data'!$I:$AU,9,FALSE)","v":1},{"$f":"VLOOKUP($D159,'Inspection data'!$I:$AU,19,FALSE)","v":1},{"$f":"VLOOKUP($D159,'Inspection data'!$I:$AU,29,FALSE)","v":1},{"$f":"VLOOKUP($D159,'Inspection data'!$I:$AU,39,FALSE)","v":1},"","","",""]
["Barnfield College","FE College - full inspection",130599,447145,10000534,"2014-11-17","2014-11-21","East of England","Y","2015-01-08T03:15:09.617","Link",4,4,4,4,{"$f":"VLOOKUP($D160,'Inspection data'!$I:$AU,9,FALSE)","v":4},{"$f":"VLOOKUP($D160,'Inspection data'!$I:$AU,19,FALSE)","v":4},{"$f":"VLOOKUP($D160,'Inspection data'!$I:$AU,29,FALSE)","v":4},{"$f":"VLOOKUP($D160,'Inspection data'!$I:$AU,39,FALSE)","v":4},"","","",""]
["Huntingdonshire Regional College","FE College - requires improvement",130612,430273,10007949,"2014-11-17","2014-11-21","East of England","N","2014-12-17T03:15:04.903","Link",3,3,3,3,{"$f":"VLOOKUP($D161,'Inspection data'!$I:$AU,9,FALSE)","v":3},{"$f":"VLOOKUP($D161,'Inspection data'!$I:$AU,19,FALSE)","v":3},{"$f":"VLOOKUP($D161,'Inspection data'!$I:$AU,29,FALSE)","v":3},{"$f":"VLOOKUP($D161,'Inspection data'!$I:$AU,39,FALSE)","v":3},"","","",""]
["South Gloucestershire and Stroud College","FE College - full inspection",139238,452493,10036143,"2014-11-17","2014-11-21","South West","N","2014-12-23T03:15:16.033","Link",2,2,2,1,{"$f":"VLOOKUP($D162,'Inspection data'!$I:$AU,9,FALSE)","v":2},{"$f":"VLOOKUP($D162,'Inspection data'!$I:$AU,19,FALSE)","v":2},{"$f":"VLOOKUP($D162,'Inspection data'!$I:$AU,29,FALSE)","v":2},{"$f":"VLOOKUP($D162,'Inspection data'!$I:$AU,39,FALSE)","v":1},"","","",""]
["South Leicestershire College","FE College - requires improvement",130750,430277,10005989,"2014-11-24","2014-11-28","East Midlands","N","2015-01-07T03:15:04.770","Link",2,2,2,2,{"$f":"VLOOKUP($D163,'Inspection data'!$I:$AU,9,FALSE)","v":2},{"$f":"VLOOKUP($D163,'Inspection data'!$I:$AU,19,FALSE)","v":2},{"$f":"VLOOKUP($D163,'Inspection data'!$I:$AU,29,FALSE)","v":2},{"$f":"VLOOKUP($D163,'Inspection data'!$I:$AU,39,FALSE)","v":2},"","","",""]
["Sheiling College","ISC - full inspection",139249,451325,10038981,"2014-12-02","2014-12-03","South West","N","2015-01-12T03:15:43.760","Link",2,2,2,2,{"$f":"VLOOKUP($D164,'Inspection data'!$I:$AU,9,FALSE)","v":2},{"$f":"VLOOKUP($D164,'Inspection data'!$I:$AU,19,FALSE)","v":2},{"$f":"VLOOKUP($D164,'Inspection data'!$I:$AU,29,FALSE)","v":2},{"$f":"VLOOKUP($D164,'Inspection data'!$I:$AU,39,FALSE)","v":2},"","","",""]
["Lowestoft College","FE College - requires improvement",130819,430274,10004116,"2014-12-02","2014-12-05","East of England","N","2015-01-14T03:15:02.850","Link",3,3,3,3,{"$f":"VLOOKUP($D165,'Inspection data'!$I:$AU,9,FALSE)","v":3},{"$f":"VLOOKUP($D165,'Inspection data'!$I:$AU,19,FALSE)","v":3},{"$f":"VLOOKUP($D165,'Inspection data'!$I:$AU,29,FALSE)","v":3},{"$f":"VLOOKUP($D165,'Inspection data'!$I:$AU,39,FALSE)","v":3},"","","",""]
["New College Swindon","FE College - full inspection",130851,446541,10004579,"2014-12-01","2014-12-05","South West","N","2015-01-14T03:15:05.033","Link",2,2,2,2,{"$f":"VLOOKUP($D166,'Inspection data'!$I:$AU,9,FALSE)","v":2},{"$f":"VLOOKUP($D166,'Inspection data'!$I:$AU,19,FALSE)","v":2},{"$f":"VLOOKUP($D166,'Inspection data'!$I:$AU,29,FALSE)","v":2},{"$f":"VLOOKUP($D166,'Inspection data'!$I:$AU,39,FALSE)","v":2},"","","",""]
["East Surrey College","FE College - full inspection",130824,446540,10002130,"2014-12-09","2014-12-12","South East","N","2015-01-21T03:15:04.317","Link",2,2,2,2,{"$f":"VLOOKUP($D167,'Inspection data'!$I:$AU,9,FALSE)","v":2},{"$f":"VLOOKUP($D167,'Inspection data'!$I:$AU,19,FALSE)","v":2},{"$f":"VLOOKUP($D167,'Inspection data'!$I:$AU,29,FALSE)","v":2},{"$f":"VLOOKUP($D167,'Inspection data'!$I:$AU,39,FALSE)","v":2},"","","",""]
["Lambeth College","FE College - requires improvement",130413,429287,10003755,"2014-12-08","2014-12-12","London","N","2015-01-23T03:15:02.983","Link",3,4,3,3,{"$f":"VLOOKUP($D168,'Inspection data'!$I:$AU,9,FALSE)","v":3},{"$f":"VLOOKUP($D168,'Inspection data'!$I:$AU,19,FALSE)","v":4},{"$f":"VLOOKUP($D168,'Inspection data'!$I:$AU,29,FALSE)","v":3},{"$f":"VLOOKUP($D168,'Inspection data'!$I:$AU,39,FALSE)","v":3},"","","",""]
["Stockport College","FE College - reinspection",130512,433764,10006331,"2014-12-08","2014-12-12","North West","N","2015-01-15T03:15:03.280","Link",3,3,3,3,{"$f":"VLOOKUP($D169,'Inspection data'!$I:$AU,9,FALSE)","v":3},{"$f":"VLOOKUP($D169,'Inspection data'!$I:$AU,19,FALSE)","v":3},{"$f":"VLOOKUP($D169,'Inspection data'!$I:$AU,29,FALSE)","v":3},{"$f":"VLOOKUP($D169,'Inspection data'!$I:$AU,39,FALSE)","v":3},"","","",""]
["The Maltings College","16-19 academy - full inspection",139433,452498,10041654,"2015-01-13","2015-01-16","North East, Yorkshire and Humberside","Y","2015-02-27T03:15:08.627","Link",4,4,4,4,{"$f":"VLOOKUP($D170,'Inspection data'!$I:$AU,9,FALSE)","v":4},{"$f":"VLOOKUP($D170,'Inspection data'!$I:$AU,19,FALSE)","v":4},{"$f":"VLOOKUP($D170,'Inspection data'!$I:$AU,29,FALSE)","v":4},{"$f":"VLOOKUP($D170,'Inspection data'!$I:$AU,39,FALSE)","v":4},"","","",""]
["Weymouth College","FE College - requires improvement",130653,430282,10007469,"2015-01-13","2015-01-16","South West","Y","2015-02-20T03:15:03.200","Link",4,2,2,4,{"$f":"VLOOKUP($D171,'Inspection data'!$I:$AU,9,FALSE)","v":4},{"$f":"VLOOKUP($D171,'Inspection data'!$I:$AU,19,FALSE)","v":2},{"$f":"VLOOKUP($D171,'Inspection data'!$I:$AU,29,FALSE)","v":2},{"$f":"VLOOKUP($D171,'Inspection data'!$I:$AU,39,FALSE)","v":4},"","","",""]
["Bilborough College","SFC - full inspection",130787,452491,10000695,"2015-01-20","2015-01-23","East Midlands","N","2015-03-06T03:15:12.827","Link",3,3,3,3,{"$f":"VLOOKUP($D172,'Inspection data'!$I:$AU,9,FALSE)","v":3},{"$f":"VLOOKUP($D172,'Inspection data'!$I:$AU,19,FALSE)","v":3},{"$f":"VLOOKUP($D172,'Inspection data'!$I:$AU,29,FALSE)","v":3},{"$f":"VLOOKUP($D172,'Inspection data'!$I:$AU,39,FALSE)","v":3},"","","",""]
["Kingston University","FE in HE - full inspection",133825,446542,10003678,"2015-01-20","2015-01-23","London","N","2015-03-02T03:15:09.540","Link",1,1,1,1,{"$f":"VLOOKUP($D173,'Inspection data'!$I:$AU,9,FALSE)","v":1},{"$f":"VLOOKUP($D173,'Inspection data'!$I:$AU,19,FALSE)","v":1},{"$f":"VLOOKUP($D173,'Inspection data'!$I:$AU,29,FALSE)","v":1},{"$f":"VLOOKUP($D173,'Inspection data'!$I:$AU,39,FALSE)","v":1},"","","",""]
["Trafford College","FE College - full inspection",130519,452485,10005998,"2015-01-19","2015-01-23","North West","N","2015-03-02T03:15:34.787","Link",2,2,2,2,{"$f":"VLOOKUP($D174,'Inspection data'!$I:$AU,9,FALSE)","v":2},{"$f":"VLOOKUP($D174,'Inspection data'!$I:$AU,19,FALSE)","v":2},{"$f":"VLOOKUP($D174,'Inspection data'!$I:$AU,29,FALSE)","v":2},{"$f":"VLOOKUP($D174,'Inspection data'!$I:$AU,39,FALSE)","v":2},"","","",""]
["Connell Sixth Form College","16-19 academy - full inspection",139730,452499,10042041,"2015-01-27","2015-01-30","North West","N","2015-03-17T03:15:06.953","Link",3,3,3,3,{"$f":"VLOOKUP($D175,'Inspection data'!$I:$AU,9,FALSE)","v":3},{"$f":"VLOOKUP($D175,'Inspection data'!$I:$AU,19,FALSE)","v":3},{"$f":"VLOOKUP($D175,'Inspection data'!$I:$AU,29,FALSE)","v":3},{"$f":"VLOOKUP($D175,'Inspection data'!$I:$AU,39,FALSE)","v":3},"","","",""]
["Stem Academy","16-19 academy - full inspection",139793,452500,10042051,"2015-01-27","2015-01-30","London","Y","2015-03-26T03:15:16.623","Link",4,4,4,4,{"$f":"VLOOKUP($D176,'Inspection data'!$I:$AU,9,FALSE)","v":4},{"$f":"VLOOKUP($D176,'Inspection data'!$I:$AU,19,FALSE)","v":4},{"$f":"VLOOKUP($D176,'Inspection data'!$I:$AU,29,FALSE)","v":4},{"$f":"VLOOKUP($D176,'Inspection data'!$I:$AU,39,FALSE)","v":4},"","","",""]
["Newbury College","FE College - full inspection",130602,452486,10004596,"2015-01-27","2015-01-30","South East","N","2015-03-10T03:15:11.837","Link",2,2,2,2,{"$f":"VLOOKUP($D177,'Inspection data'!$I:$AU,9,FALSE)","v":2},{"$f":"VLOOKUP($D177,'Inspection data'!$I:$AU,19,FALSE)","v":2},{"$f":"VLOOKUP($D177,'Inspection data'!$I:$AU,29,FALSE)","v":2},{"$f":"VLOOKUP($D177,'Inspection data'!$I:$AU,39,FALSE)","v":2},"","","",""]
["Hereward College of Further Education","FE College - requires improvement",130474,452778,10003029,"2015-01-27","2015-01-30","West Midlands","N","2015-03-06T03:15:13.647","Link",2,3,2,2,{"$f":"VLOOKUP($D178,'Inspection data'!$I:$AU,9,FALSE)","v":2},{"$f":"VLOOKUP($D178,'Inspection data'!$I:$AU,19,FALSE)","v":3},{"$f":"VLOOKUP($D178,'Inspection data'!$I:$AU,29,FALSE)","v":2},{"$f":"VLOOKUP($D178,'Inspection data'!$I:$AU,39,FALSE)","v":2},"","","",""]
["Hugh Baird College","FE College - full inspection",130490,452484,10003193,"2015-02-02","2015-02-06","North West","N","2015-03-09T03:15:10.320","Link",2,2,2,2,{"$f":"VLOOKUP($D179,'Inspection data'!$I:$AU,9,FALSE)","v":2},{"$f":"VLOOKUP($D179,'Inspection data'!$I:$AU,19,FALSE)","v":2},{"$f":"VLOOKUP($D179,'Inspection data'!$I:$AU,29,FALSE)","v":2},{"$f":"VLOOKUP($D179,'Inspection data'!$I:$AU,39,FALSE)","v":2},"","","",""]
["LeSoCo","FE College - reinspection",130415,440233,10003894,"2015-02-02","2015-02-06","London","Y","2015-04-01T03:15:03.333","Link",4,4,4,4,{"$f":"VLOOKUP($D180,'Inspection data'!$I:$AU,9,FALSE)","v":4},{"$f":"VLOOKUP($D180,'Inspection data'!$I:$AU,19,FALSE)","v":4},{"$f":"VLOOKUP($D180,'Inspection data'!$I:$AU,29,FALSE)","v":4},{"$f":"VLOOKUP($D180,'Inspection data'!$I:$AU,39,FALSE)","v":4},"","","",""]
["Darlington College","FE College - full inspection",130656,452549,10001850,"2015-02-09","2015-02-13","North East, Yorkshire and Humberside","Y","2015-03-20T03:15:07.753","Link",4,4,4,4,{"$f":"VLOOKUP($D181,'Inspection data'!$I:$AU,9,FALSE)","v":4},{"$f":"VLOOKUP($D181,'Inspection data'!$I:$AU,19,FALSE)","v":4},{"$f":"VLOOKUP($D181,'Inspection data'!$I:$AU,29,FALSE)","v":4},{"$f":"VLOOKUP($D181,'Inspection data'!$I:$AU,39,FALSE)","v":4},"","","",""]
["New College Telford","SFC - full inspection",130801,452492,10004580,"2015-02-10","2015-02-13","West Midlands","N","2015-03-19T03:15:10.940","Link",3,3,3,3,{"$f":"VLOOKUP($D182,'Inspection data'!$I:$AU,9,FALSE)","v":3},{"$f":"VLOOKUP($D182,'Inspection data'!$I:$AU,19,FALSE)","v":3},{"$f":"VLOOKUP($D182,'Inspection data'!$I:$AU,29,FALSE)","v":3},{"$f":"VLOOKUP($D182,'Inspection data'!$I:$AU,39,FALSE)","v":3},"","","",""]
["MidKent College","FE College - full inspection",130726,452489,10004340,"2015-03-02","2015-03-06","South East","N","2015-04-22T03:15:08.480","Link",3,3,3,3,{"$f":"VLOOKUP($D183,'Inspection data'!$I:$AU,9,FALSE)","v":3},{"$f":"VLOOKUP($D183,'Inspection data'!$I:$AU,19,FALSE)","v":3},{"$f":"VLOOKUP($D183,'Inspection data'!$I:$AU,29,FALSE)","v":3},{"$f":"VLOOKUP($D183,'Inspection data'!$I:$AU,39,FALSE)","v":3},"","","",""]
["Tameside College","FE College - full inspection",130516,452546,10006494,"2015-03-02","2015-03-06","North West","N","2015-04-10T03:15:04.033","Link",3,3,3,3,{"$f":"VLOOKUP($D184,'Inspection data'!$I:$AU,9,FALSE)","v":3},{"$f":"VLOOKUP($D184,'Inspection data'!$I:$AU,19,FALSE)","v":3},{"$f":"VLOOKUP($D184,'Inspection data'!$I:$AU,29,FALSE)","v":3},{"$f":"VLOOKUP($D184,'Inspection data'!$I:$AU,39,FALSE)","v":3},"","","",""]
["Sir Isaac Newton Sixth Form Free School","16-19 academy - full inspection",139896,452502,10042335,"2015-03-03","2015-03-06","East of England","N","2015-03-31T03:15:06.240","Link",2,2,2,2,{"$f":"VLOOKUP($D185,'Inspection data'!$I:$AU,9,FALSE)","v":2},{"$f":"VLOOKUP($D185,'Inspection data'!$I:$AU,19,FALSE)","v":2},{"$f":"VLOOKUP($D185,'Inspection data'!$I:$AU,29,FALSE)","v":2},{"$f":"VLOOKUP($D185,'Inspection data'!$I:$AU,39,FALSE)","v":2},"","","",""]
["Prior Pursglove College","SFC - reinspection",130575,446543,10005220,"2015-03-03","2015-03-06","North East, Yorkshire and Humberside","N","2015-04-09T03:15:04","Link",2,2,2,2,{"$f":"VLOOKUP($D186,'Inspection data'!$I:$AU,9,FALSE)","v":2},{"$f":"VLOOKUP($D186,'Inspection data'!$I:$AU,19,FALSE)","v":2},{"$f":"VLOOKUP($D186,'Inspection data'!$I:$AU,29,FALSE)","v":2},{"$f":"VLOOKUP($D186,'Inspection data'!$I:$AU,39,FALSE)","v":2},"","","",""]
["Kimberley 16 - 19 Stem College","16-19 academy - full inspection",139798,452501,10042040,"2015-03-10","2015-03-13","East of England","N","2015-04-21T03:15:12.067","Link",3,3,3,3,{"$f":"VLOOKUP($D187,'Inspection data'!$I:$AU,9,FALSE)","v":3},{"$f":"VLOOKUP($D187,'Inspection data'!$I:$AU,19,FALSE)","v":3},{"$f":"VLOOKUP($D187,'Inspection data'!$I:$AU,29,FALSE)","v":3},{"$f":"VLOOKUP($D187,'Inspection data'!$I:$AU,39,FALSE)","v":3},"","","",""]
["Solihull College","FE College - full inspection",130481,452547,10005946,"2015-03-09","2015-03-13","West Midlands","N","2015-04-21T03:15:12.463","Link",3,3,3,3,{"$f":"VLOOKUP($D188,'Inspection data'!$I:$AU,9,FALSE)","v":3},{"$f":"VLOOKUP($D188,'Inspection data'!$I:$AU,19,FALSE)","v":3},{"$f":"VLOOKUP($D188,'Inspection data'!$I:$AU,29,FALSE)","v":3},{"$f":"VLOOKUP($D188,'Inspection data'!$I:$AU,39,FALSE)","v":3},"","","",""]
["Strode's College","SFC - full inspection",130833,452545,10006379,"2015-03-10","2015-03-13","South East","N","2015-04-24T00:29:24.760","Link",3,3,3,3,{"$f":"VLOOKUP($D189,'Inspection data'!$I:$AU,9,FALSE)","v":3},{"$f":"VLOOKUP($D189,'Inspection data'!$I:$AU,19,FALSE)","v":3},{"$f":"VLOOKUP($D189,'Inspection data'!$I:$AU,29,FALSE)","v":3},{"$f":"VLOOKUP($D189,'Inspection data'!$I:$AU,39,FALSE)","v":3},"","","",""]
["Warwickshire College Group","FE College - full inspection",130835,461394,10007859,"2015-03-09","2015-03-13","West Midlands","N","2015-04-02T03:15:18.110","Link",2,3,2,2,{"$f":"VLOOKUP($D190,'Inspection data'!$I:$AU,9,FALSE)","v":2},{"$f":"VLOOKUP($D190,'Inspection data'!$I:$AU,19,FALSE)","v":3},{"$f":"VLOOKUP($D190,'Inspection data'!$I:$AU,29,FALSE)","v":2},{"$f":"VLOOKUP($D190,'Inspection data'!$I:$AU,39,FALSE)","v":2}]
["Wigan and Leigh College","FE College - full inspection",130521,446536,10007500,"2015-03-09","2015-03-13","North West","N","2015-04-17T03:15:04.590","Link",3,3,3,3,{"$f":"VLOOKUP($D191,'Inspection data'!$I:$AU,9,FALSE)","v":3},{"$f":"VLOOKUP($D191,'Inspection data'!$I:$AU,19,FALSE)","v":3},{"$f":"VLOOKUP($D191,'Inspection data'!$I:$AU,29,FALSE)","v":3},{"$f":"VLOOKUP($D191,'Inspection data'!$I:$AU,39,FALSE)","v":3}]
["Bolton College","FE College - full inspection",130495,455663,10000794,"2015-03-16","2015-03-20","North West","N",null,"Link",3,3,2,3,{"$f":"VLOOKUP($D192,'Inspection data'!$I:$AU,9,FALSE)","v":{"$error":"#N/A"}},{"$f":"VLOOKUP($D192,'Inspection data'!$I:$AU,19,FALSE)","v":{"$error":"#N/A"}},{"$f":"VLOOKUP($D192,'Inspection data'!$I:$AU,29,FALSE)","v":{"$error":"#N/A"}},{"$f":"VLOOKUP($D192,'Inspection data'!$I:$AU,39,FALSE)","v":{"$error":"#N/A"}}]
["Hartpury College","FE College - full inspection",130687,452550,10002919,"2015-03-17","2015-03-20","South West","N","2015-04-29T00:20:24.037","Link",2,2,2,2,{"$f":"VLOOKUP($D193,'Inspection data'!$I:$AU,9,FALSE)","v":2},{"$f":"VLOOKUP($D193,'Inspection data'!$I:$AU,19,FALSE)","v":2},{"$f":"VLOOKUP($D193,'Inspection data'!$I:$AU,29,FALSE)","v":2},{"$f":"VLOOKUP($D193,'Inspection data'!$I:$AU,39,FALSE)","v":2}]
["Stratford-upon-Avon College","FE College - requires improvement",130837,433769,10006002,"2015-03-17","2015-03-20","West Midlands","N","2015-04-09T03:15:03.457","Link",2,3,2,2,{"$f":"VLOOKUP($D194,'Inspection data'!$I:$AU,9,FALSE)","v":2},{"$f":"VLOOKUP($D194,'Inspection data'!$I:$AU,19,FALSE)","v":3},{"$f":"VLOOKUP($D194,'Inspection data'!$I:$AU,29,FALSE)","v":2},{"$f":"VLOOKUP($D194,'Inspection data'!$I:$AU,39,FALSE)","v":2}]
["Furness College","FE College - full inspection",130633,452487,10002599,"2015-03-24","2015-03-27","North West","N","2015-05-01T03:15:04.983","Link",2,2,2,2,{"$f":"VLOOKUP($D195,'Inspection data'!$I:$AU,9,FALSE)","v":2},{"$f":"VLOOKUP($D195,'Inspection data'!$I:$AU,19,FALSE)","v":2},{"$f":"VLOOKUP($D195,'Inspection data'!$I:$AU,29,FALSE)","v":2},{"$f":"VLOOKUP($D195,'Inspection data'!$I:$AU,39,FALSE)","v":2}]
["New College Stamford ","FE College - full inspection",130760,452490,10006303,"2015-03-24","2015-03-27","East Midlands","N","2015-04-29T00:20:23.173","Link",3,3,3,3,{"$f":"VLOOKUP($D196,'Inspection data'!$I:$AU,9,FALSE)","v":3},{"$f":"VLOOKUP($D196,'Inspection data'!$I:$AU,19,FALSE)","v":3},{"$f":"VLOOKUP($D196,'Inspection data'!$I:$AU,29,FALSE)","v":3},{"$f":"VLOOKUP($D196,'Inspection data'!$I:$AU,39,FALSE)","v":3}]
["Strathmore College","ISC - requires improvement",132021,446033,10006374,"2015-03-25","2015-03-27","West Midlands","N","2015-04-29T00:20:19.913","Link",2,2,2,2,{"$f":"VLOOKUP($D197,'Inspection data'!$I:$AU,9,FALSE)","v":2},{"$f":"VLOOKUP($D197,'Inspection data'!$I:$AU,19,FALSE)","v":2},{"$f":"VLOOKUP($D197,'Inspection data'!$I:$AU,29,FALSE)","v":2},{"$f":"VLOOKUP($D197,'Inspection data'!$I:$AU,39,FALSE)","v":2}]
["Barrow-in-Furness Sixth Form College","SFC - requires improvement",130637,440399,10000546,"2015-04-14","2015-04-17","North West","N",null,"Link",2,2,2,2,{"$f":"VLOOKUP($D198,'Inspection data'!$I:$AU,9,FALSE)","v":{"$error":"#N/A"}},{"$f":"VLOOKUP($D198,'Inspection data'!$I:$AU,19,FALSE)","v":{"$error":"#N/A"}},{"$f":"VLOOKUP($D198,'Inspection data'!$I:$AU,29,FALSE)","v":{"$error":"#N/A"}},{"$f":"VLOOKUP($D198,'Inspection data'!$I:$AU,39,FALSE)","v":{"$error":"#N/A"}}]
["Calthorpe Vocational Trust","ISC - full inspection",141435,455855,10046840,"2015-04-20","2015-04-22","West Midlands","N",null,"Link",2,1,2,2,{"$f":"VLOOKUP($D199,'Inspection data'!$I:$AU,9,FALSE)","v":{"$error":"#N/A"}},{"$f":"VLOOKUP($D199,'Inspection data'!$I:$AU,19,FALSE)","v":{"$error":"#N/A"}},{"$f":"VLOOKUP($D199,'Inspection data'!$I:$AU,29,FALSE)","v":{"$error":"#N/A"}},{"$f":"VLOOKUP($D199,'Inspection data'!$I:$AU,39,FALSE)","v":{"$error":"#N/A"}}]
["City of Stoke-on-Trent Sixth Form College","SFC - requires improvement 2nd inspection",130817,446035,10001474,"2015-04-21","2015-04-24","West Midlands","N",null,"Link",2,2,2,2,{"$f":"VLOOKUP($D200,'Inspection data'!$I:$AU,9,FALSE)","v":{"$error":"#N/A"}},{"$f":"VLOOKUP($D200,'Inspection data'!$I:$AU,19,FALSE)","v":{"$error":"#N/A"}},{"$f":"VLOOKUP($D200,'Inspection data'!$I:$AU,29,FALSE)","v":{"$error":"#N/A"}},{"$f":"VLOOKUP($D200,'Inspection data'!$I:$AU,39,FALSE)","v":{"$error":"#N/A"}}]
["Landau Forte Academy Tamworth Sixth Form","16-19 academy - full inspection",141491,455817,10044606,"2015-04-21","2015-04-24","West Midlands","N",null,"Link",3,3,3,3,{"$f":"VLOOKUP($D201,'Inspection data'!$I:$AU,9,FALSE)","v":{"$error":"#N/A"}},{"$f":"VLOOKUP($D201,'Inspection data'!$I:$AU,19,FALSE)","v":{"$error":"#N/A"}},{"$f":"VLOOKUP($D201,'Inspection data'!$I:$AU,29,FALSE)","v":{"$error":"#N/A"}},{"$f":"VLOOKUP($D201,'Inspection data'!$I:$AU,39,FALSE)","v":{"$error":"#N/A"}}]
["King Edward VI College Nuneaton","SFC - requires improvement",130840,443135,10003624,"2015-04-28","2015-05-01","West Midlands","N",null,"Link",2,2,2,2,{"$f":"VLOOKUP($D202,'Inspection data'!$I:$AU,9,FALSE)","v":{"$error":"#N/A"}},{"$f":"VLOOKUP($D202,'Inspection data'!$I:$AU,19,FALSE)","v":{"$error":"#N/A"}},{"$f":"VLOOKUP($D202,'Inspection data'!$I:$AU,29,FALSE)","v":{"$error":"#N/A"}},{"$f":"VLOOKUP($D202,'Inspection data'!$I:$AU,39,FALSE)","v":{"$error":"#N/A"}}]
["Lowestoft Sixth Form College","SFC - requires improvement",136255,444483,10029916,"2015-04-28","2015-05-01","East of England","N",null,"Link",2,2,2,2,{"$f":"VLOOKUP($D203,'Inspection data'!$I:$AU,9,FALSE)","v":{"$error":"#N/A"}},{"$f":"VLOOKUP($D203,'Inspection data'!$I:$AU,19,FALSE)","v":{"$error":"#N/A"}},{"$f":"VLOOKUP($D203,'Inspection data'!$I:$AU,29,FALSE)","v":{"$error":"#N/A"}},{"$f":"VLOOKUP($D203,'Inspection data'!$I:$AU,39,FALSE)","v":{"$error":"#N/A"}}]
["Totton College","SFC - requires improvement 2nd inspection",130699,446036,10006958,"2015-04-28","2015-05-01","South East","Y",null,"Link",4,4,4,4,{"$f":"VLOOKUP($D204,'Inspection data'!$I:$AU,9,FALSE)","v":{"$error":"#N/A"}},{"$f":"VLOOKUP($D204,'Inspection data'!$I:$AU,19,FALSE)","v":{"$error":"#N/A"}},{"$f":"VLOOKUP($D204,'Inspection data'!$I:$AU,29,FALSE)","v":{"$error":"#N/A"}},{"$f":"VLOOKUP($D204,'Inspection data'!$I:$AU,39,FALSE)","v":{"$error":"#N/A"}}]
["Wilberforce College","SFC - requires improvement",130580,434399,10007503,"2015-04-28","2015-05-01","North East, Yorkshire and Humberside","N",null,"Link",2,2,2,2,{"$f":"VLOOKUP($D205,'Inspection data'!$I:$AU,9,FALSE)","v":{"$error":"#N/A"}},{"$f":"VLOOKUP($D205,'Inspection data'!$I:$AU,19,FALSE)","v":{"$error":"#N/A"}},{"$f":"VLOOKUP($D205,'Inspection data'!$I:$AU,29,FALSE)","v":{"$error":"#N/A"}},{"$f":"VLOOKUP($D205,'Inspection data'!$I:$AU,39,FALSE)","v":{"$error":"#N/A"}}]
[null,null,null,null,null,null,null,null,null,null,"Link"]
[null,null,null,null,null,null,null,null,null,null,"Link"]
[null,null,null,null,null,null,null,null,null,null,"Link"]